Workbook

Sheet global_output_checkm
B1: Bin Id | C1: Marker lineage | D1: # genomes | E1: # markers | F1: # marker sets | G1: Completeness | H1: Contamination | I1: Strain heterogeneity | J1: Contamination excluding that determined by strains | K1: Genome size (bp) | L1: # ambiguous bases | M1: # scaffolds | N1: # contigs | O1: N50 (scaffolds) | P1: N50 (contigs) | Q1: Mean scaffold length (bp) | R1: Mean contig length (bp) | S1: Longest scaffold (bp) | T1: Longest contig (bp) | U1: GC | V1: GC std (scaffolds > 1kbp) | W1: Coding density | X1: Translation table | Y1: # predicted genes | Z1: 0 | AA1: 1 | AB1: 2 | AC1: 3 | AD1: 4 | AE1: 5+ | AF1: compl>90% | AG1: cont<5% | AH1: compl>90%; cont<5% | AI1: compl>70% | AJ1: cont<10% | AK1: compl>70%; cont<10% | AL1: compl>=50% | AM1: cont<10% | AN1: compl>=50%; cont<10% | AO1: compl<50% | AP1: cont>10% | AQ1: completeness<50%; contamination>10% | AR1: (Compl-Cont*3)/Compl | AT1: Bin Id | AU1: Marker lineage | AV1: # genomes | AW1: # markers | AX1: # marker sets | AY1: Completeness | AZ1: Contamination | BA1: Strain heterogeneity | BB1: Contamination excluding that determined by strains | BC1: Genome size (bp) | BD1: # ambiguous bases | BE1: # scaffolds | BF1: # contigs | BG1: N50 (scaffolds) | BH1: N50 (contigs) | BI1: Mean scaffold length (bp) | BJ1: Mean contig length (bp) | BK1: Longest scaffold (bp) | BL1: Longest contig (bp) | BM1: GC | BN1: GC std (scaffolds > 1kbp) | BO1: Coding density | BP1: Translation table | BQ1: # predicted genes | BR1: 0 | BS1: 1 | BT1: 2 | BU1: 3 | BV1: 4 | BW1: 5+ | BX1: compl>90% | BY1: cont<5% | BZ1: compl>90%; cont<5% | CA1: compl>70% | CB1: cont<10% | CC1: compl>70%; cont<10% | CD1: compl>=50% | CE1: cont<10% | CF1: compl>=50%; cont<10% | CG1: compl<50% | CH1: cont>10% | CI1: completeness<50%; contamination>10% | CJ1: (Compl-Cont*3)/Compl | CK1: Variation in completeness post-pre refineM | CL1: Variation in contamination post-pre refineM
A2: 34 | B2: METABAT_AS01afH2WH_4 | C2: root (UID1) | D2: 5656 | E2: 56 | F2: 24 | G2: 0 | H2: 0 | I2: 0 | J2: =H2-(H2*(I2/100)) -> 0 | K2: 301278 | L2: 0 | M2: 22 | N2: 22 | O2: 30094 | P2: 30094 | Q2: 13694 | R2: 13694 | S2: 103017 | T2: 103017 | U2: 33.7 | V2: 1.7 | W2: 84.47 | X2: 11 | Y2: 407 | Z2: 56 | AA2: 0 | AB2: 0 | AC2: 0 | AD2: 0 | AE2: 0 | AF2: =IF(G2>90,1,0) -> 0 | AG2: =IF(H2<5,1,0) -> 1 | AH2: 0 | AI2: =IF(G2>70,1,0) -> 0 | AJ2: =IF(H2<10,1,0) -> 1 | AK2: 0 | AL2: =IF(G2>=50,1,0) -> 0 | AM2: =IF(H2<10,1,0) -> 1 | AN2: 0 | AO2: =IF(G2<50,1,0) -> 1 | AP2: =IF(H2>10,1,0) -> 0 | AQ2: 0 | AR2: =(G2-(H2*3)/G2) ->  | AS2: =IF(B2=AT2,1,"") -> 1 | AT2: METABAT_AS01afH2WH_4 | AU2: root (UID1) | AV2: 5656 | AW2: 56 | AX2: 24 | AY2: 0 | AZ2: 0 | BA2: 0 | BB2: =AZ2-(AZ2*(BA2/100)) -> 0 | BC2: 198261 | BD2: 0 | BE2: 21 | BF2: 21 | BG2: 11147 | BH2: 11147 | BI2: 9441 | BJ2: 9441 | BK2: 39598 | BL2: 39598 | BM2: 35.2 | BN2: 1.16 | BO2: 82.53 | BP2: 11 | BQ2: 234 | BR2: 56 | BS2: 0 | BT2: 0 | BU2: 0 | BV2: 0 | BW2: 0 | BX2: =IF(AY2>90,1,0) -> 0 | BY2: =IF(AZ2<5,1,0) -> 1 | BZ2: 0 | CA2: =IF(AY2>70,1,0) -> 0 | CB2: =IF(AZ2<10,1,0) -> 1 | CC2: 0 | CD2: =IF(AY2>=50,1,0) -> 0 | CE2: =IF(AZ2<10,1,0) -> 1 | CF2: 0 | CG2: =IF(AY2<50,1,0) -> 1 | CH2: =IF(AZ2>10,1,0) -> 0 | CI2: 0 | CJ2: =(AY2-(AZ2*3)/AY2) ->  | CK2: =CJ2-AR2 ->  | CL2: =AZ2-H2 -> 0 | CM2: =BC2-K2 -> -103017 | CN2: cp | CO2: METABAT_AS01afH2WH_4 | CP2: .faa | CQ2: lowQ
A3: 1487 | B3: METABAT_AS02xzSISU_39 | C3: root (UID1) | D3: 5656 | E3: 56 | F3: 24 | G3: 0 | H3: 0 | I3: 0 | J3: 0 | K3: 254500 | L3: 0 | M3: 20 | N3: 20 | O3: 18043 | P3: 18043 | Q3: 12725 | R3: 12725 | S3: 25920 | T3: 25920 | U3: 57.8 | V3: 1.59 | W3: 80.6 | X3: 11 | Y3: 252 | Z3: 56 | AA3: 0 | AB3: 0 | AC3: 0 | AD3: 0 | AE3: 0 | AF3: 0 | AG3: 1 | AH3: 0 | AI3: 0 | AJ3: 1 | AK3: 0 | AL3: 0 | AM3: 1 | AN3: 0 | AO3: 1 | AP3: 0 | AQ3: 0 | AS3: 1 | AT3: METABAT_AS02xzSISU_39 | AU3: root (UID1) | AV3: 5656 | AW3: 56 | AX3: 24 | AY3: 0 | AZ3: 0 | BA3: 0 | BB3: 0 | BC3: 254500 | BD3: 0 | BE3: 20 | BF3: 20 | BG3: 18043 | BH3: 18043 | BI3: 12725 | BJ3: 12725 | BK3: 25920 | BL3: 25920 | BM3: 57.8 | BN3: 1.59 | BO3: 80.29 | BP3: 11 | BQ3: 251 | BR3: 56 | BS3: 0 | BT3: 0 | BU3: 0 | BV3: 0 | BW3: 0 | BX3: 0 | BY3: 1 | BZ3: 0 | CA3: 0 | CB3: 1 | CC3: 0 | CD3: 0 | CE3: 1 | CF3: 0 | CG3: 1 | CH3: 0 | CI3: 0 | CJ3: =(AY3-(AZ3*3)/AY3) ->  | CL3: =AZ3-H3 -> 0 | CM3: 0 | CN3: cp | CO3: METABAT_AS02xzSISU_39 | CP3: .faa | CQ3: lowQ
A4: 1515 | B4: METABAT_AS02xzSISU_64 | C4: root (UID1) | D4: 5656 | E4: 56 | F4: 24 | G4: 0 | H4: 0 | I4: 0 | J4: 0 | K4: 335478 | L4: 0 | M4: 59 | N4: 59 | O4: 9119 | P4: 9119 | Q4: 5686 | R4: 5686 | S4: 28403 | T4: 28403 | U4: 55.9 | V4: 1.78 | W4: 88.71 | X4: 11 | Y4: 332 | Z4: 56 | AA4: 0 | AB4: 0 | AC4: 0 | AD4: 0 | AE4: 0 | AF4: 0 | AG4: 1 | AH4: 0 | AI4: 0 | AJ4: 1 | AK4: 0 | AL4: 0 | AM4: 1 | AN4: 0 | AO4: 1 | AP4: 0 | AQ4: 0 | AS4: 1 | AT4: METABAT_AS02xzSISU_64 | AU4: root (UID1) | AV4: 5656 | AW4: 56 | AX4: 24 | AY4: 0 | AZ4: 0 | BA4: 0 | BB4: 0 | BC4: 335478 | BD4: 0 | BE4: 59 | BF4: 59 | BG4: 9119 | BH4: 9119 | BI4: 5686 | BJ4: 5686 | BK4: 28403 | BL4: 28403 | BM4: 55.9 | BN4: 1.78 | BO4: 88.61 | BP4: 11 | BQ4: 329 | BR4: 56 | BS4: 0 | BT4: 0 | BU4: 0 | BV4: 0 | BW4: 0 | BX4: 0 | BY4: 1 | BZ4: 0 | CA4: 0 | CB4: 1 | CC4: 0 | CD4: 0 | CE4: 1 | CF4: 0 | CG4: 1 | CH4: 0 | CI4: 0 | CL4: 0 | CM4: 0 | CN4: cp | CO4: METABAT_AS02xzSISU_64 | CP4: .faa | CQ4: lowQ
A5: 1517 | B5: METABAT_AS02xzSISU_66 | C5: root (UID1) | D5: 5656 | E5: 56 | F5: 24 | G5: 0 | H5: 0 | I5: 0 | J5: 0 | K5: 245943 | L5: 0 | M5: 61 | N5: 61 | O5: 4582 | P5: 4582 | Q5: 4031 | R5: 4031 | S5: 14726 | T5: 14726 | U5: 56.5 | V5: 1.53 | W5: 89.79 | X5: 11 | Y5: 247 | Z5: 56 | AA5: 0 | AB5: 0 | AC5: 0 | AD5: 0 | AE5: 0 | AF5: 0 | AG5: 1 | AH5: 0 | AI5: 0 | AJ5: 1 | AK5: 0 | AL5: 0 | AM5: 1 | AN5: 0 | AO5: 1 | AP5: 0 | AQ5: 0 | AS5: 1 | AT5: METABAT_AS02xzSISU_66 | AU5: root (UID1) | AV5: 5656 | AW5: 56 | AX5: 24 | AY5: 0 | AZ5: 0 | BA5: 0 | BB5: 0 | BC5: 242238 | BD5: 0 | BE5: 59 | BF5: 59 | BG5: 4664 | BH5: 4664 | BI5: 4105 | BJ5: 4105 | BK5: 14726 | BL5: 14726 | BM5: 56.5 | BN5: 1.4 | BO5: 90.02 | BP5: 11 | BQ5: 243 | BR5: 56 | BS5: 0 | BT5: 0 | BU5: 0 | BV5: 0 | BW5: 0 | BX5: 0 | BY5: 1 | BZ5: 0 | CA5: 0 | CB5: 1 | CC5: 0 | CD5: 0 | CE5: 1 | CF5: 0 | CG5: 1 | CH5: 0 | CI5: 0 | CL5: 0 | CM5: -3705 | CN5: cp | CO5: METABAT_AS02xzSISU_66 | CP5: .faa | CQ5: lowQ
A6: 1518 | B6: METABAT_AS02xzSISU_67 | C6: root (UID1) | D6: 5656 | E6: 56 | F6: 24 | G6: 0 | H6: 0 | I6: 0 | J6: 0 | K6: 1086946 | L6: 0 | M6: 283 | N6: 283 | O6: 4833 | P6: 4833 | Q6: 3840 | R6: 3840 | S6: 19108 | T6: 19108 | U6: 52.7 | V6: 4.94 | W6: 87.29 | X6: 11 | Y6: 1177 | Z6: 56 | AA6: 0 | AB6: 0 | AC6: 0 | AD6: 0 | AE6: 0 | AF6: 0 | AG6: 1 | AH6: 0 | AI6: 0 | AJ6: 1 | AK6: 0 | AL6: 0 | AM6: 1 | AN6: 0 | AO6: 1 | AP6: 0 | AQ6: 0 | AS6: 1 | AT6: METABAT_AS02xzSISU_67 | AU6: root (UID1) | AV6: 5656 | AW6: 56 | AX6: 24 | AY6: 0 | AZ6: 0 | BA6: 0 | BB6: 0 | BC6: 1026681 | BD6: 0 | BE6: 270 | BF6: 270 | BG6: 4833 | BH6: 4833 | BI6: 3802 | BJ6: 3802 | BK6: 19108 | BL6: 19108 | BM6: 52.8 | BN6: 4.39 | BO6: 87.29 | BP6: 11 | BQ6: 1114 | BR6: 56 | BS6: 0 | BT6: 0 | BU6: 0 | BV6: 0 | BW6: 0 | BX6: 0 | BY6: 1 | BZ6: 0 | CA6: 0 | CB6: 1 | CC6: 0 | CD6: 0 | CE6: 1 | CF6: 0 | CG6: 1 | CH6: 0 | CI6: 0 | CL6: 0 | CM6: -60265 | CN6: cp | CO6: METABAT_AS02xzSISU_67 | CP6: .faa | CQ6: lowQ
A7: 1529 | B7: METABAT_AS02xzSISU_77 | C7: root (UID1) | D7: 5656 | E7: 56 | F7: 24 | G7: 0 | H7: 0 | I7: 0 | J7: 0 | K7: 210766 | L7: 0 | M7: 110 | N7: 110 | O7: 1863 | P7: 1863 | Q7: 1916 | R7: 1916 | S7: 3898 | T7: 3898 | U7: 63.9 | V7: 1.42 | W7: 87.46 | X7: 11 | Y7: 237 | Z7: 56 | AA7: 0 | AB7: 0 | AC7: 0 | AD7: 0 | AE7: 0 | AF7: 0 | AG7: 1 | AH7: 0 | AI7: 0 | AJ7: 1 | AK7: 0 | AL7: 0 | AM7: 1 | AN7: 0 | AO7: 1 | AP7: 0 | AQ7: 0 | AS7: 1 | AT7: METABAT_AS02xzSISU_77 | AU7: root (UID1) | AV7: 5656 | AW7: 56 | AX7: 24 | AY7: 0 | AZ7: 0 | BA7: 0 | BB7: 0 | BC7: 210766 | BD7: 0 | BE7: 110 | BF7: 110 | BG7: 1863 | BH7: 1863 | BI7: 1916 | BJ7: 1916 | BK7: 3898 | BL7: 3898 | BM7: 63.9 | BN7: 1.42 | BO7: 87.89 | BP7: 11 | BQ7: 240 | BR7: 56 | BS7: 0 | BT7: 0 | BU7: 0 | BV7: 0 | BW7: 0 | BX7: 0 | BY7: 1 | BZ7: 0 | CA7: 0 | CB7: 1 | CC7: 0 | CD7: 0 | CE7: 1 | CF7: 0 | CG7: 1 | CH7: 0 | CI7: 0 | CL7: 0 | CM7: 0 | CN7: cp | CO7: METABAT_AS02xzSISU_77 | CP7: .faa | CQ7: lowQ
A8: 3775 | B8: METABAT_AS04akNAM_102 | C8: root (UID1) | D8: 5656 | E8: 56 | F8: 24 | G8: 0 | H8: 0 | I8: 0 | J8: 0 | K8: 259542 | L8: 0 | M8: 46 | N8: 46 | O8: 6695 | P8: 6695 | Q8: 5642 | R8: 5642 | S8: 36507 | T8: 36507 | U8: 50.1 | V8: 1.8 | W8: 81.39 | X8: 11 | Y8: 319 | Z8: 56 | AA8: 0 | AB8: 0 | AC8: 0 | AD8: 0 | AE8: 0 | AF8: 0 | AG8: 1 | AH8: 0 | AI8: 0 | AJ8: 1 | AK8: 0 | AL8: 0 | AM8: 1 | AN8: 0 | AO8: 1 | AP8: 0 | AQ8: 0 | AS8: 1 | AT8: METABAT_AS04akNAM_102 | AU8: root (UID1) | AV8: 5656 | AW8: 56 | AX8: 24 | AY8: 0 | AZ8: 0 | BA8: 0 | BB8: 0 | BC8: 259542 | BD8: 0 | BE8: 46 | BF8: 46 | BG8: 6695 | BH8: 6695 | BI8: 5642 | BJ8: 5642 | BK8: 36507 | BL8: 36507 | BM8: 50.1 | BN8: 1.8 | BO8: 81.42 | BP8: 11 | BQ8: 320 | BR8: 56 | BS8: 0 | BT8: 0 | BU8: 0 | BV8: 0 | BW8: 0 | BX8: 0 | BY8: 1 | BZ8: 0 | CA8: 0 | CB8: 1 | CC8: 0 | CD8: 0 | CE8: 1 | CF8: 0 | CG8: 1 | CH8: 0 | CI8: 0 | CL8: 0 | CM8: 0 | CN8: cp | CO8: METABAT_AS04akNAM_102 | CP8: .faa | CQ8: lowQ
A9: 3780 | B9: METABAT_AS04akNAM_107 | C9: root (UID1) | D9: 5656 | E9: 56 | F9: 24 | G9: 0 | H9: 0 | I9: 0 | J9: 0 | K9: 1433579 | L9: 0 | M9: 312 | N9: 312 | O9: 5958 | P9: 5958 | Q9: 4594 | R9: 4594 | S9: 33286 | T9: 33286 | U9: 39.8 | V9: 3.6 | W9: 88.77 | X9: 11 | Y9: 1429 | Z9: 56 | AA9: 0 | AB9: 0 | AC9: 0 | AD9: 0 | AE9: 0 | AF9: 0 | AG9: 1 | AH9: 0 | AI9: 0 | AJ9: 1 | AK9: 0 | AL9: 0 | AM9: 1 | AN9: 0 | AO9: 1 | AP9: 0 | AQ9: 0 | AS9: 1 | AT9: METABAT_AS04akNAM_107 | AU9: root (UID1) | AV9: 5656 | AW9: 56 | AX9: 24 | AY9: 0 | AZ9: 0 | BA9: 0 | BB9: 0 | BC9: 1337594 | BD9: 0 | BE9: 300 | BF9: 300 | BG9: 5588 | BH9: 5588 | BI9: 4458 | BJ9: 4458 | BK9: 33286 | BL9: 33286 | BM9: 39.9 | BN9: 3.32 | BO9: 88.78 | BP9: 11 | BQ9: 1340 | BR9: 56 | BS9: 0 | BT9: 0 | BU9: 0 | BV9: 0 | BW9: 0 | BX9: 0 | BY9: 1 | BZ9: 0 | CA9: 0 | CB9: 1 | CC9: 0 | CD9: 0 | CE9: 1 | CF9: 0 | CG9: 1 | CH9: 0 | CI9: 0 | CL9: 0 | CM9: -95985 | CN9: cp | CO9: METABAT_AS04akNAM_107 | CP9: .faa | CQ9: lowQ
A10: 3792 | B10: METABAT_AS04akNAM_118 | C10: c__Betaproteobacteria (UID3959) | D10: 235 | E10: 420 | F10: 211 | G10: 3.57 | H10: 0 | I10: 0 | J10: 0 | K10: 695014 | L10: 0 | M10: 122 | N10: 122 | O10: 22702 | P10: 22702 | Q10: 5696 | R10: 5696 | S10: 71279 | T10: 71279 | U10: 58.5 | V10: 11.59 | W10: 89.2 | X10: 11 | Y10: 782 | Z10: 387 | AA10: 33 | AB10: 0 | AC10: 0 | AD10: 0 | AE10: 0 | AF10: 0 | AG10: 1 | AH10: 0 | AI10: 0 | AJ10: 1 | AK10: 0 | AL10: 0 | AM10: 1 | AN10: 0 | AO10: 1 | AP10: 0 | AQ10: 0 | AR10: 3.57 | AS10: 1 | AT10: METABAT_AS04akNAM_118 | AU10: root (UID1) | AV10: 5656 | AW10: 56 | AX10: 24 | AY10: 0 | AZ10: 0 | BA10: 0 | BB10: 0 | BC10: 200005 | BD10: 0 | BE10: 43 | BF10: 43 | BG10: 9996 | BH10: 9996 | BI10: 4651 | BJ10: 4651 | BK10: 24156 | BL10: 24156 | BM10: 61.1 | BN10: 5.92 | BO10: 91.66 | BP10: 11 | BQ10: 238 | BR10: 56 | BS10: 0 | BT10: 0 | BU10: 0 | BV10: 0 | BW10: 0 | BX10: 0 | BY10: 1 | BZ10: 0 | CA10: 0 | CB10: 1 | CC10: 0 | CD10: 0 | CE10: 1 | CF10: 0 | CG10: 1 | CH10: 0 | CI10: 0 | CL10: 0 | CM10: -495009 | CN10: cp | CO10: METABAT_AS04akNAM_118 | CP10: .faa | CQ10: lowQ
A11: 3794 | B11: METABAT_AS04akNAM_12 | C11: root (UID1) | D11: 5656 | E11: 56 | F11: 24 | G11: 0 | H11: 0 | I11: 0 | J11: 0 | K11: 246448 | L11: 0 | M11: 8 | N11: 8 | O11: 60352 | P11: 60352 | Q11: 30806 | R11: 30806 | S11: 84396 | T11: 84396 | U11: 60.2 | V11: 0.9 | W11: 85.88 | X11: 11 | Y11: 242 | Z11: 56 | AA11: 0 | AB11: 0 | AC11: 0 | AD11: 0 | AE11: 0 | AF11: 0 | AG11: 1 | AH11: 0 | AI11: 0 | AJ11: 1 | AK11: 0 | AL11: 0 | AM11: 1 | AN11: 0 | AO11: 1 | AP11: 0 | AQ11: 0 | AS11: 1 | AT11: METABAT_AS04akNAM_12 | AU11: root (UID1) | AV11: 5656 | AW11: 56 | AX11: 24 | AY11: 0 | AZ11: 0 | BA11: 0 | BB11: 0 | BC11: 246448 | BD11: 0 | BE11: 8 | BF11: 8 | BG11: 60352 | BH11: 60352 | BI11: 30806 | BJ11: 30806 | BK11: 84396 | BL11: 84396 | BM11: 60.2 | BN11: 0.9 | BO11: 85.72 | BP11: 11 | BQ11: 242 | BR11: 56 | BS11: 0 | BT11: 0 | BU11: 0 | BV11: 0 | BW11: 0 | BX11: 0 | BY11: 1 | BZ11: 0 | CA11: 0 | CB11: 1 | CC11: 0 | CD11: 0 | CE11: 1 | CF11: 0 | CG11: 1 | CH11: 0 | CI11: 0 | CL11: 0 | CM11: 0 | CN11: cp | CO11: METABAT_AS04akNAM_12 | CP11: .faa | CQ11: lowQ
A12: 3805 | B12: METABAT_AS04akNAM_13 | C12: root (UID1) | D12: 5656 | E12: 56 | F12: 24 | G12: 0 | H12: 0 | I12: 0 | J12: 0 | K12: 250317 | L12: 0 | M12: 28 | N12: 28 | O12: 11229 | P12: 11229 | Q12: 8939 | R12: 8939 | S12: 38763 | T12: 38763 | U12: 58.5 | V12: 3.31 | W12: 83.15 | X12: 11 | Y12: 247 | Z12: 56 | AA12: 0 | AB12: 0 | AC12: 0 | AD12: 0 | AE12: 0 | AF12: 0 | AG12: 1 | AH12: 0 | AI12: 0 | AJ12: 1 | AK12: 0 | AL12: 0 | AM12: 1 | AN12: 0 | AO12: 1 | AP12: 0 | AQ12: 0 | AS12: 1 | AT12: METABAT_AS04akNAM_13 | AU12: root (UID1) | AV12: 5656 | AW12: 56 | AX12: 24 | AY12: 0 | AZ12: 0 | BA12: 0 | BB12: 0 | BC12: 246695 | BD12: 0 | BE12: 27 | BF12: 27 | BG12: 11229 | BH12: 11229 | BI12: 9136 | BJ12: 9136 | BK12: 38763 | BL12: 38763 | BM12: 58.6 | BN12: 2.58 | BO12: 82.97 | BP12: 11 | BQ12: 239 | BR12: 56 | BS12: 0 | BT12: 0 | BU12: 0 | BV12: 0 | BW12: 0 | BX12: 0 | BY12: 1 | BZ12: 0 | CA12: 0 | CB12: 1 | CC12: 0 | CD12: 0 | CE12: 1 | CF12: 0 | CG12: 1 | CH12: 0 | CI12: 0 | CL12: 0 | CM12: -3622 | CN12: cp | CO12: METABAT_AS04akNAM_13 | CP12: .faa | CQ12: lowQ
A13: 3809 | B13: METABAT_AS04akNAM_133 | C13: root (UID1) | D13: 5656 | E13: 56 | F13: 24 | G13: 0 | H13: 0 | I13: 0 | J13: 0 | K13: 398208 | L13: 0 | M13: 122 | N13: 122 | O13: 3716 | P13: 3716 | Q13: 3264 | R13: 3264 | S13: 17322 | T13: 17322 | U13: 40.9 | V13: 8.59 | W13: 86.33 | X13: 11 | Y13: 447 | Z13: 56 | AA13: 0 | AB13: 0 | AC13: 0 | AD13: 0 | AE13: 0 | AF13: 0 | AG13: 1 | AH13: 0 | AI13: 0 | AJ13: 1 | AK13: 0 | AL13: 0 | AM13: 1 | AN13: 0 | AO13: 1 | AP13: 0 | AQ13: 0 | AS13: 1 | AT13: METABAT_AS04akNAM_133 | AU13: root (UID1) | AV13: 5656 | AW13: 56 | AX13: 24 | AY13: 0 | AZ13: 0 | BA13: 0 | BB13: 0 | BC13: 279643 | BD13: 0 | BE13: 83 | BF13: 83 | BG13: 3815 | BH13: 3815 | BI13: 3369 | BJ13: 3369 | BK13: 17322 | BL13: 17322 | BM13: 36.6 | BN13: 3.9 | BO13: 87.94 | BP13: 11 | BQ13: 307 | BR13: 56 | BS13: 0 | BT13: 0 | BU13: 0 | BV13: 0 | BW13: 0 | BX13: 0 | BY13: 1 | BZ13: 0 | CA13: 0 | CB13: 1 | CC13: 0 | CD13: 0 | CE13: 1 | CF13: 0 | CG13: 1 | CH13: 0 | CI13: 0 | CL13: 0 | CM13: -118565 | CN13: cp | CO13: METABAT_AS04akNAM_133 | CP13: .faa | CQ13: lowQ
A14: 3822 | B14: METABAT_AS04akNAM_24 | C14: root (UID1) | D14: 5656 | E14: 56 | F14: 24 | G14: 0 | H14: 0 | I14: 0 | J14: 0 | K14: 201576 | L14: 0 | M14: 69 | N14: 69 | O14: 3247 | P14: 3247 | Q14: 2921 | R14: 2921 | S14: 7704 | T14: 7704 | U14: 36.9 | V14: 2.38 | W14: 80.28 | X14: 11 | Y14: 230 | Z14: 56 | AA14: 0 | AB14: 0 | AC14: 0 | AD14: 0 | AE14: 0 | AF14: 0 | AG14: 1 | AH14: 0 | AI14: 0 | AJ14: 1 | AK14: 0 | AL14: 0 | AM14: 1 | AN14: 0 | AO14: 1 | AP14: 0 | AQ14: 0 | AS14: 1 | AT14: METABAT_AS04akNAM_24 | AU14: root (UID1) | AV14: 5656 | AW14: 56 | AX14: 24 | AY14: 0 | AZ14: 0 | BA14: 0 | BB14: 0 | BC14: 201576 | BD14: 0 | BE14: 69 | BF14: 69 | BG14: 3247 | BH14: 3247 | BI14: 2921 | BJ14: 2921 | BK14: 7704 | BL14: 7704 | BM14: 36.9 | BN14: 2.38 | BO14: 80.1 | BP14: 11 | BQ14: 228 | BR14: 56 | BS14: 0 | BT14: 0 | BU14: 0 | BV14: 0 | BW14: 0 | BX14: 0 | BY14: 1 | BZ14: 0 | CA14: 0 | CB14: 1 | CC14: 0 | CD14: 0 | CE14: 1 | CF14: 0 | CG14: 1 | CH14: 0 | CI14: 0 | CL14: 0 | CM14: 0 | CN14: cp | CO14: METABAT_AS04akNAM_24 | CP14: .faa | CQ14: lowQ
A15: 3825 | B15: METABAT_AS04akNAM_27 | C15: root (UID1) | D15: 5656 | E15: 56 | F15: 24 | G15: 0 | H15: 0 | I15: 0 | J15: 0 | K15: 546260 | L15: 0 | M15: 140 | N15: 140 | O15: 4716 | P15: 4716 | Q15: 3901 | R15: 3901 | S15: 31212 | T15: 31212 | U15: 61.8 | V15: 2.43 | W15: 82.65 | X15: 11 | Y15: 596 | Z15: 56 | AA15: 0 | AB15: 0 | AC15: 0 | AD15: 0 | AE15: 0 | AF15: 0 | AG15: 1 | AH15: 0 | AI15: 0 | AJ15: 1 | AK15: 0 | AL15: 0 | AM15: 1 | AN15: 0 | AO15: 1 | AP15: 0 | AQ15: 0 | AS15: 1 | AT15: METABAT_AS04akNAM_27 | AU15: root (UID1) | AV15: 5656 | AW15: 56 | AX15: 24 | AY15: 0 | AZ15: 0 | BA15: 0 | BB15: 0 | BC15: 546260 | BD15: 0 | BE15: 140 | BF15: 140 | BG15: 4716 | BH15: 4716 | BI15: 3901 | BJ15: 3901 | BK15: 31212 | BL15: 31212 | BM15: 61.8 | BN15: 2.43 | BO15: 82.63 | BP15: 11 | BQ15: 596 | BR15: 56 | BS15: 0 | BT15: 0 | BU15: 0 | BV15: 0 | BW15: 0 | BX15: 0 | BY15: 1 | BZ15: 0 | CA15: 0 | CB15: 1 | CC15: 0 | CD15: 0 | CE15: 1 | CF15: 0 | CG15: 1 | CH15: 0 | CI15: 0 | CL15: 0 | CM15: 0 | CN15: cp | CO15: METABAT_AS04akNAM_27 | CP15: .faa | CQ15: lowQ
A16: 3838 | B16: METABAT_AS04akNAM_39 | C16: root (UID1) | D16: 5656 | E16: 56 | F16: 24 | G16: 0 | H16: 0 | I16: 0 | J16: 0 | K16: 464916 | L16: 0 | M16: 64 | N16: 64 | O16: 13162 | P16: 13162 | Q16: 7264 | R16: 7264 | S16: 35412 | T16: 35412 | U16: 49.8 | V16: 2.21 | W16: 83.83 | X16: 11 | Y16: 504 | Z16: 56 | AA16: 0 | AB16: 0 | AC16: 0 | AD16: 0 | AE16: 0 | AF16: 0 | AG16: 1 | AH16: 0 | AI16: 0 | AJ16: 1 | AK16: 0 | AL16: 0 | AM16: 1 | AN16: 0 | AO16: 1 | AP16: 0 | AQ16: 0 | AS16: 1 | AT16: METABAT_AS04akNAM_39 | AU16: root (UID1) | AV16: 5656 | AW16: 56 | AX16: 24 | AY16: 0 | AZ16: 0 | BA16: 0 | BB16: 0 | BC16: 464916 | BD16: 0 | BE16: 64 | BF16: 64 | BG16: 13162 | BH16: 13162 | BI16: 7264 | BJ16: 7264 | BK16: 35412 | BL16: 35412 | BM16: 49.8 | BN16: 2.21 | BO16: 83.65 | BP16: 11 | BQ16: 502 | BR16: 56 | BS16: 0 | BT16: 0 | BU16: 0 | BV16: 0 | BW16: 0 | BX16: 0 | BY16: 1 | BZ16: 0 | CA16: 0 | CB16: 1 | CC16: 0 | CD16: 0 | CE16: 1 | CF16: 0 | CG16: 1 | CH16: 0 | CI16: 0 | CL16: 0 | CM16: 0 | CN16: cp | CO16: METABAT_AS04akNAM_39 | CP16: .faa | CQ16: lowQ
A17: 3871 | B17: METABAT_AS04akNAM_69 | C17: root (UID1) | D17: 5656 | E17: 56 | F17: 24 | G17: 0 | H17: 0 | I17: 0 | J17: 0 | K17: 299509 | L17: 0 | M17: 40 | N17: 40 | O17: 14807 | P17: 14807 | Q17: 7487 | R17: 7487 | S17: 26189 | T17: 26189 | U17: 55.3 | V17: 3.96 | W17: 81.44 | X17: 11 | Y17: 320 | Z17: 56 | AA17: 0 | AB17: 0 | AC17: 0 | AD17: 0 | AE17: 0 | AF17: 0 | AG17: 1 | AH17: 0 | AI17: 0 | AJ17: 1 | AK17: 0 | AL17: 0 | AM17: 1 | AN17: 0 | AO17: 1 | AP17: 0 | AQ17: 0 | AS17: 1 | AT17: METABAT_AS04akNAM_69 | AU17: root (UID1) | AV17: 5656 | AW17: 56 | AX17: 24 | AY17: 0 | AZ17: 0 | BA17: 0 | BB17: 0 | BC17: 288023 | BD17: 0 | BE17: 37 | BF17: 37 | BG17: 15901 | BH17: 15901 | BI17: 7784 | BJ17: 7784 | BK17: 26189 | BL17: 26189 | BM17: 55.4 | BN17: 3.3 | BO17: 81.29 | BP17: 11 | BQ17: 311 | BR17: 56 | BS17: 0 | BT17: 0 | BU17: 0 | BV17: 0 | BW17: 0 | BX17: 0 | BY17: 1 | BZ17: 0 | CA17: 0 | CB17: 1 | CC17: 0 | CD17: 0 | CE17: 1 | CF17: 0 | CG17: 1 | CH17: 0 | CI17: 0 | CL17: 0 | CM17: -11486 | CN17: cp | CO17: METABAT_AS04akNAM_69 | CP17: .faa | CQ17: lowQ
A18: 3878 | B18: METABAT_AS04akNAM_75 | C18: root (UID1) | D18: 5656 | E18: 56 | F18: 24 | G18: 0 | H18: 0 | I18: 0 | J18: 0 | K18: 279480 | L18: 0 | M18: 50 | N18: 50 | O18: 8194 | P18: 8194 | Q18: 5589 | R18: 5589 | S18: 18348 | T18: 18348 | U18: 58.5 | V18: 1.9 | W18: 85.3 | X18: 11 | Y18: 300 | Z18: 56 | AA18: 0 | AB18: 0 | AC18: 0 | AD18: 0 | AE18: 0 | AF18: 0 | AG18: 1 | AH18: 0 | AI18: 0 | AJ18: 1 | AK18: 0 | AL18: 0 | AM18: 1 | AN18: 0 | AO18: 1 | AP18: 0 | AQ18: 0 | AS18: 1 | AT18: METABAT_AS04akNAM_75 | AU18: root (UID1) | AV18: 5656 | AW18: 56 | AX18: 24 | AY18: 0 | AZ18: 0 | BA18: 0 | BB18: 0 | BC18: 279480 | BD18: 0 | BE18: 50 | BF18: 50 | BG18: 8194 | BH18: 8194 | BI18: 5589 | BJ18: 5589 | BK18: 18348 | BL18: 18348 | BM18: 58.5 | BN18: 1.9 | BO18: 85.3 | BP18: 11 | BQ18: 297 | BR18: 56 | BS18: 0 | BT18: 0 | BU18: 0 | BV18: 0 | BW18: 0 | BX18: 0 | BY18: 1 | BZ18: 0 | CA18: 0 | CB18: 1 | CC18: 0 | CD18: 0 | CE18: 1 | CF18: 0 | CG18: 1 | CH18: 0 | CI18: 0 | CL18: 0 | CM18: 0 | CN18: cp | CO18: METABAT_AS04akNAM_75 | CP18: .faa | CQ18: lowQ
A19: 3879 | B19: METABAT_AS04akNAM_76 | C19: k__Bacteria (UID203) | D19: 5449 | E19: 104 | F19: 58 | G19: 10.82 | H19: 0 | I19: 0 | J19: 0 | K19: 1202656 | L19: 0 | M19: 172 | N19: 172 | O19: 14277 | P19: 14277 | Q19: 6992 | R19: 6992 | S19: 133439 | T19: 133439 | U19: 39.1 | V19: 5.61 | W19: 88.01 | X19: 11 | Y19: 1285 | Z19: 95 | AA19: 9 | AB19: 0 | AC19: 0 | AD19: 0 | AE19: 0 | AF19: 0 | AG19: 1 | AH19: 0 | AI19: 0 | AJ19: 1 | AK19: 0 | AL19: 0 | AM19: 1 | AN19: 0 | AO19: 1 | AP19: 0 | AQ19: 0 | AR19: 10.82 | AS19: 1 | AT19: METABAT_AS04akNAM_76 | AU19: root (UID1) | AV19: 5656 | AW19: 56 | AX19: 24 | AY19: 0 | AZ19: 0 | BA19: 0 | BB19: 0 | BC19: 839476 | BD19: 0 | BE19: 138 | BF19: 138 | BG19: 10644 | BH19: 10644 | BI19: 6083 | BJ19: 6083 | BK19: 133439 | BL19: 133439 | BM19: 38 | BN19: 3.72 | BO19: 86.83 | BP19: 11 | BQ19: 904 | BR19: 56 | BS19: 0 | BT19: 0 | BU19: 0 | BV19: 0 | BW19: 0 | BX19: 0 | BY19: 1 | BZ19: 0 | CA19: 0 | CB19: 1 | CC19: 0 | CD19: 0 | CE19: 1 | CF19: 0 | CG19: 1 | CH19: 0 | CI19: 0 | CL19: 0 | CM19: -363180 | CN19: cp | CO19: METABAT_AS04akNAM_76 | CP19: .faa | CQ19: lowQ
A20: 3895 | B20: METABAT_AS04akNAM_90 | C20: root (UID1) | D20: 5656 | E20: 56 | F20: 24 | G20: 0 | H20: 0 | I20: 0 | J20: 0 | K20: 867584 | L20: 0 | M20: 133 | N20: 133 | O20: 9532 | P20: 9532 | Q20: 6523 | R20: 6523 | S20: 30016 | T20: 30016 | U20: 38.6 | V20: 3.18 | W20: 90.47 | X20: 11 | Y20: 751 | Z20: 56 | AA20: 0 | AB20: 0 | AC20: 0 | AD20: 0 | AE20: 0 | AF20: 0 | AG20: 1 | AH20: 0 | AI20: 0 | AJ20: 1 | AK20: 0 | AL20: 0 | AM20: 1 | AN20: 0 | AO20: 1 | AP20: 0 | AQ20: 0 | AS20: 1 | AT20: METABAT_AS04akNAM_90 | AU20: root (UID1) | AV20: 5656 | AW20: 56 | AX20: 24 | AY20: 0 | AZ20: 0 | BA20: 0 | BB20: 0 | BC20: 830175 | BD20: 0 | BE20: 128 | BF20: 128 | BG20: 9532 | BH20: 9532 | BI20: 6485 | BJ20: 6485 | BK20: 30016 | BL20: 30016 | BM20: 38.3 | BN20: 2.91 | BO20: 90.19 | BP20: 11 | BQ20: 723 | BR20: 56 | BS20: 0 | BT20: 0 | BU20: 0 | BV20: 0 | BW20: 0 | BX20: 0 | BY20: 1 | BZ20: 0 | CA20: 0 | CB20: 1 | CC20: 0 | CD20: 0 | CE20: 1 | CF20: 0 | CG20: 1 | CH20: 0 | CI20: 0 | CL20: 0 | CM20: -37409 | CN20: cp | CO20: METABAT_AS04akNAM_90 | CP20: .faa | CQ20: lowQ
A21: 94 | B21: METABAT_AS05jafATM_26 | C21: root (UID1) | D21: 5656 | E21: 56 | F21: 24 | G21: 0 | H21: 0 | I21: 0 | J21: 0 | K21: 243945 | L21: 0 | M21: 7 | N21: 7 | O21: 94867 | P21: 94867 | Q21: 34849 | R21: 34849 | S21: 105221 | T21: 105221 | U21: 38.1 | V21: 2.14 | W21: 87.38 | X21: 11 | Y21: 228 | Z21: 56 | AA21: 0 | AB21: 0 | AC21: 0 | AD21: 0 | AE21: 0 | AF21: 0 | AG21: 1 | AH21: 0 | AI21: 0 | AJ21: 1 | AK21: 0 | AL21: 0 | AM21: 1 | AN21: 0 | AO21: 1 | AP21: 0 | AQ21: 0 | AS21: 1 | AT21: METABAT_AS05jafATM_26 | AU21: root (UID1) | AV21: 5656 | AW21: 56 | AX21: 24 | AY21: 0 | AZ21: 0 | BA21: 0 | BB21: 0 | BC21: 243945 | BD21: 0 | BE21: 7 | BF21: 7 | BG21: 94867 | BH21: 94867 | BI21: 34849 | BJ21: 34849 | BK21: 105221 | BL21: 105221 | BM21: 38.1 | BN21: 2.14 | BO21: 87.22 | BP21: 11 | BQ21: 227 | BR21: 56 | BS21: 0 | BT21: 0 | BU21: 0 | BV21: 0 | BW21: 0 | BX21: 0 | BY21: 1 | BZ21: 0 | CA21: 0 | CB21: 1 | CC21: 0 | CD21: 0 | CE21: 1 | CF21: 0 | CG21: 1 | CH21: 0 | CI21: 0 | CL21: 0 | CM21: 0 | CN21: cp | CO21: METABAT_AS05jafATM_26 | CP21: .faa | CQ21: lowQ
A22: 107 | B22: METABAT_AS05jafATM_38 | C22: root (UID1) | D22: 5656 | E22: 56 | F22: 24 | G22: 0 | H22: 0 | I22: 0 | J22: 0 | K22: 243644 | L22: 0 | M22: 85 | N22: 85 | O22: 2903 | P22: 2903 | Q22: 2866 | R22: 2866 | S22: 8528 | T22: 8528 | U22: 38.3 | V22: 1.92 | W22: 91.46 | X22: 11 | Y22: 239 | Z22: 56 | AA22: 0 | AB22: 0 | AC22: 0 | AD22: 0 | AE22: 0 | AF22: 0 | AG22: 1 | AH22: 0 | AI22: 0 | AJ22: 1 | AK22: 0 | AL22: 0 | AM22: 1 | AN22: 0 | AO22: 1 | AP22: 0 | AQ22: 0 | AS22: 1 | AT22: METABAT_AS05jafATM_38 | AU22: root (UID1) | AV22: 5656 | AW22: 56 | AX22: 24 | AY22: 0 | AZ22: 0 | BA22: 0 | BB22: 0 | BC22: 243644 | BD22: 0 | BE22: 85 | BF22: 85 | BG22: 2903 | BH22: 2903 | BI22: 2866 | BJ22: 2866 | BK22: 8528 | BL22: 8528 | BM22: 38.3 | BN22: 1.92 | BO22: 91.46 | BP22: 11 | BQ22: 239 | BR22: 56 | BS22: 0 | BT22: 0 | BU22: 0 | BV22: 0 | BW22: 0 | BX22: 0 | BY22: 1 | BZ22: 0 | CA22: 0 | CB22: 1 | CC22: 0 | CD22: 0 | CE22: 1 | CF22: 0 | CG22: 1 | CH22: 0 | CI22: 0 | CL22: 0 | CM22: 0 | CN22: cp | CO22: METABAT_AS05jafATM_38 | CP22: .faa | CQ22: lowQ
A23: 141 | B23: METABAT_AS05jafATM_69 | C23: root (UID1) | D23: 5656 | E23: 56 | F23: 24 | G23: 0 | H23: 0 | I23: 0 | J23: 0 | K23: 582125 | L23: 0 | M23: 231 | N23: 231 | O23: 2542 | P23: 2542 | Q23: 2520 | R23: 2520 | S23: 10575 | T23: 10575 | U23: 37.4 | V23: 3.95 | W23: 85.34 | X23: 11 | Y23: 735 | Z23: 56 | AA23: 0 | AB23: 0 | AC23: 0 | AD23: 0 | AE23: 0 | AF23: 0 | AG23: 1 | AH23: 0 | AI23: 0 | AJ23: 1 | AK23: 0 | AL23: 0 | AM23: 1 | AN23: 0 | AO23: 1 | AP23: 0 | AQ23: 0 | AS23: 1 | AT23: METABAT_AS05jafATM_69 | AU23: root (UID1) | AV23: 5656 | AW23: 56 | AX23: 24 | AY23: 0 | AZ23: 0 | BA23: 0 | BB23: 0 | BC23: 557818 | BD23: 0 | BE23: 219 | BF23: 219 | BG23: 2574 | BH23: 2574 | BI23: 2547 | BJ23: 2547 | BK23: 10575 | BL23: 10575 | BM23: 37.6 | BN23: 3.36 | BO23: 85.37 | BP23: 11 | BQ23: 691 | BR23: 56 | BS23: 0 | BT23: 0 | BU23: 0 | BV23: 0 | BW23: 0 | BX23: 0 | BY23: 1 | BZ23: 0 | CA23: 0 | CB23: 1 | CC23: 0 | CD23: 0 | CE23: 1 | CF23: 0 | CG23: 1 | CH23: 0 | CI23: 0 | CL23: 0 | CM23: -24307 | CN23: cp | CO23: METABAT_AS05jafATM_69 | CP23: .faa | CQ23: lowQ
A24: 166 | B24: METABAT_AS05jafATM_91 | C24: root (UID1) | D24: 5656 | E24: 56 | F24: 24 | G24: 0 | H24: 0 | I24: 0 | J24: 0 | K24: 244772 | L24: 0 | M24: 9 | N24: 9 | O24: 36960 | P24: 36960 | Q24: 27196 | R24: 27196 | S24: 63801 | T24: 63801 | U24: 55.5 | V24: 2.26 | W24: 90.63 | X24: 11 | Y24: 232 | Z24: 56 | AA24: 0 | AB24: 0 | AC24: 0 | AD24: 0 | AE24: 0 | AF24: 0 | AG24: 1 | AH24: 0 | AI24: 0 | AJ24: 1 | AK24: 0 | AL24: 0 | AM24: 1 | AN24: 0 | AO24: 1 | AP24: 0 | AQ24: 0 | AS24: 1 | AT24: METABAT_AS05jafATM_91 | AU24: root (UID1) | AV24: 5656 | AW24: 56 | AX24: 24 | AY24: 0 | AZ24: 0 | BA24: 0 | BB24: 0 | BC24: 244772 | BD24: 0 | BE24: 9 | BF24: 9 | BG24: 36960 | BH24: 36960 | BI24: 27196 | BJ24: 27196 | BK24: 63801 | BL24: 63801 | BM24: 55.5 | BN24: 2.26 | BO24: 90.53 | BP24: 11 | BQ24: 231 | BR24: 56 | BS24: 0 | BT24: 0 | BU24: 0 | BV24: 0 | BW24: 0 | BX24: 0 | BY24: 1 | BZ24: 0 | CA24: 0 | CB24: 1 | CC24: 0 | CD24: 0 | CE24: 1 | CF24: 0 | CG24: 1 | CH24: 0 | CI24: 0 | CL24: 0 | CM24: 0 | CN24: cp | CO24: METABAT_AS05jafATM_91 | CP24: .faa | CQ24: lowQ
A25: 1587 | B25: METABAT_AS06rmzACSIP_136 | C25: root (UID1) | D25: 5656 | E25: 56 | F25: 24 | G25: 0 | H25: 0 | I25: 0 | J25: 0 | K25: 215686 | L25: 0 | M25: 27 | N25: 27 | O25: 14777 | P25: 14777 | Q25: 7988 | R25: 7988 | S25: 38706 | T25: 38706 | U25: 34.4 | V25: 2.5 | W25: 90.64 | X25: 11 | Y25: 298 | Z25: 56 | AA25: 0 | AB25: 0 | AC25: 0 | AD25: 0 | AE25: 0 | AF25: 0 | AG25: 1 | AH25: 0 | AI25: 0 | AJ25: 1 | AK25: 0 | AL25: 0 | AM25: 1 | AN25: 0 | AO25: 1 | AP25: 0 | AQ25: 0 | AS25: 1 | AT25: METABAT_AS06rmzACSIP_136 | AU25: root (UID1) | AV25: 5656 | AW25: 56 | AX25: 24 | AY25: 0 | AZ25: 0 | BA25: 0 | BB25: 0 | BC25: 215686 | BD25: 0 | BE25: 27 | BF25: 27 | BG25: 14777 | BH25: 14777 | BI25: 7988 | BJ25: 7988 | BK25: 38706 | BL25: 38706 | BM25: 34.4 | BN25: 2.5 | BO25: 90.7 | BP25: 11 | BQ25: 299 | BR25: 56 | BS25: 0 | BT25: 0 | BU25: 0 | BV25: 0 | BW25: 0 | BX25: 0 | BY25: 1 | BZ25: 0 | CA25: 0 | CB25: 1 | CC25: 0 | CD25: 0 | CE25: 1 | CF25: 0 | CG25: 1 | CH25: 0 | CI25: 0 | CL25: 0 | CM25: 0 | CN25: cp | CO25: METABAT_AS06rmzACSIP_136 | CP25: .faa | CQ25: lowQ
A26: 1589 | B26: METABAT_AS06rmzACSIP_138 | C26: root (UID1) | D26: 5656 | E26: 56 | F26: 24 | G26: 0 | H26: 0 | I26: 0 | J26: 0 | K26: 208348 | L26: 0 | M26: 7 | N26: 7 | O26: 46980 | P26: 46980 | Q26: 29764 | R26: 29764 | S26: 74409 | T26: 74409 | U26: 50 | V26: 0.91 | W26: 89.7 | X26: 11 | Y26: 219 | Z26: 56 | AA26: 0 | AB26: 0 | AC26: 0 | AD26: 0 | AE26: 0 | AF26: 0 | AG26: 1 | AH26: 0 | AI26: 0 | AJ26: 1 | AK26: 0 | AL26: 0 | AM26: 1 | AN26: 0 | AO26: 1 | AP26: 0 | AQ26: 0 | AS26: 1 | AT26: METABAT_AS06rmzACSIP_138 | AU26: root (UID1) | AV26: 5656 | AW26: 56 | AX26: 24 | AY26: 0 | AZ26: 0 | BA26: 0 | BB26: 0 | BC26: 208348 | BD26: 0 | BE26: 7 | BF26: 7 | BG26: 46980 | BH26: 46980 | BI26: 29764 | BJ26: 29764 | BK26: 74409 | BL26: 74409 | BM26: 50 | BN26: 0.91 | BO26: 89.72 | BP26: 11 | BQ26: 219 | BR26: 56 | BS26: 0 | BT26: 0 | BU26: 0 | BV26: 0 | BW26: 0 | BX26: 0 | BY26: 1 | BZ26: 0 | CA26: 0 | CB26: 1 | CC26: 0 | CD26: 0 | CE26: 1 | CF26: 0 | CG26: 1 | CH26: 0 | CI26: 0 | CL26: 0 | CM26: 0 | CN26: cp | CO26: METABAT_AS06rmzACSIP_138 | CP26: .faa | CQ26: lowQ
A27: 1598 | B27: METABAT_AS06rmzACSIP_146 | C27: root (UID1) | D27: 5656 | E27: 56 | F27: 24 | G27: 0 | H27: 0 | I27: 0 | J27: 0 | K27: 210454 | L27: 0 | M27: 57 | N27: 57 | O27: 4616 | P27: 4616 | Q27: 3692 | R27: 3692 | S27: 8682 | T27: 8682 | U27: 60.8 | V27: 1.74 | W27: 86.26 | X27: 11 | Y27: 237 | Z27: 56 | AA27: 0 | AB27: 0 | AC27: 0 | AD27: 0 | AE27: 0 | AF27: 0 | AG27: 1 | AH27: 0 | AI27: 0 | AJ27: 1 | AK27: 0 | AL27: 0 | AM27: 1 | AN27: 0 | AO27: 1 | AP27: 0 | AQ27: 0 | AS27: 1 | AT27: METABAT_AS06rmzACSIP_146 | AU27: root (UID1) | AV27: 5656 | AW27: 56 | AX27: 24 | AY27: 0 | AZ27: 0 | BA27: 0 | BB27: 0 | BC27: 210454 | BD27: 0 | BE27: 57 | BF27: 57 | BG27: 4616 | BH27: 4616 | BI27: 3692 | BJ27: 3692 | BK27: 8682 | BL27: 8682 | BM27: 60.8 | BN27: 1.74 | BO27: 86.68 | BP27: 11 | BQ27: 236 | BR27: 56 | BS27: 0 | BT27: 0 | BU27: 0 | BV27: 0 | BW27: 0 | BX27: 0 | BY27: 1 | BZ27: 0 | CA27: 0 | CB27: 1 | CC27: 0 | CD27: 0 | CE27: 1 | CF27: 0 | CG27: 1 | CH27: 0 | CI27: 0 | CL27: 0 | CM27: 0 | CN27: cp | CO27: METABAT_AS06rmzACSIP_146 | CP27: .faa | CQ27: lowQ
A28: 1619 | B28: METABAT_AS06rmzACSIP_165 | C28: root (UID1) | D28: 5656 | E28: 56 | F28: 24 | G28: 0 | H28: 0 | I28: 0 | J28: 0 | K28: 422268 | L28: 0 | M28: 164 | N28: 164 | O28: 2788 | P28: 2788 | Q28: 2574 | R28: 2574 | S28: 7942 | T28: 7942 | U28: 71 | V28: 1.81 | W28: 92.81 | X28: 11 | Y28: 493 | Z28: 56 | AA28: 0 | AB28: 0 | AC28: 0 | AD28: 0 | AE28: 0 | AF28: 0 | AG28: 1 | AH28: 0 | AI28: 0 | AJ28: 1 | AK28: 0 | AL28: 0 | AM28: 1 | AN28: 0 | AO28: 1 | AP28: 0 | AQ28: 0 | AS28: 1 | AT28: METABAT_AS06rmzACSIP_165 | AU28: root (UID1) | AV28: 5656 | AW28: 56 | AX28: 24 | AY28: 0 | AZ28: 0 | BA28: 0 | BB28: 0 | BC28: 419964 | BD28: 0 | BE28: 163 | BF28: 163 | BG28: 2788 | BH28: 2788 | BI28: 2576 | BJ28: 2576 | BK28: 7942 | BL28: 7942 | BM28: 70.9 | BN28: 1.72 | BO28: 92.76 | BP28: 11 | BQ28: 488 | BR28: 56 | BS28: 0 | BT28: 0 | BU28: 0 | BV28: 0 | BW28: 0 | BX28: 0 | BY28: 1 | BZ28: 0 | CA28: 0 | CB28: 1 | CC28: 0 | CD28: 0 | CE28: 1 | CF28: 0 | CG28: 1 | CH28: 0 | CI28: 0 | CL28: 0 | CM28: -2304 | CN28: cp | CO28: METABAT_AS06rmzACSIP_165 | CP28: .faa | CQ28: lowQ
A29: 1628 | B29: METABAT_AS06rmzACSIP_173 | C29: root (UID1) | D29: 5656 | E29: 56 | F29: 24 | G29: 0 | H29: 0 | I29: 0 | J29: 0 | K29: 645343 | L29: 0 | M29: 63 | N29: 63 | O29: 18190 | P29: 18190 | Q29: 10243 | R29: 10243 | S29: 55730 | T29: 55730 | U29: 69.1 | V29: 2.02 | W29: 88.9 | X29: 11 | Y29: 588 | Z29: 56 | AA29: 0 | AB29: 0 | AC29: 0 | AD29: 0 | AE29: 0 | AF29: 0 | AG29: 1 | AH29: 0 | AI29: 0 | AJ29: 1 | AK29: 0 | AL29: 0 | AM29: 1 | AN29: 0 | AO29: 1 | AP29: 0 | AQ29: 0 | AS29: 1 | AT29: METABAT_AS06rmzACSIP_173 | AU29: root (UID1) | AV29: 5656 | AW29: 56 | AX29: 24 | AY29: 0 | AZ29: 0 | BA29: 0 | BB29: 0 | BC29: 645343 | BD29: 0 | BE29: 63 | BF29: 63 | BG29: 18190 | BH29: 18190 | BI29: 10243 | BJ29: 10243 | BK29: 55730 | BL29: 55730 | BM29: 69.1 | BN29: 2.02 | BO29: 88.91 | BP29: 11 | BQ29: 589 | BR29: 56 | BS29: 0 | BT29: 0 | BU29: 0 | BV29: 0 | BW29: 0 | BX29: 0 | BY29: 1 | BZ29: 0 | CA29: 0 | CB29: 1 | CC29: 0 | CD29: 0 | CE29: 1 | CF29: 0 | CG29: 1 | CH29: 0 | CI29: 0 | CL29: 0 | CM29: 0 | CN29: cp | CO29: METABAT_AS06rmzACSIP_173 | CP29: .faa | CQ29: lowQ
A30: 1630 | B30: METABAT_AS06rmzACSIP_175 | C30: root (UID1) | D30: 5656 | E30: 56 | F30: 24 | G30: 0 | H30: 0 | I30: 0 | J30: 0 | K30: 259441 | L30: 0 | M30: 61 | N30: 61 | O30: 5505 | P30: 5505 | Q30: 4253 | R30: 4253 | S30: 22857 | T30: 22857 | U30: 59.8 | V30: 2 | W30: 91.98 | X30: 11 | Y30: 255 | Z30: 56 | AA30: 0 | AB30: 0 | AC30: 0 | AD30: 0 | AE30: 0 | AF30: 0 | AG30: 1 | AH30: 0 | AI30: 0 | AJ30: 1 | AK30: 0 | AL30: 0 | AM30: 1 | AN30: 0 | AO30: 1 | AP30: 0 | AQ30: 0 | AS30: 1 | AT30: METABAT_AS06rmzACSIP_175 | AU30: root (UID1) | AV30: 5656 | AW30: 56 | AX30: 24 | AY30: 0 | AZ30: 0 | BA30: 0 | BB30: 0 | BC30: 259441 | BD30: 0 | BE30: 61 | BF30: 61 | BG30: 5505 | BH30: 5505 | BI30: 4253 | BJ30: 4253 | BK30: 22857 | BL30: 22857 | BM30: 59.8 | BN30: 2 | BO30: 92.04 | BP30: 11 | BQ30: 253 | BR30: 56 | BS30: 0 | BT30: 0 | BU30: 0 | BV30: 0 | BW30: 0 | BX30: 0 | BY30: 1 | BZ30: 0 | CA30: 0 | CB30: 1 | CC30: 0 | CD30: 0 | CE30: 1 | CF30: 0 | CG30: 1 | CH30: 0 | CI30: 0 | CL30: 0 | CM30: 0 | CN30: cp | CO30: METABAT_AS06rmzACSIP_175 | CP30: .faa | CQ30: lowQ
A31: 1669 | B31: METABAT_AS06rmzACSIP_21 | C31: root (UID1) | D31: 5656 | E31: 56 | F31: 24 | G31: 0 | H31: 0 | I31: 0 | J31: 0 | K31: 214305 | L31: 0 | M31: 37 | N31: 37 | O31: 8457 | P31: 8457 | Q31: 5792 | R31: 5792 | S31: 43807 | T31: 43807 | U31: 67 | V31: 1.76 | W31: 88.27 | X31: 11 | Y31: 213 | Z31: 56 | AA31: 0 | AB31: 0 | AC31: 0 | AD31: 0 | AE31: 0 | AF31: 0 | AG31: 1 | AH31: 0 | AI31: 0 | AJ31: 1 | AK31: 0 | AL31: 0 | AM31: 1 | AN31: 0 | AO31: 1 | AP31: 0 | AQ31: 0 | AS31: 1 | AT31: METABAT_AS06rmzACSIP_21 | AU31: root (UID1) | AV31: 5656 | AW31: 56 | AX31: 24 | AY31: 0 | AZ31: 0 | BA31: 0 | BB31: 0 | BC31: 214305 | BD31: 0 | BE31: 37 | BF31: 37 | BG31: 8457 | BH31: 8457 | BI31: 5792 | BJ31: 5792 | BK31: 43807 | BL31: 43807 | BM31: 67 | BN31: 1.76 | BO31: 88.3 | BP31: 11 | BQ31: 215 | BR31: 56 | BS31: 0 | BT31: 0 | BU31: 0 | BV31: 0 | BW31: 0 | BX31: 0 | BY31: 1 | BZ31: 0 | CA31: 0 | CB31: 1 | CC31: 0 | CD31: 0 | CE31: 1 | CF31: 0 | CG31: 1 | CH31: 0 | CI31: 0 | CL31: 0 | CM31: 0 | CN31: cp | CO31: METABAT_AS06rmzACSIP_21 | CP31: .faa | CQ31: lowQ
A32: 1735 | B32: METABAT_AS06rmzACSIP_27 | C32: root (UID1) | D32: 5656 | E32: 56 | F32: 24 | G32: 0 | H32: 0 | I32: 0 | J32: 0 | K32: 607783 | L32: 0 | M32: 47 | N32: 47 | O32: 23638 | P32: 23638 | Q32: 12931 | R32: 12931 | S32: 57929 | T32: 57929 | U32: 50.2 | V32: 2.2 | W32: 90.47 | X32: 11 | Y32: 905 | Z32: 56 | AA32: 0 | AB32: 0 | AC32: 0 | AD32: 0 | AE32: 0 | AF32: 0 | AG32: 1 | AH32: 0 | AI32: 0 | AJ32: 1 | AK32: 0 | AL32: 0 | AM32: 1 | AN32: 0 | AO32: 1 | AP32: 0 | AQ32: 0 | AS32: 1 | AT32: METABAT_AS06rmzACSIP_27 | AU32: root (UID1) | AV32: 5656 | AW32: 56 | AX32: 24 | AY32: 0 | AZ32: 0 | BA32: 0 | BB32: 0 | BC32: 607783 | BD32: 0 | BE32: 47 | BF32: 47 | BG32: 23638 | BH32: 23638 | BI32: 12931 | BJ32: 12931 | BK32: 57929 | BL32: 57929 | BM32: 50.2 | BN32: 2.2 | BO32: 90.35 | BP32: 11 | BQ32: 903 | BR32: 56 | BS32: 0 | BT32: 0 | BU32: 0 | BV32: 0 | BW32: 0 | BX32: 0 | BY32: 1 | BZ32: 0 | CA32: 0 | CB32: 1 | CC32: 0 | CD32: 0 | CE32: 1 | CF32: 0 | CG32: 1 | CH32: 0 | CI32: 0 | CL32: 0 | CM32: 0 | CN32: cp | CO32: METABAT_AS06rmzACSIP_27 | CP32: .faa | CQ32: lowQ
A33: 1797 | B33: METABAT_AS06rmzACSIP_325 | C33: root (UID1) | D33: 5656 | E33: 56 | F33: 24 | G33: 0 | H33: 0 | I33: 0 | J33: 0 | K33: 516633 | L33: 0 | M33: 108 | N33: 108 | O33: 5402 | P33: 5402 | Q33: 4783 | R33: 4783 | S33: 37485 | T33: 37485 | U33: 58.9 | V33: 1.58 | W33: 85.9 | X33: 11 | Y33: 554 | Z33: 56 | AA33: 0 | AB33: 0 | AC33: 0 | AD33: 0 | AE33: 0 | AF33: 0 | AG33: 1 | AH33: 0 | AI33: 0 | AJ33: 1 | AK33: 0 | AL33: 0 | AM33: 1 | AN33: 0 | AO33: 1 | AP33: 0 | AQ33: 0 | AS33: 1 | AT33: METABAT_AS06rmzACSIP_325 | AU33: root (UID1) | AV33: 5656 | AW33: 56 | AX33: 24 | AY33: 0 | AZ33: 0 | BA33: 0 | BB33: 0 | BC33: 516633 | BD33: 0 | BE33: 108 | BF33: 108 | BG33: 5402 | BH33: 5402 | BI33: 4783 | BJ33: 4783 | BK33: 37485 | BL33: 37485 | BM33: 58.9 | BN33: 1.58 | BO33: 85.69 | BP33: 11 | BQ33: 551 | BR33: 56 | BS33: 0 | BT33: 0 | BU33: 0 | BV33: 0 | BW33: 0 | BX33: 0 | BY33: 1 | BZ33: 0 | CA33: 0 | CB33: 1 | CC33: 0 | CD33: 0 | CE33: 1 | CF33: 0 | CG33: 1 | CH33: 0 | CI33: 0 | CL33: 0 | CM33: 0 | CN33: cp | CO33: METABAT_AS06rmzACSIP_325 | CP33: .faa | CQ33: lowQ
A34: 1816 | B34: METABAT_AS06rmzACSIP_342 | C34: root (UID1) | D34: 5656 | E34: 56 | F34: 24 | G34: 0 | H34: 0 | I34: 0 | J34: 0 | K34: 282848 | L34: 0 | M34: 74 | N34: 74 | O34: 4284 | P34: 4284 | Q34: 3822 | R34: 3822 | S34: 15124 | T34: 15124 | U34: 57.2 | V34: 1.39 | W34: 88.53 | X34: 11 | Y34: 359 | Z34: 56 | AA34: 0 | AB34: 0 | AC34: 0 | AD34: 0 | AE34: 0 | AF34: 0 | AG34: 1 | AH34: 0 | AI34: 0 | AJ34: 1 | AK34: 0 | AL34: 0 | AM34: 1 | AN34: 0 | AO34: 1 | AP34: 0 | AQ34: 0 | AS34: 1 | AT34: METABAT_AS06rmzACSIP_342 | AU34: root (UID1) | AV34: 5656 | AW34: 56 | AX34: 24 | AY34: 0 | AZ34: 0 | BA34: 0 | BB34: 0 | BC34: 282848 | BD34: 0 | BE34: 74 | BF34: 74 | BG34: 4284 | BH34: 4284 | BI34: 3822 | BJ34: 3822 | BK34: 15124 | BL34: 15124 | BM34: 57.2 | BN34: 1.39 | BO34: 88.67 | BP34: 11 | BQ34: 359 | BR34: 56 | BS34: 0 | BT34: 0 | BU34: 0 | BV34: 0 | BW34: 0 | BX34: 0 | BY34: 1 | BZ34: 0 | CA34: 0 | CB34: 1 | CC34: 0 | CD34: 0 | CE34: 1 | CF34: 0 | CG34: 1 | CH34: 0 | CI34: 0 | CL34: 0 | CM34: 0 | CN34: cp | CO34: METABAT_AS06rmzACSIP_342 | CP34: .faa | CQ34: lowQ
A35: 1817 | B35: METABAT_AS06rmzACSIP_343 | C35: root (UID1) | D35: 5656 | E35: 56 | F35: 24 | G35: 0 | H35: 0 | I35: 0 | J35: 0 | K35: 224348 | L35: 0 | M35: 2 | N35: 2 | O35: 186083 | P35: 186083 | Q35: 112174 | R35: 112174 | S35: 186083 | T35: 186083 | U35: 40.4 | V35: 0.24 | W35: 90.87 | X35: 11 | Y35: 287 | Z35: 56 | AA35: 0 | AB35: 0 | AC35: 0 | AD35: 0 | AE35: 0 | AF35: 0 | AG35: 1 | AH35: 0 | AI35: 0 | AJ35: 1 | AK35: 0 | AL35: 0 | AM35: 1 | AN35: 0 | AO35: 1 | AP35: 0 | AQ35: 0 | AS35: 1 | AT35: METABAT_AS06rmzACSIP_343 | AU35: root (UID1) | AV35: 5656 | AW35: 56 | AX35: 24 | AY35: 0 | AZ35: 0 | BA35: 0 | BB35: 0 | BC35: 224348 | BD35: 0 | BE35: 2 | BF35: 2 | BG35: 186083 | BH35: 186083 | BI35: 112174 | BJ35: 112174 | BK35: 186083 | BL35: 186083 | BM35: 40.4 | BN35: 0.24 | BO35: 90.99 | BP35: 11 | BQ35: 288 | BR35: 56 | BS35: 0 | BT35: 0 | BU35: 0 | BV35: 0 | BW35: 0 | BX35: 0 | BY35: 1 | BZ35: 0 | CA35: 0 | CB35: 1 | CC35: 0 | CD35: 0 | CE35: 1 | CF35: 0 | CG35: 1 | CH35: 0 | CI35: 0 | CL35: 0 | CM35: 0 | CN35: cp | CO35: METABAT_AS06rmzACSIP_343 | CP35: .faa | CQ35: lowQ
A36: 1840 | B36: METABAT_AS06rmzACSIP_364 | C36: root (UID1) | D36: 5656 | E36: 56 | F36: 24 | G36: 0 | H36: 0 | I36: 0 | J36: 0 | K36: 618514 | L36: 0 | M36: 251 | N36: 251 | O36: 2412 | P36: 2412 | Q36: 2464 | R36: 2464 | S36: 13701 | T36: 13701 | U36: 63.6 | V36: 2.3 | W36: 90.53 | X36: 11 | Y36: 663 | Z36: 56 | AA36: 0 | AB36: 0 | AC36: 0 | AD36: 0 | AE36: 0 | AF36: 0 | AG36: 1 | AH36: 0 | AI36: 0 | AJ36: 1 | AK36: 0 | AL36: 0 | AM36: 1 | AN36: 0 | AO36: 1 | AP36: 0 | AQ36: 0 | AS36: 1 | AT36: METABAT_AS06rmzACSIP_364 | AU36: root (UID1) | AV36: 5656 | AW36: 56 | AX36: 24 | AY36: 0 | AZ36: 0 | BA36: 0 | BB36: 0 | BC36: 609394 | BD36: 0 | BE36: 247 | BF36: 247 | BG36: 2412 | BH36: 2412 | BI36: 2467 | BJ36: 2467 | BK36: 13701 | BL36: 13701 | BM36: 63.7 | BN36: 1.96 | BO36: 90.99 | BP36: 11 | BQ36: 648 | BR36: 56 | BS36: 0 | BT36: 0 | BU36: 0 | BV36: 0 | BW36: 0 | BX36: 0 | BY36: 1 | BZ36: 0 | CA36: 0 | CB36: 1 | CC36: 0 | CD36: 0 | CE36: 1 | CF36: 0 | CG36: 1 | CH36: 0 | CI36: 0 | CL36: 0 | CM36: -9120 | CN36: cp | CO36: METABAT_AS06rmzACSIP_364 | CP36: .faa | CQ36: lowQ
A37: 1866 | B37: METABAT_AS06rmzACSIP_388 | C37: root (UID1) | D37: 5656 | E37: 56 | F37: 24 | G37: 0 | H37: 0 | I37: 0 | J37: 0 | K37: 219664 | L37: 0 | M37: 57 | N37: 57 | O37: 4271 | P37: 4271 | Q37: 3853 | R37: 3853 | S37: 13966 | T37: 13966 | U37: 51.3 | V37: 2.08 | W37: 89.43 | X37: 11 | Y37: 228 | Z37: 56 | AA37: 0 | AB37: 0 | AC37: 0 | AD37: 0 | AE37: 0 | AF37: 0 | AG37: 1 | AH37: 0 | AI37: 0 | AJ37: 1 | AK37: 0 | AL37: 0 | AM37: 1 | AN37: 0 | AO37: 1 | AP37: 0 | AQ37: 0 | AS37: 1 | AT37: METABAT_AS06rmzACSIP_388 | AU37: root (UID1) | AV37: 5656 | AW37: 56 | AX37: 24 | AY37: 0 | AZ37: 0 | BA37: 0 | BB37: 0 | BC37: 219664 | BD37: 0 | BE37: 57 | BF37: 57 | BG37: 4271 | BH37: 4271 | BI37: 3853 | BJ37: 3853 | BK37: 13966 | BL37: 13966 | BM37: 51.3 | BN37: 2.08 | BO37: 89.39 | BP37: 11 | BQ37: 228 | BR37: 56 | BS37: 0 | BT37: 0 | BU37: 0 | BV37: 0 | BW37: 0 | BX37: 0 | BY37: 1 | BZ37: 0 | CA37: 0 | CB37: 1 | CC37: 0 | CD37: 0 | CE37: 1 | CF37: 0 | CG37: 1 | CH37: 0 | CI37: 0 | CL37: 0 | CM37: 0 | CN37: cp | CO37: METABAT_AS06rmzACSIP_388 | CP37: .faa | CQ37: lowQ
A38: 1884 | B38: METABAT_AS06rmzACSIP_403 | C38: root (UID1) | D38: 5656 | E38: 56 | F38: 24 | G38: 0 | H38: 0 | I38: 0 | J38: 0 | K38: 552526 | L38: 0 | M38: 90 | N38: 90 | O38: 9959 | P38: 9959 | Q38: 6139 | R38: 6139 | S38: 24082 | T38: 24082 | U38: 56.8 | V38: 1.96 | W38: 90.18 | X38: 11 | Y38: 586 | Z38: 56 | AA38: 0 | AB38: 0 | AC38: 0 | AD38: 0 | AE38: 0 | AF38: 0 | AG38: 1 | AH38: 0 | AI38: 0 | AJ38: 1 | AK38: 0 | AL38: 0 | AM38: 1 | AN38: 0 | AO38: 1 | AP38: 0 | AQ38: 0 | AS38: 1 | AT38: METABAT_AS06rmzACSIP_403 | AU38: root (UID1) | AV38: 5656 | AW38: 56 | AX38: 24 | AY38: 0 | AZ38: 0 | BA38: 0 | BB38: 0 | BC38: 552526 | BD38: 0 | BE38: 90 | BF38: 90 | BG38: 9959 | BH38: 9959 | BI38: 6139 | BJ38: 6139 | BK38: 24082 | BL38: 24082 | BM38: 56.8 | BN38: 1.96 | BO38: 90.16 | BP38: 11 | BQ38: 586 | BR38: 56 | BS38: 0 | BT38: 0 | BU38: 0 | BV38: 0 | BW38: 0 | BX38: 0 | BY38: 1 | BZ38: 0 | CA38: 0 | CB38: 1 | CC38: 0 | CD38: 0 | CE38: 1 | CF38: 0 | CG38: 1 | CH38: 0 | CI38: 0 | CL38: 0 | CM38: 0 | CN38: cp | CO38: METABAT_AS06rmzACSIP_403 | CP38: .faa | CQ38: lowQ
A39: 1905 | B39: METABAT_AS06rmzACSIP_422 | C39: root (UID1) | D39: 5656 | E39: 56 | F39: 24 | G39: 0 | H39: 0 | I39: 0 | J39: 0 | K39: 205421 | L39: 0 | M39: 43 | N39: 43 | O39: 7059 | P39: 7059 | Q39: 4777 | R39: 4777 | S39: 21469 | T39: 21469 | U39: 62 | V39: 1.68 | W39: 88.7 | X39: 11 | Y39: 228 | Z39: 56 | AA39: 0 | AB39: 0 | AC39: 0 | AD39: 0 | AE39: 0 | AF39: 0 | AG39: 1 | AH39: 0 | AI39: 0 | AJ39: 1 | AK39: 0 | AL39: 0 | AM39: 1 | AN39: 0 | AO39: 1 | AP39: 0 | AQ39: 0 | AS39: 1 | AT39: METABAT_AS06rmzACSIP_422 | AU39: root (UID1) | AV39: 5656 | AW39: 56 | AX39: 24 | AY39: 0 | AZ39: 0 | BA39: 0 | BB39: 0 | BC39: 205421 | BD39: 0 | BE39: 43 | BF39: 43 | BG39: 7059 | BH39: 7059 | BI39: 4777 | BJ39: 4777 | BK39: 21469 | BL39: 21469 | BM39: 62 | BN39: 1.68 | BO39: 88.76 | BP39: 11 | BQ39: 228 | BR39: 56 | BS39: 0 | BT39: 0 | BU39: 0 | BV39: 0 | BW39: 0 | BX39: 0 | BY39: 1 | BZ39: 0 | CA39: 0 | CB39: 1 | CC39: 0 | CD39: 0 | CE39: 1 | CF39: 0 | CG39: 1 | CH39: 0 | CI39: 0 | CL39: 0 | CM39: 0 | CN39: cp | CO39: METABAT_AS06rmzACSIP_422 | CP39: .faa | CQ39: lowQ
A40: 1924 | B40: METABAT_AS06rmzACSIP_44 | C40: root (UID1) | D40: 5656 | E40: 56 | F40: 24 | G40: 0 | H40: 0 | I40: 0 | J40: 0 | K40: 289672 | L40: 0 | M40: 14 | N40: 14 | O40: 25360 | P40: 25360 | Q40: 20690 | R40: 20690 | S40: 46410 | T40: 46410 | U40: 45.3 | V40: 1.19 | W40: 90.65 | X40: 11 | Y40: 236 | Z40: 56 | AA40: 0 | AB40: 0 | AC40: 0 | AD40: 0 | AE40: 0 | AF40: 0 | AG40: 1 | AH40: 0 | AI40: 0 | AJ40: 1 | AK40: 0 | AL40: 0 | AM40: 1 | AN40: 0 | AO40: 1 | AP40: 0 | AQ40: 0 | AS40: 1 | AT40: METABAT_AS06rmzACSIP_44 | AU40: root (UID1) | AV40: 5656 | AW40: 56 | AX40: 24 | AY40: 0 | AZ40: 0 | BA40: 0 | BB40: 0 | BC40: 289672 | BD40: 0 | BE40: 14 | BF40: 14 | BG40: 25360 | BH40: 25360 | BI40: 20690 | BJ40: 20690 | BK40: 46410 | BL40: 46410 | BM40: 45.3 | BN40: 1.19 | BO40: 90.67 | BP40: 11 | BQ40: 236 | BR40: 56 | BS40: 0 | BT40: 0 | BU40: 0 | BV40: 0 | BW40: 0 | BX40: 0 | BY40: 1 | BZ40: 0 | CA40: 0 | CB40: 1 | CC40: 0 | CD40: 0 | CE40: 1 | CF40: 0 | CG40: 1 | CH40: 0 | CI40: 0 | CL40: 0 | CM40: 0 | CN40: cp | CO40: METABAT_AS06rmzACSIP_44 | CP40: .faa | CQ40: lowQ
A41: 1928 | B41: METABAT_AS06rmzACSIP_443 | C41: root (UID1) | D41: 5656 | E41: 56 | F41: 24 | G41: 0 | H41: 0 | I41: 0 | J41: 0 | K41: 230678 | L41: 0 | M41: 37 | N41: 37 | O41: 10763 | P41: 10763 | Q41: 6234 | R41: 6234 | S41: 34572 | T41: 34572 | U41: 44.3 | V41: 3.7 | W41: 86.13 | X41: 11 | Y41: 257 | Z41: 56 | AA41: 0 | AB41: 0 | AC41: 0 | AD41: 0 | AE41: 0 | AF41: 0 | AG41: 1 | AH41: 0 | AI41: 0 | AJ41: 1 | AK41: 0 | AL41: 0 | AM41: 1 | AN41: 0 | AO41: 1 | AP41: 0 | AQ41: 0 | AS41: 1 | AT41: METABAT_AS06rmzACSIP_443 | AU41: root (UID1) | AV41: 5656 | AW41: 56 | AX41: 24 | AY41: 0 | AZ41: 0 | BA41: 0 | BB41: 0 | BC41: 224598 | BD41: 0 | BE41: 34 | BF41: 34 | BG41: 11106 | BH41: 11106 | BI41: 6605 | BJ41: 6605 | BK41: 34572 | BL41: 34572 | BM41: 44 | BN41: 1.91 | BO41: 85.89 | BP41: 11 | BQ41: 246 | BR41: 56 | BS41: 0 | BT41: 0 | BU41: 0 | BV41: 0 | BW41: 0 | BX41: 0 | BY41: 1 | BZ41: 0 | CA41: 0 | CB41: 1 | CC41: 0 | CD41: 0 | CE41: 1 | CF41: 0 | CG41: 1 | CH41: 0 | CI41: 0 | CL41: 0 | CM41: -6080 | CN41: cp | CO41: METABAT_AS06rmzACSIP_443 | CP41: .faa | CQ41: lowQ
A42: 1947 | B42: METABAT_AS06rmzACSIP_460 | C42: root (UID1) | D42: 5656 | E42: 56 | F42: 24 | G42: 0 | H42: 0 | I42: 0 | J42: 0 | K42: 213711 | L42: 0 | M42: 45 | N42: 45 | O42: 6870 | P42: 6870 | Q42: 4749 | R42: 4749 | S42: 17561 | T42: 17561 | U42: 57.7 | V42: 1.14 | W42: 86.61 | X42: 11 | Y42: 220 | Z42: 56 | AA42: 0 | AB42: 0 | AC42: 0 | AD42: 0 | AE42: 0 | AF42: 0 | AG42: 1 | AH42: 0 | AI42: 0 | AJ42: 1 | AK42: 0 | AL42: 0 | AM42: 1 | AN42: 0 | AO42: 1 | AP42: 0 | AQ42: 0 | AS42: 1 | AT42: METABAT_AS06rmzACSIP_460 | AU42: root (UID1) | AV42: 5656 | AW42: 56 | AX42: 24 | AY42: 0 | AZ42: 0 | BA42: 0 | BB42: 0 | BC42: 213711 | BD42: 0 | BE42: 45 | BF42: 45 | BG42: 6870 | BH42: 6870 | BI42: 4749 | BJ42: 4749 | BK42: 17561 | BL42: 17561 | BM42: 57.7 | BN42: 1.14 | BO42: 86.64 | BP42: 11 | BQ42: 221 | BR42: 56 | BS42: 0 | BT42: 0 | BU42: 0 | BV42: 0 | BW42: 0 | BX42: 0 | BY42: 1 | BZ42: 0 | CA42: 0 | CB42: 1 | CC42: 0 | CD42: 0 | CE42: 1 | CF42: 0 | CG42: 1 | CH42: 0 | CI42: 0 | CL42: 0 | CM42: 0 | CN42: cp | CO42: METABAT_AS06rmzACSIP_460 | CP42: .faa | CQ42: lowQ
A43: 1952 | B43: METABAT_AS06rmzACSIP_465 | C43: k__Bacteria (UID203) | D43: 5449 | E43: 104 | F43: 58 | G43: 1.25 | H43: 0 | I43: 0 | J43: 0 | K43: 364624 | L43: 0 | M43: 91 | N43: 91 | O43: 5914 | P43: 5914 | Q43: 4006 | R43: 4006 | S43: 32813 | T43: 32813 | U43: 32.1 | V43: 10.7 | W43: 88.13 | X43: 11 | Y43: 552 | Z43: 96 | AA43: 8 | AB43: 0 | AC43: 0 | AD43: 0 | AE43: 0 | AF43: 0 | AG43: 1 | AH43: 0 | AI43: 0 | AJ43: 1 | AK43: 0 | AL43: 0 | AM43: 1 | AN43: 0 | AO43: 1 | AP43: 0 | AQ43: 0 | AR43: 1.25 | AS43: 1 | AT43: METABAT_AS06rmzACSIP_465 | AU43: root (UID1) | AV43: 5656 | AW43: 56 | AX43: 24 | AY43: 0 | AZ43: 0 | BA43: 0 | BB43: 0 | BC43: 212869 | BD43: 0 | BE43: 44 | BF43: 44 | BG43: 5974 | BH43: 5974 | BI43: 4837 | BJ43: 4837 | BK43: 16300 | BL43: 16300 | BM43: 27.8 | BN43: 3.92 | BO43: 88.91 | BP43: 11 | BQ43: 348 | BR43: 56 | BS43: 0 | BT43: 0 | BU43: 0 | BV43: 0 | BW43: 0 | BX43: 0 | BY43: 1 | BZ43: 0 | CA43: 0 | CB43: 1 | CC43: 0 | CD43: 0 | CE43: 1 | CF43: 0 | CG43: 1 | CH43: 0 | CI43: 0 | CL43: 0 | CM43: -151755 | CN43: cp | CO43: METABAT_AS06rmzACSIP_465 | CP43: .faa | CQ43: lowQ
A44: 1959 | B44: METABAT_AS06rmzACSIP_471 | C44: root (UID1) | D44: 5656 | E44: 56 | F44: 24 | G44: 0 | H44: 0 | I44: 0 | J44: 0 | K44: 223587 | L44: 0 | M44: 78 | N44: 78 | O44: 3038 | P44: 3038 | Q44: 2866 | R44: 2866 | S44: 10073 | T44: 10073 | U44: 59.8 | V44: 1.54 | W44: 93.12 | X44: 11 | Y44: 247 | Z44: 56 | AA44: 0 | AB44: 0 | AC44: 0 | AD44: 0 | AE44: 0 | AF44: 0 | AG44: 1 | AH44: 0 | AI44: 0 | AJ44: 1 | AK44: 0 | AL44: 0 | AM44: 1 | AN44: 0 | AO44: 1 | AP44: 0 | AQ44: 0 | AS44: 1 | AT44: METABAT_AS06rmzACSIP_471 | AU44: root (UID1) | AV44: 5656 | AW44: 56 | AX44: 24 | AY44: 0 | AZ44: 0 | BA44: 0 | BB44: 0 | BC44: 223587 | BD44: 0 | BE44: 78 | BF44: 78 | BG44: 3038 | BH44: 3038 | BI44: 2866 | BJ44: 2866 | BK44: 10073 | BL44: 10073 | BM44: 59.8 | BN44: 1.54 | BO44: 93.01 | BP44: 11 | BQ44: 244 | BR44: 56 | BS44: 0 | BT44: 0 | BU44: 0 | BV44: 0 | BW44: 0 | BX44: 0 | BY44: 1 | BZ44: 0 | CA44: 0 | CB44: 1 | CC44: 0 | CD44: 0 | CE44: 1 | CF44: 0 | CG44: 1 | CH44: 0 | CI44: 0 | CL44: 0 | CM44: 0 | CN44: cp | CO44: METABAT_AS06rmzACSIP_471 | CP44: .faa | CQ44: lowQ
A45: 1972 | B45: METABAT_AS06rmzACSIP_483 | C45: root (UID1) | D45: 5656 | E45: 56 | F45: 24 | G45: 0 | H45: 0 | I45: 0 | J45: 0 | K45: 436902 | L45: 0 | M45: 144 | N45: 144 | O45: 3285 | P45: 3285 | Q45: 3034 | R45: 3034 | S45: 11063 | T45: 11063 | U45: 61.4 | V45: 2.27 | W45: 92.16 | X45: 11 | Y45: 479 | Z45: 56 | AA45: 0 | AB45: 0 | AC45: 0 | AD45: 0 | AE45: 0 | AF45: 0 | AG45: 1 | AH45: 0 | AI45: 0 | AJ45: 1 | AK45: 0 | AL45: 0 | AM45: 1 | AN45: 0 | AO45: 1 | AP45: 0 | AQ45: 0 | AS45: 1 | AT45: METABAT_AS06rmzACSIP_483 | AU45: root (UID1) | AV45: 5656 | AW45: 56 | AX45: 24 | AY45: 0 | AZ45: 0 | BA45: 0 | BB45: 0 | BC45: 436902 | BD45: 0 | BE45: 144 | BF45: 144 | BG45: 3285 | BH45: 3285 | BI45: 3034 | BJ45: 3034 | BK45: 11063 | BL45: 11063 | BM45: 61.4 | BN45: 2.27 | BO45: 92.19 | BP45: 11 | BQ45: 479 | BR45: 56 | BS45: 0 | BT45: 0 | BU45: 0 | BV45: 0 | BW45: 0 | BX45: 0 | BY45: 1 | BZ45: 0 | CA45: 0 | CB45: 1 | CC45: 0 | CD45: 0 | CE45: 1 | CF45: 0 | CG45: 1 | CH45: 0 | CI45: 0 | CL45: 0 | CM45: 0 | CN45: cp | CO45: METABAT_AS06rmzACSIP_483 | CP45: .faa | CQ45: lowQ
A46: 1983 | B46: METABAT_AS06rmzACSIP_493 | C46: root (UID1) | D46: 5656 | E46: 56 | F46: 24 | G46: 0 | H46: 0 | I46: 0 | J46: 0 | K46: 568102 | L46: 0 | M46: 171 | N46: 171 | O46: 4004 | P46: 4004 | Q46: 3322 | R46: 3322 | S46: 21645 | T46: 21645 | U46: 35.8 | V46: 4.32 | W46: 89.42 | X46: 11 | Y46: 635 | Z46: 56 | AA46: 0 | AB46: 0 | AC46: 0 | AD46: 0 | AE46: 0 | AF46: 0 | AG46: 1 | AH46: 0 | AI46: 0 | AJ46: 1 | AK46: 0 | AL46: 0 | AM46: 1 | AN46: 0 | AO46: 1 | AP46: 0 | AQ46: 0 | AS46: 1 | AT46: METABAT_AS06rmzACSIP_493 | AU46: root (UID1) | AV46: 5656 | AW46: 56 | AX46: 24 | AY46: 0 | AZ46: 0 | BA46: 0 | BB46: 0 | BC46: 544697 | BD46: 0 | BE46: 161 | BF46: 161 | BG46: 4159 | BH46: 4159 | BI46: 3383 | BJ46: 3383 | BK46: 21645 | BL46: 21645 | BM46: 35.6 | BN46: 3.25 | BO46: 89.43 | BP46: 11 | BQ46: 598 | BR46: 56 | BS46: 0 | BT46: 0 | BU46: 0 | BV46: 0 | BW46: 0 | BX46: 0 | BY46: 1 | BZ46: 0 | CA46: 0 | CB46: 1 | CC46: 0 | CD46: 0 | CE46: 1 | CF46: 0 | CG46: 1 | CH46: 0 | CI46: 0 | CL46: 0 | CM46: -23405 | CN46: cp | CO46: METABAT_AS06rmzACSIP_493 | CP46: .faa | CQ46: lowQ
A47: 2015 | B47: METABAT_AS06rmzACSIP_521 | C47: root (UID1) | D47: 5656 | E47: 56 | F47: 24 | G47: 0 | H47: 0 | I47: 0 | J47: 0 | K47: 381575 | L47: 0 | M47: 169 | N47: 169 | O47: 2311 | P47: 2311 | Q47: 2257 | R47: 2257 | S47: 6388 | T47: 6388 | U47: 65.7 | V47: 2.26 | W47: 94.05 | X47: 11 | Y47: 483 | Z47: 56 | AA47: 0 | AB47: 0 | AC47: 0 | AD47: 0 | AE47: 0 | AF47: 0 | AG47: 1 | AH47: 0 | AI47: 0 | AJ47: 1 | AK47: 0 | AL47: 0 | AM47: 1 | AN47: 0 | AO47: 1 | AP47: 0 | AQ47: 0 | AS47: 1 | AT47: METABAT_AS06rmzACSIP_521 | AU47: root (UID1) | AV47: 5656 | AW47: 56 | AX47: 24 | AY47: 0 | AZ47: 0 | BA47: 0 | BB47: 0 | BC47: 381575 | BD47: 0 | BE47: 169 | BF47: 169 | BG47: 2311 | BH47: 2311 | BI47: 2257 | BJ47: 2257 | BK47: 6388 | BL47: 6388 | BM47: 65.7 | BN47: 2.26 | BO47: 94.08 | BP47: 11 | BQ47: 483 | BR47: 56 | BS47: 0 | BT47: 0 | BU47: 0 | BV47: 0 | BW47: 0 | BX47: 0 | BY47: 1 | BZ47: 0 | CA47: 0 | CB47: 1 | CC47: 0 | CD47: 0 | CE47: 1 | CF47: 0 | CG47: 1 | CH47: 0 | CI47: 0 | CL47: 0 | CM47: 0 | CN47: cp | CO47: METABAT_AS06rmzACSIP_521 | CP47: .faa | CQ47: lowQ
A48: 2025 | B48: METABAT_AS06rmzACSIP_530 | C48: root (UID1) | D48: 5656 | E48: 56 | F48: 24 | G48: 0 | H48: 0 | I48: 0 | J48: 0 | K48: 341541 | L48: 0 | M48: 139 | N48: 139 | O48: 2417 | P48: 2417 | Q48: 2457 | R48: 2457 | S48: 6474 | T48: 6474 | U48: 49.4 | V48: 1.48 | W48: 87.82 | X48: 11 | Y48: 435 | Z48: 56 | AA48: 0 | AB48: 0 | AC48: 0 | AD48: 0 | AE48: 0 | AF48: 0 | AG48: 1 | AH48: 0 | AI48: 0 | AJ48: 1 | AK48: 0 | AL48: 0 | AM48: 1 | AN48: 0 | AO48: 1 | AP48: 0 | AQ48: 0 | AS48: 1 | AT48: METABAT_AS06rmzACSIP_530 | AU48: root (UID1) | AV48: 5656 | AW48: 56 | AX48: 24 | AY48: 0 | AZ48: 0 | BA48: 0 | BB48: 0 | BC48: 341541 | BD48: 0 | BE48: 139 | BF48: 139 | BG48: 2417 | BH48: 2417 | BI48: 2457 | BJ48: 2457 | BK48: 6474 | BL48: 6474 | BM48: 49.4 | BN48: 1.48 | BO48: 87.88 | BP48: 11 | BQ48: 436 | BR48: 56 | BS48: 0 | BT48: 0 | BU48: 0 | BV48: 0 | BW48: 0 | BX48: 0 | BY48: 1 | BZ48: 0 | CA48: 0 | CB48: 1 | CC48: 0 | CD48: 0 | CE48: 1 | CF48: 0 | CG48: 1 | CH48: 0 | CI48: 0 | CL48: 0 | CM48: 0 | CN48: cp | CO48: METABAT_AS06rmzACSIP_530 | CP48: .faa | CQ48: lowQ
A49: 2034 | B49: METABAT_AS06rmzACSIP_539 | C49: root (UID1) | D49: 5656 | E49: 56 | F49: 24 | G49: 0 | H49: 0 | I49: 0 | J49: 0 | K49: 345237 | L49: 0 | M49: 32 | N49: 32 | O49: 22641 | P49: 22641 | Q49: 10788 | R49: 10788 | S49: 43084 | T49: 43084 | U49: 49.9 | V49: 1.61 | W49: 88.41 | X49: 11 | Y49: 272 | Z49: 56 | AA49: 0 | AB49: 0 | AC49: 0 | AD49: 0 | AE49: 0 | AF49: 0 | AG49: 1 | AH49: 0 | AI49: 0 | AJ49: 1 | AK49: 0 | AL49: 0 | AM49: 1 | AN49: 0 | AO49: 1 | AP49: 0 | AQ49: 0 | AS49: 1 | AT49: METABAT_AS06rmzACSIP_539 | AU49: root (UID1) | AV49: 5656 | AW49: 56 | AX49: 24 | AY49: 0 | AZ49: 0 | BA49: 0 | BB49: 0 | BC49: 345237 | BD49: 0 | BE49: 32 | BF49: 32 | BG49: 22641 | BH49: 22641 | BI49: 10788 | BJ49: 10788 | BK49: 43084 | BL49: 43084 | BM49: 49.9 | BN49: 1.61 | BO49: 88.35 | BP49: 11 | BQ49: 271 | BR49: 56 | BS49: 0 | BT49: 0 | BU49: 0 | BV49: 0 | BW49: 0 | BX49: 0 | BY49: 1 | BZ49: 0 | CA49: 0 | CB49: 1 | CC49: 0 | CD49: 0 | CE49: 1 | CF49: 0 | CG49: 1 | CH49: 0 | CI49: 0 | CL49: 0 | CM49: 0 | CN49: cp | CO49: METABAT_AS06rmzACSIP_539 | CP49: .faa | CQ49: lowQ
A50: 2079 | B50: METABAT_AS06rmzACSIP_58 | C50: root (UID1) | D50: 5656 | E50: 56 | F50: 24 | G50: 0 | H50: 0 | I50: 0 | J50: 0 | K50: 367501 | L50: 0 | M50: 71 | N50: 71 | O50: 6573 | P50: 6573 | Q50: 5176 | R50: 5176 | S50: 27583 | T50: 27583 | U50: 58.8 | V50: 1.87 | W50: 86.08 | X50: 11 | Y50: 389 | Z50: 56 | AA50: 0 | AB50: 0 | AC50: 0 | AD50: 0 | AE50: 0 | AF50: 0 | AG50: 1 | AH50: 0 | AI50: 0 | AJ50: 1 | AK50: 0 | AL50: 0 | AM50: 1 | AN50: 0 | AO50: 1 | AP50: 0 | AQ50: 0 | AS50: 1 | AT50: METABAT_AS06rmzACSIP_58 | AU50: root (UID1) | AV50: 5656 | AW50: 56 | AX50: 24 | AY50: 0 | AZ50: 0 | BA50: 0 | BB50: 0 | BC50: 367501 | BD50: 0 | BE50: 71 | BF50: 71 | BG50: 6573 | BH50: 6573 | BI50: 5176 | BJ50: 5176 | BK50: 27583 | BL50: 27583 | BM50: 58.8 | BN50: 1.87 | BO50: 86.35 | BP50: 11 | BQ50: 393 | BR50: 56 | BS50: 0 | BT50: 0 | BU50: 0 | BV50: 0 | BW50: 0 | BX50: 0 | BY50: 1 | BZ50: 0 | CA50: 0 | CB50: 1 | CC50: 0 | CD50: 0 | CE50: 1 | CF50: 0 | CG50: 1 | CH50: 0 | CI50: 0 | CL50: 0 | CM50: 0 | CN50: cp | CO50: METABAT_AS06rmzACSIP_58 | CP50: .faa | CQ50: lowQ
A51: 2085 | B51: METABAT_AS06rmzACSIP_585 | C51: root (UID1) | D51: 5656 | E51: 56 | F51: 24 | G51: 0 | H51: 0 | I51: 0 | J51: 0 | K51: 345145 | L51: 0 | M51: 55 | N51: 55 | O51: 9288 | P51: 9288 | Q51: 6275 | R51: 6275 | S51: 39101 | T51: 39101 | U51: 55.3 | V51: 1.76 | W51: 91.34 | X51: 11 | Y51: 335 | Z51: 56 | AA51: 0 | AB51: 0 | AC51: 0 | AD51: 0 | AE51: 0 | AF51: 0 | AG51: 1 | AH51: 0 | AI51: 0 | AJ51: 1 | AK51: 0 | AL51: 0 | AM51: 1 | AN51: 0 | AO51: 1 | AP51: 0 | AQ51: 0 | AS51: 1 | AT51: METABAT_AS06rmzACSIP_585 | AU51: root (UID1) | AV51: 5656 | AW51: 56 | AX51: 24 | AY51: 0 | AZ51: 0 | BA51: 0 | BB51: 0 | BC51: 345145 | BD51: 0 | BE51: 55 | BF51: 55 | BG51: 9288 | BH51: 9288 | BI51: 6275 | BJ51: 6275 | BK51: 39101 | BL51: 39101 | BM51: 55.3 | BN51: 1.76 | BO51: 91.22 | BP51: 11 | BQ51: 334 | BR51: 56 | BS51: 0 | BT51: 0 | BU51: 0 | BV51: 0 | BW51: 0 | BX51: 0 | BY51: 1 | BZ51: 0 | CA51: 0 | CB51: 1 | CC51: 0 | CD51: 0 | CE51: 1 | CF51: 0 | CG51: 1 | CH51: 0 | CI51: 0 | CL51: 0 | CM51: 0 | CN51: cp | CO51: METABAT_AS06rmzACSIP_585 | CP51: .faa | CQ51: lowQ
A52: 2090 | B52: METABAT_AS06rmzACSIP_59 | C52: root (UID1) | D52: 5656 | E52: 56 | F52: 24 | G52: 0 | H52: 0 | I52: 0 | J52: 0 | K52: 214595 | L52: 0 | M52: 52 | N52: 52 | O52: 5266 | P52: 5266 | Q52: 4126 | R52: 4126 | S52: 8647 | T52: 8647 | U52: 46.6 | V52: 2.25 | W52: 90.43 | X52: 11 | Y52: 220 | Z52: 56 | AA52: 0 | AB52: 0 | AC52: 0 | AD52: 0 | AE52: 0 | AF52: 0 | AG52: 1 | AH52: 0 | AI52: 0 | AJ52: 1 | AK52: 0 | AL52: 0 | AM52: 1 | AN52: 0 | AO52: 1 | AP52: 0 | AQ52: 0 | AS52: 1 | AT52: METABAT_AS06rmzACSIP_59 | AU52: root (UID1) | AV52: 5656 | AW52: 56 | AX52: 24 | AY52: 0 | AZ52: 0 | BA52: 0 | BB52: 0 | BC52: 214595 | BD52: 0 | BE52: 52 | BF52: 52 | BG52: 5266 | BH52: 5266 | BI52: 4126 | BJ52: 4126 | BK52: 8647 | BL52: 8647 | BM52: 46.6 | BN52: 2.25 | BO52: 90.34 | BP52: 11 | BQ52: 219 | BR52: 56 | BS52: 0 | BT52: 0 | BU52: 0 | BV52: 0 | BW52: 0 | BX52: 0 | BY52: 1 | BZ52: 0 | CA52: 0 | CB52: 1 | CC52: 0 | CD52: 0 | CE52: 1 | CF52: 0 | CG52: 1 | CH52: 0 | CI52: 0 | CL52: 0 | CM52: 0 | CN52: cp | CO52: METABAT_AS06rmzACSIP_59 | CP52: .faa | CQ52: lowQ
A53: 2093 | B53: METABAT_AS06rmzACSIP_592 | C53: root (UID1) | D53: 5656 | E53: 56 | F53: 24 | G53: 0 | H53: 0 | I53: 0 | J53: 0 | K53: 205677 | L53: 0 | M53: 55 | N53: 55 | O53: 4109 | P53: 4109 | Q53: 3739 | R53: 3739 | S53: 12226 | T53: 12226 | U53: 62.9 | V53: 2 | W53: 90.08 | X53: 11 | Y53: 228 | Z53: 56 | AA53: 0 | AB53: 0 | AC53: 0 | AD53: 0 | AE53: 0 | AF53: 0 | AG53: 1 | AH53: 0 | AI53: 0 | AJ53: 1 | AK53: 0 | AL53: 0 | AM53: 1 | AN53: 0 | AO53: 1 | AP53: 0 | AQ53: 0 | AS53: 1 | AT53: METABAT_AS06rmzACSIP_592 | AU53: root (UID1) | AV53: 5656 | AW53: 56 | AX53: 24 | AY53: 0 | AZ53: 0 | BA53: 0 | BB53: 0 | BC53: 205677 | BD53: 0 | BE53: 55 | BF53: 55 | BG53: 4109 | BH53: 4109 | BI53: 3739 | BJ53: 3739 | BK53: 12226 | BL53: 12226 | BM53: 62.9 | BN53: 2 | BO53: 89.93 | BP53: 11 | BQ53: 225 | BR53: 56 | BS53: 0 | BT53: 0 | BU53: 0 | BV53: 0 | BW53: 0 | BX53: 0 | BY53: 1 | BZ53: 0 | CA53: 0 | CB53: 1 | CC53: 0 | CD53: 0 | CE53: 1 | CF53: 0 | CG53: 1 | CH53: 0 | CI53: 0 | CL53: 0 | CM53: 0 | CN53: cp | CO53: METABAT_AS06rmzACSIP_592 | CP53: .faa | CQ53: lowQ
A54: 2118 | B54: METABAT_AS06rmzACSIP_614 | C54: root (UID1) | D54: 5656 | E54: 56 | F54: 24 | G54: 0 | H54: 0 | I54: 0 | J54: 0 | K54: 430483 | L54: 0 | M54: 46 | N54: 46 | O54: 26711 | P54: 26711 | Q54: 9358 | R54: 9358 | S54: 64112 | T54: 64112 | U54: 62.5 | V54: 1.3 | W54: 88.64 | X54: 11 | Y54: 397 | Z54: 56 | AA54: 0 | AB54: 0 | AC54: 0 | AD54: 0 | AE54: 0 | AF54: 0 | AG54: 1 | AH54: 0 | AI54: 0 | AJ54: 1 | AK54: 0 | AL54: 0 | AM54: 1 | AN54: 0 | AO54: 1 | AP54: 0 | AQ54: 0 | AS54: 1 | AT54: METABAT_AS06rmzACSIP_614 | AU54: root (UID1) | AV54: 5656 | AW54: 56 | AX54: 24 | AY54: 0 | AZ54: 0 | BA54: 0 | BB54: 0 | BC54: 430483 | BD54: 0 | BE54: 46 | BF54: 46 | BG54: 26711 | BH54: 26711 | BI54: 9358 | BJ54: 9358 | BK54: 64112 | BL54: 64112 | BM54: 62.5 | BN54: 1.3 | BO54: 88.98 | BP54: 11 | BQ54: 400 | BR54: 56 | BS54: 0 | BT54: 0 | BU54: 0 | BV54: 0 | BW54: 0 | BX54: 0 | BY54: 1 | BZ54: 0 | CA54: 0 | CB54: 1 | CC54: 0 | CD54: 0 | CE54: 1 | CF54: 0 | CG54: 1 | CH54: 0 | CI54: 0 | CL54: 0 | CM54: 0 | CN54: cp | CO54: METABAT_AS06rmzACSIP_614 | CP54: .faa | CQ54: lowQ
A55: 2125 | B55: METABAT_AS06rmzACSIP_620 | C55: root (UID1) | D55: 5656 | E55: 56 | F55: 24 | G55: 0 | H55: 0 | I55: 0 | J55: 0 | K55: 518110 | L55: 0 | M55: 95 | N55: 95 | O55: 6990 | P55: 6990 | Q55: 5453 | R55: 5453 | S55: 33589 | T55: 33589 | U55: 56.5 | V55: 1.48 | W55: 89.44 | X55: 11 | Y55: 549 | Z55: 56 | AA55: 0 | AB55: 0 | AC55: 0 | AD55: 0 | AE55: 0 | AF55: 0 | AG55: 1 | AH55: 0 | AI55: 0 | AJ55: 1 | AK55: 0 | AL55: 0 | AM55: 1 | AN55: 0 | AO55: 1 | AP55: 0 | AQ55: 0 | AS55: 1 | AT55: METABAT_AS06rmzACSIP_620 | AU55: root (UID1) | AV55: 5656 | AW55: 56 | AX55: 24 | AY55: 0 | AZ55: 0 | BA55: 0 | BB55: 0 | BC55: 518110 | BD55: 0 | BE55: 95 | BF55: 95 | BG55: 6990 | BH55: 6990 | BI55: 5453 | BJ55: 5453 | BK55: 33589 | BL55: 33589 | BM55: 56.5 | BN55: 1.48 | BO55: 89.43 | BP55: 11 | BQ55: 550 | BR55: 56 | BS55: 0 | BT55: 0 | BU55: 0 | BV55: 0 | BW55: 0 | BX55: 0 | BY55: 1 | BZ55: 0 | CA55: 0 | CB55: 1 | CC55: 0 | CD55: 0 | CE55: 1 | CF55: 0 | CG55: 1 | CH55: 0 | CI55: 0 | CL55: 0 | CM55: 0 | CN55: cp | CO55: METABAT_AS06rmzACSIP_620 | CP55: .faa | CQ55: lowQ
A56: 3921 | B56: METABAT_AS07pgkLD_112 | C56: root (UID1) | D56: 5656 | E56: 56 | F56: 24 | G56: 0 | H56: 0 | I56: 0 | J56: 0 | K56: 271075 | L56: 0 | M56: 75 | N56: 75 | O56: 4588 | P56: 4588 | Q56: 3614 | R56: 3614 | S56: 11639 | T56: 11639 | U56: 28.9 | V56: 6.51 | W56: 88.29 | X56: 11 | Y56: 373 | Z56: 56 | AA56: 0 | AB56: 0 | AC56: 0 | AD56: 0 | AE56: 0 | AF56: 0 | AG56: 1 | AH56: 0 | AI56: 0 | AJ56: 1 | AK56: 0 | AL56: 0 | AM56: 1 | AN56: 0 | AO56: 1 | AP56: 0 | AQ56: 0 | AS56: 1 | AT56: METABAT_AS07pgkLD_112 | AU56: root (UID1) | AV56: 5656 | AW56: 56 | AX56: 24 | AY56: 0 | AZ56: 0 | BA56: 0 | BB56: 0 | BC56: 235354 | BD56: 0 | BE56: 60 | BF56: 60 | BG56: 4772 | BH56: 4772 | BI56: 3922 | BJ56: 3922 | BK56: 11639 | BL56: 11639 | BM56: 27.4 | BN56: 3.24 | BO56: 89.4 | BP56: 11 | BQ56: 331 | BR56: 56 | BS56: 0 | BT56: 0 | BU56: 0 | BV56: 0 | BW56: 0 | BX56: 0 | BY56: 1 | BZ56: 0 | CA56: 0 | CB56: 1 | CC56: 0 | CD56: 0 | CE56: 1 | CF56: 0 | CG56: 1 | CH56: 0 | CI56: 0 | CL56: 0 | CM56: -35721 | CN56: cp | CO56: METABAT_AS07pgkLD_112 | CP56: .faa | CQ56: lowQ
A57: 3936 | B57: METABAT_AS07pgkLD_126 | C57: root (UID1) | D57: 5656 | E57: 56 | F57: 24 | G57: 0 | H57: 0 | I57: 0 | J57: 0 | K57: 285219 | L57: 0 | M57: 73 | N57: 73 | O57: 4250 | P57: 4250 | Q57: 3907 | R57: 3907 | S57: 36446 | T57: 36446 | U57: 46.5 | V57: 3.98 | W57: 91.89 | X57: 11 | Y57: 371 | Z57: 56 | AA57: 0 | AB57: 0 | AC57: 0 | AD57: 0 | AE57: 0 | AF57: 0 | AG57: 1 | AH57: 0 | AI57: 0 | AJ57: 1 | AK57: 0 | AL57: 0 | AM57: 1 | AN57: 0 | AO57: 1 | AP57: 0 | AQ57: 0 | AS57: 1 | AT57: METABAT_AS07pgkLD_126 | AU57: root (UID1) | AV57: 5656 | AW57: 56 | AX57: 24 | AY57: 0 | AZ57: 0 | BA57: 0 | BB57: 0 | BC57: 266343 | BD57: 0 | BE57: 68 | BF57: 68 | BG57: 4250 | BH57: 4250 | BI57: 3916 | BJ57: 3916 | BK57: 36446 | BL57: 36446 | BM57: 47.4 | BN57: 2.76 | BO57: 91.44 | BP57: 11 | BQ57: 347 | BR57: 56 | BS57: 0 | BT57: 0 | BU57: 0 | BV57: 0 | BW57: 0 | BX57: 0 | BY57: 1 | BZ57: 0 | CA57: 0 | CB57: 1 | CC57: 0 | CD57: 0 | CE57: 1 | CF57: 0 | CG57: 1 | CH57: 0 | CI57: 0 | CL57: 0 | CM57: -18876 | CN57: cp | CO57: METABAT_AS07pgkLD_126 | CP57: .faa | CQ57: lowQ
A58: 3941 | B58: METABAT_AS07pgkLD_130 | C58: root (UID1) | D58: 5656 | E58: 56 | F58: 24 | G58: 0 | H58: 0 | I58: 0 | J58: 0 | K58: 319039 | L58: 0 | M58: 148 | N58: 148 | O58: 2143 | P58: 2143 | Q58: 2155 | R58: 2155 | S58: 4654 | T58: 4654 | U58: 38.2 | V58: 2.3 | W58: 66.27 | X58: 11 | Y58: 399 | Z58: 56 | AA58: 0 | AB58: 0 | AC58: 0 | AD58: 0 | AE58: 0 | AF58: 0 | AG58: 1 | AH58: 0 | AI58: 0 | AJ58: 1 | AK58: 0 | AL58: 0 | AM58: 1 | AN58: 0 | AO58: 1 | AP58: 0 | AQ58: 0 | AS58: 1 | AT58: METABAT_AS07pgkLD_130 | AU58: root (UID1) | AV58: 5656 | AW58: 56 | AX58: 24 | AY58: 0 | AZ58: 0 | BA58: 0 | BB58: 0 | BC58: 317502 | BD58: 0 | BE58: 147 | BF58: 147 | BG58: 2143 | BH58: 2143 | BI58: 2159 | BJ58: 2159 | BK58: 4654 | BL58: 4654 | BM58: 38.2 | BN58: 2.2 | BO58: 66.24 | BP58: 11 | BQ58: 398 | BR58: 56 | BS58: 0 | BT58: 0 | BU58: 0 | BV58: 0 | BW58: 0 | BX58: 0 | BY58: 1 | BZ58: 0 | CA58: 0 | CB58: 1 | CC58: 0 | CD58: 0 | CE58: 1 | CF58: 0 | CG58: 1 | CH58: 0 | CI58: 0 | CL58: 0 | CM58: -1537 | CN58: cp | CO58: METABAT_AS07pgkLD_130 | CP58: .faa | CQ58: lowQ
A59: 3967 | B59: METABAT_AS07pgkLD_154 | C59: root (UID1) | D59: 5656 | E59: 56 | F59: 24 | G59: 0 | H59: 0 | I59: 0 | J59: 0 | K59: 200449 | L59: 0 | M59: 12 | N59: 12 | O59: 35298 | P59: 35298 | Q59: 16704 | R59: 16704 | S59: 37576 | T59: 37576 | U59: 33.5 | V59: 1.14 | W59: 89.12 | X59: 11 | Y59: 202 | Z59: 56 | AA59: 0 | AB59: 0 | AC59: 0 | AD59: 0 | AE59: 0 | AF59: 0 | AG59: 1 | AH59: 0 | AI59: 0 | AJ59: 1 | AK59: 0 | AL59: 0 | AM59: 1 | AN59: 0 | AO59: 1 | AP59: 0 | AQ59: 0 | AS59: 1 | AT59: METABAT_AS07pgkLD_154 | AU59: root (UID1) | AV59: 5656 | AW59: 56 | AX59: 24 | AY59: 0 | AZ59: 0 | BA59: 0 | BB59: 0 | BC59: 200449 | BD59: 0 | BE59: 12 | BF59: 12 | BG59: 35298 | BH59: 35298 | BI59: 16704 | BJ59: 16704 | BK59: 37576 | BL59: 37576 | BM59: 33.5 | BN59: 1.14 | BO59: 89.12 | BP59: 11 | BQ59: 202 | BR59: 56 | BS59: 0 | BT59: 0 | BU59: 0 | BV59: 0 | BW59: 0 | BX59: 0 | BY59: 1 | BZ59: 0 | CA59: 0 | CB59: 1 | CC59: 0 | CD59: 0 | CE59: 1 | CF59: 0 | CG59: 1 | CH59: 0 | CI59: 0 | CL59: 0 | CM59: 0 | CN59: cp | CO59: METABAT_AS07pgkLD_154 | CP59: .faa | CQ59: lowQ
A60: 3995 | B60: METABAT_AS07pgkLD_18 | C60: root (UID1) | D60: 5656 | E60: 56 | F60: 24 | G60: 0 | H60: 0 | I60: 0 | J60: 0 | K60: 441423 | L60: 0 | M60: 43 | N60: 43 | O60: 21792 | P60: 21792 | Q60: 10265 | R60: 10265 | S60: 42487 | T60: 42487 | U60: 31.3 | V60: 2.48 | W60: 82.3 | X60: 11 | Y60: 483 | Z60: 56 | AA60: 0 | AB60: 0 | AC60: 0 | AD60: 0 | AE60: 0 | AF60: 0 | AG60: 1 | AH60: 0 | AI60: 0 | AJ60: 1 | AK60: 0 | AL60: 0 | AM60: 1 | AN60: 0 | AO60: 1 | AP60: 0 | AQ60: 0 | AS60: 1 | AT60: METABAT_AS07pgkLD_18 | AU60: root (UID1) | AV60: 5656 | AW60: 56 | AX60: 24 | AY60: 0 | AZ60: 0 | BA60: 0 | BB60: 0 | BC60: 434684 | BD60: 0 | BE60: 41 | BF60: 41 | BG60: 21792 | BH60: 21792 | BI60: 10602 | BJ60: 10602 | BK60: 42487 | BL60: 42487 | BM60: 31.3 | BN60: 2.01 | BO60: 82.19 | BP60: 11 | BQ60: 478 | BR60: 56 | BS60: 0 | BT60: 0 | BU60: 0 | BV60: 0 | BW60: 0 | BX60: 0 | BY60: 1 | BZ60: 0 | CA60: 0 | CB60: 1 | CC60: 0 | CD60: 0 | CE60: 1 | CF60: 0 | CG60: 1 | CH60: 0 | CI60: 0 | CL60: 0 | CM60: -6739 | CN60: cp | CO60: METABAT_AS07pgkLD_18 | CP60: .faa | CQ60: lowQ
A61: 4030 | B61: METABAT_AS07pgkLD_210 | C61: root (UID1) | D61: 5656 | E61: 56 | F61: 24 | G61: 0 | H61: 0 | I61: 0 | J61: 0 | K61: 343884 | L61: 0 | M61: 54 | N61: 54 | O61: 8280 | P61: 8280 | Q61: 6368 | R61: 6368 | S61: 24137 | T61: 24137 | U61: 31.8 | V61: 2.27 | W61: 80.42 | X61: 11 | Y61: 387 | Z61: 56 | AA61: 0 | AB61: 0 | AC61: 0 | AD61: 0 | AE61: 0 | AF61: 0 | AG61: 1 | AH61: 0 | AI61: 0 | AJ61: 1 | AK61: 0 | AL61: 0 | AM61: 1 | AN61: 0 | AO61: 1 | AP61: 0 | AQ61: 0 | AS61: 1 | AT61: METABAT_AS07pgkLD_210 | AU61: root (UID1) | AV61: 5656 | AW61: 56 | AX61: 24 | AY61: 0 | AZ61: 0 | BA61: 0 | BB61: 0 | BC61: 340829 | BD61: 0 | BE61: 53 | BF61: 53 | BG61: 8280 | BH61: 8280 | BI61: 6430 | BJ61: 6430 | BK61: 24137 | BL61: 24137 | BM61: 31.9 | BN61: 2.13 | BO61: 80.79 | BP61: 11 | BQ61: 382 | BR61: 56 | BS61: 0 | BT61: 0 | BU61: 0 | BV61: 0 | BW61: 0 | BX61: 0 | BY61: 1 | BZ61: 0 | CA61: 0 | CB61: 1 | CC61: 0 | CD61: 0 | CE61: 1 | CF61: 0 | CG61: 1 | CH61: 0 | CI61: 0 | CL61: 0 | CM61: -3055 | CN61: cp | CO61: METABAT_AS07pgkLD_210 | CP61: .faa | CQ61: lowQ
A62: 4034 | B62: METABAT_AS07pgkLD_214 | C62: root (UID1) | D62: 5656 | E62: 56 | F62: 24 | G62: 0 | H62: 0 | I62: 0 | J62: 0 | K62: 300799 | L62: 0 | M62: 44 | N62: 44 | O62: 9682 | P62: 9682 | Q62: 6836 | R62: 6836 | S62: 29125 | T62: 29125 | U62: 32.5 | V62: 1.61 | W62: 86.91 | X62: 11 | Y62: 420 | Z62: 56 | AA62: 0 | AB62: 0 | AC62: 0 | AD62: 0 | AE62: 0 | AF62: 0 | AG62: 1 | AH62: 0 | AI62: 0 | AJ62: 1 | AK62: 0 | AL62: 0 | AM62: 1 | AN62: 0 | AO62: 1 | AP62: 0 | AQ62: 0 | AS62: 1 | AT62: METABAT_AS07pgkLD_214 | AU62: root (UID1) | AV62: 5656 | AW62: 56 | AX62: 24 | AY62: 0 | AZ62: 0 | BA62: 0 | BB62: 0 | BC62: 300799 | BD62: 0 | BE62: 44 | BF62: 44 | BG62: 9682 | BH62: 9682 | BI62: 6836 | BJ62: 6836 | BK62: 29125 | BL62: 29125 | BM62: 32.5 | BN62: 1.61 | BO62: 86.98 | BP62: 11 | BQ62: 421 | BR62: 56 | BS62: 0 | BT62: 0 | BU62: 0 | BV62: 0 | BW62: 0 | BX62: 0 | BY62: 1 | BZ62: 0 | CA62: 0 | CB62: 1 | CC62: 0 | CD62: 0 | CE62: 1 | CF62: 0 | CG62: 1 | CH62: 0 | CI62: 0 | CL62: 0 | CM62: 0 | CN62: cp | CO62: METABAT_AS07pgkLD_214 | CP62: .faa | CQ62: lowQ
A63: 4064 | B63: METABAT_AS07pgkLD_29 | C63: k__Bacteria (UID203) | D63: 5449 | E63: 104 | F63: 58 | G63: 0.94 | H63: 0 | I63: 0 | J63: 0 | K63: 287835 | L63: 0 | M63: 67 | N63: 67 | O63: 7412 | P63: 7412 | Q63: 4296 | R63: 4296 | S63: 36981 | T63: 36981 | U63: 45.4 | V63: 6.68 | W63: 93.25 | X63: 11 | Y63: 328 | Z63: 98 | AA63: 6 | AB63: 0 | AC63: 0 | AD63: 0 | AE63: 0 | AF63: 0 | AG63: 1 | AH63: 0 | AI63: 0 | AJ63: 1 | AK63: 0 | AL63: 0 | AM63: 1 | AN63: 0 | AO63: 1 | AP63: 0 | AQ63: 0 | AR63: 0.94 | AS63: 1 | AT63: METABAT_AS07pgkLD_29 | AU63: root (UID1) | AV63: 5656 | AW63: 56 | AX63: 24 | AY63: 0 | AZ63: 0 | BA63: 0 | BB63: 0 | BC63: 250405 | BD63: 0 | BE63: 54 | BF63: 54 | BG63: 8382 | BH63: 8382 | BI63: 4637 | BJ63: 4637 | BK63: 36981 | BL63: 36981 | BM63: 45.3 | BN63: 2.85 | BO63: 92.88 | BP63: 11 | BQ63: 264 | BR63: 56 | BS63: 0 | BT63: 0 | BU63: 0 | BV63: 0 | BW63: 0 | BX63: 0 | BY63: 1 | BZ63: 0 | CA63: 0 | CB63: 1 | CC63: 0 | CD63: 0 | CE63: 1 | CF63: 0 | CG63: 1 | CH63: 0 | CI63: 0 | CL63: 0 | CM63: -37430 | CN63: cp | CO63: METABAT_AS07pgkLD_29 | CP63: .faa | CQ63: lowQ
A64: 4079 | B64: METABAT_AS07pgkLD_42 | C64: root (UID1) | D64: 5656 | E64: 56 | F64: 24 | G64: 0 | H64: 0 | I64: 0 | J64: 0 | K64: 254658 | L64: 0 | M64: 14 | N64: 14 | O64: 36076 | P64: 36076 | Q64: 18189 | R64: 18189 | S64: 48621 | T64: 48621 | U64: 45.2 | V64: 1.2 | W64: 93.27 | X64: 11 | Y64: 236 | Z64: 56 | AA64: 0 | AB64: 0 | AC64: 0 | AD64: 0 | AE64: 0 | AF64: 0 | AG64: 1 | AH64: 0 | AI64: 0 | AJ64: 1 | AK64: 0 | AL64: 0 | AM64: 1 | AN64: 0 | AO64: 1 | AP64: 0 | AQ64: 0 | AS64: 1 | AT64: METABAT_AS07pgkLD_42 | AU64: root (UID1) | AV64: 5656 | AW64: 56 | AX64: 24 | AY64: 0 | AZ64: 0 | BA64: 0 | BB64: 0 | BC64: 254658 | BD64: 0 | BE64: 14 | BF64: 14 | BG64: 36076 | BH64: 36076 | BI64: 18189 | BJ64: 18189 | BK64: 48621 | BL64: 48621 | BM64: 45.2 | BN64: 1.2 | BO64: 93.27 | BP64: 11 | BQ64: 236 | BR64: 56 | BS64: 0 | BT64: 0 | BU64: 0 | BV64: 0 | BW64: 0 | BX64: 0 | BY64: 1 | BZ64: 0 | CA64: 0 | CB64: 1 | CC64: 0 | CD64: 0 | CE64: 1 | CF64: 0 | CG64: 1 | CH64: 0 | CI64: 0 | CL64: 0 | CM64: 0 | CN64: cp | CO64: METABAT_AS07pgkLD_42 | CP64: .faa | CQ64: lowQ
A65: 4081 | B65: METABAT_AS07pgkLD_44 | C65: root (UID1) | D65: 5656 | E65: 56 | F65: 24 | G65: 0 | H65: 0 | I65: 0 | J65: 0 | K65: 232739 | L65: 0 | M65: 93 | N65: 93 | O65: 2523 | P65: 2523 | Q65: 2502 | R65: 2502 | S65: 4606 | T65: 4606 | U65: 46.7 | V65: 2.03 | W65: 88.1 | X65: 11 | Y65: 303 | Z65: 56 | AA65: 0 | AB65: 0 | AC65: 0 | AD65: 0 | AE65: 0 | AF65: 0 | AG65: 1 | AH65: 0 | AI65: 0 | AJ65: 1 | AK65: 0 | AL65: 0 | AM65: 1 | AN65: 0 | AO65: 1 | AP65: 0 | AQ65: 0 | AS65: 1 | AT65: METABAT_AS07pgkLD_44 | AU65: root (UID1) | AV65: 5656 | AW65: 56 | AX65: 24 | AY65: 0 | AZ65: 0 | BA65: 0 | BB65: 0 | BC65: 232739 | BD65: 0 | BE65: 93 | BF65: 93 | BG65: 2523 | BH65: 2523 | BI65: 2502 | BJ65: 2502 | BK65: 4606 | BL65: 4606 | BM65: 46.7 | BN65: 2.03 | BO65: 88.11 | BP65: 11 | BQ65: 303 | BR65: 56 | BS65: 0 | BT65: 0 | BU65: 0 | BV65: 0 | BW65: 0 | BX65: 0 | BY65: 1 | BZ65: 0 | CA65: 0 | CB65: 1 | CC65: 0 | CD65: 0 | CE65: 1 | CF65: 0 | CG65: 1 | CH65: 0 | CI65: 0 | CL65: 0 | CM65: 0 | CN65: cp | CO65: METABAT_AS07pgkLD_44 | CP65: .faa | CQ65: lowQ
A66: 4083 | B66: METABAT_AS07pgkLD_46 | C66: root (UID1) | D66: 5656 | E66: 56 | F66: 24 | G66: 0 | H66: 0 | I66: 0 | J66: =H66-(H66*(I66/100)) -> 0 | K66: 383998 | L66: 0 | M66: 144 | N66: 144 | O66: 2553 | P66: 2553 | Q66: 2666 | R66: 2666 | S66: 18682 | T66: 18682 | U66: 33.4 | V66: 12.36 | W66: 89.35 | X66: 11 | Y66: 519 | Z66: 56 | AA66: 0 | AB66: 0 | AC66: 0 | AD66: 0 | AE66: 0 | AF66: =IF(G66>90,1,0) -> 0 | AG66: =IF(H66<5,1,0) -> 1 | AH66: 0 | AI66: =IF(G66>70,1,0) -> 0 | AJ66: =IF(H66<10,1,0) -> 1 | AK66: 0 | AL66: =IF(G66>=50,1,0) -> 0 | AM66: =IF(H66<10,1,0) -> 1 | AN66: 0 | AO66: =IF(G66<50,1,0) -> 1 | AP66: =IF(H66>10,1,0) -> 0 | AQ66: 0 | AR66: =(G66-(H66*3)/G66) ->  | AS66: =IF(B66=AT66,1,"") -> 1 | AT66: METABAT_AS07pgkLD_46 | AU66: root (UID1) | AV66: 5656 | AW66: 56 | AX66: 24 | AY66: 0 | AZ66: 0 | BA66: 0 | BB66: =AZ66-(AZ66*(BA66/100)) -> 0 | BC66: 204574 | BD66: 0 | BE66: 68 | BF66: 68 | BG66: 3097 | BH66: 3097 | BI66: 3008 | BJ66: 3008 | BK66: 9560 | BL66: 9560 | BM66: 26.3 | BN66: 2.47 | BO66: 92.5 | BP66: 11 | BQ66: 285 | BR66: 56 | BS66: 0 | BT66: 0 | BU66: 0 | BV66: 0 | BW66: 0 | BX66: =IF(AY66>90,1,0) -> 0 | BY66: =IF(AZ66<5,1,0) -> 1 | BZ66: 0 | CA66: =IF(AY66>70,1,0) -> 0 | CB66: =IF(AZ66<10,1,0) -> 1 | CC66: 0 | CD66: =IF(AY66>=50,1,0) -> 0 | CE66: =IF(AZ66<10,1,0) -> 1 | CF66: 0 | CG66: =IF(AY66<50,1,0) -> 1 | CH66: =IF(AZ66>10,1,0) -> 0 | CI66: 0 | CJ66: =(AY66-(AZ66*3)/AY66) ->  | CK66: =CJ66-AR66 ->  | CL66: =AZ66-H66 -> 0 | CM66: =BC66-K66 -> -179424 | CN66: cp | CO66: METABAT_AS07pgkLD_46 | CP66: .faa | CQ66: lowQ
A67: 4118 | B67: METABAT_AS07pgkLD_78 | C67: root (UID1) | D67: 5656 | E67: 56 | F67: 24 | G67: 0 | H67: 0 | I67: 0 | J67: 0 | K67: 342940 | L67: 0 | M67: 98 | N67: 98 | O67: 3683 | P67: 3683 | Q67: 3499 | R67: 3499 | S67: 16277 | T67: 16277 | U67: 39.5 | V67: 3.53 | W67: 87.59 | X67: 11 | Y67: 352 | Z67: 56 | AA67: 0 | AB67: 0 | AC67: 0 | AD67: 0 | AE67: 0 | AF67: 0 | AG67: 1 | AH67: 0 | AI67: 0 | AJ67: 1 | AK67: 0 | AL67: 0 | AM67: 1 | AN67: 0 | AO67: 1 | AP67: 0 | AQ67: 0 | AS67: 1 | AT67: METABAT_AS07pgkLD_78 | AU67: root (UID1) | AV67: 5656 | AW67: 56 | AX67: 24 | AY67: 0 | AZ67: 0 | BA67: 0 | BB67: 0 | BC67: 324353 | BD67: 0 | BE67: 90 | BF67: 90 | BG67: 3785 | BH67: 3785 | BI67: 3603 | BJ67: 3603 | BK67: 16277 | BL67: 16277 | BM67: 39 | BN67: 2.17 | BO67: 87.55 | BP67: 11 | BQ67: 327 | BR67: 56 | BS67: 0 | BT67: 0 | BU67: 0 | BV67: 0 | BW67: 0 | BX67: 0 | BY67: 1 | BZ67: 0 | CA67: 0 | CB67: 1 | CC67: 0 | CD67: 0 | CE67: 1 | CF67: 0 | CG67: 1 | CH67: 0 | CI67: 0 | CL67: 0 | CM67: -18587 | CN67: cp | CO67: METABAT_AS07pgkLD_78 | CP67: .faa | CQ67: lowQ
A68: 187 | B68: METABAT_AS08sgBPME_109 | C68: root (UID1) | D68: 5656 | E68: 56 | F68: 24 | G68: 0 | H68: 0 | I68: 0 | J68: 0 | K68: 209064 | L68: 0 | M68: 39 | N68: 39 | O68: 7772 | P68: 7772 | Q68: 5360 | R68: 5360 | S68: 14388 | T68: 14388 | U68: 31.9 | V68: 1.18 | W68: 86.96 | X68: 11 | Y68: 260 | Z68: 56 | AA68: 0 | AB68: 0 | AC68: 0 | AD68: 0 | AE68: 0 | AF68: 0 | AG68: 1 | AH68: 0 | AI68: 0 | AJ68: 1 | AK68: 0 | AL68: 0 | AM68: 1 | AN68: 0 | AO68: 1 | AP68: 0 | AQ68: 0 | AS68: 1 | AT68: METABAT_AS08sgBPME_109 | AU68: root (UID1) | AV68: 5656 | AW68: 56 | AX68: 24 | AY68: 0 | AZ68: 0 | BA68: 0 | BB68: 0 | BC68: 209064 | BD68: 0 | BE68: 39 | BF68: 39 | BG68: 7772 | BH68: 7772 | BI68: 5360 | BJ68: 5360 | BK68: 14388 | BL68: 14388 | BM68: 31.9 | BN68: 1.18 | BO68: 86.92 | BP68: 11 | BQ68: 259 | BR68: 56 | BS68: 0 | BT68: 0 | BU68: 0 | BV68: 0 | BW68: 0 | BX68: 0 | BY68: 1 | BZ68: 0 | CA68: 0 | CB68: 1 | CC68: 0 | CD68: 0 | CE68: 1 | CF68: 0 | CG68: 1 | CH68: 0 | CI68: 0 | CL68: 0 | CM68: 0 | CN68: cp | CO68: METABAT_AS08sgBPME_109 | CP68: .faa | CQ68: lowQ
A69: 197 | B69: METABAT_AS08sgBPME_118 | C69: root (UID1) | D69: 5656 | E69: 56 | F69: 24 | G69: 0 | H69: 0 | I69: 0 | J69: 0 | K69: 277983 | L69: 0 | M69: 111 | N69: 111 | O69: 2563 | P69: 2563 | Q69: 2504 | R69: 2504 | S69: 6245 | T69: 6245 | U69: 39.1 | V69: 1.81 | W69: 94.08 | X69: 11 | Y69: 271 | Z69: 56 | AA69: 0 | AB69: 0 | AC69: 0 | AD69: 0 | AE69: 0 | AF69: 0 | AG69: 1 | AH69: 0 | AI69: 0 | AJ69: 1 | AK69: 0 | AL69: 0 | AM69: 1 | AN69: 0 | AO69: 1 | AP69: 0 | AQ69: 0 | AS69: 1 | AT69: METABAT_AS08sgBPME_118 | AU69: root (UID1) | AV69: 5656 | AW69: 56 | AX69: 24 | AY69: 0 | AZ69: 0 | BA69: 0 | BB69: 0 | BC69: 277983 | BD69: 0 | BE69: 111 | BF69: 111 | BG69: 2563 | BH69: 2563 | BI69: 2504 | BJ69: 2504 | BK69: 6245 | BL69: 6245 | BM69: 39.1 | BN69: 1.81 | BO69: 93.92 | BP69: 11 | BQ69: 271 | BR69: 56 | BS69: 0 | BT69: 0 | BU69: 0 | BV69: 0 | BW69: 0 | BX69: 0 | BY69: 1 | BZ69: 0 | CA69: 0 | CB69: 1 | CC69: 0 | CD69: 0 | CE69: 1 | CF69: 0 | CG69: 1 | CH69: 0 | CI69: 0 | CL69: 0 | CM69: 0 | CN69: cp | CO69: METABAT_AS08sgBPME_118 | CP69: .faa | CQ69: lowQ
A70: 210 | B70: METABAT_AS08sgBPME_13 | C70: k__Bacteria (UID203) | D70: 5449 | E70: 104 | F70: 58 | G70: 7.87 | H70: 0 | I70: 0 | J70: 0 | K70: 798779 | L70: 0 | M70: 227 | N70: 227 | O70: 3953 | P70: 3953 | Q70: 3518 | R70: 3518 | S70: 19747 | T70: 19747 | U70: 31.6 | V70: 7.72 | W70: 89.62 | X70: 11 | Y70: 1090 | Z70: 95 | AA70: 9 | AB70: 0 | AC70: 0 | AD70: 0 | AE70: 0 | AF70: 0 | AG70: 1 | AH70: 0 | AI70: 0 | AJ70: 1 | AK70: 0 | AL70: 0 | AM70: 1 | AN70: 0 | AO70: 1 | AP70: 0 | AQ70: 0 | AR70: 7.87 | AS70: 1 | AT70: METABAT_AS08sgBPME_13 | AU70: root (UID1) | AV70: 5656 | AW70: 56 | AX70: 24 | AY70: 0 | AZ70: 0 | BA70: 0 | BB70: 0 | BC70: 705777 | BD70: 0 | BE70: 187 | BF70: 187 | BG70: 4261 | BH70: 4261 | BI70: 3774 | BJ70: 3774 | BK70: 19747 | BL70: 19747 | BM70: 29.7 | BN70: 3.13 | BO70: 90.17 | BP70: 11 | BQ70: 975 | BR70: 56 | BS70: 0 | BT70: 0 | BU70: 0 | BV70: 0 | BW70: 0 | BX70: 0 | BY70: 1 | BZ70: 0 | CA70: 0 | CB70: 1 | CC70: 0 | CD70: 0 | CE70: 1 | CF70: 0 | CG70: 1 | CH70: 0 | CI70: 0 | CL70: 0 | CM70: -93002 | CN70: cp | CO70: METABAT_AS08sgBPME_13 | CP70: .faa | CQ70: lowQ
A71: 245 | B71: METABAT_AS08sgBPME_161 | C71: root (UID1) | D71: 5656 | E71: 56 | F71: 24 | G71: 0 | H71: 0 | I71: 0 | J71: 0 | K71: 499355 | L71: 0 | M71: 120 | N71: 120 | O71: 5012 | P71: 5012 | Q71: 4161 | R71: 4161 | S71: 19883 | T71: 19883 | U71: 40.7 | V71: 5.01 | W71: 90.17 | X71: 11 | Y71: 574 | Z71: 56 | AA71: 0 | AB71: 0 | AC71: 0 | AD71: 0 | AE71: 0 | AF71: 0 | AG71: 1 | AH71: 0 | AI71: 0 | AJ71: 1 | AK71: 0 | AL71: 0 | AM71: 1 | AN71: 0 | AO71: 1 | AP71: 0 | AQ71: 0 | AS71: 1 | AT71: METABAT_AS08sgBPME_161 | AU71: root (UID1) | AV71: 5656 | AW71: 56 | AX71: 24 | AY71: 0 | AZ71: 0 | BA71: 0 | BB71: 0 | BC71: 478579 | BD71: 0 | BE71: 112 | BF71: 112 | BG71: 5697 | BH71: 5697 | BI71: 4273 | BJ71: 4273 | BK71: 19883 | BL71: 19883 | BM71: 40.1 | BN71: 2.43 | BO71: 89.83 | BP71: 11 | BQ71: 548 | BR71: 56 | BS71: 0 | BT71: 0 | BU71: 0 | BV71: 0 | BW71: 0 | BX71: 0 | BY71: 1 | BZ71: 0 | CA71: 0 | CB71: 1 | CC71: 0 | CD71: 0 | CE71: 1 | CF71: 0 | CG71: 1 | CH71: 0 | CI71: 0 | CL71: 0 | CM71: -20776 | CN71: cp | CO71: METABAT_AS08sgBPME_161 | CP71: .faa | CQ71: lowQ
A72: 254 | B72: METABAT_AS08sgBPME_17 | C72: root (UID1) | D72: 5656 | E72: 56 | F72: 24 | G72: 0 | H72: 0 | I72: 0 | J72: 0 | K72: 226364 | L72: 0 | M72: 46 | N72: 46 | O72: 7020 | P72: 7020 | Q72: 4920 | R72: 4920 | S72: 14935 | T72: 14935 | U72: 53.7 | V72: 1.76 | W72: 88.97 | X72: 11 | Y72: 219 | Z72: 56 | AA72: 0 | AB72: 0 | AC72: 0 | AD72: 0 | AE72: 0 | AF72: 0 | AG72: 1 | AH72: 0 | AI72: 0 | AJ72: 1 | AK72: 0 | AL72: 0 | AM72: 1 | AN72: 0 | AO72: 1 | AP72: 0 | AQ72: 0 | AS72: 1 | AT72: METABAT_AS08sgBPME_17 | AU72: root (UID1) | AV72: 5656 | AW72: 56 | AX72: 24 | AY72: 0 | AZ72: 0 | BA72: 0 | BB72: 0 | BC72: 226364 | BD72: 0 | BE72: 46 | BF72: 46 | BG72: 7020 | BH72: 7020 | BI72: 4920 | BJ72: 4920 | BK72: 14935 | BL72: 14935 | BM72: 53.7 | BN72: 1.76 | BO72: 88.73 | BP72: 11 | BQ72: 219 | BR72: 56 | BS72: 0 | BT72: 0 | BU72: 0 | BV72: 0 | BW72: 0 | BX72: 0 | BY72: 1 | BZ72: 0 | CA72: 0 | CB72: 1 | CC72: 0 | CD72: 0 | CE72: 1 | CF72: 0 | CG72: 1 | CH72: 0 | CI72: 0 | CL72: 0 | CM72: 0 | CN72: cp | CO72: METABAT_AS08sgBPME_17 | CP72: .faa | CQ72: lowQ
A73: 270 | B73: METABAT_AS08sgBPME_184 | C73: root (UID1) | D73: 5656 | E73: 56 | F73: 24 | G73: 0 | H73: 0 | I73: 0 | J73: 0 | K73: 378679 | L73: 0 | M73: 24 | N73: 24 | O73: 21758 | P73: 21758 | Q73: 15778 | R73: 15778 | S73: 49102 | T73: 49102 | U73: 31.2 | V73: 1.48 | W73: 83.26 | X73: 11 | Y73: 394 | Z73: 56 | AA73: 0 | AB73: 0 | AC73: 0 | AD73: 0 | AE73: 0 | AF73: 0 | AG73: 1 | AH73: 0 | AI73: 0 | AJ73: 1 | AK73: 0 | AL73: 0 | AM73: 1 | AN73: 0 | AO73: 1 | AP73: 0 | AQ73: 0 | AS73: 1 | AT73: METABAT_AS08sgBPME_184 | AU73: root (UID1) | AV73: 5656 | AW73: 56 | AX73: 24 | AY73: 0 | AZ73: 0 | BA73: 0 | BB73: 0 | BC73: 378679 | BD73: 0 | BE73: 24 | BF73: 24 | BG73: 21758 | BH73: 21758 | BI73: 15778 | BJ73: 15778 | BK73: 49102 | BL73: 49102 | BM73: 31.2 | BN73: 1.48 | BO73: 83.25 | BP73: 11 | BQ73: 394 | BR73: 56 | BS73: 0 | BT73: 0 | BU73: 0 | BV73: 0 | BW73: 0 | BX73: 0 | BY73: 1 | BZ73: 0 | CA73: 0 | CB73: 1 | CC73: 0 | CD73: 0 | CE73: 1 | CF73: 0 | CG73: 1 | CH73: 0 | CI73: 0 | CL73: 0 | CM73: 0 | CN73: cp | CO73: METABAT_AS08sgBPME_184 | CP73: .faa | CQ73: lowQ
A74: 317 | B74: METABAT_AS08sgBPME_226 | C74: root (UID1) | D74: 5656 | E74: 56 | F74: 24 | G74: 0 | H74: 0 | I74: 0 | J74: 0 | K74: 364013 | L74: 0 | M74: 42 | N74: 42 | O74: 12706 | P74: 12706 | Q74: 8666 | R74: 8666 | S74: 40694 | T74: 40694 | U74: 31.6 | V74: 1.72 | W74: 85.23 | X74: 11 | Y74: 400 | Z74: 56 | AA74: 0 | AB74: 0 | AC74: 0 | AD74: 0 | AE74: 0 | AF74: 0 | AG74: 1 | AH74: 0 | AI74: 0 | AJ74: 1 | AK74: 0 | AL74: 0 | AM74: 1 | AN74: 0 | AO74: 1 | AP74: 0 | AQ74: 0 | AS74: 1 | AT74: METABAT_AS08sgBPME_226 | AU74: root (UID1) | AV74: 5656 | AW74: 56 | AX74: 24 | AY74: 0 | AZ74: 0 | BA74: 0 | BB74: 0 | BC74: 364013 | BD74: 0 | BE74: 42 | BF74: 42 | BG74: 12706 | BH74: 12706 | BI74: 8666 | BJ74: 8666 | BK74: 40694 | BL74: 40694 | BM74: 31.6 | BN74: 1.72 | BO74: 85.23 | BP74: 11 | BQ74: 400 | BR74: 56 | BS74: 0 | BT74: 0 | BU74: 0 | BV74: 0 | BW74: 0 | BX74: 0 | BY74: 1 | BZ74: 0 | CA74: 0 | CB74: 1 | CC74: 0 | CD74: 0 | CE74: 1 | CF74: 0 | CG74: 1 | CH74: 0 | CI74: 0 | CL74: 0 | CM74: 0 | CN74: cp | CO74: METABAT_AS08sgBPME_226 | CP74: .faa | CQ74: lowQ
A75: 319 | B75: METABAT_AS08sgBPME_228 | C75: root (UID1) | D75: 5656 | E75: 56 | F75: 24 | G75: 0 | H75: 0 | I75: 0 | J75: 0 | K75: 246100 | L75: 0 | M75: 37 | N75: 37 | O75: 8884 | P75: 8884 | Q75: 6651 | R75: 6651 | S75: 33920 | T75: 33920 | U75: 35.7 | V75: 1.56 | W75: 81.18 | X75: 11 | Y75: 251 | Z75: 56 | AA75: 0 | AB75: 0 | AC75: 0 | AD75: 0 | AE75: 0 | AF75: 0 | AG75: 1 | AH75: 0 | AI75: 0 | AJ75: 1 | AK75: 0 | AL75: 0 | AM75: 1 | AN75: 0 | AO75: 1 | AP75: 0 | AQ75: 0 | AS75: 1 | AT75: METABAT_AS08sgBPME_228 | AU75: root (UID1) | AV75: 5656 | AW75: 56 | AX75: 24 | AY75: 0 | AZ75: 0 | BA75: 0 | BB75: 0 | BC75: 246100 | BD75: 0 | BE75: 37 | BF75: 37 | BG75: 8884 | BH75: 8884 | BI75: 6651 | BJ75: 6651 | BK75: 33920 | BL75: 33920 | BM75: 35.7 | BN75: 1.56 | BO75: 81.13 | BP75: 11 | BQ75: 251 | BR75: 56 | BS75: 0 | BT75: 0 | BU75: 0 | BV75: 0 | BW75: 0 | BX75: 0 | BY75: 1 | BZ75: 0 | CA75: 0 | CB75: 1 | CC75: 0 | CD75: 0 | CE75: 1 | CF75: 0 | CG75: 1 | CH75: 0 | CI75: 0 | CL75: 0 | CM75: 0 | CN75: cp | CO75: METABAT_AS08sgBPME_228 | CP75: .faa | CQ75: lowQ
A76: 331 | B76: METABAT_AS08sgBPME_239 | C76: root (UID1) | D76: 5656 | E76: 56 | F76: 24 | G76: 0 | H76: 0 | I76: 0 | J76: 0 | K76: 372184 | L76: 0 | M76: 20 | N76: 20 | O76: 59347 | P76: 59347 | Q76: 18609 | R76: 18609 | S76: 81850 | T76: 81850 | U76: 45 | V76: 2.8 | W76: 83.38 | X76: 11 | Y76: 311 | Z76: 56 | AA76: 0 | AB76: 0 | AC76: 0 | AD76: 0 | AE76: 0 | AF76: 0 | AG76: 1 | AH76: 0 | AI76: 0 | AJ76: 1 | AK76: 0 | AL76: 0 | AM76: 1 | AN76: 0 | AO76: 1 | AP76: 0 | AQ76: 0 | AS76: 1 | AT76: METABAT_AS08sgBPME_239 | AU76: root (UID1) | AV76: 5656 | AW76: 56 | AX76: 24 | AY76: 0 | AZ76: 0 | BA76: 0 | BB76: 0 | BC76: 370417 | BD76: 0 | BE76: 19 | BF76: 19 | BG76: 59347 | BH76: 59347 | BI76: 19495 | BJ76: 19495 | BK76: 81850 | BL76: 81850 | BM76: 45 | BN76: 1.94 | BO76: 83.46 | BP76: 11 | BQ76: 311 | BR76: 56 | BS76: 0 | BT76: 0 | BU76: 0 | BV76: 0 | BW76: 0 | BX76: 0 | BY76: 1 | BZ76: 0 | CA76: 0 | CB76: 1 | CC76: 0 | CD76: 0 | CE76: 1 | CF76: 0 | CG76: 1 | CH76: 0 | CI76: 0 | CL76: 0 | CM76: -1767 | CN76: cp | CO76: METABAT_AS08sgBPME_239 | CP76: .faa | CQ76: lowQ
A77: 380 | B77: METABAT_AS08sgBPME_283 | C77: root (UID1) | D77: 5656 | E77: 56 | F77: 24 | G77: 0 | H77: 0 | I77: 0 | J77: 0 | K77: 281400 | L77: 0 | M77: 49 | N77: 49 | O77: 8412 | P77: 8412 | Q77: 5742 | R77: 5742 | S77: 17467 | T77: 17467 | U77: 44.3 | V77: 3.01 | W77: 85.99 | X77: 11 | Y77: 280 | Z77: 56 | AA77: 0 | AB77: 0 | AC77: 0 | AD77: 0 | AE77: 0 | AF77: 0 | AG77: 1 | AH77: 0 | AI77: 0 | AJ77: 1 | AK77: 0 | AL77: 0 | AM77: 1 | AN77: 0 | AO77: 1 | AP77: 0 | AQ77: 0 | AS77: 1 | AT77: METABAT_AS08sgBPME_283 | AU77: root (UID1) | AV77: 5656 | AW77: 56 | AX77: 24 | AY77: 0 | AZ77: 0 | BA77: 0 | BB77: 0 | BC77: 281400 | BD77: 0 | BE77: 49 | BF77: 49 | BG77: 8412 | BH77: 8412 | BI77: 5742 | BJ77: 5742 | BK77: 17467 | BL77: 17467 | BM77: 44.3 | BN77: 3.01 | BO77: 85.95 | BP77: 11 | BQ77: 279 | BR77: 56 | BS77: 0 | BT77: 0 | BU77: 0 | BV77: 0 | BW77: 0 | BX77: 0 | BY77: 1 | BZ77: 0 | CA77: 0 | CB77: 1 | CC77: 0 | CD77: 0 | CE77: 1 | CF77: 0 | CG77: 1 | CH77: 0 | CI77: 0 | CL77: 0 | CM77: 0 | CN77: cp | CO77: METABAT_AS08sgBPME_283 | CP77: .faa | CQ77: lowQ
A78: 456 | B78: METABAT_AS08sgBPME_351 | C78: root (UID1) | D78: 5656 | E78: 56 | F78: 24 | G78: 0 | H78: 0 | I78: 0 | J78: 0 | K78: 220111 | L78: 0 | M78: 17 | N78: 17 | O78: 25621 | P78: 25621 | Q78: 12947 | R78: 12947 | S78: 66035 | T78: 66035 | U78: 36 | V78: 1.28 | W78: 91.83 | X78: 11 | Y78: 227 | Z78: 56 | AA78: 0 | AB78: 0 | AC78: 0 | AD78: 0 | AE78: 0 | AF78: 0 | AG78: 1 | AH78: 0 | AI78: 0 | AJ78: 1 | AK78: 0 | AL78: 0 | AM78: 1 | AN78: 0 | AO78: 1 | AP78: 0 | AQ78: 0 | AS78: 1 | AT78: METABAT_AS08sgBPME_351 | AU78: root (UID1) | AV78: 5656 | AW78: 56 | AX78: 24 | AY78: 0 | AZ78: 0 | BA78: 0 | BB78: 0 | BC78: 220111 | BD78: 0 | BE78: 17 | BF78: 17 | BG78: 25621 | BH78: 25621 | BI78: 12947 | BJ78: 12947 | BK78: 66035 | BL78: 66035 | BM78: 36 | BN78: 1.28 | BO78: 91.8 | BP78: 11 | BQ78: 227 | BR78: 56 | BS78: 0 | BT78: 0 | BU78: 0 | BV78: 0 | BW78: 0 | BX78: 0 | BY78: 1 | BZ78: 0 | CA78: 0 | CB78: 1 | CC78: 0 | CD78: 0 | CE78: 1 | CF78: 0 | CG78: 1 | CH78: 0 | CI78: 0 | CL78: 0 | CM78: 0 | CN78: cp | CO78: METABAT_AS08sgBPME_351 | CP78: .faa | CQ78: lowQ
A79: 461 | B79: METABAT_AS08sgBPME_356 | C79: root (UID1) | D79: 5656 | E79: 56 | F79: 24 | G79: 0 | H79: 0 | I79: 0 | J79: 0 | K79: 329435 | L79: 0 | M79: 51 | N79: 51 | O79: 10427 | P79: 10427 | Q79: 6459 | R79: 6459 | S79: 26209 | T79: 26209 | U79: 34.6 | V79: 1.2 | W79: 88.76 | X79: 11 | Y79: 361 | Z79: 56 | AA79: 0 | AB79: 0 | AC79: 0 | AD79: 0 | AE79: 0 | AF79: 0 | AG79: 1 | AH79: 0 | AI79: 0 | AJ79: 1 | AK79: 0 | AL79: 0 | AM79: 1 | AN79: 0 | AO79: 1 | AP79: 0 | AQ79: 0 | AS79: 1 | AT79: METABAT_AS08sgBPME_356 | AU79: root (UID1) | AV79: 5656 | AW79: 56 | AX79: 24 | AY79: 0 | AZ79: 0 | BA79: 0 | BB79: 0 | BC79: 329435 | BD79: 0 | BE79: 51 | BF79: 51 | BG79: 10427 | BH79: 10427 | BI79: 6459 | BJ79: 6459 | BK79: 26209 | BL79: 26209 | BM79: 34.6 | BN79: 1.2 | BO79: 88.84 | BP79: 11 | BQ79: 362 | BR79: 56 | BS79: 0 | BT79: 0 | BU79: 0 | BV79: 0 | BW79: 0 | BX79: 0 | BY79: 1 | BZ79: 0 | CA79: 0 | CB79: 1 | CC79: 0 | CD79: 0 | CE79: 1 | CF79: 0 | CG79: 1 | CH79: 0 | CI79: 0 | CL79: 0 | CM79: 0 | CN79: cp | CO79: METABAT_AS08sgBPME_356 | CP79: .faa | CQ79: lowQ
A80: 486 | B80: METABAT_AS08sgBPME_379 | C80: root (UID1) | D80: 5656 | E80: 56 | F80: 24 | G80: 0 | H80: 0 | I80: 0 | J80: 0 | K80: 1035042 | L80: 0 | M80: 245 | N80: 245 | O80: 5681 | P80: 5681 | Q80: 4224 | R80: 4224 | S80: 34774 | T80: 34774 | U80: 40.1 | V80: 8.19 | W80: 88.47 | X80: 11 | Y80: 1095 | Z80: 56 | AA80: 0 | AB80: 0 | AC80: 0 | AD80: 0 | AE80: 0 | AF80: 0 | AG80: 1 | AH80: 0 | AI80: 0 | AJ80: 1 | AK80: 0 | AL80: 0 | AM80: 1 | AN80: 0 | AO80: 1 | AP80: 0 | AQ80: 0 | AS80: 1 | AT80: METABAT_AS08sgBPME_379 | AU80: root (UID1) | AV80: 5656 | AW80: 56 | AX80: 24 | AY80: 0 | AZ80: 0 | BA80: 0 | BB80: 0 | BC80: 720511 | BD80: 0 | BE80: 172 | BF80: 172 | BG80: 5060 | BH80: 5060 | BI80: 4189 | BJ80: 4189 | BK80: 34774 | BL80: 34774 | BM80: 37.5 | BN80: 3.23 | BO80: 88.03 | BP80: 11 | BQ80: 744 | BR80: 56 | BS80: 0 | BT80: 0 | BU80: 0 | BV80: 0 | BW80: 0 | BX80: 0 | BY80: 1 | BZ80: 0 | CA80: 0 | CB80: 1 | CC80: 0 | CD80: 0 | CE80: 1 | CF80: 0 | CG80: 1 | CH80: 0 | CI80: 0 | CL80: 0 | CM80: -314531 | CN80: cp | CO80: METABAT_AS08sgBPME_379 | CP80: .faa | CQ80: lowQ
A81: 518 | B81: METABAT_AS08sgBPME_407 | C81: root (UID1) | D81: 5656 | E81: 56 | F81: 24 | G81: 0 | H81: 0 | I81: 0 | J81: 0 | K81: 279989 | L81: 0 | M81: 37 | N81: 37 | O81: 14359 | P81: 14359 | Q81: 7567 | R81: 7567 | S81: 36569 | T81: 36569 | U81: 34.3 | V81: 2.17 | W81: 87.1 | X81: 11 | Y81: 303 | Z81: 56 | AA81: 0 | AB81: 0 | AC81: 0 | AD81: 0 | AE81: 0 | AF81: 0 | AG81: 1 | AH81: 0 | AI81: 0 | AJ81: 1 | AK81: 0 | AL81: 0 | AM81: 1 | AN81: 0 | AO81: 1 | AP81: 0 | AQ81: 0 | AS81: 1 | AT81: METABAT_AS08sgBPME_407 | AU81: root (UID1) | AV81: 5656 | AW81: 56 | AX81: 24 | AY81: 0 | AZ81: 0 | BA81: 0 | BB81: 0 | BC81: 279989 | BD81: 0 | BE81: 37 | BF81: 37 | BG81: 14359 | BH81: 14359 | BI81: 7567 | BJ81: 7567 | BK81: 36569 | BL81: 36569 | BM81: 34.3 | BN81: 2.17 | BO81: 87.16 | BP81: 11 | BQ81: 305 | BR81: 56 | BS81: 0 | BT81: 0 | BU81: 0 | BV81: 0 | BW81: 0 | BX81: 0 | BY81: 1 | BZ81: 0 | CA81: 0 | CB81: 1 | CC81: 0 | CD81: 0 | CE81: 1 | CF81: 0 | CG81: 1 | CH81: 0 | CI81: 0 | CL81: 0 | CM81: 0 | CN81: cp | CO81: METABAT_AS08sgBPME_407 | CP81: .faa | CQ81: lowQ
A82: 531 | B82: METABAT_AS08sgBPME_419 | C82: root (UID1) | D82: 5656 | E82: 56 | F82: 24 | G82: 0 | H82: 0 | I82: 0 | J82: 0 | K82: 656189 | L82: 0 | M82: 187 | N82: 187 | O82: 3751 | P82: 3751 | Q82: 3509 | R82: 3509 | S82: 17266 | T82: 17266 | U82: 37.3 | V82: 2.31 | W82: 91 | X82: 11 | Y82: 533 | Z82: 56 | AA82: 0 | AB82: 0 | AC82: 0 | AD82: 0 | AE82: 0 | AF82: 0 | AG82: 1 | AH82: 0 | AI82: 0 | AJ82: 1 | AK82: 0 | AL82: 0 | AM82: 1 | AN82: 0 | AO82: 1 | AP82: 0 | AQ82: 0 | AS82: 1 | AT82: METABAT_AS08sgBPME_419 | AU82: root (UID1) | AV82: 5656 | AW82: 56 | AX82: 24 | AY82: 0 | AZ82: 0 | BA82: 0 | BB82: 0 | BC82: 650425 | BD82: 0 | BE82: 185 | BF82: 185 | BG82: 3747 | BH82: 3747 | BI82: 3515 | BJ82: 3515 | BK82: 17266 | BL82: 17266 | BM82: 37.2 | BN82: 2.02 | BO82: 91 | BP82: 11 | BQ82: 528 | BR82: 56 | BS82: 0 | BT82: 0 | BU82: 0 | BV82: 0 | BW82: 0 | BX82: 0 | BY82: 1 | BZ82: 0 | CA82: 0 | CB82: 1 | CC82: 0 | CD82: 0 | CE82: 1 | CF82: 0 | CG82: 1 | CH82: 0 | CI82: 0 | CL82: 0 | CM82: -5764 | CN82: cp | CO82: METABAT_AS08sgBPME_419 | CP82: .faa | CQ82: lowQ
A83: 553 | B83: METABAT_AS08sgBPME_439 | C83: root (UID1) | D83: 5656 | E83: 56 | F83: 24 | G83: 0 | H83: 0 | I83: 0 | J83: 0 | K83: 392385 | L83: 0 | M83: 17 | N83: 17 | O83: 43881 | P83: 43881 | Q83: 23081 | R83: 23081 | S83: 57124 | T83: 57124 | U83: 45.8 | V83: 2.12 | W83: 85.97 | X83: 11 | Y83: 345 | Z83: 56 | AA83: 0 | AB83: 0 | AC83: 0 | AD83: 0 | AE83: 0 | AF83: 0 | AG83: 1 | AH83: 0 | AI83: 0 | AJ83: 1 | AK83: 0 | AL83: 0 | AM83: 1 | AN83: 0 | AO83: 1 | AP83: 0 | AQ83: 0 | AS83: 1 | AT83: METABAT_AS08sgBPME_439 | AU83: root (UID1) | AV83: 5656 | AW83: 56 | AX83: 24 | AY83: 0 | AZ83: 0 | BA83: 0 | BB83: 0 | BC83: 392385 | BD83: 0 | BE83: 17 | BF83: 17 | BG83: 43881 | BH83: 43881 | BI83: 23081 | BJ83: 23081 | BK83: 57124 | BL83: 57124 | BM83: 45.8 | BN83: 2.12 | BO83: 86.03 | BP83: 11 | BQ83: 345 | BR83: 56 | BS83: 0 | BT83: 0 | BU83: 0 | BV83: 0 | BW83: 0 | BX83: 0 | BY83: 1 | BZ83: 0 | CA83: 0 | CB83: 1 | CC83: 0 | CD83: 0 | CE83: 1 | CF83: 0 | CG83: 1 | CH83: 0 | CI83: 0 | CL83: 0 | CM83: 0 | CN83: cp | CO83: METABAT_AS08sgBPME_439 | CP83: .faa | CQ83: lowQ
A84: 554 | B84: METABAT_AS08sgBPME_44 | C84: root (UID1) | D84: 5656 | E84: 56 | F84: 24 | G84: 0 | H84: 0 | I84: 0 | J84: 0 | K84: 396473 | L84: 0 | M84: 24 | N84: 24 | O84: 27430 | P84: 27430 | Q84: 16519 | R84: 16519 | S84: 56844 | T84: 56844 | U84: 31.4 | V84: 1.72 | W84: 82.3 | X84: 11 | Y84: 403 | Z84: 56 | AA84: 0 | AB84: 0 | AC84: 0 | AD84: 0 | AE84: 0 | AF84: 0 | AG84: 1 | AH84: 0 | AI84: 0 | AJ84: 1 | AK84: 0 | AL84: 0 | AM84: 1 | AN84: 0 | AO84: 1 | AP84: 0 | AQ84: 0 | AS84: 1 | AT84: METABAT_AS08sgBPME_44 | AU84: root (UID1) | AV84: 5656 | AW84: 56 | AX84: 24 | AY84: 0 | AZ84: 0 | BA84: 0 | BB84: 0 | BC84: 396473 | BD84: 0 | BE84: 24 | BF84: 24 | BG84: 27430 | BH84: 27430 | BI84: 16519 | BJ84: 16519 | BK84: 56844 | BL84: 56844 | BM84: 31.4 | BN84: 1.72 | BO84: 82.28 | BP84: 11 | BQ84: 402 | BR84: 56 | BS84: 0 | BT84: 0 | BU84: 0 | BV84: 0 | BW84: 0 | BX84: 0 | BY84: 1 | BZ84: 0 | CA84: 0 | CB84: 1 | CC84: 0 | CD84: 0 | CE84: 1 | CF84: 0 | CG84: 1 | CH84: 0 | CI84: 0 | CL84: 0 | CM84: 0 | CN84: cp | CO84: METABAT_AS08sgBPME_44 | CP84: .faa | CQ84: lowQ
A85: 568 | B85: METABAT_AS08sgBPME_452 | C85: root (UID1) | D85: 5656 | E85: 56 | F85: 24 | G85: 0 | H85: 0 | I85: 0 | J85: 0 | K85: 267652 | L85: 0 | M85: 20 | N85: 20 | O85: 26800 | P85: 26800 | Q85: 13382 | R85: 13382 | S85: 52220 | T85: 52220 | U85: 32.8 | V85: 1.58 | W85: 89.6 | X85: 11 | Y85: 292 | Z85: 56 | AA85: 0 | AB85: 0 | AC85: 0 | AD85: 0 | AE85: 0 | AF85: 0 | AG85: 1 | AH85: 0 | AI85: 0 | AJ85: 1 | AK85: 0 | AL85: 0 | AM85: 1 | AN85: 0 | AO85: 1 | AP85: 0 | AQ85: 0 | AS85: 1 | AT85: METABAT_AS08sgBPME_452 | AU85: root (UID1) | AV85: 5656 | AW85: 56 | AX85: 24 | AY85: 0 | AZ85: 0 | BA85: 0 | BB85: 0 | BC85: 267652 | BD85: 0 | BE85: 20 | BF85: 20 | BG85: 26800 | BH85: 26800 | BI85: 13382 | BJ85: 13382 | BK85: 52220 | BL85: 52220 | BM85: 32.8 | BN85: 1.58 | BO85: 89.6 | BP85: 11 | BQ85: 292 | BR85: 56 | BS85: 0 | BT85: 0 | BU85: 0 | BV85: 0 | BW85: 0 | BX85: 0 | BY85: 1 | BZ85: 0 | CA85: 0 | CB85: 1 | CC85: 0 | CD85: 0 | CE85: 1 | CF85: 0 | CG85: 1 | CH85: 0 | CI85: 0 | CL85: 0 | CM85: 0 | CN85: cp | CO85: METABAT_AS08sgBPME_452 | CP85: .faa | CQ85: lowQ
A86: 569 | B86: METABAT_AS08sgBPME_453 | C86: k__Bacteria (UID203) | D86: 5449 | E86: 104 | F86: 58 | G86: 3.61 | H86: 0 | I86: 0 | J86: 0 | K86: 429086 | L86: 0 | M86: 38 | N86: 38 | O86: 20522 | P86: 20522 | Q86: 11291 | R86: 11291 | S86: 61085 | T86: 61085 | U86: 34.1 | V86: 5.43 | W86: 85.19 | X86: 11 | Y86: 430 | Z86: 101 | AA86: 3 | AB86: 0 | AC86: 0 | AD86: 0 | AE86: 0 | AF86: 0 | AG86: 1 | AH86: 0 | AI86: 0 | AJ86: 1 | AK86: 0 | AL86: 0 | AM86: 1 | AN86: 0 | AO86: 1 | AP86: 0 | AQ86: 0 | AR86: 3.61 | AS86: 1 | AT86: METABAT_AS08sgBPME_453 | AU86: root (UID1) | AV86: 5656 | AW86: 56 | AX86: 24 | AY86: 0 | AZ86: 0 | BA86: 0 | BB86: 0 | BC86: 383164 | BD86: 0 | BE86: 30 | BF86: 30 | BG86: 21113 | BH86: 21113 | BI86: 12772 | BJ86: 12772 | BK86: 61085 | BL86: 61085 | BM86: 34.7 | BN86: 2.44 | BO86: 83.86 | BP86: 11 | BQ86: 380 | BR86: 56 | BS86: 0 | BT86: 0 | BU86: 0 | BV86: 0 | BW86: 0 | BX86: 0 | BY86: 1 | BZ86: 0 | CA86: 0 | CB86: 1 | CC86: 0 | CD86: 0 | CE86: 1 | CF86: 0 | CG86: 1 | CH86: 0 | CI86: 0 | CL86: 0 | CM86: -45922 | CN86: cp | CO86: METABAT_AS08sgBPME_453 | CP86: .faa | CQ86: lowQ
A87: 587 | B87: METABAT_AS08sgBPME_47 | C87: root (UID1) | D87: 5656 | E87: 56 | F87: 24 | G87: 0 | H87: 0 | I87: 0 | J87: 0 | K87: 414860 | L87: 0 | M87: 135 | N87: 135 | O87: 2982 | P87: 2982 | Q87: 3073 | R87: 3073 | S87: 39905 | T87: 39905 | U87: 35.3 | V87: 4.17 | W87: 88.36 | X87: 11 | Y87: 564 | Z87: 56 | AA87: 0 | AB87: 0 | AC87: 0 | AD87: 0 | AE87: 0 | AF87: 0 | AG87: 1 | AH87: 0 | AI87: 0 | AJ87: 1 | AK87: 0 | AL87: 0 | AM87: 1 | AN87: 0 | AO87: 1 | AP87: 0 | AQ87: 0 | AS87: 1 | AT87: METABAT_AS08sgBPME_47 | AU87: root (UID1) | AV87: 5656 | AW87: 56 | AX87: 24 | AY87: 0 | AZ87: 0 | BA87: 0 | BB87: 0 | BC87: 390036 | BD87: 0 | BE87: 125 | BF87: 125 | BG87: 3168 | BH87: 3168 | BI87: 3120 | BJ87: 3120 | BK87: 39905 | BL87: 39905 | BM87: 34.7 | BN87: 3 | BO87: 88.3 | BP87: 11 | BQ87: 537 | BR87: 56 | BS87: 0 | BT87: 0 | BU87: 0 | BV87: 0 | BW87: 0 | BX87: 0 | BY87: 1 | BZ87: 0 | CA87: 0 | CB87: 1 | CC87: 0 | CD87: 0 | CE87: 1 | CF87: 0 | CG87: 1 | CH87: 0 | CI87: 0 | CL87: 0 | CM87: -24824 | CN87: cp | CO87: METABAT_AS08sgBPME_47 | CP87: .faa | CQ87: lowQ
A88: 612 | B88: METABAT_AS08sgBPME_65 | C88: root (UID1) | D88: 5656 | E88: 56 | F88: 24 | G88: 0 | H88: 0 | I88: 0 | J88: 0 | K88: 246335 | L88: 0 | M88: 45 | N88: 45 | O88: 7709 | P88: 7709 | Q88: 5474 | R88: 5474 | S88: 19439 | T88: 19439 | U88: 28.4 | V88: 1.73 | W88: 84.19 | X88: 11 | Y88: 282 | Z88: 56 | AA88: 0 | AB88: 0 | AC88: 0 | AD88: 0 | AE88: 0 | AF88: 0 | AG88: 1 | AH88: 0 | AI88: 0 | AJ88: 1 | AK88: 0 | AL88: 0 | AM88: 1 | AN88: 0 | AO88: 1 | AP88: 0 | AQ88: 0 | AS88: 1 | AT88: METABAT_AS08sgBPME_65 | AU88: root (UID1) | AV88: 5656 | AW88: 56 | AX88: 24 | AY88: 0 | AZ88: 0 | BA88: 0 | BB88: 0 | BC88: 246335 | BD88: 0 | BE88: 45 | BF88: 45 | BG88: 7709 | BH88: 7709 | BI88: 5474 | BJ88: 5474 | BK88: 19439 | BL88: 19439 | BM88: 28.4 | BN88: 1.73 | BO88: 84.19 | BP88: 11 | BQ88: 282 | BR88: 56 | BS88: 0 | BT88: 0 | BU88: 0 | BV88: 0 | BW88: 0 | BX88: 0 | BY88: 1 | BZ88: 0 | CA88: 0 | CB88: 1 | CC88: 0 | CD88: 0 | CE88: 1 | CF88: 0 | CG88: 1 | CH88: 0 | CI88: 0 | CL88: 0 | CM88: 0 | CN88: cp | CO88: METABAT_AS08sgBPME_65 | CP88: .faa | CQ88: lowQ
A89: 620 | B89: METABAT_AS08sgBPME_72 | C89: root (UID1) | D89: 5656 | E89: 56 | F89: 24 | G89: 0 | H89: 0 | I89: 0 | J89: 0 | K89: 277164 | L89: 0 | M89: 8 | N89: 8 | O89: 75187 | P89: 75187 | Q89: 34645 | R89: 34645 | S89: 90214 | T89: 90214 | U89: 33 | V89: 1.44 | W89: 94.4 | X89: 11 | Y89: 248 | Z89: 56 | AA89: 0 | AB89: 0 | AC89: 0 | AD89: 0 | AE89: 0 | AF89: 0 | AG89: 1 | AH89: 0 | AI89: 0 | AJ89: 1 | AK89: 0 | AL89: 0 | AM89: 1 | AN89: 0 | AO89: 1 | AP89: 0 | AQ89: 0 | AS89: 1 | AT89: METABAT_AS08sgBPME_72 | AU89: root (UID1) | AV89: 5656 | AW89: 56 | AX89: 24 | AY89: 0 | AZ89: 0 | BA89: 0 | BB89: 0 | BC89: 277164 | BD89: 0 | BE89: 8 | BF89: 8 | BG89: 75187 | BH89: 75187 | BI89: 34645 | BJ89: 34645 | BK89: 90214 | BL89: 90214 | BM89: 33 | BN89: 1.44 | BO89: 94.4 | BP89: 11 | BQ89: 248 | BR89: 56 | BS89: 0 | BT89: 0 | BU89: 0 | BV89: 0 | BW89: 0 | BX89: 0 | BY89: 1 | BZ89: 0 | CA89: 0 | CB89: 1 | CC89: 0 | CD89: 0 | CE89: 1 | CF89: 0 | CG89: 1 | CH89: 0 | CI89: 0 | CL89: 0 | CM89: 0 | CN89: cp | CO89: METABAT_AS08sgBPME_72 | CP89: .faa | CQ89: lowQ
A90: 622 | B90: METABAT_AS08sgBPME_74 | C90: root (UID1) | D90: 5656 | E90: 56 | F90: 24 | G90: 0 | H90: 0 | I90: 0 | J90: 0 | K90: 211511 | L90: 0 | M90: 24 | N90: 24 | O90: 11425 | P90: 11425 | Q90: 8812 | R90: 8812 | S90: 23493 | T90: 23493 | U90: 31.7 | V90: 1.25 | W90: 85.48 | X90: 11 | Y90: 247 | Z90: 56 | AA90: 0 | AB90: 0 | AC90: 0 | AD90: 0 | AE90: 0 | AF90: 0 | AG90: 1 | AH90: 0 | AI90: 0 | AJ90: 1 | AK90: 0 | AL90: 0 | AM90: 1 | AN90: 0 | AO90: 1 | AP90: 0 | AQ90: 0 | AS90: 1 | AT90: METABAT_AS08sgBPME_74 | AU90: root (UID1) | AV90: 5656 | AW90: 56 | AX90: 24 | AY90: 0 | AZ90: 0 | BA90: 0 | BB90: 0 | BC90: 211511 | BD90: 0 | BE90: 24 | BF90: 24 | BG90: 11425 | BH90: 11425 | BI90: 8812 | BJ90: 8812 | BK90: 23493 | BL90: 23493 | BM90: 31.7 | BN90: 1.25 | BO90: 85.44 | BP90: 11 | BQ90: 246 | BR90: 56 | BS90: 0 | BT90: 0 | BU90: 0 | BV90: 0 | BW90: 0 | BX90: 0 | BY90: 1 | BZ90: 0 | CA90: 0 | CB90: 1 | CC90: 0 | CD90: 0 | CE90: 1 | CF90: 0 | CG90: 1 | CH90: 0 | CI90: 0 | CL90: 0 | CM90: 0 | CN90: cp | CO90: METABAT_AS08sgBPME_74 | CP90: .faa | CQ90: lowQ
A91: 624 | B91: METABAT_AS08sgBPME_76 | C91: root (UID1) | D91: 5656 | E91: 56 | F91: 24 | G91: 0 | H91: 0 | I91: 0 | J91: 0 | K91: 1558777 | L91: 0 | M91: 485 | N91: 485 | O91: 3555 | P91: 3555 | Q91: 3213 | R91: 3213 | S91: 13769 | T91: 13769 | U91: 33.5 | V91: 2.87 | W91: 88.54 | X91: 11 | Y91: 1719 | Z91: 56 | AA91: 0 | AB91: 0 | AC91: 0 | AD91: 0 | AE91: 0 | AF91: 0 | AG91: 1 | AH91: 0 | AI91: 0 | AJ91: 1 | AK91: 0 | AL91: 0 | AM91: 1 | AN91: 0 | AO91: 1 | AP91: 0 | AQ91: 0 | AS91: 1 | AT91: METABAT_AS08sgBPME_76 | AU91: root (UID1) | AV91: 5656 | AW91: 56 | AX91: 24 | AY91: 0 | AZ91: 0 | BA91: 0 | BB91: 0 | BC91: 1537405 | BD91: 0 | BE91: 478 | BF91: 478 | BG91: 3555 | BH91: 3555 | BI91: 3216 | BJ91: 3216 | BK91: 13769 | BL91: 13769 | BM91: 33.4 | BN91: 2.23 | BO91: 88.45 | BP91: 11 | BQ91: 1689 | BR91: 56 | BS91: 0 | BT91: 0 | BU91: 0 | BV91: 0 | BW91: 0 | BX91: 0 | BY91: 1 | BZ91: 0 | CA91: 0 | CB91: 1 | CC91: 0 | CD91: 0 | CE91: 1 | CF91: 0 | CG91: 1 | CH91: 0 | CI91: 0 | CL91: 0 | CM91: -21372 | CN91: cp | CO91: METABAT_AS08sgBPME_76 | CP91: .faa | CQ91: lowQ
A92: 626 | B92: METABAT_AS08sgBPME_78 | C92: root (UID1) | D92: 5656 | E92: 56 | F92: 24 | G92: 0 | H92: 0 | I92: 0 | J92: 0 | K92: 372744 | L92: 0 | M92: 100 | N92: 100 | O92: 4207 | P92: 4207 | Q92: 3727 | R92: 3727 | S92: 12405 | T92: 12405 | U92: 28.4 | V92: 1.96 | W92: 85.65 | X92: 11 | Y92: 378 | Z92: 56 | AA92: 0 | AB92: 0 | AC92: 0 | AD92: 0 | AE92: 0 | AF92: 0 | AG92: 1 | AH92: 0 | AI92: 0 | AJ92: 1 | AK92: 0 | AL92: 0 | AM92: 1 | AN92: 0 | AO92: 1 | AP92: 0 | AQ92: 0 | AS92: 1 | AT92: METABAT_AS08sgBPME_78 | AU92: root (UID1) | AV92: 5656 | AW92: 56 | AX92: 24 | AY92: 0 | AZ92: 0 | BA92: 0 | BB92: 0 | BC92: 372744 | BD92: 0 | BE92: 100 | BF92: 100 | BG92: 4207 | BH92: 4207 | BI92: 3727 | BJ92: 3727 | BK92: 12405 | BL92: 12405 | BM92: 28.4 | BN92: 1.96 | BO92: 85.63 | BP92: 11 | BQ92: 378 | BR92: 56 | BS92: 0 | BT92: 0 | BU92: 0 | BV92: 0 | BW92: 0 | BX92: 0 | BY92: 1 | BZ92: 0 | CA92: 0 | CB92: 1 | CC92: 0 | CD92: 0 | CE92: 1 | CF92: 0 | CG92: 1 | CH92: 0 | CI92: 0 | CL92: 0 | CM92: 0 | CN92: cp | CO92: METABAT_AS08sgBPME_78 | CP92: .faa | CQ92: lowQ
A93: 2185 | B93: METABAT_AS09scLD_100 | C93: root (UID1) | D93: 5656 | E93: 56 | F93: 24 | G93: 0 | H93: 0 | I93: 0 | J93: 0 | K93: 360177 | L93: 0 | M93: 37 | N93: 37 | O93: 16926 | P93: 16926 | Q93: 9734 | R93: 9734 | S93: 83800 | T93: 83800 | U93: 52.5 | V93: 1.01 | W93: 82.62 | X93: 11 | Y93: 421 | Z93: 56 | AA93: 0 | AB93: 0 | AC93: 0 | AD93: 0 | AE93: 0 | AF93: 0 | AG93: 1 | AH93: 0 | AI93: 0 | AJ93: 1 | AK93: 0 | AL93: 0 | AM93: 1 | AN93: 0 | AO93: 1 | AP93: 0 | AQ93: 0 | AS93: 1 | AT93: METABAT_AS09scLD_100 | AU93: root (UID1) | AV93: 5656 | AW93: 56 | AX93: 24 | AY93: 0 | AZ93: 0 | BA93: 0 | BB93: 0 | BC93: 360177 | BD93: 0 | BE93: 37 | BF93: 37 | BG93: 16926 | BH93: 16926 | BI93: 9734 | BJ93: 9734 | BK93: 83800 | BL93: 83800 | BM93: 52.5 | BN93: 1.01 | BO93: 83.04 | BP93: 11 | BQ93: 426 | BR93: 56 | BS93: 0 | BT93: 0 | BU93: 0 | BV93: 0 | BW93: 0 | BX93: 0 | BY93: 1 | BZ93: 0 | CA93: 0 | CB93: 1 | CC93: 0 | CD93: 0 | CE93: 1 | CF93: 0 | CG93: 1 | CH93: 0 | CI93: 0 | CL93: 0 | CM93: 0 | CN93: cp | CO93: METABAT_AS09scLD_100 | CP93: .faa | CQ93: lowQ
A94: 2187 | B94: METABAT_AS09scLD_102 | C94: root (UID1) | D94: 5656 | E94: 56 | F94: 24 | G94: 0 | H94: 0 | I94: 0 | J94: 0 | K94: 332797 | L94: 0 | M94: 67 | N94: 67 | O94: 6086 | P94: 6086 | Q94: 4967 | R94: 4967 | S94: 21224 | T94: 21224 | U94: 31.5 | V94: 2.28 | W94: 82.23 | X94: 11 | Y94: 371 | Z94: 56 | AA94: 0 | AB94: 0 | AC94: 0 | AD94: 0 | AE94: 0 | AF94: 0 | AG94: 1 | AH94: 0 | AI94: 0 | AJ94: 1 | AK94: 0 | AL94: 0 | AM94: 1 | AN94: 0 | AO94: 1 | AP94: 0 | AQ94: 0 | AS94: 1 | AT94: METABAT_AS09scLD_102 | AU94: root (UID1) | AV94: 5656 | AW94: 56 | AX94: 24 | AY94: 0 | AZ94: 0 | BA94: 0 | BB94: 0 | BC94: 332797 | BD94: 0 | BE94: 67 | BF94: 67 | BG94: 6086 | BH94: 6086 | BI94: 4967 | BJ94: 4967 | BK94: 21224 | BL94: 21224 | BM94: 31.5 | BN94: 2.28 | BO94: 82.27 | BP94: 11 | BQ94: 371 | BR94: 56 | BS94: 0 | BT94: 0 | BU94: 0 | BV94: 0 | BW94: 0 | BX94: 0 | BY94: 1 | BZ94: 0 | CA94: 0 | CB94: 1 | CC94: 0 | CD94: 0 | CE94: 1 | CF94: 0 | CG94: 1 | CH94: 0 | CI94: 0 | CL94: 0 | CM94: 0 | CN94: cp | CO94: METABAT_AS09scLD_102 | CP94: .faa | CQ94: lowQ
A95: 2189 | B95: METABAT_AS09scLD_104 | C95: root (UID1) | D95: 5656 | E95: 56 | F95: 24 | G95: 0 | H95: 0 | I95: 0 | J95: 0 | K95: 223586 | L95: 0 | M95: 63 | N95: 63 | O95: 3861 | P95: 3861 | Q95: 3548 | R95: 3548 | S95: 15683 | T95: 15683 | U95: 48.5 | V95: 1.6 | W95: 83.87 | X95: 11 | Y95: 250 | Z95: 56 | AA95: 0 | AB95: 0 | AC95: 0 | AD95: 0 | AE95: 0 | AF95: 0 | AG95: 1 | AH95: 0 | AI95: 0 | AJ95: 1 | AK95: 0 | AL95: 0 | AM95: 1 | AN95: 0 | AO95: 1 | AP95: 0 | AQ95: 0 | AS95: 1 | AT95: METABAT_AS09scLD_104 | AU95: root (UID1) | AV95: 5656 | AW95: 56 | AX95: 24 | AY95: 0 | AZ95: 0 | BA95: 0 | BB95: 0 | BC95: 223586 | BD95: 0 | BE95: 63 | BF95: 63 | BG95: 3861 | BH95: 3861 | BI95: 3548 | BJ95: 3548 | BK95: 15683 | BL95: 15683 | BM95: 48.5 | BN95: 1.6 | BO95: 83.73 | BP95: 11 | BQ95: 249 | BR95: 56 | BS95: 0 | BT95: 0 | BU95: 0 | BV95: 0 | BW95: 0 | BX95: 0 | BY95: 1 | BZ95: 0 | CA95: 0 | CB95: 1 | CC95: 0 | CD95: 0 | CE95: 1 | CF95: 0 | CG95: 1 | CH95: 0 | CI95: 0 | CL95: 0 | CM95: 0 | CN95: cp | CO95: METABAT_AS09scLD_104 | CP95: .faa | CQ95: lowQ
A96: 2312 | B96: METABAT_AS09scLD_215 | C96: root (UID1) | D96: 5656 | E96: 56 | F96: 24 | G96: 0 | H96: 0 | I96: 0 | J96: 0 | K96: 371558 | L96: 0 | M96: 129 | N96: 129 | O96: 3013 | P96: 3013 | Q96: 2880 | R96: 2880 | S96: 9021 | T96: 9021 | U96: 55 | V96: 2.23 | W96: 90.04 | X96: 11 | Y96: 440 | Z96: 56 | AA96: 0 | AB96: 0 | AC96: 0 | AD96: 0 | AE96: 0 | AF96: 0 | AG96: 1 | AH96: 0 | AI96: 0 | AJ96: 1 | AK96: 0 | AL96: 0 | AM96: 1 | AN96: 0 | AO96: 1 | AP96: 0 | AQ96: 0 | AS96: 1 | AT96: METABAT_AS09scLD_215 | AU96: root (UID1) | AV96: 5656 | AW96: 56 | AX96: 24 | AY96: 0 | AZ96: 0 | BA96: 0 | BB96: 0 | BC96: 371558 | BD96: 0 | BE96: 129 | BF96: 129 | BG96: 3013 | BH96: 3013 | BI96: 2880 | BJ96: 2880 | BK96: 9021 | BL96: 9021 | BM96: 55 | BN96: 2.23 | BO96: 90.05 | BP96: 11 | BQ96: 440 | BR96: 56 | BS96: 0 | BT96: 0 | BU96: 0 | BV96: 0 | BW96: 0 | BX96: 0 | BY96: 1 | BZ96: 0 | CA96: 0 | CB96: 1 | CC96: 0 | CD96: 0 | CE96: 1 | CF96: 0 | CG96: 1 | CH96: 0 | CI96: 0 | CL96: 0 | CM96: 0 | CN96: cp | CO96: METABAT_AS09scLD_215 | CP96: .faa | CQ96: lowQ
A97: 2350 | B97: METABAT_AS09scLD_25 | C97: root (UID1) | D97: 5656 | E97: 56 | F97: 24 | G97: 0 | H97: 0 | I97: 0 | J97: 0 | K97: 202895 | L97: 0 | M97: 50 | N97: 50 | O97: 5307 | P97: 5307 | Q97: 4057 | R97: 4057 | S97: 20923 | T97: 20923 | U97: 36.9 | V97: 1.16 | W97: 91.43 | X97: 11 | Y97: 250 | Z97: 56 | AA97: 0 | AB97: 0 | AC97: 0 | AD97: 0 | AE97: 0 | AF97: 0 | AG97: 1 | AH97: 0 | AI97: 0 | AJ97: 1 | AK97: 0 | AL97: 0 | AM97: 1 | AN97: 0 | AO97: 1 | AP97: 0 | AQ97: 0 | AS97: 1 | AT97: METABAT_AS09scLD_25 | AU97: root (UID1) | AV97: 5656 | AW97: 56 | AX97: 24 | AY97: 0 | AZ97: 0 | BA97: 0 | BB97: 0 | BC97: 202895 | BD97: 0 | BE97: 50 | BF97: 50 | BG97: 5307 | BH97: 5307 | BI97: 4057 | BJ97: 4057 | BK97: 20923 | BL97: 20923 | BM97: 36.9 | BN97: 1.16 | BO97: 91.43 | BP97: 11 | BQ97: 250 | BR97: 56 | BS97: 0 | BT97: 0 | BU97: 0 | BV97: 0 | BW97: 0 | BX97: 0 | BY97: 1 | BZ97: 0 | CA97: 0 | CB97: 1 | CC97: 0 | CD97: 0 | CE97: 1 | CF97: 0 | CG97: 1 | CH97: 0 | CI97: 0 | CL97: 0 | CM97: 0 | CN97: cp | CO97: METABAT_AS09scLD_25 | CP97: .faa | CQ97: lowQ
A98: 2375 | B98: METABAT_AS09scLD_272 | C98: root (UID1) | D98: 5656 | E98: 56 | F98: 24 | G98: 0 | H98: 0 | I98: 0 | J98: 0 | K98: 282919 | L98: 0 | M98: 93 | N98: 93 | O98: 3147 | P98: 3147 | Q98: 3042 | R98: 3042 | S98: 22109 | T98: 22109 | U98: 50.1 | V98: 1.65 | W98: 85.89 | X98: 11 | Y98: 334 | Z98: 56 | AA98: 0 | AB98: 0 | AC98: 0 | AD98: 0 | AE98: 0 | AF98: 0 | AG98: 1 | AH98: 0 | AI98: 0 | AJ98: 1 | AK98: 0 | AL98: 0 | AM98: 1 | AN98: 0 | AO98: 1 | AP98: 0 | AQ98: 0 | AS98: 1 | AT98: METABAT_AS09scLD_272 | AU98: root (UID1) | AV98: 5656 | AW98: 56 | AX98: 24 | AY98: 0 | AZ98: 0 | BA98: 0 | BB98: 0 | BC98: 282919 | BD98: 0 | BE98: 93 | BF98: 93 | BG98: 3147 | BH98: 3147 | BI98: 3042 | BJ98: 3042 | BK98: 22109 | BL98: 22109 | BM98: 50.1 | BN98: 1.65 | BO98: 85.75 | BP98: 11 | BQ98: 333 | BR98: 56 | BS98: 0 | BT98: 0 | BU98: 0 | BV98: 0 | BW98: 0 | BX98: 0 | BY98: 1 | BZ98: 0 | CA98: 0 | CB98: 1 | CC98: 0 | CD98: 0 | CE98: 1 | CF98: 0 | CG98: 1 | CH98: 0 | CI98: 0 | CL98: 0 | CM98: 0 | CN98: cp | CO98: METABAT_AS09scLD_272 | CP98: .faa | CQ98: lowQ
A99: 2393 | B99: METABAT_AS09scLD_289 | C99: k__Bacteria (UID203) | D99: 5449 | E99: 104 | F99: 58 | G99: 10.27 | H99: 0 | I99: 0 | J99: 0 | K99: 318407 | L99: 0 | M99: 147 | N99: 147 | O99: 1992 | P99: 1992 | Q99: 2166 | R99: 2166 | S99: 14157 | T99: 14157 | U99: 62.4 | V99: 8.43 | W99: 91.91 | X99: 11 | Y99: 410 | Z99: 92 | AA99: 12 | AB99: 0 | AC99: 0 | AD99: 0 | AE99: 0 | AF99: 0 | AG99: 1 | AH99: 0 | AI99: 0 | AJ99: 1 | AK99: 0 | AL99: 0 | AM99: 1 | AN99: 0 | AO99: 1 | AP99: 0 | AQ99: 0 | AR99: 10.27 | AS99: 1 | AT99: METABAT_AS09scLD_289 | AU99: root (UID1) | AV99: 5656 | AW99: 56 | AX99: 24 | AY99: 0 | AZ99: 0 | BA99: 0 | BB99: 0 | BC99: 230752 | BD99: 0 | BE99: 108 | BF99: 108 | BG99: 1944 | BH99: 1944 | BI99: 2136 | BJ99: 2136 | BK99: 14157 | BL99: 14157 | BM99: 66.5 | BN99: 2.82 | BO99: 92.34 | BP99: 11 | BQ99: 297 | BR99: 56 | BS99: 0 | BT99: 0 | BU99: 0 | BV99: 0 | BW99: 0 | BX99: 0 | BY99: 1 | BZ99: 0 | CA99: 0 | CB99: 1 | CC99: 0 | CD99: 0 | CE99: 1 | CF99: 0 | CG99: 1 | CH99: 0 | CI99: 0 | CL99: 0 | CM99: -87655 | CN99: cp | CO99: METABAT_AS09scLD_289 | CP99: .faa | CQ99: lowQ
A100: 2437 | B100: METABAT_AS09scLD_328 | C100: root (UID1) | D100: 5656 | E100: 56 | F100: 24 | G100: 0 | H100: 0 | I100: 0 | J100: 0 | K100: 427498 | L100: 0 | M100: 43 | N100: 43 | O100: 19887 | P100: 19887 | Q100: 9941 | R100: 9941 | S100: 38656 | T100: 38656 | U100: 31.5 | V100: 2.11 | W100: 81.7 | X100: 11 | Y100: 458 | Z100: 56 | AA100: 0 | AB100: 0 | AC100: 0 | AD100: 0 | AE100: 0 | AF100: 0 | AG100: 1 | AH100: 0 | AI100: 0 | AJ100: 1 | AK100: 0 | AL100: 0 | AM100: 1 | AN100: 0 | AO100: 1 | AP100: 0 | AQ100: 0 | AS100: 1 | AT100: METABAT_AS09scLD_328 | AU100: root (UID1) | AV100: 5656 | AW100: 56 | AX100: 24 | AY100: 0 | AZ100: 0 | BA100: 0 | BB100: 0 | BC100: 427498 | BD100: 0 | BE100: 43 | BF100: 43 | BG100: 19887 | BH100: 19887 | BI100: 9941 | BJ100: 9941 | BK100: 38656 | BL100: 38656 | BM100: 31.5 | BN100: 2.11 | BO100: 81.64 | BP100: 11 | BQ100: 456 | BR100: 56 | BS100: 0 | BT100: 0 | BU100: 0 | BV100: 0 | BW100: 0 | BX100: 0 | BY100: 1 | BZ100: 0 | CA100: 0 | CB100: 1 | CC100: 0 | CD100: 0 | CE100: 1 | CF100: 0 | CG100: 1 | CH100: 0 | CI100: 0 | CL100: 0 | CM100: 0 | CN100: cp | CO100: METABAT_AS09scLD_328 | CP100: .faa | CQ100: lowQ
A101: 2447 | B101: METABAT_AS09scLD_337 | C101: k__Bacteria (UID203) | D101: 5449 | E101: 104 | F101: 58 | G101: 1.72 | H101: 0 | I101: 0 | J101: 0 | K101: 486642 | L101: 0 | M101: 118 | N101: 118 | O101: 5066 | P101: 5066 | Q101: 4124 | R101: 4124 | S101: 18720 | T101: 18720 | U101: 31.7 | V101: 3.79 | W101: 85.92 | X101: 11 | Y101: 624 | Z101: 102 | AA101: 2 | AB101: 0 | AC101: 0 | AD101: 0 | AE101: 0 | AF101: 0 | AG101: 1 | AH101: 0 | AI101: 0 | AJ101: 1 | AK101: 0 | AL101: 0 | AM101: 1 | AN101: 0 | AO101: 1 | AP101: 0 | AQ101: 0 | AR101: 1.72 | AS101: 1 | AT101: METABAT_AS09scLD_337 | AU101: root (UID1) | AV101: 5656 | AW101: 56 | AX101: 24 | AY101: 0 | AZ101: 0 | BA101: 0 | BB101: 0 | BC101: 444739 | BD101: 0 | BE101: 105 | BF101: 105 | BG101: 5155 | BH101: 5155 | BI101: 4235 | BJ101: 4235 | BK101: 18720 | BL101: 18720 | BM101: 31.8 | BN101: 2.61 | BO101: 85.8 | BP101: 11 | BQ101: 576 | BR101: 56 | BS101: 0 | BT101: 0 | BU101: 0 | BV101: 0 | BW101: 0 | BX101: 0 | BY101: 1 | BZ101: 0 | CA101: 0 | CB101: 1 | CC101: 0 | CD101: 0 | CE101: 1 | CF101: 0 | CG101: 1 | CH101: 0 | CI101: 0 | CL101: 0 | CM101: -41903 | CN101: cp | CO101: METABAT_AS09scLD_337 | CP101: .faa | CQ101: lowQ
A102: 2462 | B102: METABAT_AS09scLD_350 | C102: root (UID1) | D102: 5656 | E102: 56 | F102: 24 | G102: 0 | H102: 0 | I102: 0 | J102: 0 | K102: 562491 | L102: 0 | M102: 188 | N102: 188 | O102: 3507 | P102: 3507 | Q102: 2991 | R102: 2991 | S102: 14047 | T102: 14047 | U102: 45.9 | V102: 2.84 | W102: 85.26 | X102: 11 | Y102: 721 | Z102: 56 | AA102: 0 | AB102: 0 | AC102: 0 | AD102: 0 | AE102: 0 | AF102: 0 | AG102: 1 | AH102: 0 | AI102: 0 | AJ102: 1 | AK102: 0 | AL102: 0 | AM102: 1 | AN102: 0 | AO102: 1 | AP102: 0 | AQ102: 0 | AS102: 1 | AT102: METABAT_AS09scLD_350 | AU102: root (UID1) | AV102: 5656 | AW102: 56 | AX102: 24 | AY102: 0 | AZ102: 0 | BA102: 0 | BB102: 0 | BC102: 554459 | BD102: 0 | BE102: 186 | BF102: 186 | BG102: 3490 | BH102: 3490 | BI102: 2980 | BJ102: 2980 | BK102: 14047 | BL102: 14047 | BM102: 45.8 | BN102: 2.76 | BO102: 85.06 | BP102: 11 | BQ102: 711 | BR102: 56 | BS102: 0 | BT102: 0 | BU102: 0 | BV102: 0 | BW102: 0 | BX102: 0 | BY102: 1 | BZ102: 0 | CA102: 0 | CB102: 1 | CC102: 0 | CD102: 0 | CE102: 1 | CF102: 0 | CG102: 1 | CH102: 0 | CI102: 0 | CL102: 0 | CM102: -8032 | CN102: cp | CO102: METABAT_AS09scLD_350 | CP102: .faa | CQ102: lowQ
A103: 2480 | B103: METABAT_AS09scLD_367 | C103: root (UID1) | D103: 5656 | E103: 56 | F103: 24 | G103: 0 | H103: 0 | I103: 0 | J103: 0 | K103: 211878 | L103: 0 | M103: 14 | N103: 14 | O103: 32271 | P103: 32271 | Q103: 15134 | R103: 15134 | S103: 50217 | T103: 50217 | U103: 33.4 | V103: 1.62 | W103: 88.7 | X103: 11 | Y103: 223 | Z103: 56 | AA103: 0 | AB103: 0 | AC103: 0 | AD103: 0 | AE103: 0 | AF103: 0 | AG103: 1 | AH103: 0 | AI103: 0 | AJ103: 1 | AK103: 0 | AL103: 0 | AM103: 1 | AN103: 0 | AO103: 1 | AP103: 0 | AQ103: 0 | AS103: 1 | AT103: METABAT_AS09scLD_367 | AU103: root (UID1) | AV103: 5656 | AW103: 56 | AX103: 24 | AY103: 0 | AZ103: 0 | BA103: 0 | BB103: 0 | BC103: 211878 | BD103: 0 | BE103: 14 | BF103: 14 | BG103: 32271 | BH103: 32271 | BI103: 15134 | BJ103: 15134 | BK103: 50217 | BL103: 50217 | BM103: 33.4 | BN103: 1.62 | BO103: 88.72 | BP103: 11 | BQ103: 223 | BR103: 56 | BS103: 0 | BT103: 0 | BU103: 0 | BV103: 0 | BW103: 0 | BX103: 0 | BY103: 1 | BZ103: 0 | CA103: 0 | CB103: 1 | CC103: 0 | CD103: 0 | CE103: 1 | CF103: 0 | CG103: 1 | CH103: 0 | CI103: 0 | CL103: 0 | CM103: 0 | CN103: cp | CO103: METABAT_AS09scLD_367 | CP103: .faa | CQ103: lowQ
A104: 2487 | B104: METABAT_AS09scLD_373 | C104: k__Bacteria (UID203) | D104: 5449 | E104: 104 | F104: 58 | G104: 0 | H104: 0 | I104: 0 | J104: 0 | K104: 322311 | L104: 0 | M104: 125 | N104: 125 | O104: 2741 | P104: 2741 | Q104: 2578 | R104: 2578 | S104: 6986 | T104: 6986 | U104: 44.9 | V104: 2.12 | W104: 90.62 | X104: 11 | Y104: 397 | Z104: 104 | AA104: 0 | AB104: 0 | AC104: 0 | AD104: 0 | AE104: 0 | AF104: 0 | AG104: 1 | AH104: 0 | AI104: 0 | AJ104: 1 | AK104: 0 | AL104: 0 | AM104: 1 | AN104: 0 | AO104: 1 | AP104: 0 | AQ104: 0 | AS104: 1 | AT104: METABAT_AS09scLD_373 | AU104: k__Bacteria (UID203) | AV104: 5449 | AW104: 104 | AX104: 58 | AY104: 0 | AZ104: 0 | BA104: 0 | BB104: 0 | BC104: 322311 | BD104: 0 | BE104: 125 | BF104: 125 | BG104: 2741 | BH104: 2741 | BI104: 2578 | BJ104: 2578 | BK104: 6986 | BL104: 6986 | BM104: 44.9 | BN104: 2.12 | BO104: 90.64 | BP104: 11 | BQ104: 397 | BR104: 104 | BS104: 0 | BT104: 0 | BU104: 0 | BV104: 0 | BW104: 0 | BX104: 0 | BY104: 1 | BZ104: 0 | CA104: 0 | CB104: 1 | CC104: 0 | CD104: 0 | CE104: 1 | CF104: 0 | CG104: 1 | CH104: 0 | CI104: 0 | CL104: 0 | CM104: 0 | CN104: cp | CO104: METABAT_AS09scLD_373 | CP104: .faa | CQ104: lowQ
A105: 2514 | B105: METABAT_AS09scLD_398 | C105: root (UID1) | D105: 5656 | E105: 56 | F105: 24 | G105: 0 | H105: 0 | I105: 0 | J105: 0 | K105: 1390756 | L105: 0 | M105: 274 | N105: 274 | O105: 7028 | P105: 7028 | Q105: 5075 | R105: 5075 | S105: 36144 | T105: 36144 | U105: 51.2 | V105: 5.17 | W105: 87.15 | X105: 11 | Y105: 1496 | Z105: 56 | AA105: 0 | AB105: 0 | AC105: 0 | AD105: 0 | AE105: 0 | AF105: 0 | AG105: 1 | AH105: 0 | AI105: 0 | AJ105: 1 | AK105: 0 | AL105: 0 | AM105: 1 | AN105: 0 | AO105: 1 | AP105: 0 | AQ105: 0 | AS105: 1 | AT105: METABAT_AS09scLD_398 | AU105: root (UID1) | AV105: 5656 | AW105: 56 | AX105: 24 | AY105: 0 | AZ105: 0 | BA105: 0 | BB105: 0 | BC105: 1234751 | BD105: 0 | BE105: 257 | BF105: 257 | BG105: 6398 | BH105: 6398 | BI105: 4804 | BJ105: 4804 | BK105: 34087 | BL105: 34087 | BM105: 51.2 | BN105: 4.65 | BO105: 86.95 | BP105: 11 | BQ105: 1350 | BR105: 56 | BS105: 0 | BT105: 0 | BU105: 0 | BV105: 0 | BW105: 0 | BX105: 0 | BY105: 1 | BZ105: 0 | CA105: 0 | CB105: 1 | CC105: 0 | CD105: 0 | CE105: 1 | CF105: 0 | CG105: 1 | CH105: 0 | CI105: 0 | CL105: 0 | CM105: -156005 | CN105: cp | CO105: METABAT_AS09scLD_398 | CP105: .faa | CQ105: lowQ
A106: 2546 | B106: METABAT_AS09scLD_47 | C106: root (UID1) | D106: 5656 | E106: 56 | F106: 24 | G106: 0 | H106: 0 | I106: 0 | J106: 0 | K106: 235354 | L106: 0 | M106: 54 | N106: 54 | O106: 4980 | P106: 4980 | Q106: 4358 | R106: 4358 | S106: 21268 | T106: 21268 | U106: 42.1 | V106: 1.68 | W106: 88.85 | X106: 11 | Y106: 239 | Z106: 56 | AA106: 0 | AB106: 0 | AC106: 0 | AD106: 0 | AE106: 0 | AF106: 0 | AG106: 1 | AH106: 0 | AI106: 0 | AJ106: 1 | AK106: 0 | AL106: 0 | AM106: 1 | AN106: 0 | AO106: 1 | AP106: 0 | AQ106: 0 | AS106: 1 | AT106: METABAT_AS09scLD_47 | AU106: root (UID1) | AV106: 5656 | AW106: 56 | AX106: 24 | AY106: 0 | AZ106: 0 | BA106: 0 | BB106: 0 | BC106: 235354 | BD106: 0 | BE106: 54 | BF106: 54 | BG106: 4980 | BH106: 4980 | BI106: 4358 | BJ106: 4358 | BK106: 21268 | BL106: 21268 | BM106: 42.1 | BN106: 1.68 | BO106: 88.74 | BP106: 11 | BQ106: 237 | BR106: 56 | BS106: 0 | BT106: 0 | BU106: 0 | BV106: 0 | BW106: 0 | BX106: 0 | BY106: 1 | BZ106: 0 | CA106: 0 | CB106: 1 | CC106: 0 | CD106: 0 | CE106: 1 | CF106: 0 | CG106: 1 | CH106: 0 | CI106: 0 | CL106: 0 | CM106: 0 | CN106: cp | CO106: METABAT_AS09scLD_47 | CP106: .faa | CQ106: lowQ
A107: 2564 | B107: METABAT_AS09scLD_63 | C107: root (UID1) | D107: 5656 | E107: 56 | F107: 24 | G107: 0 | H107: 0 | I107: 0 | J107: 0 | K107: 432876 | L107: 0 | M107: 122 | N107: 122 | O107: 4014 | P107: 4014 | Q107: 3548 | R107: 3548 | S107: 19473 | T107: 19473 | U107: 33.6 | V107: 11.33 | W107: 88.21 | X107: 11 | Y107: 714 | Z107: 56 | AA107: 0 | AB107: 0 | AC107: 0 | AD107: 0 | AE107: 0 | AF107: 0 | AG107: 1 | AH107: 0 | AI107: 0 | AJ107: 1 | AK107: 0 | AL107: 0 | AM107: 1 | AN107: 0 | AO107: 1 | AP107: 0 | AQ107: 0 | AS107: 1 | AT107: METABAT_AS09scLD_63 | AU107: root (UID1) | AV107: 5656 | AW107: 56 | AX107: 24 | AY107: 0 | AZ107: 0 | BA107: 0 | BB107: 0 | BC107: 361959 | BD107: 0 | BE107: 90 | BF107: 90 | BG107: 5391 | BH107: 5391 | BI107: 4021 | BJ107: 4021 | BK107: 19473 | BL107: 19473 | BM107: 29.8 | BN107: 1.83 | BO107: 87.85 | BP107: 11 | BQ107: 613 | BR107: 56 | BS107: 0 | BT107: 0 | BU107: 0 | BV107: 0 | BW107: 0 | BX107: 0 | BY107: 1 | BZ107: 0 | CA107: 0 | CB107: 1 | CC107: 0 | CD107: 0 | CE107: 1 | CF107: 0 | CG107: 1 | CH107: 0 | CI107: 0 | CL107: 0 | CM107: -70917 | CN107: cp | CO107: METABAT_AS09scLD_63 | CP107: .faa | CQ107: lowQ
A108: 4215 | B108: METABAT_AS10tlH2TH_164 | C108: root (UID1) | D108: 5656 | E108: 56 | F108: 24 | G108: 0 | H108: 0 | I108: 0 | J108: 0 | K108: 404195 | L108: 0 | M108: 131 | N108: 131 | O108: 3315 | P108: 3315 | Q108: 3085 | R108: 3085 | S108: 10291 | T108: 10291 | U108: 39.1 | V108: 1.96 | W108: 89.39 | X108: 11 | Y108: 440 | Z108: 56 | AA108: 0 | AB108: 0 | AC108: 0 | AD108: 0 | AE108: 0 | AF108: 0 | AG108: 1 | AH108: 0 | AI108: 0 | AJ108: 1 | AK108: 0 | AL108: 0 | AM108: 1 | AN108: 0 | AO108: 1 | AP108: 0 | AQ108: 0 | AS108: 1 | AT108: METABAT_AS10tlH2TH_164 | AU108: root (UID1) | AV108: 5656 | AW108: 56 | AX108: 24 | AY108: 0 | AZ108: 0 | BA108: 0 | BB108: 0 | BC108: 402662 | BD108: 0 | BE108: 130 | BF108: 130 | BG108: 3315 | BH108: 3315 | BI108: 3097 | BJ108: 3097 | BK108: 10291 | BL108: 10291 | BM108: 39.1 | BN108: 1.71 | BO108: 89.26 | BP108: 11 | BQ108: 438 | BR108: 56 | BS108: 0 | BT108: 0 | BU108: 0 | BV108: 0 | BW108: 0 | BX108: 0 | BY108: 1 | BZ108: 0 | CA108: 0 | CB108: 1 | CC108: 0 | CD108: 0 | CE108: 1 | CF108: 0 | CG108: 1 | CH108: 0 | CI108: 0 | CL108: 0 | CM108: -1533 | CN108: cp | CO108: METABAT_AS10tlH2TH_164 | CP108: .faa | CQ108: lowQ
A109: 4293 | B109: METABAT_AS10tlH2TH_234 | C109: root (UID1) | D109: 5656 | E109: 56 | F109: 24 | G109: 0 | H109: 0 | I109: 0 | J109: 0 | K109: 262894 | L109: 0 | M109: 74 | N109: 74 | O109: 4233 | P109: 4233 | Q109: 3552 | R109: 3552 | S109: 11693 | T109: 11693 | U109: 46.3 | V109: 2.17 | W109: 86.56 | X109: 11 | Y109: 306 | Z109: 56 | AA109: 0 | AB109: 0 | AC109: 0 | AD109: 0 | AE109: 0 | AF109: 0 | AG109: 1 | AH109: 0 | AI109: 0 | AJ109: 1 | AK109: 0 | AL109: 0 | AM109: 1 | AN109: 0 | AO109: 1 | AP109: 0 | AQ109: 0 | AS109: 1 | AT109: METABAT_AS10tlH2TH_234 | AU109: root (UID1) | AV109: 5656 | AW109: 56 | AX109: 24 | AY109: 0 | AZ109: 0 | BA109: 0 | BB109: 0 | BC109: 262894 | BD109: 0 | BE109: 74 | BF109: 74 | BG109: 4233 | BH109: 4233 | BI109: 3552 | BJ109: 3552 | BK109: 11693 | BL109: 11693 | BM109: 46.3 | BN109: 2.17 | BO109: 86.57 | BP109: 11 | BQ109: 306 | BR109: 56 | BS109: 0 | BT109: 0 | BU109: 0 | BV109: 0 | BW109: 0 | BX109: 0 | BY109: 1 | BZ109: 0 | CA109: 0 | CB109: 1 | CC109: 0 | CD109: 0 | CE109: 1 | CF109: 0 | CG109: 1 | CH109: 0 | CI109: 0 | CL109: 0 | CM109: 0 | CN109: cp | CO109: METABAT_AS10tlH2TH_234 | CP109: .faa | CQ109: lowQ
A110: 4374 | B110: METABAT_AS10tlH2TH_307 | C110: root (UID1) | D110: 5656 | E110: 56 | F110: 24 | G110: 0 | H110: 0 | I110: 0 | J110: 0 | K110: 475775 | L110: 0 | M110: 127 | N110: 127 | O110: 4040 | P110: 4040 | Q110: 3746 | R110: 3746 | S110: 23769 | T110: 23769 | U110: 47.5 | V110: 2.38 | W110: 90.63 | X110: 11 | Y110: 662 | Z110: 56 | AA110: 0 | AB110: 0 | AC110: 0 | AD110: 0 | AE110: 0 | AF110: 0 | AG110: 1 | AH110: 0 | AI110: 0 | AJ110: 1 | AK110: 0 | AL110: 0 | AM110: 1 | AN110: 0 | AO110: 1 | AP110: 0 | AQ110: 0 | AS110: 1 | AT110: METABAT_AS10tlH2TH_307 | AU110: root (UID1) | AV110: 5656 | AW110: 56 | AX110: 24 | AY110: 0 | AZ110: 0 | BA110: 0 | BB110: 0 | BC110: 452006 | BD110: 0 | BE110: 126 | BF110: 126 | BG110: 3976 | BH110: 3976 | BI110: 3587 | BJ110: 3587 | BK110: 15598 | BL110: 15598 | BM110: 47.6 | BN110: 2.38 | BO110: 90.18 | BP110: 11 | BQ110: 646 | BR110: 56 | BS110: 0 | BT110: 0 | BU110: 0 | BV110: 0 | BW110: 0 | BX110: 0 | BY110: 1 | BZ110: 0 | CA110: 0 | CB110: 1 | CC110: 0 | CD110: 0 | CE110: 1 | CF110: 0 | CG110: 1 | CH110: 0 | CI110: 0 | CL110: 0 | CM110: -23769 | CN110: cp | CO110: METABAT_AS10tlH2TH_307 | CP110: .faa | CQ110: lowQ
A111: 4388 | B111: METABAT_AS10tlH2TH_32 | C111: root (UID1) | D111: 5656 | E111: 56 | F111: 24 | G111: 0 | H111: 0 | I111: 0 | J111: 0 | K111: 319753 | L111: 0 | M111: 27 | N111: 27 | O111: 15879 | P111: 15879 | Q111: 11842 | R111: 11842 | S111: 25331 | T111: 25331 | U111: 50.2 | V111: 1.38 | W111: 88.39 | X111: 11 | Y111: 275 | Z111: 56 | AA111: 0 | AB111: 0 | AC111: 0 | AD111: 0 | AE111: 0 | AF111: 0 | AG111: 1 | AH111: 0 | AI111: 0 | AJ111: 1 | AK111: 0 | AL111: 0 | AM111: 1 | AN111: 0 | AO111: 1 | AP111: 0 | AQ111: 0 | AS111: 1 | AT111: METABAT_AS10tlH2TH_32 | AU111: root (UID1) | AV111: 5656 | AW111: 56 | AX111: 24 | AY111: 0 | AZ111: 0 | BA111: 0 | BB111: 0 | BC111: 319753 | BD111: 0 | BE111: 27 | BF111: 27 | BG111: 15879 | BH111: 15879 | BI111: 11842 | BJ111: 11842 | BK111: 25331 | BL111: 25331 | BM111: 50.2 | BN111: 1.38 | BO111: 88.38 | BP111: 11 | BQ111: 275 | BR111: 56 | BS111: 0 | BT111: 0 | BU111: 0 | BV111: 0 | BW111: 0 | BX111: 0 | BY111: 1 | BZ111: 0 | CA111: 0 | CB111: 1 | CC111: 0 | CD111: 0 | CE111: 1 | CF111: 0 | CG111: 1 | CH111: 0 | CI111: 0 | CL111: 0 | CM111: 0 | CN111: cp | CO111: METABAT_AS10tlH2TH_32 | CP111: .faa | CQ111: lowQ
A112: 4397 | B112: METABAT_AS10tlH2TH_328 | C112: root (UID1) | D112: 5656 | E112: 56 | F112: 24 | G112: 0 | H112: 0 | I112: 0 | J112: 0 | K112: 456318 | L112: 0 | M112: 107 | N112: 107 | O112: 4701 | P112: 4701 | Q112: 4264 | R112: 4264 | S112: 38520 | T112: 38520 | U112: 59.9 | V112: 2.72 | W112: 89.87 | X112: 11 | Y112: 440 | Z112: 56 | AA112: 0 | AB112: 0 | AC112: 0 | AD112: 0 | AE112: 0 | AF112: 0 | AG112: 1 | AH112: 0 | AI112: 0 | AJ112: 1 | AK112: 0 | AL112: 0 | AM112: 1 | AN112: 0 | AO112: 1 | AP112: 0 | AQ112: 0 | AS112: 1 | AT112: METABAT_AS10tlH2TH_328 | AU112: root (UID1) | AV112: 5656 | AW112: 56 | AX112: 24 | AY112: 0 | AZ112: 0 | BA112: 0 | BB112: 0 | BC112: 454150 | BD112: 0 | BE112: 106 | BF112: 106 | BG112: 4701 | BH112: 4701 | BI112: 4284 | BJ112: 4284 | BK112: 38520 | BL112: 38520 | BM112: 59.9 | BN112: 2.52 | BO112: 89.83 | BP112: 11 | BQ112: 439 | BR112: 56 | BS112: 0 | BT112: 0 | BU112: 0 | BV112: 0 | BW112: 0 | BX112: 0 | BY112: 1 | BZ112: 0 | CA112: 0 | CB112: 1 | CC112: 0 | CD112: 0 | CE112: 1 | CF112: 0 | CG112: 1 | CH112: 0 | CI112: 0 | CL112: 0 | CM112: -2168 | CN112: cp | CO112: METABAT_AS10tlH2TH_328 | CP112: .faa | CQ112: lowQ
A113: 4426 | B113: METABAT_AS10tlH2TH_354 | C113: root (UID1) | D113: 5656 | E113: 56 | F113: 24 | G113: 0 | H113: 0 | I113: 0 | J113: 0 | K113: 557255 | L113: 0 | M113: 153 | N113: 153 | O113: 4516 | P113: 4516 | Q113: 3642 | R113: 3642 | S113: 15762 | T113: 15762 | U113: 49 | V113: 5.83 | W113: 89.82 | X113: 11 | Y113: 627 | Z113: 56 | AA113: 0 | AB113: 0 | AC113: 0 | AD113: 0 | AE113: 0 | AF113: 0 | AG113: 1 | AH113: 0 | AI113: 0 | AJ113: 1 | AK113: 0 | AL113: 0 | AM113: 1 | AN113: 0 | AO113: 1 | AP113: 0 | AQ113: 0 | AS113: 1 | AT113: METABAT_AS10tlH2TH_354 | AU113: root (UID1) | AV113: 5656 | AW113: 56 | AX113: 24 | AY113: 0 | AZ113: 0 | BA113: 0 | BB113: 0 | BC113: 438943 | BD113: 0 | BE113: 125 | BF113: 125 | BG113: 4049 | BH113: 4049 | BI113: 3511 | BJ113: 3511 | BK113: 15762 | BL113: 15762 | BM113: 47.6 | BN113: 3.98 | BO113: 89.47 | BP113: 11 | BQ113: 500 | BR113: 56 | BS113: 0 | BT113: 0 | BU113: 0 | BV113: 0 | BW113: 0 | BX113: 0 | BY113: 1 | BZ113: 0 | CA113: 0 | CB113: 1 | CC113: 0 | CD113: 0 | CE113: 1 | CF113: 0 | CG113: 1 | CH113: 0 | CI113: 0 | CL113: 0 | CM113: -118312 | CN113: cp | CO113: METABAT_AS10tlH2TH_354 | CP113: .faa | CQ113: lowQ
A114: 4432 | B114: METABAT_AS10tlH2TH_36 | C114: root (UID1) | D114: 5656 | E114: 56 | F114: 24 | G114: 0 | H114: 0 | I114: 0 | J114: 0 | K114: 450482 | L114: 0 | M114: 106 | N114: 106 | O114: 5461 | P114: 5461 | Q114: 4249 | R114: 4249 | S114: 17197 | T114: 17197 | U114: 48.5 | V114: 5.04 | W114: 88.23 | X114: 11 | Y114: 476 | Z114: 56 | AA114: 0 | AB114: 0 | AC114: 0 | AD114: 0 | AE114: 0 | AF114: 0 | AG114: 1 | AH114: 0 | AI114: 0 | AJ114: 1 | AK114: 0 | AL114: 0 | AM114: 1 | AN114: 0 | AO114: 1 | AP114: 0 | AQ114: 0 | AS114: 1 | AT114: METABAT_AS10tlH2TH_36 | AU114: root (UID1) | AV114: 5656 | AW114: 56 | AX114: 24 | AY114: 0 | AZ114: 0 | BA114: 0 | BB114: 0 | BC114: 408992 | BD114: 0 | BE114: 95 | BF114: 95 | BG114: 5606 | BH114: 5606 | BI114: 4305 | BJ114: 4305 | BK114: 17197 | BL114: 17197 | BM114: 49.2 | BN114: 3.2 | BO114: 88.34 | BP114: 11 | BQ114: 446 | BR114: 56 | BS114: 0 | BT114: 0 | BU114: 0 | BV114: 0 | BW114: 0 | BX114: 0 | BY114: 1 | BZ114: 0 | CA114: 0 | CB114: 1 | CC114: 0 | CD114: 0 | CE114: 1 | CF114: 0 | CG114: 1 | CH114: 0 | CI114: 0 | CL114: 0 | CM114: -41490 | CN114: cp | CO114: METABAT_AS10tlH2TH_36 | CP114: .faa | CQ114: lowQ
A115: 4562 | B115: METABAT_AS10tlH2TH_89 | C115: root (UID1) | D115: 5656 | E115: 56 | F115: 24 | G115: 0 | H115: 0 | I115: 0 | J115: 0 | K115: 683410 | L115: 0 | M115: 276 | N115: 276 | O115: 2385 | P115: 2385 | Q115: 2476 | R115: 2476 | S115: 9494 | T115: 9494 | U115: 45.5 | V115: 2.29 | W115: 88.63 | X115: 11 | Y115: 774 | Z115: 56 | AA115: 0 | AB115: 0 | AC115: 0 | AD115: 0 | AE115: 0 | AF115: 0 | AG115: 1 | AH115: 0 | AI115: 0 | AJ115: 1 | AK115: 0 | AL115: 0 | AM115: 1 | AN115: 0 | AO115: 1 | AP115: 0 | AQ115: 0 | AS115: 1 | AT115: METABAT_AS10tlH2TH_89 | AU115: root (UID1) | AV115: 5656 | AW115: 56 | AX115: 24 | AY115: 0 | AZ115: 0 | BA115: 0 | BB115: 0 | BC115: 683410 | BD115: 0 | BE115: 276 | BF115: 276 | BG115: 2385 | BH115: 2385 | BI115: 2476 | BJ115: 2476 | BK115: 9494 | BL115: 9494 | BM115: 45.5 | BN115: 2.29 | BO115: 88.85 | BP115: 11 | BQ115: 781 | BR115: 56 | BS115: 0 | BT115: 0 | BU115: 0 | BV115: 0 | BW115: 0 | BX115: 0 | BY115: 1 | BZ115: 0 | CA115: 0 | CB115: 1 | CC115: 0 | CD115: 0 | CE115: 1 | CF115: 0 | CG115: 1 | CH115: 0 | CI115: 0 | CL115: 0 | CM115: 0 | CN115: cp | CO115: METABAT_AS10tlH2TH_89 | CP115: .faa | CQ115: lowQ
A116: 4572 | B116: METABAT_AS10tlH2TH_98 | C116: root (UID1) | D116: 5656 | E116: 56 | F116: 24 | G116: 0 | H116: 0 | I116: 0 | J116: 0 | K116: 724148 | L116: 0 | M116: 182 | N116: 182 | O116: 4562 | P116: 4562 | Q116: 3978 | R116: 3978 | S116: 24380 | T116: 24380 | U116: 57.2 | V116: 1.91 | W116: 90 | X116: 11 | Y116: 760 | Z116: 56 | AA116: 0 | AB116: 0 | AC116: 0 | AD116: 0 | AE116: 0 | AF116: 0 | AG116: 1 | AH116: 0 | AI116: 0 | AJ116: 1 | AK116: 0 | AL116: 0 | AM116: 1 | AN116: 0 | AO116: 1 | AP116: 0 | AQ116: 0 | AS116: 1 | AT116: METABAT_AS10tlH2TH_98 | AU116: root (UID1) | AV116: 5656 | AW116: 56 | AX116: 24 | AY116: 0 | AZ116: 0 | BA116: 0 | BB116: 0 | BC116: 721591 | BD116: 0 | BE116: 181 | BF116: 181 | BG116: 4562 | BH116: 4562 | BI116: 3986 | BJ116: 3986 | BK116: 24380 | BL116: 24380 | BM116: 57.2 | BN116: 1.72 | BO116: 89.99 | BP116: 11 | BQ116: 754 | BR116: 56 | BS116: 0 | BT116: 0 | BU116: 0 | BV116: 0 | BW116: 0 | BX116: 0 | BY116: 1 | BZ116: 0 | CA116: 0 | CB116: 1 | CC116: 0 | CD116: 0 | CE116: 1 | CF116: 0 | CG116: 1 | CH116: 0 | CI116: 0 | CL116: 0 | CM116: -2557 | CN116: cp | CO116: METABAT_AS10tlH2TH_98 | CP116: .faa | CQ116: lowQ
A117: 2641 | B117: METABAT_AS15tlH2ME_131 | C117: root (UID1) | D117: 5656 | E117: 56 | F117: 24 | G117: 0 | H117: 0 | I117: 0 | J117: 0 | K117: 263491 | L117: 0 | M117: 139 | N117: 139 | O117: 1858 | P117: 1858 | Q117: 1895 | R117: 1895 | S117: 3458 | T117: 3458 | U117: 66.8 | V117: 2.14 | W117: 89.65 | X117: 11 | Y117: 326 | Z117: 56 | AA117: 0 | AB117: 0 | AC117: 0 | AD117: 0 | AE117: 0 | AF117: 0 | AG117: 1 | AH117: 0 | AI117: 0 | AJ117: 1 | AK117: 0 | AL117: 0 | AM117: 1 | AN117: 0 | AO117: 1 | AP117: 0 | AQ117: 0 | AS117: 1 | AT117: METABAT_AS15tlH2ME_131 | AU117: root (UID1) | AV117: 5656 | AW117: 56 | AX117: 24 | AY117: 0 | AZ117: 0 | BA117: 0 | BB117: 0 | BC117: 263491 | BD117: 0 | BE117: 139 | BF117: 139 | BG117: 1858 | BH117: 1858 | BI117: 1895 | BJ117: 1895 | BK117: 3458 | BL117: 3458 | BM117: 66.8 | BN117: 2.14 | BO117: 89.55 | BP117: 11 | BQ117: 325 | BR117: 56 | BS117: 0 | BT117: 0 | BU117: 0 | BV117: 0 | BW117: 0 | BX117: 0 | BY117: 1 | BZ117: 0 | CA117: 0 | CB117: 1 | CC117: 0 | CD117: 0 | CE117: 1 | CF117: 0 | CG117: 1 | CH117: 0 | CI117: 0 | CL117: 0 | CM117: 0 | CN117: cp | CO117: METABAT_AS15tlH2ME_131 | CP117: .faa | CQ117: lowQ
A118: 2724 | B118: METABAT_AS15tlH2ME_206 | C118: root (UID1) | D118: 5656 | E118: 56 | F118: 24 | G118: 0 | H118: 0 | I118: 0 | J118: 0 | K118: 209064 | L118: 0 | M118: 15 | N118: 15 | O118: 34248 | P118: 34248 | Q118: 13937 | R118: 13937 | S118: 49371 | T118: 49371 | U118: 33.5 | V118: 1.45 | W118: 88.47 | X118: 11 | Y118: 220 | Z118: 56 | AA118: 0 | AB118: 0 | AC118: 0 | AD118: 0 | AE118: 0 | AF118: 0 | AG118: 1 | AH118: 0 | AI118: 0 | AJ118: 1 | AK118: 0 | AL118: 0 | AM118: 1 | AN118: 0 | AO118: 1 | AP118: 0 | AQ118: 0 | AS118: 1 | AT118: METABAT_AS15tlH2ME_206 | AU118: root (UID1) | AV118: 5656 | AW118: 56 | AX118: 24 | AY118: 0 | AZ118: 0 | BA118: 0 | BB118: 0 | BC118: 209064 | BD118: 0 | BE118: 15 | BF118: 15 | BG118: 34248 | BH118: 34248 | BI118: 13937 | BJ118: 13937 | BK118: 49371 | BL118: 49371 | BM118: 33.5 | BN118: 1.45 | BO118: 88.44 | BP118: 11 | BQ118: 220 | BR118: 56 | BS118: 0 | BT118: 0 | BU118: 0 | BV118: 0 | BW118: 0 | BX118: 0 | BY118: 1 | BZ118: 0 | CA118: 0 | CB118: 1 | CC118: 0 | CD118: 0 | CE118: 1 | CF118: 0 | CG118: 1 | CH118: 0 | CI118: 0 | CL118: 0 | CM118: 0 | CN118: cp | CO118: METABAT_AS15tlH2ME_206 | CP118: .faa | CQ118: lowQ
A119: 2769 | B119: METABAT_AS15tlH2ME_31 | C119: root (UID1) | D119: 5656 | E119: 56 | F119: 24 | G119: 0 | H119: 0 | I119: 0 | J119: 0 | K119: 245897 | L119: 0 | M119: 100 | N119: 100 | O119: 2370 | P119: 2370 | Q119: 2458 | R119: 2458 | S119: 6715 | T119: 6715 | U119: 48.7 | V119: 2.47 | W119: 88.31 | X119: 11 | Y119: 292 | Z119: 56 | AA119: 0 | AB119: 0 | AC119: 0 | AD119: 0 | AE119: 0 | AF119: 0 | AG119: 1 | AH119: 0 | AI119: 0 | AJ119: 1 | AK119: 0 | AL119: 0 | AM119: 1 | AN119: 0 | AO119: 1 | AP119: 0 | AQ119: 0 | AS119: 1 | AT119: METABAT_AS15tlH2ME_31 | AU119: root (UID1) | AV119: 5656 | AW119: 56 | AX119: 24 | AY119: 0 | AZ119: 0 | BA119: 0 | BB119: 0 | BC119: 245897 | BD119: 0 | BE119: 100 | BF119: 100 | BG119: 2370 | BH119: 2370 | BI119: 2458 | BJ119: 2458 | BK119: 6715 | BL119: 6715 | BM119: 48.7 | BN119: 2.47 | BO119: 88.47 | BP119: 11 | BQ119: 295 | BR119: 56 | BS119: 0 | BT119: 0 | BU119: 0 | BV119: 0 | BW119: 0 | BX119: 0 | BY119: 1 | BZ119: 0 | CA119: 0 | CB119: 1 | CC119: 0 | CD119: 0 | CE119: 1 | CF119: 0 | CG119: 1 | CH119: 0 | CI119: 0 | CL119: 0 | CM119: 0 | CN119: cp | CO119: METABAT_AS15tlH2ME_31 | CP119: .faa | CQ119: lowQ
A120: 4601 | B120: METABAT_AS16jrsBPLL_33 | C120: root (UID1) | D120: 5656 | E120: 56 | F120: 24 | G120: 0 | H120: 0 | I120: 0 | J120: 0 | K120: 210456 | L120: 0 | M120: 100 | N120: 100 | O120: 2161 | P120: 2161 | Q120: 2104 | R120: 2104 | S120: 3929 | T120: 3929 | U120: 64.3 | V120: 2.12 | W120: 88.19 | X120: 11 | Y120: 299 | Z120: 56 | AA120: 0 | AB120: 0 | AC120: 0 | AD120: 0 | AE120: 0 | AF120: 0 | AG120: 1 | AH120: 0 | AI120: 0 | AJ120: 1 | AK120: 0 | AL120: 0 | AM120: 1 | AN120: 0 | AO120: 1 | AP120: 0 | AQ120: 0 | AS120: 1 | AT120: METABAT_AS16jrsBPLL_33 | AU120: root (UID1) | AV120: 5656 | AW120: 56 | AX120: 24 | AY120: 0 | AZ120: 0 | BA120: 0 | BB120: 0 | BC120: 210456 | BD120: 0 | BE120: 100 | BF120: 100 | BG120: 2161 | BH120: 2161 | BI120: 2104 | BJ120: 2104 | BK120: 3929 | BL120: 3929 | BM120: 64.3 | BN120: 2.12 | BO120: 88.23 | BP120: 11 | BQ120: 299 | BR120: 56 | BS120: 0 | BT120: 0 | BU120: 0 | BV120: 0 | BW120: 0 | BX120: 0 | BY120: 1 | BZ120: 0 | CA120: 0 | CB120: 1 | CC120: 0 | CD120: 0 | CE120: 1 | CF120: 0 | CG120: 1 | CH120: 0 | CI120: 0 | CL120: 0 | CM120: 0 | CN120: cp | CO120: METABAT_AS16jrsBPLL_33 | CP120: .faa | CQ120: lowQ
A121: 729 | B121: METABAT_AS20ysBPTH_130 | C121: root (UID1) | D121: 5656 | E121: 56 | F121: 24 | G121: 0 | H121: 0 | I121: 0 | J121: 0 | K121: 288249 | L121: 0 | M121: 57 | N121: 57 | O121: 7239 | P121: 7239 | Q121: 5057 | R121: 5057 | S121: 25026 | T121: 25026 | U121: 32.9 | V121: 1.61 | W121: 87.68 | X121: 11 | Y121: 302 | Z121: 56 | AA121: 0 | AB121: 0 | AC121: 0 | AD121: 0 | AE121: 0 | AF121: 0 | AG121: 1 | AH121: 0 | AI121: 0 | AJ121: 1 | AK121: 0 | AL121: 0 | AM121: 1 | AN121: 0 | AO121: 1 | AP121: 0 | AQ121: 0 | AS121: 1 | AT121: METABAT_AS20ysBPTH_130 | AU121: root (UID1) | AV121: 5656 | AW121: 56 | AX121: 24 | AY121: 0 | AZ121: 0 | BA121: 0 | BB121: 0 | BC121: 288249 | BD121: 0 | BE121: 57 | BF121: 57 | BG121: 7239 | BH121: 7239 | BI121: 5057 | BJ121: 5057 | BK121: 25026 | BL121: 25026 | BM121: 32.9 | BN121: 1.61 | BO121: 87.68 | BP121: 11 | BQ121: 302 | BR121: 56 | BS121: 0 | BT121: 0 | BU121: 0 | BV121: 0 | BW121: 0 | BX121: 0 | BY121: 1 | BZ121: 0 | CA121: 0 | CB121: 1 | CC121: 0 | CD121: 0 | CE121: 1 | CF121: 0 | CG121: 1 | CH121: 0 | CI121: 0 | CL121: 0 | CM121: 0 | CN121: cp | CO121: METABAT_AS20ysBPTH_130 | CP121: .faa | CQ121: lowQ
A122: 731 | B122: METABAT_AS20ysBPTH_132 | C122: k__Archaea (UID2) | D122: 207 | E122: 149 | F122: 107 | G122: 8.41 | H122: 0 | I122: 0 | J122: 0 | K122: 278896 | L122: 0 | M122: 57 | N122: 57 | O122: 6165 | P122: 6165 | Q122: 4892 | R122: 4892 | S122: 14577 | T122: 14577 | U122: 41.9 | V122: 2.63 | W122: 76.06 | X122: 11 | Y122: 296 | Z122: 132 | AA122: 17 | AB122: 0 | AC122: 0 | AD122: 0 | AE122: 0 | AF122: 0 | AG122: 1 | AH122: 0 | AI122: 0 | AJ122: 1 | AK122: 0 | AL122: 0 | AM122: 1 | AN122: 0 | AO122: 1 | AP122: 0 | AQ122: 0 | AR122: 8.41 | AS122: 1 | AT122: METABAT_AS20ysBPTH_132 | AU122: root (UID1) | AV122: 5656 | AW122: 56 | AX122: 24 | AY122: 0 | AZ122: 0 | BA122: 0 | BB122: 0 | BC122: 272731 | BD122: 0 | BE122: 56 | BF122: 56 | BG122: 6187 | BH122: 6187 | BI122: 4870 | BJ122: 4870 | BK122: 14577 | BL122: 14577 | BM122: 41.8 | BN122: 2.53 | BO122: 75.47 | BP122: 11 | BQ122: 279 | BR122: 56 | BS122: 0 | BT122: 0 | BU122: 0 | BV122: 0 | BW122: 0 | BX122: 0 | BY122: 1 | BZ122: 0 | CA122: 0 | CB122: 1 | CC122: 0 | CD122: 0 | CE122: 1 | CF122: 0 | CG122: 1 | CH122: 0 | CI122: 0 | CL122: 0 | CM122: -6165 | CN122: cp | CO122: METABAT_AS20ysBPTH_132 | CP122: .faa | CQ122: lowQ
A123: 735 | B123: METABAT_AS20ysBPTH_136 | C123: root (UID1) | D123: 5656 | E123: 56 | F123: 24 | G123: 0 | H123: 0 | I123: 0 | J123: 0 | K123: 640769 | L123: 0 | M123: 161 | N123: 161 | O123: 4964 | P123: 4964 | Q123: 3979 | R123: 3979 | S123: 17170 | T123: 17170 | U123: 27.4 | V123: 4.94 | W123: 85.57 | X123: 11 | Y123: 775 | Z123: 56 | AA123: 0 | AB123: 0 | AC123: 0 | AD123: 0 | AE123: 0 | AF123: 0 | AG123: 1 | AH123: 0 | AI123: 0 | AJ123: 1 | AK123: 0 | AL123: 0 | AM123: 1 | AN123: 0 | AO123: 1 | AP123: 0 | AQ123: 0 | AS123: 1 | AT123: METABAT_AS20ysBPTH_136 | AU123: root (UID1) | AV123: 5656 | AW123: 56 | AX123: 24 | AY123: 0 | AZ123: 0 | BA123: 0 | BB123: 0 | BC123: 593698 | BD123: 0 | BE123: 150 | BF123: 150 | BG123: 4964 | BH123: 4964 | BI123: 3957 | BJ123: 3957 | BK123: 17170 | BL123: 17170 | BM123: 26.8 | BN123: 2 | BO123: 85.61 | BP123: 11 | BQ123: 711 | BR123: 56 | BS123: 0 | BT123: 0 | BU123: 0 | BV123: 0 | BW123: 0 | BX123: 0 | BY123: 1 | BZ123: 0 | CA123: 0 | CB123: 1 | CC123: 0 | CD123: 0 | CE123: 1 | CF123: 0 | CG123: 1 | CH123: 0 | CI123: 0 | CL123: 0 | CM123: -47071 | CN123: cp | CO123: METABAT_AS20ysBPTH_136 | CP123: .faa | CQ123: lowQ
A124: 738 | B124: METABAT_AS20ysBPTH_139 | C124: root (UID1) | D124: 5656 | E124: 56 | F124: 24 | G124: 0 | H124: 0 | I124: 0 | J124: 0 | K124: 401627 | L124: 0 | M124: 98 | N124: 98 | O124: 5324 | P124: 5324 | Q124: 4098 | R124: 4098 | S124: 39673 | T124: 39673 | U124: 33.3 | V124: 4.19 | W124: 85.47 | X124: 11 | Y124: 470 | Z124: 56 | AA124: 0 | AB124: 0 | AC124: 0 | AD124: 0 | AE124: 0 | AF124: 0 | AG124: 1 | AH124: 0 | AI124: 0 | AJ124: 1 | AK124: 0 | AL124: 0 | AM124: 1 | AN124: 0 | AO124: 1 | AP124: 0 | AQ124: 0 | AS124: 1 | AT124: METABAT_AS20ysBPTH_139 | AU124: root (UID1) | AV124: 5656 | AW124: 56 | AX124: 24 | AY124: 0 | AZ124: 0 | BA124: 0 | BB124: 0 | BC124: 373450 | BD124: 0 | BE124: 88 | BF124: 88 | BG124: 5391 | BH124: 5391 | BI124: 4243 | BJ124: 4243 | BK124: 39673 | BL124: 39673 | BM124: 32.7 | BN124: 2.48 | BO124: 85.65 | BP124: 11 | BQ124: 443 | BR124: 56 | BS124: 0 | BT124: 0 | BU124: 0 | BV124: 0 | BW124: 0 | BX124: 0 | BY124: 1 | BZ124: 0 | CA124: 0 | CB124: 1 | CC124: 0 | CD124: 0 | CE124: 1 | CF124: 0 | CG124: 1 | CH124: 0 | CI124: 0 | CL124: 0 | CM124: -28177 | CN124: cp | CO124: METABAT_AS20ysBPTH_139 | CP124: .faa | CQ124: lowQ
A125: 755 | B125: METABAT_AS20ysBPTH_154 | C125: root (UID1) | D125: 5656 | E125: 56 | F125: 24 | G125: 0 | H125: 0 | I125: 0 | J125: 0 | K125: 443878 | L125: 0 | M125: 56 | N125: 56 | O125: 13559 | P125: 13559 | Q125: 7926 | R125: 7926 | S125: 35277 | T125: 35277 | U125: 31.4 | V125: 2.01 | W125: 82.12 | X125: 11 | Y125: 473 | Z125: 56 | AA125: 0 | AB125: 0 | AC125: 0 | AD125: 0 | AE125: 0 | AF125: 0 | AG125: 1 | AH125: 0 | AI125: 0 | AJ125: 1 | AK125: 0 | AL125: 0 | AM125: 1 | AN125: 0 | AO125: 1 | AP125: 0 | AQ125: 0 | AS125: 1 | AT125: METABAT_AS20ysBPTH_154 | AU125: root (UID1) | AV125: 5656 | AW125: 56 | AX125: 24 | AY125: 0 | AZ125: 0 | BA125: 0 | BB125: 0 | BC125: 443878 | BD125: 0 | BE125: 56 | BF125: 56 | BG125: 13559 | BH125: 13559 | BI125: 7926 | BJ125: 7926 | BK125: 35277 | BL125: 35277 | BM125: 31.4 | BN125: 2.01 | BO125: 82.08 | BP125: 11 | BQ125: 473 | BR125: 56 | BS125: 0 | BT125: 0 | BU125: 0 | BV125: 0 | BW125: 0 | BX125: 0 | BY125: 1 | BZ125: 0 | CA125: 0 | CB125: 1 | CC125: 0 | CD125: 0 | CE125: 1 | CF125: 0 | CG125: 1 | CH125: 0 | CI125: 0 | CL125: 0 | CM125: 0 | CN125: cp | CO125: METABAT_AS20ysBPTH_154 | CP125: .faa | CQ125: lowQ
A126: 768 | B126: METABAT_AS20ysBPTH_166 | C126: root (UID1) | D126: 5656 | E126: 56 | F126: 24 | G126: 0 | H126: 0 | I126: 0 | J126: 0 | K126: 356515 | L126: 0 | M126: 136 | N126: 136 | O126: 2615 | P126: 2615 | Q126: 2621 | R126: 2621 | S126: 10749 | T126: 10749 | U126: 28.2 | V126: 1.84 | W126: 84.3 | X126: 11 | Y126: 466 | Z126: 56 | AA126: 0 | AB126: 0 | AC126: 0 | AD126: 0 | AE126: 0 | AF126: 0 | AG126: 1 | AH126: 0 | AI126: 0 | AJ126: 1 | AK126: 0 | AL126: 0 | AM126: 1 | AN126: 0 | AO126: 1 | AP126: 0 | AQ126: 0 | AS126: 1 | AT126: METABAT_AS20ysBPTH_166 | AU126: root (UID1) | AV126: 5656 | AW126: 56 | AX126: 24 | AY126: 0 | AZ126: 0 | BA126: 0 | BB126: 0 | BC126: 356515 | BD126: 0 | BE126: 136 | BF126: 136 | BG126: 2615 | BH126: 2615 | BI126: 2621 | BJ126: 2621 | BK126: 10749 | BL126: 10749 | BM126: 28.2 | BN126: 1.84 | BO126: 84.25 | BP126: 11 | BQ126: 465 | BR126: 56 | BS126: 0 | BT126: 0 | BU126: 0 | BV126: 0 | BW126: 0 | BX126: 0 | BY126: 1 | BZ126: 0 | CA126: 0 | CB126: 1 | CC126: 0 | CD126: 0 | CE126: 1 | CF126: 0 | CG126: 1 | CH126: 0 | CI126: 0 | CL126: 0 | CM126: 0 | CN126: cp | CO126: METABAT_AS20ysBPTH_166 | CP126: .faa | CQ126: lowQ
A127: 799 | B127: METABAT_AS20ysBPTH_20 | C127: root (UID1) | D127: 5656 | E127: 56 | F127: 24 | G127: 0 | H127: 0 | I127: 0 | J127: 0 | K127: 617547 | L127: 0 | M127: 212 | N127: 212 | O127: 3044 | P127: 3044 | Q127: 2912 | R127: 2912 | S127: 15759 | T127: 15759 | U127: 28.8 | V127: 4.87 | W127: 82.89 | X127: 11 | Y127: 763 | Z127: 56 | AA127: 0 | AB127: 0 | AC127: 0 | AD127: 0 | AE127: 0 | AF127: 0 | AG127: 1 | AH127: 0 | AI127: 0 | AJ127: 1 | AK127: 0 | AL127: 0 | AM127: 1 | AN127: 0 | AO127: 1 | AP127: 0 | AQ127: 0 | AS127: 1 | AT127: METABAT_AS20ysBPTH_20 | AU127: root (UID1) | AV127: 5656 | AW127: 56 | AX127: 24 | AY127: 0 | AZ127: 0 | BA127: 0 | BB127: 0 | BC127: 570303 | BD127: 0 | BE127: 195 | BF127: 195 | BG127: 3131 | BH127: 3131 | BI127: 2924 | BJ127: 2924 | BK127: 15759 | BL127: 15759 | BM127: 28.1 | BN127: 3.03 | BO127: 82.78 | BP127: 11 | BQ127: 705 | BR127: 56 | BS127: 0 | BT127: 0 | BU127: 0 | BV127: 0 | BW127: 0 | BX127: 0 | BY127: 1 | BZ127: 0 | CA127: 0 | CB127: 1 | CC127: 0 | CD127: 0 | CE127: 1 | CF127: 0 | CG127: 1 | CH127: 0 | CI127: 0 | CL127: 0 | CM127: -47244 | CN127: cp | CO127: METABAT_AS20ysBPTH_20 | CP127: .faa | CQ127: lowQ
A128: 802 | B128: METABAT_AS20ysBPTH_23 | C128: root (UID1) | D128: 5656 | E128: 56 | F128: 24 | G128: 0 | H128: 0 | I128: 0 | J128: 0 | K128: 335302 | L128: 0 | M128: 75 | N128: 75 | O128: 5495 | P128: 5495 | Q128: 4470 | R128: 4470 | S128: 24225 | T128: 24225 | U128: 41 | V128: 2.67 | W128: 83.13 | X128: 11 | Y128: 448 | Z128: 56 | AA128: 0 | AB128: 0 | AC128: 0 | AD128: 0 | AE128: 0 | AF128: 0 | AG128: 1 | AH128: 0 | AI128: 0 | AJ128: 1 | AK128: 0 | AL128: 0 | AM128: 1 | AN128: 0 | AO128: 1 | AP128: 0 | AQ128: 0 | AS128: 1 | AT128: METABAT_AS20ysBPTH_23 | AU128: root (UID1) | AV128: 5656 | AW128: 56 | AX128: 24 | AY128: 0 | AZ128: 0 | BA128: 0 | BB128: 0 | BC128: 333168 | BD128: 0 | BE128: 74 | BF128: 74 | BG128: 5495 | BH128: 5495 | BI128: 4502 | BJ128: 4502 | BK128: 24225 | BL128: 24225 | BM128: 41.1 | BN128: 2.34 | BO128: 83.1 | BP128: 11 | BQ128: 445 | BR128: 56 | BS128: 0 | BT128: 0 | BU128: 0 | BV128: 0 | BW128: 0 | BX128: 0 | BY128: 1 | BZ128: 0 | CA128: 0 | CB128: 1 | CC128: 0 | CD128: 0 | CE128: 1 | CF128: 0 | CG128: 1 | CH128: 0 | CI128: 0 | CL128: 0 | CM128: -2134 | CN128: cp | CO128: METABAT_AS20ysBPTH_23 | CP128: .faa | CQ128: lowQ
A129: 805 | B129: METABAT_AS20ysBPTH_26 | C129: root (UID1) | D129: 5656 | E129: 56 | F129: 24 | G129: 0 | H129: 0 | I129: 0 | J129: 0 | K129: 422973 | L129: 0 | M129: 87 | N129: 87 | O129: 7386 | P129: 7386 | Q129: 4861 | R129: 4861 | S129: 23320 | T129: 23320 | U129: 29.3 | V129: 5.38 | W129: 88.01 | X129: 11 | Y129: 492 | Z129: 56 | AA129: 0 | AB129: 0 | AC129: 0 | AD129: 0 | AE129: 0 | AF129: 0 | AG129: 1 | AH129: 0 | AI129: 0 | AJ129: 1 | AK129: 0 | AL129: 0 | AM129: 1 | AN129: 0 | AO129: 1 | AP129: 0 | AQ129: 0 | AS129: 1 | AT129: METABAT_AS20ysBPTH_26 | AU129: root (UID1) | AV129: 5656 | AW129: 56 | AX129: 24 | AY129: 0 | AZ129: 0 | BA129: 0 | BB129: 0 | BC129: 402993 | BD129: 0 | BE129: 80 | BF129: 80 | BG129: 7454 | BH129: 7454 | BI129: 5037 | BJ129: 5037 | BK129: 23320 | BL129: 23320 | BM129: 28.4 | BN129: 1.47 | BO129: 88.44 | BP129: 11 | BQ129: 479 | BR129: 56 | BS129: 0 | BT129: 0 | BU129: 0 | BV129: 0 | BW129: 0 | BX129: 0 | BY129: 1 | BZ129: 0 | CA129: 0 | CB129: 1 | CC129: 0 | CD129: 0 | CE129: 1 | CF129: 0 | CG129: 1 | CH129: 0 | CI129: 0 | CL129: 0 | CM129: -19980 | CN129: cp | CO129: METABAT_AS20ysBPTH_26 | CP129: .faa | CQ129: lowQ
A130: 807 | B130: METABAT_AS20ysBPTH_28 | C130: root (UID1) | D130: 5656 | E130: 56 | F130: 24 | G130: 0 | H130: 0 | I130: 0 | J130: =H130-(H130*(I130/100)) -> 0 | K130: 703803 | L130: 0 | M130: 204 | N130: 204 | O130: 3717 | P130: 3717 | Q130: 3450 | R130: 3450 | S130: 26452 | T130: 26452 | U130: 30.3 | V130: 2.05 | W130: 84.99 | X130: 11 | Y130: 865 | Z130: 56 | AA130: 0 | AB130: 0 | AC130: 0 | AD130: 0 | AE130: 0 | AF130: =IF(G130>90,1,0) -> 0 | AG130: =IF(H130<5,1,0) -> 1 | AH130: 0 | AI130: =IF(G130>70,1,0) -> 0 | AJ130: =IF(H130<10,1,0) -> 1 | AK130: 0 | AL130: =IF(G130>=50,1,0) -> 0 | AM130: =IF(H130<10,1,0) -> 1 | AN130: 0 | AO130: =IF(G130<50,1,0) -> 1 | AP130: =IF(H130>10,1,0) -> 0 | AQ130: 0 | AR130: =(G130-(H130*3)/G130) ->  | AS130: =IF(B130=AT130,1,"") -> 1 | AT130: METABAT_AS20ysBPTH_28 | AU130: root (UID1) | AV130: 5656 | AW130: 56 | AX130: 24 | AY130: 0 | AZ130: 0 | BA130: 0 | BB130: =AZ130-(AZ130*(BA130/100)) -> 0 | BC130: 699507 | BD130: 0 | BE130: 202 | BF130: 202 | BG130: 3717 | BH130: 3717 | BI130: 3462 | BJ130: 3462 | BK130: 26452 | BL130: 26452 | BM130: 30.2 | BN130: 1.73 | BO130: 85.32 | BP130: 11 | BQ130: 864 | BR130: 56 | BS130: 0 | BT130: 0 | BU130: 0 | BV130: 0 | BW130: 0 | BX130: =IF(AY130>90,1,0) -> 0 | BY130: =IF(AZ130<5,1,0) -> 1 | BZ130: 0 | CA130: =IF(AY130>70,1,0) -> 0 | CB130: =IF(AZ130<10,1,0) -> 1 | CC130: 0 | CD130: =IF(AY130>=50,1,0) -> 0 | CE130: =IF(AZ130<10,1,0) -> 1 | CF130: 0 | CG130: =IF(AY130<50,1,0) -> 1 | CH130: =IF(AZ130>10,1,0) -> 0 | CI130: 0 | CJ130: =(AY130-(AZ130*3)/AY130) ->  | CK130: =CJ130-AR130 ->  | CL130: =AZ130-H130 -> 0 | CM130: =BC130-K130 -> -4296 | CN130: cp | CO130: METABAT_AS20ysBPTH_28 | CP130: .faa | CQ130: lowQ
A131: 812 | B131: METABAT_AS20ysBPTH_32 | C131: root (UID1) | D131: 5656 | E131: 56 | F131: 24 | G131: 0 | H131: 0 | I131: 0 | J131: 0 | K131: 215431 | L131: 0 | M131: 36 | N131: 36 | O131: 8570 | P131: 8570 | Q131: 5984 | R131: 5984 | S131: 19336 | T131: 19336 | U131: 31.6 | V131: 2.31 | W131: 85.35 | X131: 11 | Y131: 264 | Z131: 56 | AA131: 0 | AB131: 0 | AC131: 0 | AD131: 0 | AE131: 0 | AF131: 0 | AG131: 1 | AH131: 0 | AI131: 0 | AJ131: 1 | AK131: 0 | AL131: 0 | AM131: 1 | AN131: 0 | AO131: 1 | AP131: 0 | AQ131: 0 | AS131: 1 | AT131: METABAT_AS20ysBPTH_32 | AU131: root (UID1) | AV131: 5656 | AW131: 56 | AX131: 24 | AY131: 0 | AZ131: 0 | BA131: 0 | BB131: 0 | BC131: 213406 | BD131: 0 | BE131: 35 | BF131: 35 | BG131: 9168 | BH131: 9168 | BI131: 6097 | BJ131: 6097 | BK131: 19336 | BL131: 19336 | BM131: 31.5 | BN131: 1.38 | BO131: 85.8 | BP131: 11 | BQ131: 264 | BR131: 56 | BS131: 0 | BT131: 0 | BU131: 0 | BV131: 0 | BW131: 0 | BX131: 0 | BY131: 1 | BZ131: 0 | CA131: 0 | CB131: 1 | CC131: 0 | CD131: 0 | CE131: 1 | CF131: 0 | CG131: 1 | CH131: 0 | CI131: 0 | CL131: 0 | CM131: -2025 | CN131: cp | CO131: METABAT_AS20ysBPTH_32 | CP131: .faa | CQ131: lowQ
A132: 853 | B132: METABAT_AS20ysBPTH_7 | C132: root (UID1) | D132: 5656 | E132: 56 | F132: 24 | G132: 0 | H132: 0 | I132: 0 | J132: 0 | K132: 248126 | L132: 0 | M132: 84 | N132: 84 | O132: 3087 | P132: 3087 | Q132: 2953 | R132: 2953 | S132: 13088 | T132: 13088 | U132: 34.6 | V132: 2.65 | W132: 86.49 | X132: 11 | Y132: 277 | Z132: 56 | AA132: 0 | AB132: 0 | AC132: 0 | AD132: 0 | AE132: 0 | AF132: 0 | AG132: 1 | AH132: 0 | AI132: 0 | AJ132: 1 | AK132: 0 | AL132: 0 | AM132: 1 | AN132: 0 | AO132: 1 | AP132: 0 | AQ132: 0 | AS132: 1 | AT132: METABAT_AS20ysBPTH_7 | AU132: root (UID1) | AV132: 5656 | AW132: 56 | AX132: 24 | AY132: 0 | AZ132: 0 | BA132: 0 | BB132: 0 | BC132: 242024 | BD132: 0 | BE132: 82 | BF132: 82 | BG132: 3087 | BH132: 3087 | BI132: 2951 | BJ132: 2951 | BK132: 13088 | BL132: 13088 | BM132: 34.7 | BN132: 2.2 | BO132: 86.89 | BP132: 11 | BQ132: 272 | BR132: 56 | BS132: 0 | BT132: 0 | BU132: 0 | BV132: 0 | BW132: 0 | BX132: 0 | BY132: 1 | BZ132: 0 | CA132: 0 | CB132: 1 | CC132: 0 | CD132: 0 | CE132: 1 | CF132: 0 | CG132: 1 | CH132: 0 | CI132: 0 | CL132: 0 | CM132: -6102 | CN132: cp | CO132: METABAT_AS20ysBPTH_7 | CP132: .faa | CQ132: lowQ
A133: 882 | B133: METABAT_AS20ysBPTH_96 | C133: root (UID1) | D133: 5656 | E133: 56 | F133: 24 | G133: 0 | H133: 0 | I133: 0 | J133: 0 | K133: 290702 | L133: 0 | M133: 38 | N133: 38 | O133: 11758 | P133: 11758 | Q133: 7650 | R133: 7650 | S133: 38724 | T133: 38724 | U133: 32.7 | V133: 1.31 | W133: 87.2 | X133: 11 | Y133: 408 | Z133: 56 | AA133: 0 | AB133: 0 | AC133: 0 | AD133: 0 | AE133: 0 | AF133: 0 | AG133: 1 | AH133: 0 | AI133: 0 | AJ133: 1 | AK133: 0 | AL133: 0 | AM133: 1 | AN133: 0 | AO133: 1 | AP133: 0 | AQ133: 0 | AS133: 1 | AT133: METABAT_AS20ysBPTH_96 | AU133: root (UID1) | AV133: 5656 | AW133: 56 | AX133: 24 | AY133: 0 | AZ133: 0 | BA133: 0 | BB133: 0 | BC133: 290702 | BD133: 0 | BE133: 38 | BF133: 38 | BG133: 11758 | BH133: 11758 | BI133: 7650 | BJ133: 7650 | BK133: 38724 | BL133: 38724 | BM133: 32.7 | BN133: 1.31 | BO133: 87.15 | BP133: 11 | BQ133: 408 | BR133: 56 | BS133: 0 | BT133: 0 | BU133: 0 | BV133: 0 | BW133: 0 | BX133: 0 | BY133: 1 | BZ133: 0 | CA133: 0 | CB133: 1 | CC133: 0 | CD133: 0 | CE133: 1 | CF133: 0 | CG133: 1 | CH133: 0 | CI133: 0 | CL133: 0 | CM133: 0 | CN133: cp | CO133: METABAT_AS20ysBPTH_96 | CP133: .faa | CQ133: lowQ
A134: 2895 | B134: METABAT_AS21ysBPME_125 | C134: root (UID1) | D134: 5656 | E134: 56 | F134: 24 | G134: 0 | H134: 0 | I134: 0 | J134: 0 | K134: 210434 | L134: 0 | M134: 89 | N134: 89 | O134: 2307 | P134: 2307 | Q134: 2364 | R134: 2364 | S134: 4782 | T134: 4782 | U134: 50.5 | V134: 1.87 | W134: 91.07 | X134: 11 | Y134: 250 | Z134: 56 | AA134: 0 | AB134: 0 | AC134: 0 | AD134: 0 | AE134: 0 | AF134: 0 | AG134: 1 | AH134: 0 | AI134: 0 | AJ134: 1 | AK134: 0 | AL134: 0 | AM134: 1 | AN134: 0 | AO134: 1 | AP134: 0 | AQ134: 0 | AS134: 1 | AT134: METABAT_AS21ysBPME_125 | AU134: root (UID1) | AV134: 5656 | AW134: 56 | AX134: 24 | AY134: 0 | AZ134: 0 | BA134: 0 | BB134: 0 | BC134: 210434 | BD134: 0 | BE134: 89 | BF134: 89 | BG134: 2307 | BH134: 2307 | BI134: 2364 | BJ134: 2364 | BK134: 4782 | BL134: 4782 | BM134: 50.5 | BN134: 1.87 | BO134: 91.05 | BP134: 11 | BQ134: 250 | BR134: 56 | BS134: 0 | BT134: 0 | BU134: 0 | BV134: 0 | BW134: 0 | BX134: 0 | BY134: 1 | BZ134: 0 | CA134: 0 | CB134: 1 | CC134: 0 | CD134: 0 | CE134: 1 | CF134: 0 | CG134: 1 | CH134: 0 | CI134: 0 | CL134: 0 | CM134: 0 | CN134: cp | CO134: METABAT_AS21ysBPME_125 | CP134: .faa | CQ134: lowQ
A135: 2917 | B135: METABAT_AS21ysBPME_145 | C135: root (UID1) | D135: 5656 | E135: 56 | F135: 24 | G135: 0 | H135: 0 | I135: 0 | J135: 0 | K135: 436242 | L135: 0 | M135: 31 | N135: 31 | O135: 19721 | P135: 19721 | Q135: 14072 | R135: 14072 | S135: 46154 | T135: 46154 | U135: 31 | V135: 1.14 | W135: 88.62 | X135: 11 | Y135: 513 | Z135: 56 | AA135: 0 | AB135: 0 | AC135: 0 | AD135: 0 | AE135: 0 | AF135: 0 | AG135: 1 | AH135: 0 | AI135: 0 | AJ135: 1 | AK135: 0 | AL135: 0 | AM135: 1 | AN135: 0 | AO135: 1 | AP135: 0 | AQ135: 0 | AS135: 1 | AT135: METABAT_AS21ysBPME_145 | AU135: root (UID1) | AV135: 5656 | AW135: 56 | AX135: 24 | AY135: 0 | AZ135: 0 | BA135: 0 | BB135: 0 | BC135: 436242 | BD135: 0 | BE135: 31 | BF135: 31 | BG135: 19721 | BH135: 19721 | BI135: 14072 | BJ135: 14072 | BK135: 46154 | BL135: 46154 | BM135: 31 | BN135: 1.14 | BO135: 88.61 | BP135: 11 | BQ135: 513 | BR135: 56 | BS135: 0 | BT135: 0 | BU135: 0 | BV135: 0 | BW135: 0 | BX135: 0 | BY135: 1 | BZ135: 0 | CA135: 0 | CB135: 1 | CC135: 0 | CD135: 0 | CE135: 1 | CF135: 0 | CG135: 1 | CH135: 0 | CI135: 0 | CL135: 0 | CM135: 0 | CN135: cp | CO135: METABAT_AS21ysBPME_145 | CP135: .faa | CQ135: lowQ
A136: 2938 | B136: METABAT_AS21ysBPME_164 | C136: root (UID1) | D136: 5656 | E136: 56 | F136: 24 | G136: 0 | H136: 0 | I136: 0 | J136: 0 | K136: 472995 | L136: 0 | M136: 129 | N136: 129 | O136: 4065 | P136: 4065 | Q136: 3666 | R136: 3666 | S136: 12612 | T136: 12612 | U136: 26.2 | V136: 1.74 | W136: 80 | X136: 11 | Y136: 512 | Z136: 56 | AA136: 0 | AB136: 0 | AC136: 0 | AD136: 0 | AE136: 0 | AF136: 0 | AG136: 1 | AH136: 0 | AI136: 0 | AJ136: 1 | AK136: 0 | AL136: 0 | AM136: 1 | AN136: 0 | AO136: 1 | AP136: 0 | AQ136: 0 | AS136: 1 | AT136: METABAT_AS21ysBPME_164 | AU136: root (UID1) | AV136: 5656 | AW136: 56 | AX136: 24 | AY136: 0 | AZ136: 0 | BA136: 0 | BB136: 0 | BC136: 472995 | BD136: 0 | BE136: 129 | BF136: 129 | BG136: 4065 | BH136: 4065 | BI136: 3666 | BJ136: 3666 | BK136: 12612 | BL136: 12612 | BM136: 26.2 | BN136: 1.74 | BO136: 80 | BP136: 11 | BQ136: 512 | BR136: 56 | BS136: 0 | BT136: 0 | BU136: 0 | BV136: 0 | BW136: 0 | BX136: 0 | BY136: 1 | BZ136: 0 | CA136: 0 | CB136: 1 | CC136: 0 | CD136: 0 | CE136: 1 | CF136: 0 | CG136: 1 | CH136: 0 | CI136: 0 | CL136: 0 | CM136: 0 | CN136: cp | CO136: METABAT_AS21ysBPME_164 | CP136: .faa | CQ136: lowQ
A137: 3013 | B137: METABAT_AS21ysBPME_231 | C137: root (UID1) | D137: 5656 | E137: 56 | F137: 24 | G137: 0 | H137: 0 | I137: 0 | J137: 0 | K137: 659969 | L137: 0 | M137: 95 | N137: 95 | O137: 11275 | P137: 11275 | Q137: 6947 | R137: 6947 | S137: 47975 | T137: 47975 | U137: 36.5 | V137: 1.92 | W137: 90.7 | X137: 11 | Y137: 738 | Z137: 56 | AA137: 0 | AB137: 0 | AC137: 0 | AD137: 0 | AE137: 0 | AF137: 0 | AG137: 1 | AH137: 0 | AI137: 0 | AJ137: 1 | AK137: 0 | AL137: 0 | AM137: 1 | AN137: 0 | AO137: 1 | AP137: 0 | AQ137: 0 | AS137: 1 | AT137: METABAT_AS21ysBPME_231 | AU137: root (UID1) | AV137: 5656 | AW137: 56 | AX137: 24 | AY137: 0 | AZ137: 0 | BA137: 0 | BB137: 0 | BC137: 618865 | BD137: 0 | BE137: 94 | BF137: 94 | BG137: 8677 | BH137: 8677 | BI137: 6583 | BJ137: 6583 | BK137: 47975 | BL137: 47975 | BM137: 36.8 | BN137: 1.84 | BO137: 91.23 | BP137: 11 | BQ137: 682 | BR137: 56 | BS137: 0 | BT137: 0 | BU137: 0 | BV137: 0 | BW137: 0 | BX137: 0 | BY137: 1 | BZ137: 0 | CA137: 0 | CB137: 1 | CC137: 0 | CD137: 0 | CE137: 1 | CF137: 0 | CG137: 1 | CH137: 0 | CI137: 0 | CL137: 0 | CM137: -41104 | CN137: cp | CO137: METABAT_AS21ysBPME_231 | CP137: .faa | CQ137: lowQ
A138: 3016 | B138: METABAT_AS21ysBPME_234 | C138: root (UID1) | D138: 5656 | E138: 56 | F138: 24 | G138: 0 | H138: 0 | I138: 0 | J138: 0 | K138: 218454 | L138: 0 | M138: 53 | N138: 53 | O138: 5157 | P138: 5157 | Q138: 4121 | R138: 4121 | S138: 21138 | T138: 21138 | U138: 48.3 | V138: 2.17 | W138: 87.1 | X138: 11 | Y138: 220 | Z138: 56 | AA138: 0 | AB138: 0 | AC138: 0 | AD138: 0 | AE138: 0 | AF138: 0 | AG138: 1 | AH138: 0 | AI138: 0 | AJ138: 1 | AK138: 0 | AL138: 0 | AM138: 1 | AN138: 0 | AO138: 1 | AP138: 0 | AQ138: 0 | AS138: 1 | AT138: METABAT_AS21ysBPME_234 | AU138: root (UID1) | AV138: 5656 | AW138: 56 | AX138: 24 | AY138: 0 | AZ138: 0 | BA138: 0 | BB138: 0 | BC138: 218454 | BD138: 0 | BE138: 53 | BF138: 53 | BG138: 5157 | BH138: 5157 | BI138: 4121 | BJ138: 4121 | BK138: 21138 | BL138: 21138 | BM138: 48.3 | BN138: 2.17 | BO138: 87.19 | BP138: 11 | BQ138: 221 | BR138: 56 | BS138: 0 | BT138: 0 | BU138: 0 | BV138: 0 | BW138: 0 | BX138: 0 | BY138: 1 | BZ138: 0 | CA138: 0 | CB138: 1 | CC138: 0 | CD138: 0 | CE138: 1 | CF138: 0 | CG138: 1 | CH138: 0 | CI138: 0 | CL138: 0 | CM138: 0 | CN138: cp | CO138: METABAT_AS21ysBPME_234 | CP138: .faa | CQ138: lowQ
A139: 3037 | B139: METABAT_AS21ysBPME_253 | C139: root (UID1) | D139: 5656 | E139: 56 | F139: 24 | G139: 0 | H139: 0 | I139: 0 | J139: 0 | K139: 240378 | L139: 0 | M139: 13 | N139: 13 | O139: 31482 | P139: 31482 | Q139: 18490 | R139: 18490 | S139: 46236 | T139: 46236 | U139: 33.7 | V139: 1.11 | W139: 89.91 | X139: 11 | Y139: 265 | Z139: 56 | AA139: 0 | AB139: 0 | AC139: 0 | AD139: 0 | AE139: 0 | AF139: 0 | AG139: 1 | AH139: 0 | AI139: 0 | AJ139: 1 | AK139: 0 | AL139: 0 | AM139: 1 | AN139: 0 | AO139: 1 | AP139: 0 | AQ139: 0 | AS139: 1 | AT139: METABAT_AS21ysBPME_253 | AU139: root (UID1) | AV139: 5656 | AW139: 56 | AX139: 24 | AY139: 0 | AZ139: 0 | BA139: 0 | BB139: 0 | BC139: 240378 | BD139: 0 | BE139: 13 | BF139: 13 | BG139: 31482 | BH139: 31482 | BI139: 18490 | BJ139: 18490 | BK139: 46236 | BL139: 46236 | BM139: 33.7 | BN139: 1.11 | BO139: 89.98 | BP139: 11 | BQ139: 266 | BR139: 56 | BS139: 0 | BT139: 0 | BU139: 0 | BV139: 0 | BW139: 0 | BX139: 0 | BY139: 1 | BZ139: 0 | CA139: 0 | CB139: 1 | CC139: 0 | CD139: 0 | CE139: 1 | CF139: 0 | CG139: 1 | CH139: 0 | CI139: 0 | CL139: 0 | CM139: 0 | CN139: cp | CO139: METABAT_AS21ysBPME_253 | CP139: .faa | CQ139: lowQ
A140: 3041 | B140: METABAT_AS21ysBPME_257 | C140: root (UID1) | D140: 5656 | E140: 56 | F140: 24 | G140: 0 | H140: 0 | I140: 0 | J140: 0 | K140: 280448 | L140: 0 | M140: 59 | N140: 59 | O140: 5822 | P140: 5822 | Q140: 4753 | R140: 4753 | S140: 18869 | T140: 18869 | U140: 35 | V140: 2.05 | W140: 82.18 | X140: 11 | Y140: 312 | Z140: 56 | AA140: 0 | AB140: 0 | AC140: 0 | AD140: 0 | AE140: 0 | AF140: 0 | AG140: 1 | AH140: 0 | AI140: 0 | AJ140: 1 | AK140: 0 | AL140: 0 | AM140: 1 | AN140: 0 | AO140: 1 | AP140: 0 | AQ140: 0 | AS140: 1 | AT140: METABAT_AS21ysBPME_257 | AU140: root (UID1) | AV140: 5656 | AW140: 56 | AX140: 24 | AY140: 0 | AZ140: 0 | BA140: 0 | BB140: 0 | BC140: 280448 | BD140: 0 | BE140: 59 | BF140: 59 | BG140: 5822 | BH140: 5822 | BI140: 4753 | BJ140: 4753 | BK140: 18869 | BL140: 18869 | BM140: 35 | BN140: 2.05 | BO140: 82.16 | BP140: 11 | BQ140: 312 | BR140: 56 | BS140: 0 | BT140: 0 | BU140: 0 | BV140: 0 | BW140: 0 | BX140: 0 | BY140: 1 | BZ140: 0 | CA140: 0 | CB140: 1 | CC140: 0 | CD140: 0 | CE140: 1 | CF140: 0 | CG140: 1 | CH140: 0 | CI140: 0 | CL140: 0 | CM140: 0 | CN140: cp | CO140: METABAT_AS21ysBPME_257 | CP140: .faa | CQ140: lowQ
A141: 3049 | B141: METABAT_AS21ysBPME_264 | C141: root (UID1) | D141: 5656 | E141: 56 | F141: 24 | G141: 0 | H141: 0 | I141: 0 | J141: 0 | K141: 212924 | L141: 0 | M141: 64 | N141: 64 | O141: 3566 | P141: 3566 | Q141: 3326 | R141: 3326 | S141: 8174 | T141: 8174 | U141: 33.2 | V141: 1.47 | W141: 90.38 | X141: 11 | Y141: 259 | Z141: 56 | AA141: 0 | AB141: 0 | AC141: 0 | AD141: 0 | AE141: 0 | AF141: 0 | AG141: 1 | AH141: 0 | AI141: 0 | AJ141: 1 | AK141: 0 | AL141: 0 | AM141: 1 | AN141: 0 | AO141: 1 | AP141: 0 | AQ141: 0 | AS141: 1 | AT141: METABAT_AS21ysBPME_264 | AU141: root (UID1) | AV141: 5656 | AW141: 56 | AX141: 24 | AY141: 0 | AZ141: 0 | BA141: 0 | BB141: 0 | BC141: 212924 | BD141: 0 | BE141: 64 | BF141: 64 | BG141: 3566 | BH141: 3566 | BI141: 3326 | BJ141: 3326 | BK141: 8174 | BL141: 8174 | BM141: 33.2 | BN141: 1.47 | BO141: 90.38 | BP141: 11 | BQ141: 259 | BR141: 56 | BS141: 0 | BT141: 0 | BU141: 0 | BV141: 0 | BW141: 0 | BX141: 0 | BY141: 1 | BZ141: 0 | CA141: 0 | CB141: 1 | CC141: 0 | CD141: 0 | CE141: 1 | CF141: 0 | CG141: 1 | CH141: 0 | CI141: 0 | CL141: 0 | CM141: 0 | CN141: cp | CO141: METABAT_AS21ysBPME_264 | CP141: .faa | CQ141: lowQ
A142: 3051 | B142: METABAT_AS21ysBPME_266 | C142: root (UID1) | D142: 5656 | E142: 56 | F142: 24 | G142: 0 | H142: 0 | I142: 0 | J142: 0 | K142: 284248 | L142: 0 | M142: 23 | N142: 23 | O142: 25857 | P142: 25857 | Q142: 12358 | R142: 12358 | S142: 43987 | T142: 43987 | U142: 51.1 | V142: 5.64 | W142: 85.28 | X142: 11 | Y142: 357 | Z142: 56 | AA142: 0 | AB142: 0 | AC142: 0 | AD142: 0 | AE142: 0 | AF142: 0 | AG142: 1 | AH142: 0 | AI142: 0 | AJ142: 1 | AK142: 0 | AL142: 0 | AM142: 1 | AN142: 0 | AO142: 1 | AP142: 0 | AQ142: 0 | AS142: 1 | AT142: METABAT_AS21ysBPME_266 | AU142: root (UID1) | AV142: 5656 | AW142: 56 | AX142: 24 | AY142: 0 | AZ142: 0 | BA142: 0 | BB142: 0 | BC142: 280617 | BD142: 0 | BE142: 21 | BF142: 21 | BG142: 25857 | BH142: 25857 | BI142: 13362 | BJ142: 13362 | BK142: 43987 | BL142: 43987 | BM142: 51 | BN142: 1 | BO142: 85.48 | BP142: 11 | BQ142: 353 | BR142: 56 | BS142: 0 | BT142: 0 | BU142: 0 | BV142: 0 | BW142: 0 | BX142: 0 | BY142: 1 | BZ142: 0 | CA142: 0 | CB142: 1 | CC142: 0 | CD142: 0 | CE142: 1 | CF142: 0 | CG142: 1 | CH142: 0 | CI142: 0 | CL142: 0 | CM142: -3631 | CN142: cp | CO142: METABAT_AS21ysBPME_266 | CP142: .faa | CQ142: lowQ
A143: 3072 | B143: METABAT_AS21ysBPME_285 | C143: root (UID1) | D143: 5656 | E143: 56 | F143: 24 | G143: 0 | H143: 0 | I143: 0 | J143: 0 | K143: 318424 | L143: 0 | M143: 24 | N143: 24 | O143: 17188 | P143: 17188 | Q143: 13267 | R143: 13267 | S143: 42800 | T143: 42800 | U143: 38.9 | V143: 1.48 | W143: 90.65 | X143: 11 | Y143: 328 | Z143: 56 | AA143: 0 | AB143: 0 | AC143: 0 | AD143: 0 | AE143: 0 | AF143: 0 | AG143: 1 | AH143: 0 | AI143: 0 | AJ143: 1 | AK143: 0 | AL143: 0 | AM143: 1 | AN143: 0 | AO143: 1 | AP143: 0 | AQ143: 0 | AS143: 1 | AT143: METABAT_AS21ysBPME_285 | AU143: root (UID1) | AV143: 5656 | AW143: 56 | AX143: 24 | AY143: 0 | AZ143: 0 | BA143: 0 | BB143: 0 | BC143: 318424 | BD143: 0 | BE143: 24 | BF143: 24 | BG143: 17188 | BH143: 17188 | BI143: 13267 | BJ143: 13267 | BK143: 42800 | BL143: 42800 | BM143: 38.9 | BN143: 1.48 | BO143: 90.65 | BP143: 11 | BQ143: 328 | BR143: 56 | BS143: 0 | BT143: 0 | BU143: 0 | BV143: 0 | BW143: 0 | BX143: 0 | BY143: 1 | BZ143: 0 | CA143: 0 | CB143: 1 | CC143: 0 | CD143: 0 | CE143: 1 | CF143: 0 | CG143: 1 | CH143: 0 | CI143: 0 | CL143: 0 | CM143: 0 | CN143: cp | CO143: METABAT_AS21ysBPME_285 | CP143: .faa | CQ143: lowQ
A144: 3077 | B144: METABAT_AS21ysBPME_29 | C144: root (UID1) | D144: 5656 | E144: 56 | F144: 24 | G144: 0 | H144: 0 | I144: 0 | J144: 0 | K144: 402666 | L144: 0 | M144: 38 | N144: 38 | O144: 15439 | P144: 15439 | Q144: 10596 | R144: 10596 | S144: 36439 | T144: 36439 | U144: 35 | V144: 1.91 | W144: 85.11 | X144: 11 | Y144: 393 | Z144: 56 | AA144: 0 | AB144: 0 | AC144: 0 | AD144: 0 | AE144: 0 | AF144: 0 | AG144: 1 | AH144: 0 | AI144: 0 | AJ144: 1 | AK144: 0 | AL144: 0 | AM144: 1 | AN144: 0 | AO144: 1 | AP144: 0 | AQ144: 0 | AS144: 1 | AT144: METABAT_AS21ysBPME_29 | AU144: root (UID1) | AV144: 5656 | AW144: 56 | AX144: 24 | AY144: 0 | AZ144: 0 | BA144: 0 | BB144: 0 | BC144: 402666 | BD144: 0 | BE144: 38 | BF144: 38 | BG144: 15439 | BH144: 15439 | BI144: 10596 | BJ144: 10596 | BK144: 36439 | BL144: 36439 | BM144: 35 | BN144: 1.91 | BO144: 85.11 | BP144: 11 | BQ144: 393 | BR144: 56 | BS144: 0 | BT144: 0 | BU144: 0 | BV144: 0 | BW144: 0 | BX144: 0 | BY144: 1 | BZ144: 0 | CA144: 0 | CB144: 1 | CC144: 0 | CD144: 0 | CE144: 1 | CF144: 0 | CG144: 1 | CH144: 0 | CI144: 0 | CL144: 0 | CM144: 0 | CN144: cp | CO144: METABAT_AS21ysBPME_29 | CP144: .faa | CQ144: lowQ
A145: 3113 | B145: METABAT_AS21ysBPME_321 | C145: root (UID1) | D145: 5656 | E145: 56 | F145: 24 | G145: 0 | H145: 0 | I145: 0 | J145: 0 | K145: 380065 | L145: 0 | M145: 29 | N145: 29 | O145: 23856 | P145: 23856 | Q145: 13105 | R145: 13105 | S145: 35727 | T145: 35727 | U145: 31.3 | V145: 1.4 | W145: 82.74 | X145: 11 | Y145: 412 | Z145: 56 | AA145: 0 | AB145: 0 | AC145: 0 | AD145: 0 | AE145: 0 | AF145: 0 | AG145: 1 | AH145: 0 | AI145: 0 | AJ145: 1 | AK145: 0 | AL145: 0 | AM145: 1 | AN145: 0 | AO145: 1 | AP145: 0 | AQ145: 0 | AS145: 1 | AT145: METABAT_AS21ysBPME_321 | AU145: root (UID1) | AV145: 5656 | AW145: 56 | AX145: 24 | AY145: 0 | AZ145: 0 | BA145: 0 | BB145: 0 | BC145: 380065 | BD145: 0 | BE145: 29 | BF145: 29 | BG145: 23856 | BH145: 23856 | BI145: 13105 | BJ145: 13105 | BK145: 35727 | BL145: 35727 | BM145: 31.3 | BN145: 1.4 | BO145: 82.78 | BP145: 11 | BQ145: 413 | BR145: 56 | BS145: 0 | BT145: 0 | BU145: 0 | BV145: 0 | BW145: 0 | BX145: 0 | BY145: 1 | BZ145: 0 | CA145: 0 | CB145: 1 | CC145: 0 | CD145: 0 | CE145: 1 | CF145: 0 | CG145: 1 | CH145: 0 | CI145: 0 | CL145: 0 | CM145: 0 | CN145: cp | CO145: METABAT_AS21ysBPME_321 | CP145: .faa | CQ145: lowQ
A146: 3129 | B146: METABAT_AS21ysBPME_336 | C146: root (UID1) | D146: 5656 | E146: 56 | F146: 24 | G146: 0 | H146: 0 | I146: 0 | J146: 0 | K146: 264607 | L146: 0 | M146: 84 | N146: 84 | O146: 3310 | P146: 3310 | Q146: 3150 | R146: 3150 | S146: 26402 | T146: 26402 | U146: 29.4 | V146: 1.93 | W146: 89.54 | X146: 11 | Y146: 334 | Z146: 56 | AA146: 0 | AB146: 0 | AC146: 0 | AD146: 0 | AE146: 0 | AF146: 0 | AG146: 1 | AH146: 0 | AI146: 0 | AJ146: 1 | AK146: 0 | AL146: 0 | AM146: 1 | AN146: 0 | AO146: 1 | AP146: 0 | AQ146: 0 | AS146: 1 | AT146: METABAT_AS21ysBPME_336 | AU146: root (UID1) | AV146: 5656 | AW146: 56 | AX146: 24 | AY146: 0 | AZ146: 0 | BA146: 0 | BB146: 0 | BC146: 238205 | BD146: 0 | BE146: 83 | BF146: 83 | BG146: 2967 | BH146: 2967 | BI146: 2869 | BJ146: 2869 | BK146: 11098 | BL146: 11098 | BM146: 28.5 | BN146: 1.6 | BO146: 89.32 | BP146: 11 | BQ146: 309 | BR146: 56 | BS146: 0 | BT146: 0 | BU146: 0 | BV146: 0 | BW146: 0 | BX146: 0 | BY146: 1 | BZ146: 0 | CA146: 0 | CB146: 1 | CC146: 0 | CD146: 0 | CE146: 1 | CF146: 0 | CG146: 1 | CH146: 0 | CI146: 0 | CL146: 0 | CM146: -26402 | CN146: cp | CO146: METABAT_AS21ysBPME_336 | CP146: .faa | CQ146: lowQ
A147: 3138 | B147: METABAT_AS21ysBPME_344 | C147: root (UID1) | D147: 5656 | E147: 56 | F147: 24 | G147: 0 | H147: 0 | I147: 0 | J147: 0 | K147: 213189 | L147: 0 | M147: 59 | N147: 59 | O147: 3789 | P147: 3789 | Q147: 3613 | R147: 3613 | S147: 15832 | T147: 15832 | U147: 50.4 | V147: 2.29 | W147: 88.65 | X147: 11 | Y147: 256 | Z147: 56 | AA147: 0 | AB147: 0 | AC147: 0 | AD147: 0 | AE147: 0 | AF147: 0 | AG147: 1 | AH147: 0 | AI147: 0 | AJ147: 1 | AK147: 0 | AL147: 0 | AM147: 1 | AN147: 0 | AO147: 1 | AP147: 0 | AQ147: 0 | AS147: 1 | AT147: METABAT_AS21ysBPME_344 | AU147: root (UID1) | AV147: 5656 | AW147: 56 | AX147: 24 | AY147: 0 | AZ147: 0 | BA147: 0 | BB147: 0 | BC147: 213189 | BD147: 0 | BE147: 59 | BF147: 59 | BG147: 3789 | BH147: 3789 | BI147: 3613 | BJ147: 3613 | BK147: 15832 | BL147: 15832 | BM147: 50.4 | BN147: 2.29 | BO147: 88.59 | BP147: 11 | BQ147: 255 | BR147: 56 | BS147: 0 | BT147: 0 | BU147: 0 | BV147: 0 | BW147: 0 | BX147: 0 | BY147: 1 | BZ147: 0 | CA147: 0 | CB147: 1 | CC147: 0 | CD147: 0 | CE147: 1 | CF147: 0 | CG147: 1 | CH147: 0 | CI147: 0 | CL147: 0 | CM147: 0 | CN147: cp | CO147: METABAT_AS21ysBPME_344 | CP147: .faa | CQ147: lowQ
A148: 3146 | B148: METABAT_AS21ysBPME_351 | C148: root (UID1) | D148: 5656 | E148: 56 | F148: 24 | G148: 0 | H148: 0 | I148: 0 | J148: 0 | K148: 408921 | L148: 0 | M148: 54 | N148: 54 | O148: 10896 | P148: 10896 | Q148: 7572 | R148: 7572 | S148: 29393 | T148: 29393 | U148: 31.7 | V148: 1.92 | W148: 84.91 | X148: 11 | Y148: 439 | Z148: 56 | AA148: 0 | AB148: 0 | AC148: 0 | AD148: 0 | AE148: 0 | AF148: 0 | AG148: 1 | AH148: 0 | AI148: 0 | AJ148: 1 | AK148: 0 | AL148: 0 | AM148: 1 | AN148: 0 | AO148: 1 | AP148: 0 | AQ148: 0 | AS148: 1 | AT148: METABAT_AS21ysBPME_351 | AU148: root (UID1) | AV148: 5656 | AW148: 56 | AX148: 24 | AY148: 0 | AZ148: 0 | BA148: 0 | BB148: 0 | BC148: 408921 | BD148: 0 | BE148: 54 | BF148: 54 | BG148: 10896 | BH148: 10896 | BI148: 7572 | BJ148: 7572 | BK148: 29393 | BL148: 29393 | BM148: 31.7 | BN148: 1.92 | BO148: 84.9 | BP148: 11 | BQ148: 439 | BR148: 56 | BS148: 0 | BT148: 0 | BU148: 0 | BV148: 0 | BW148: 0 | BX148: 0 | BY148: 1 | BZ148: 0 | CA148: 0 | CB148: 1 | CC148: 0 | CD148: 0 | CE148: 1 | CF148: 0 | CG148: 1 | CH148: 0 | CI148: 0 | CL148: 0 | CM148: 0 | CN148: cp | CO148: METABAT_AS21ysBPME_351 | CP148: .faa | CQ148: lowQ
A149: 3164 | B149: METABAT_AS21ysBPME_45 | C149: root (UID1) | D149: 5656 | E149: 56 | F149: 24 | G149: 0 | H149: 0 | I149: 0 | J149: 0 | K149: 496982 | L149: 0 | M149: 46 | N149: 46 | O149: 34087 | P149: 34087 | Q149: 10803 | R149: 10803 | S149: 67814 | T149: 67814 | U149: 29.2 | V149: 9.11 | W149: 85.73 | X149: 11 | Y149: 680 | Z149: 56 | AA149: 0 | AB149: 0 | AC149: 0 | AD149: 0 | AE149: 0 | AF149: 0 | AG149: 1 | AH149: 0 | AI149: 0 | AJ149: 1 | AK149: 0 | AL149: 0 | AM149: 1 | AN149: 0 | AO149: 1 | AP149: 0 | AQ149: 0 | AS149: 1 | AT149: METABAT_AS21ysBPME_45 | AU149: root (UID1) | AV149: 5656 | AW149: 56 | AX149: 24 | AY149: 0 | AZ149: 0 | BA149: 0 | BB149: 0 | BC149: 424960 | BD149: 0 | BE149: 33 | BF149: 33 | BG149: 26789 | BH149: 26789 | BI149: 12877 | BJ149: 12877 | BK149: 67814 | BL149: 67814 | BM149: 28.3 | BN149: 3.08 | BO149: 84.48 | BP149: 11 | BQ149: 610 | BR149: 56 | BS149: 0 | BT149: 0 | BU149: 0 | BV149: 0 | BW149: 0 | BX149: 0 | BY149: 1 | BZ149: 0 | CA149: 0 | CB149: 1 | CC149: 0 | CD149: 0 | CE149: 1 | CF149: 0 | CG149: 1 | CH149: 0 | CI149: 0 | CL149: 0 | CM149: -72022 | CN149: cp | CO149: METABAT_AS21ysBPME_45 | CP149: .faa | CQ149: lowQ
A150: 3179 | B150: METABAT_AS21ysBPME_59 | C150: root (UID1) | D150: 5656 | E150: 56 | F150: 24 | G150: 0 | H150: 0 | I150: 0 | J150: 0 | K150: 241946 | L150: 0 | M150: 60 | N150: 60 | O150: 5014 | P150: 5014 | Q150: 4032 | R150: 4032 | S150: 30037 | T150: 30037 | U150: 40.1 | V150: 1.61 | W150: 89.22 | X150: 11 | Y150: 240 | Z150: 56 | AA150: 0 | AB150: 0 | AC150: 0 | AD150: 0 | AE150: 0 | AF150: 0 | AG150: 1 | AH150: 0 | AI150: 0 | AJ150: 1 | AK150: 0 | AL150: 0 | AM150: 1 | AN150: 0 | AO150: 1 | AP150: 0 | AQ150: 0 | AS150: 1 | AT150: METABAT_AS21ysBPME_59 | AU150: root (UID1) | AV150: 5656 | AW150: 56 | AX150: 24 | AY150: 0 | AZ150: 0 | BA150: 0 | BB150: 0 | BC150: 241946 | BD150: 0 | BE150: 60 | BF150: 60 | BG150: 5014 | BH150: 5014 | BI150: 4032 | BJ150: 4032 | BK150: 30037 | BL150: 30037 | BM150: 40.1 | BN150: 1.61 | BO150: 89.32 | BP150: 11 | BQ150: 241 | BR150: 56 | BS150: 0 | BT150: 0 | BU150: 0 | BV150: 0 | BW150: 0 | BX150: 0 | BY150: 1 | BZ150: 0 | CA150: 0 | CB150: 1 | CC150: 0 | CD150: 0 | CE150: 1 | CF150: 0 | CG150: 1 | CH150: 0 | CI150: 0 | CL150: 0 | CM150: 0 | CN150: cp | CO150: METABAT_AS21ysBPME_59 | CP150: .faa | CQ150: lowQ
A151: 3182 | B151: METABAT_AS21ysBPME_61 | C151: root (UID1) | D151: 5656 | E151: 56 | F151: 24 | G151: 0 | H151: 0 | I151: 0 | J151: 0 | K151: 276626 | L151: 0 | M151: 6 | N151: 6 | O151: 87128 | P151: 87128 | Q151: 46104 | R151: 46104 | S151: 96001 | T151: 96001 | U151: 45.4 | V151: 0.67 | W151: 91.18 | X151: 11 | Y151: 224 | Z151: 56 | AA151: 0 | AB151: 0 | AC151: 0 | AD151: 0 | AE151: 0 | AF151: 0 | AG151: 1 | AH151: 0 | AI151: 0 | AJ151: 1 | AK151: 0 | AL151: 0 | AM151: 1 | AN151: 0 | AO151: 1 | AP151: 0 | AQ151: 0 | AS151: 1 | AT151: METABAT_AS21ysBPME_61 | AU151: root (UID1) | AV151: 5656 | AW151: 56 | AX151: 24 | AY151: 0 | AZ151: 0 | BA151: 0 | BB151: 0 | BC151: 276626 | BD151: 0 | BE151: 6 | BF151: 6 | BG151: 87128 | BH151: 87128 | BI151: 46104 | BJ151: 46104 | BK151: 96001 | BL151: 96001 | BM151: 45.4 | BN151: 0.67 | BO151: 91.18 | BP151: 11 | BQ151: 224 | BR151: 56 | BS151: 0 | BT151: 0 | BU151: 0 | BV151: 0 | BW151: 0 | BX151: 0 | BY151: 1 | BZ151: 0 | CA151: 0 | CB151: 1 | CC151: 0 | CD151: 0 | CE151: 1 | CF151: 0 | CG151: 1 | CH151: 0 | CI151: 0 | CL151: 0 | CM151: 0 | CN151: cp | CO151: METABAT_AS21ysBPME_61 | CP151: .faa | CQ151: lowQ
A152: 3185 | B152: METABAT_AS21ysBPME_64 | C152: root (UID1) | D152: 5656 | E152: 56 | F152: 24 | G152: 0 | H152: 0 | I152: 0 | J152: 0 | K152: 218080 | L152: 0 | M152: 65 | N152: 65 | O152: 3751 | P152: 3751 | Q152: 3355 | R152: 3355 | S152: 14133 | T152: 14133 | U152: 34.9 | V152: 1.24 | W152: 91.49 | X152: 11 | Y152: 258 | Z152: 56 | AA152: 0 | AB152: 0 | AC152: 0 | AD152: 0 | AE152: 0 | AF152: 0 | AG152: 1 | AH152: 0 | AI152: 0 | AJ152: 1 | AK152: 0 | AL152: 0 | AM152: 1 | AN152: 0 | AO152: 1 | AP152: 0 | AQ152: 0 | AS152: 1 | AT152: METABAT_AS21ysBPME_64 | AU152: root (UID1) | AV152: 5656 | AW152: 56 | AX152: 24 | AY152: 0 | AZ152: 0 | BA152: 0 | BB152: 0 | BC152: 218080 | BD152: 0 | BE152: 65 | BF152: 65 | BG152: 3751 | BH152: 3751 | BI152: 3355 | BJ152: 3355 | BK152: 14133 | BL152: 14133 | BM152: 34.9 | BN152: 1.24 | BO152: 91.49 | BP152: 11 | BQ152: 258 | BR152: 56 | BS152: 0 | BT152: 0 | BU152: 0 | BV152: 0 | BW152: 0 | BX152: 0 | BY152: 1 | BZ152: 0 | CA152: 0 | CB152: 1 | CC152: 0 | CD152: 0 | CE152: 1 | CF152: 0 | CG152: 1 | CH152: 0 | CI152: 0 | CL152: 0 | CM152: 0 | CN152: cp | CO152: METABAT_AS21ysBPME_64 | CP152: .faa | CQ152: lowQ
A153: 3201 | B153: METABAT_AS21ysBPME_79 | C153: root (UID1) | D153: 5656 | E153: 56 | F153: 24 | G153: 0 | H153: 0 | I153: 0 | J153: 0 | K153: 276340 | L153: 0 | M153: 42 | N153: 42 | O153: 8365 | P153: 8365 | Q153: 6579 | R153: 6579 | S153: 21362 | T153: 21362 | U153: 24.2 | V153: 1.58 | W153: 80.84 | X153: 11 | Y153: 311 | Z153: 56 | AA153: 0 | AB153: 0 | AC153: 0 | AD153: 0 | AE153: 0 | AF153: 0 | AG153: 1 | AH153: 0 | AI153: 0 | AJ153: 1 | AK153: 0 | AL153: 0 | AM153: 1 | AN153: 0 | AO153: 1 | AP153: 0 | AQ153: 0 | AS153: 1 | AT153: METABAT_AS21ysBPME_79 | AU153: root (UID1) | AV153: 5656 | AW153: 56 | AX153: 24 | AY153: 0 | AZ153: 0 | BA153: 0 | BB153: 0 | BC153: 276340 | BD153: 0 | BE153: 42 | BF153: 42 | BG153: 8365 | BH153: 8365 | BI153: 6579 | BJ153: 6579 | BK153: 21362 | BL153: 21362 | BM153: 24.2 | BN153: 1.58 | BO153: 80.83 | BP153: 11 | BQ153: 311 | BR153: 56 | BS153: 0 | BT153: 0 | BU153: 0 | BV153: 0 | BW153: 0 | BX153: 0 | BY153: 1 | BZ153: 0 | CA153: 0 | CB153: 1 | CC153: 0 | CD153: 0 | CE153: 1 | CF153: 0 | CG153: 1 | CH153: 0 | CI153: 0 | CL153: 0 | CM153: 0 | CN153: cp | CO153: METABAT_AS21ysBPME_79 | CP153: .faa | CQ153: lowQ
A154: 4690 | B154: METABAT_AS22ysBPME_138 | C154: root (UID1) | D154: 5656 | E154: 56 | F154: 24 | G154: 0 | H154: 0 | I154: 0 | J154: 0 | K154: 295562 | L154: 0 | M154: 54 | N154: 54 | O154: 5802 | P154: 5802 | Q154: 5473 | R154: 5473 | S154: 27704 | T154: 27704 | U154: 41.5 | V154: 2.56 | W154: 89.09 | X154: 11 | Y154: 258 | Z154: 56 | AA154: 0 | AB154: 0 | AC154: 0 | AD154: 0 | AE154: 0 | AF154: 0 | AG154: 1 | AH154: 0 | AI154: 0 | AJ154: 1 | AK154: 0 | AL154: 0 | AM154: 1 | AN154: 0 | AO154: 1 | AP154: 0 | AQ154: 0 | AS154: 1 | AT154: METABAT_AS22ysBPME_138 | AU154: root (UID1) | AV154: 5656 | AW154: 56 | AX154: 24 | AY154: 0 | AZ154: 0 | BA154: 0 | BB154: 0 | BC154: 288863 | BD154: 0 | BE154: 52 | BF154: 52 | BG154: 6552 | BH154: 6552 | BI154: 5555 | BJ154: 5555 | BK154: 27704 | BL154: 27704 | BM154: 41.5 | BN154: 2.19 | BO154: 88.91 | BP154: 11 | BQ154: 249 | BR154: 56 | BS154: 0 | BT154: 0 | BU154: 0 | BV154: 0 | BW154: 0 | BX154: 0 | BY154: 1 | BZ154: 0 | CA154: 0 | CB154: 1 | CC154: 0 | CD154: 0 | CE154: 1 | CF154: 0 | CG154: 1 | CH154: 0 | CI154: 0 | CL154: 0 | CM154: -6699 | CN154: cp | CO154: METABAT_AS22ysBPME_138 | CP154: .faa | CQ154: lowQ
A155: 4724 | B155: METABAT_AS22ysBPME_169 | C155: root (UID1) | D155: 5656 | E155: 56 | F155: 24 | G155: 0 | H155: 0 | I155: 0 | J155: 0 | K155: 403781 | L155: 0 | M155: 56 | N155: 56 | O155: 8931 | P155: 8931 | Q155: 7210 | R155: 7210 | S155: 48251 | T155: 48251 | U155: 32 | V155: 2.27 | W155: 84.7 | X155: 11 | Y155: 439 | Z155: 56 | AA155: 0 | AB155: 0 | AC155: 0 | AD155: 0 | AE155: 0 | AF155: 0 | AG155: 1 | AH155: 0 | AI155: 0 | AJ155: 1 | AK155: 0 | AL155: 0 | AM155: 1 | AN155: 0 | AO155: 1 | AP155: 0 | AQ155: 0 | AS155: 1 | AT155: METABAT_AS22ysBPME_169 | AU155: root (UID1) | AV155: 5656 | AW155: 56 | AX155: 24 | AY155: 0 | AZ155: 0 | BA155: 0 | BB155: 0 | BC155: 399701 | BD155: 0 | BE155: 55 | BF155: 55 | BG155: 8931 | BH155: 8931 | BI155: 7267 | BJ155: 7267 | BK155: 48251 | BL155: 48251 | BM155: 31.9 | BN155: 1.91 | BO155: 84.59 | BP155: 11 | BQ155: 437 | BR155: 56 | BS155: 0 | BT155: 0 | BU155: 0 | BV155: 0 | BW155: 0 | BX155: 0 | BY155: 1 | BZ155: 0 | CA155: 0 | CB155: 1 | CC155: 0 | CD155: 0 | CE155: 1 | CF155: 0 | CG155: 1 | CH155: 0 | CI155: 0 | CL155: 0 | CM155: -4080 | CN155: cp | CO155: METABAT_AS22ysBPME_169 | CP155: .faa | CQ155: lowQ
A156: 4748 | B156: METABAT_AS22ysBPME_190 | C156: root (UID1) | D156: 5656 | E156: 56 | F156: 24 | G156: 0 | H156: 0 | I156: 0 | J156: 0 | K156: 314553 | L156: 0 | M156: 45 | N156: 45 | O156: 35807 | P156: 35807 | Q156: 6990 | R156: 6990 | S156: 52006 | T156: 52006 | U156: 29.8 | V156: 14.14 | W156: 84.85 | X156: 11 | Y156: 382 | Z156: 56 | AA156: 0 | AB156: 0 | AC156: 0 | AD156: 0 | AE156: 0 | AF156: 0 | AG156: 1 | AH156: 0 | AI156: 0 | AJ156: 1 | AK156: 0 | AL156: 0 | AM156: 1 | AN156: 0 | AO156: 1 | AP156: 0 | AQ156: 0 | AS156: 1 | AT156: METABAT_AS22ysBPME_190 | AU156: root (UID1) | AV156: 5656 | AW156: 56 | AX156: 24 | AY156: 0 | AZ156: 0 | BA156: 0 | BB156: 0 | BC156: 258270 | BD156: 0 | BE156: 17 | BF156: 17 | BG156: 39044 | BH156: 39044 | BI156: 15192 | BJ156: 15192 | BK156: 52006 | BL156: 52006 | BM156: 26.1 | BN156: 1.5 | BO156: 84.09 | BP156: 11 | BQ156: 316 | BR156: 56 | BS156: 0 | BT156: 0 | BU156: 0 | BV156: 0 | BW156: 0 | BX156: 0 | BY156: 1 | BZ156: 0 | CA156: 0 | CB156: 1 | CC156: 0 | CD156: 0 | CE156: 1 | CF156: 0 | CG156: 1 | CH156: 0 | CI156: 0 | CL156: 0 | CM156: -56283 | CN156: cp | CO156: METABAT_AS22ysBPME_190 | CP156: .faa | CQ156: lowQ
A157: 4753 | B157: METABAT_AS22ysBPME_195 | C157: root (UID1) | D157: 5656 | E157: 56 | F157: 24 | G157: 0 | H157: 0 | I157: 0 | J157: 0 | K157: 237961 | L157: 0 | M157: 37 | N157: 37 | O157: 12888 | P157: 12888 | Q157: 6431 | R157: 6431 | S157: 34688 | T157: 34688 | U157: 31.4 | V157: 10.36 | W157: 88.1 | X157: 11 | Y157: 279 | Z157: 56 | AA157: 0 | AB157: 0 | AC157: 0 | AD157: 0 | AE157: 0 | AF157: 0 | AG157: 1 | AH157: 0 | AI157: 0 | AJ157: 1 | AK157: 0 | AL157: 0 | AM157: 1 | AN157: 0 | AO157: 1 | AP157: 0 | AQ157: 0 | AS157: 1 | AT157: METABAT_AS22ysBPME_195 | AU157: root (UID1) | AV157: 5656 | AW157: 56 | AX157: 24 | AY157: 0 | AZ157: 0 | BA157: 0 | BB157: 0 | BC157: 218244 | BD157: 0 | BE157: 28 | BF157: 28 | BG157: 14709 | BH157: 14709 | BI157: 7794 | BJ157: 7794 | BK157: 34688 | BL157: 34688 | BM157: 29.6 | BN157: 2.58 | BO157: 89.58 | BP157: 11 | BQ157: 261 | BR157: 56 | BS157: 0 | BT157: 0 | BU157: 0 | BV157: 0 | BW157: 0 | BX157: 0 | BY157: 1 | BZ157: 0 | CA157: 0 | CB157: 1 | CC157: 0 | CD157: 0 | CE157: 1 | CF157: 0 | CG157: 1 | CH157: 0 | CI157: 0 | CL157: 0 | CM157: -19717 | CN157: cp | CO157: METABAT_AS22ysBPME_195 | CP157: .faa | CQ157: lowQ
A158: 4765 | B158: METABAT_AS22ysBPME_205 | C158: root (UID1) | D158: 5656 | E158: 56 | F158: 24 | G158: 0 | H158: 0 | I158: 0 | J158: 0 | K158: 379835 | L158: 0 | M158: 31 | N158: 31 | O158: 54391 | P158: 54391 | Q158: 12252 | R158: 12252 | S158: 76086 | T158: 76086 | U158: 28.2 | V158: 4.43 | W158: 86.35 | X158: 11 | Y158: 543 | Z158: 56 | AA158: 0 | AB158: 0 | AC158: 0 | AD158: 0 | AE158: 0 | AF158: 0 | AG158: 1 | AH158: 0 | AI158: 0 | AJ158: 1 | AK158: 0 | AL158: 0 | AM158: 1 | AN158: 0 | AO158: 1 | AP158: 0 | AQ158: 0 | AS158: 1 | AT158: METABAT_AS22ysBPME_205 | AU158: root (UID1) | AV158: 5656 | AW158: 56 | AX158: 24 | AY158: 0 | AZ158: 0 | BA158: 0 | BB158: 0 | BC158: 378276 | BD158: 0 | BE158: 30 | BF158: 30 | BG158: 54391 | BH158: 54391 | BI158: 12609 | BJ158: 12609 | BK158: 76086 | BL158: 76086 | BM158: 28.1 | BN158: 2.46 | BO158: 86.39 | BP158: 11 | BQ158: 541 | BR158: 56 | BS158: 0 | BT158: 0 | BU158: 0 | BV158: 0 | BW158: 0 | BX158: 0 | BY158: 1 | BZ158: 0 | CA158: 0 | CB158: 1 | CC158: 0 | CD158: 0 | CE158: 1 | CF158: 0 | CG158: 1 | CH158: 0 | CI158: 0 | CL158: 0 | CM158: -1559 | CN158: cp | CO158: METABAT_AS22ysBPME_205 | CP158: .faa | CQ158: lowQ
A159: 4789 | B159: METABAT_AS22ysBPME_227 | C159: root (UID1) | D159: 5656 | E159: 56 | F159: 24 | G159: 0 | H159: 0 | I159: 0 | J159: 0 | K159: 208541 | L159: 0 | M159: 28 | N159: 28 | O159: 9502 | P159: 9502 | Q159: 7447 | R159: 7447 | S159: 24048 | T159: 24048 | U159: 35.9 | V159: 1.44 | W159: 91.86 | X159: 11 | Y159: 229 | Z159: 56 | AA159: 0 | AB159: 0 | AC159: 0 | AD159: 0 | AE159: 0 | AF159: 0 | AG159: 1 | AH159: 0 | AI159: 0 | AJ159: 1 | AK159: 0 | AL159: 0 | AM159: 1 | AN159: 0 | AO159: 1 | AP159: 0 | AQ159: 0 | AS159: 1 | AT159: METABAT_AS22ysBPME_227 | AU159: root (UID1) | AV159: 5656 | AW159: 56 | AX159: 24 | AY159: 0 | AZ159: 0 | BA159: 0 | BB159: 0 | BC159: 208541 | BD159: 0 | BE159: 28 | BF159: 28 | BG159: 9502 | BH159: 9502 | BI159: 7447 | BJ159: 7447 | BK159: 24048 | BL159: 24048 | BM159: 35.9 | BN159: 1.44 | BO159: 91.86 | BP159: 11 | BQ159: 229 | BR159: 56 | BS159: 0 | BT159: 0 | BU159: 0 | BV159: 0 | BW159: 0 | BX159: 0 | BY159: 1 | BZ159: 0 | CA159: 0 | CB159: 1 | CC159: 0 | CD159: 0 | CE159: 1 | CF159: 0 | CG159: 1 | CH159: 0 | CI159: 0 | CL159: 0 | CM159: 0 | CN159: cp | CO159: METABAT_AS22ysBPME_227 | CP159: .faa | CQ159: lowQ
A160: 4808 | B160: METABAT_AS22ysBPME_244 | C160: root (UID1) | D160: 5656 | E160: 56 | F160: 24 | G160: 0 | H160: 0 | I160: 0 | J160: 0 | K160: 326655 | L160: 0 | M160: 64 | N160: 64 | O160: 6707 | P160: 6707 | Q160: 5103 | R160: 5103 | S160: 24587 | T160: 24587 | U160: 36.2 | V160: 4.33 | W160: 83.76 | X160: 11 | Y160: 354 | Z160: 56 | AA160: 0 | AB160: 0 | AC160: 0 | AD160: 0 | AE160: 0 | AF160: 0 | AG160: 1 | AH160: 0 | AI160: 0 | AJ160: 1 | AK160: 0 | AL160: 0 | AM160: 1 | AN160: 0 | AO160: 1 | AP160: 0 | AQ160: 0 | AS160: 1 | AT160: METABAT_AS22ysBPME_244 | AU160: root (UID1) | AV160: 5656 | AW160: 56 | AX160: 24 | AY160: 0 | AZ160: 0 | BA160: 0 | BB160: 0 | BC160: 312170 | BD160: 0 | BE160: 59 | BF160: 59 | BG160: 6707 | BH160: 6707 | BI160: 5291 | BJ160: 5291 | BK160: 24587 | BL160: 24587 | BM160: 35.8 | BN160: 2.76 | BO160: 83.54 | BP160: 11 | BQ160: 340 | BR160: 56 | BS160: 0 | BT160: 0 | BU160: 0 | BV160: 0 | BW160: 0 | BX160: 0 | BY160: 1 | BZ160: 0 | CA160: 0 | CB160: 1 | CC160: 0 | CD160: 0 | CE160: 1 | CF160: 0 | CG160: 1 | CH160: 0 | CI160: 0 | CL160: 0 | CM160: -14485 | CN160: cp | CO160: METABAT_AS22ysBPME_244 | CP160: .faa | CQ160: lowQ
A161: 4810 | B161: METABAT_AS22ysBPME_246 | C161: root (UID1) | D161: 5656 | E161: 56 | F161: 24 | G161: 0 | H161: 0 | I161: 0 | J161: 0 | K161: 270066 | L161: 0 | M161: 74 | N161: 74 | O161: 3913 | P161: 3913 | Q161: 3649 | R161: 3649 | S161: 13249 | T161: 13249 | U161: 33 | V161: 1.44 | W161: 90.68 | X161: 11 | Y161: 307 | Z161: 56 | AA161: 0 | AB161: 0 | AC161: 0 | AD161: 0 | AE161: 0 | AF161: 0 | AG161: 1 | AH161: 0 | AI161: 0 | AJ161: 1 | AK161: 0 | AL161: 0 | AM161: 1 | AN161: 0 | AO161: 1 | AP161: 0 | AQ161: 0 | AS161: 1 | AT161: METABAT_AS22ysBPME_246 | AU161: root (UID1) | AV161: 5656 | AW161: 56 | AX161: 24 | AY161: 0 | AZ161: 0 | BA161: 0 | BB161: 0 | BC161: 270066 | BD161: 0 | BE161: 74 | BF161: 74 | BG161: 3913 | BH161: 3913 | BI161: 3649 | BJ161: 3649 | BK161: 13249 | BL161: 13249 | BM161: 33 | BN161: 1.44 | BO161: 90.68 | BP161: 11 | BQ161: 307 | BR161: 56 | BS161: 0 | BT161: 0 | BU161: 0 | BV161: 0 | BW161: 0 | BX161: 0 | BY161: 1 | BZ161: 0 | CA161: 0 | CB161: 1 | CC161: 0 | CD161: 0 | CE161: 1 | CF161: 0 | CG161: 1 | CH161: 0 | CI161: 0 | CL161: 0 | CM161: 0 | CN161: cp | CO161: METABAT_AS22ysBPME_246 | CP161: .faa | CQ161: lowQ
A162: 4827 | B162: METABAT_AS22ysBPME_261 | C162: root (UID1) | D162: 5656 | E162: 56 | F162: 24 | G162: 0 | H162: 0 | I162: 0 | J162: 0 | K162: 254977 | L162: 0 | M162: 69 | N162: 69 | O162: 4330 | P162: 4330 | Q162: 3695 | R162: 3695 | S162: 10222 | T162: 10222 | U162: 34.5 | V162: 1.65 | W162: 87.91 | X162: 11 | Y162: 292 | Z162: 56 | AA162: 0 | AB162: 0 | AC162: 0 | AD162: 0 | AE162: 0 | AF162: 0 | AG162: 1 | AH162: 0 | AI162: 0 | AJ162: 1 | AK162: 0 | AL162: 0 | AM162: 1 | AN162: 0 | AO162: 1 | AP162: 0 | AQ162: 0 | AS162: 1 | AT162: METABAT_AS22ysBPME_261 | AU162: root (UID1) | AV162: 5656 | AW162: 56 | AX162: 24 | AY162: 0 | AZ162: 0 | BA162: 0 | BB162: 0 | BC162: 254977 | BD162: 0 | BE162: 69 | BF162: 69 | BG162: 4330 | BH162: 4330 | BI162: 3695 | BJ162: 3695 | BK162: 10222 | BL162: 10222 | BM162: 34.5 | BN162: 1.65 | BO162: 87.88 | BP162: 11 | BQ162: 292 | BR162: 56 | BS162: 0 | BT162: 0 | BU162: 0 | BV162: 0 | BW162: 0 | BX162: 0 | BY162: 1 | BZ162: 0 | CA162: 0 | CB162: 1 | CC162: 0 | CD162: 0 | CE162: 1 | CF162: 0 | CG162: 1 | CH162: 0 | CI162: 0 | CL162: 0 | CM162: 0 | CN162: cp | CO162: METABAT_AS22ysBPME_261 | CP162: .faa | CQ162: lowQ
A163: 4829 | B163: METABAT_AS22ysBPME_263 | C163: root (UID1) | D163: 5656 | E163: 56 | F163: 24 | G163: 0 | H163: 0 | I163: 0 | J163: 0 | K163: 365024 | L163: 0 | M163: 43 | N163: 43 | O163: 12864 | P163: 12864 | Q163: 8488 | R163: 8488 | S163: 31410 | T163: 31410 | U163: 34.5 | V163: 1.89 | W163: 84.27 | X163: 11 | Y163: 362 | Z163: 56 | AA163: 0 | AB163: 0 | AC163: 0 | AD163: 0 | AE163: 0 | AF163: 0 | AG163: 1 | AH163: 0 | AI163: 0 | AJ163: 1 | AK163: 0 | AL163: 0 | AM163: 1 | AN163: 0 | AO163: 1 | AP163: 0 | AQ163: 0 | AS163: 1 | AT163: METABAT_AS22ysBPME_263 | AU163: root (UID1) | AV163: 5656 | AW163: 56 | AX163: 24 | AY163: 0 | AZ163: 0 | BA163: 0 | BB163: 0 | BC163: 365024 | BD163: 0 | BE163: 43 | BF163: 43 | BG163: 12864 | BH163: 12864 | BI163: 8488 | BJ163: 8488 | BK163: 31410 | BL163: 31410 | BM163: 34.5 | BN163: 1.89 | BO163: 84.27 | BP163: 11 | BQ163: 362 | BR163: 56 | BS163: 0 | BT163: 0 | BU163: 0 | BV163: 0 | BW163: 0 | BX163: 0 | BY163: 1 | BZ163: 0 | CA163: 0 | CB163: 1 | CC163: 0 | CD163: 0 | CE163: 1 | CF163: 0 | CG163: 1 | CH163: 0 | CI163: 0 | CL163: 0 | CM163: 0 | CN163: cp | CO163: METABAT_AS22ysBPME_263 | CP163: .faa | CQ163: lowQ
A164: 4838 | B164: METABAT_AS22ysBPME_271 | C164: root (UID1) | D164: 5656 | E164: 56 | F164: 24 | G164: 0 | H164: 0 | I164: 0 | J164: 0 | K164: 316572 | L164: 0 | M164: 33 | N164: 33 | O164: 10934 | P164: 10934 | Q164: 9593 | R164: 9593 | S164: 24902 | T164: 24902 | U164: 38.9 | V164: 1.51 | W164: 90.91 | X164: 11 | Y164: 333 | Z164: 56 | AA164: 0 | AB164: 0 | AC164: 0 | AD164: 0 | AE164: 0 | AF164: 0 | AG164: 1 | AH164: 0 | AI164: 0 | AJ164: 1 | AK164: 0 | AL164: 0 | AM164: 1 | AN164: 0 | AO164: 1 | AP164: 0 | AQ164: 0 | AS164: 1 | AT164: METABAT_AS22ysBPME_271 | AU164: root (UID1) | AV164: 5656 | AW164: 56 | AX164: 24 | AY164: 0 | AZ164: 0 | BA164: 0 | BB164: 0 | BC164: 316572 | BD164: 0 | BE164: 33 | BF164: 33 | BG164: 10934 | BH164: 10934 | BI164: 9593 | BJ164: 9593 | BK164: 24902 | BL164: 24902 | BM164: 38.9 | BN164: 1.51 | BO164: 90.91 | BP164: 11 | BQ164: 333 | BR164: 56 | BS164: 0 | BT164: 0 | BU164: 0 | BV164: 0 | BW164: 0 | BX164: 0 | BY164: 1 | BZ164: 0 | CA164: 0 | CB164: 1 | CC164: 0 | CD164: 0 | CE164: 1 | CF164: 0 | CG164: 1 | CH164: 0 | CI164: 0 | CL164: 0 | CM164: 0 | CN164: cp | CO164: METABAT_AS22ysBPME_271 | CP164: .faa | CQ164: lowQ
A165: 4845 | B165: METABAT_AS22ysBPME_278 | C165: root (UID1) | D165: 5656 | E165: 56 | F165: 24 | G165: 0 | H165: 0 | I165: 0 | J165: 0 | K165: 248659 | L165: 0 | M165: 13 | N165: 13 | O165: 54810 | P165: 54810 | Q165: 19127 | R165: 19127 | S165: 84697 | T165: 84697 | U165: 33.9 | V165: 0.98 | W165: 90.61 | X165: 11 | Y165: 269 | Z165: 56 | AA165: 0 | AB165: 0 | AC165: 0 | AD165: 0 | AE165: 0 | AF165: 0 | AG165: 1 | AH165: 0 | AI165: 0 | AJ165: 1 | AK165: 0 | AL165: 0 | AM165: 1 | AN165: 0 | AO165: 1 | AP165: 0 | AQ165: 0 | AS165: 1 | AT165: METABAT_AS22ysBPME_278 | AU165: root (UID1) | AV165: 5656 | AW165: 56 | AX165: 24 | AY165: 0 | AZ165: 0 | BA165: 0 | BB165: 0 | BC165: 248659 | BD165: 0 | BE165: 13 | BF165: 13 | BG165: 54810 | BH165: 54810 | BI165: 19127 | BJ165: 19127 | BK165: 84697 | BL165: 84697 | BM165: 33.9 | BN165: 0.98 | BO165: 90.6 | BP165: 11 | BQ165: 269 | BR165: 56 | BS165: 0 | BT165: 0 | BU165: 0 | BV165: 0 | BW165: 0 | BX165: 0 | BY165: 1 | BZ165: 0 | CA165: 0 | CB165: 1 | CC165: 0 | CD165: 0 | CE165: 1 | CF165: 0 | CG165: 1 | CH165: 0 | CI165: 0 | CL165: 0 | CM165: 0 | CN165: cp | CO165: METABAT_AS22ysBPME_278 | CP165: .faa | CQ165: lowQ
A166: 4882 | B166: METABAT_AS22ysBPME_310 | C166: root (UID1) | D166: 5656 | E166: 56 | F166: 24 | G166: 0 | H166: 0 | I166: 0 | J166: 0 | K166: 229179 | L166: 0 | M166: 54 | N166: 54 | O166: 5042 | P166: 5042 | Q166: 4244 | R166: 4244 | S166: 18925 | T166: 18925 | U166: 33.4 | V166: 2.48 | W166: 90.91 | X166: 11 | Y166: 265 | Z166: 56 | AA166: 0 | AB166: 0 | AC166: 0 | AD166: 0 | AE166: 0 | AF166: 0 | AG166: 1 | AH166: 0 | AI166: 0 | AJ166: 1 | AK166: 0 | AL166: 0 | AM166: 1 | AN166: 0 | AO166: 1 | AP166: 0 | AQ166: 0 | AS166: 1 | AT166: METABAT_AS22ysBPME_310 | AU166: root (UID1) | AV166: 5656 | AW166: 56 | AX166: 24 | AY166: 0 | AZ166: 0 | BA166: 0 | BB166: 0 | BC166: 225979 | BD166: 0 | BE166: 53 | BF166: 53 | BG166: 5401 | BH166: 5401 | BI166: 4263 | BJ166: 4263 | BK166: 18925 | BL166: 18925 | BM166: 33.2 | BN166: 1.46 | BO166: 91.06 | BP166: 11 | BQ166: 260 | BR166: 56 | BS166: 0 | BT166: 0 | BU166: 0 | BV166: 0 | BW166: 0 | BX166: 0 | BY166: 1 | BZ166: 0 | CA166: 0 | CB166: 1 | CC166: 0 | CD166: 0 | CE166: 1 | CF166: 0 | CG166: 1 | CH166: 0 | CI166: 0 | CL166: 0 | CM166: -3200 | CN166: cp | CO166: METABAT_AS22ysBPME_310 | CP166: .faa | CQ166: lowQ
A167: 4902 | B167: METABAT_AS22ysBPME_329 | C167: root (UID1) | D167: 5656 | E167: 56 | F167: 24 | G167: 0 | H167: 0 | I167: 0 | J167: 0 | K167: 450748 | L167: 0 | M167: 31 | N167: 31 | O167: 17970 | P167: 17970 | Q167: 14540 | R167: 14540 | S167: 69541 | T167: 69541 | U167: 30.8 | V167: 0.96 | W167: 88.59 | X167: 11 | Y167: 532 | Z167: 56 | AA167: 0 | AB167: 0 | AC167: 0 | AD167: 0 | AE167: 0 | AF167: 0 | AG167: 1 | AH167: 0 | AI167: 0 | AJ167: 1 | AK167: 0 | AL167: 0 | AM167: 1 | AN167: 0 | AO167: 1 | AP167: 0 | AQ167: 0 | AS167: 1 | AT167: METABAT_AS22ysBPME_329 | AU167: root (UID1) | AV167: 5656 | AW167: 56 | AX167: 24 | AY167: 0 | AZ167: 0 | BA167: 0 | BB167: 0 | BC167: 450748 | BD167: 0 | BE167: 31 | BF167: 31 | BG167: 17970 | BH167: 17970 | BI167: 14540 | BJ167: 14540 | BK167: 69541 | BL167: 69541 | BM167: 30.8 | BN167: 0.96 | BO167: 88.59 | BP167: 11 | BQ167: 532 | BR167: 56 | BS167: 0 | BT167: 0 | BU167: 0 | BV167: 0 | BW167: 0 | BX167: 0 | BY167: 1 | BZ167: 0 | CA167: 0 | CB167: 1 | CC167: 0 | CD167: 0 | CE167: 1 | CF167: 0 | CG167: 1 | CH167: 0 | CI167: 0 | CL167: 0 | CM167: 0 | CN167: cp | CO167: METABAT_AS22ysBPME_329 | CP167: .faa | CQ167: lowQ
A168: 4905 | B168: METABAT_AS22ysBPME_331 | C168: root (UID1) | D168: 5656 | E168: 56 | F168: 24 | G168: 0 | H168: 0 | I168: 0 | J168: 0 | K168: 203339 | L168: 0 | M168: 45 | N168: 45 | O168: 6018 | P168: 6018 | Q168: 4518 | R168: 4518 | S168: 16296 | T168: 16296 | U168: 24 | V168: 1.43 | W168: 88.36 | X168: 11 | Y168: 296 | Z168: 56 | AA168: 0 | AB168: 0 | AC168: 0 | AD168: 0 | AE168: 0 | AF168: 0 | AG168: 1 | AH168: 0 | AI168: 0 | AJ168: 1 | AK168: 0 | AL168: 0 | AM168: 1 | AN168: 0 | AO168: 1 | AP168: 0 | AQ168: 0 | AS168: 1 | AT168: METABAT_AS22ysBPME_331 | AU168: root (UID1) | AV168: 5656 | AW168: 56 | AX168: 24 | AY168: 0 | AZ168: 0 | BA168: 0 | BB168: 0 | BC168: 203339 | BD168: 0 | BE168: 45 | BF168: 45 | BG168: 6018 | BH168: 6018 | BI168: 4518 | BJ168: 4518 | BK168: 16296 | BL168: 16296 | BM168: 24 | BN168: 1.43 | BO168: 88.36 | BP168: 11 | BQ168: 296 | BR168: 56 | BS168: 0 | BT168: 0 | BU168: 0 | BV168: 0 | BW168: 0 | BX168: 0 | BY168: 1 | BZ168: 0 | CA168: 0 | CB168: 1 | CC168: 0 | CD168: 0 | CE168: 1 | CF168: 0 | CG168: 1 | CH168: 0 | CI168: 0 | CL168: 0 | CM168: 0 | CN168: cp | CO168: METABAT_AS22ysBPME_331 | CP168: .faa | CQ168: lowQ
A169: 4938 | B169: METABAT_AS22ysBPME_59 | C169: root (UID1) | D169: 5656 | E169: 56 | F169: 24 | G169: 0 | H169: 0 | I169: 0 | J169: 0 | K169: 233261 | L169: 0 | M169: 58 | N169: 58 | O169: 5663 | P169: 5663 | Q169: 4021 | R169: 4021 | S169: 14800 | T169: 14800 | U169: 24.7 | V169: 1.88 | W169: 82.17 | X169: 11 | Y169: 259 | Z169: 56 | AA169: 0 | AB169: 0 | AC169: 0 | AD169: 0 | AE169: 0 | AF169: 0 | AG169: 1 | AH169: 0 | AI169: 0 | AJ169: 1 | AK169: 0 | AL169: 0 | AM169: 1 | AN169: 0 | AO169: 1 | AP169: 0 | AQ169: 0 | AS169: 1 | AT169: METABAT_AS22ysBPME_59 | AU169: root (UID1) | AV169: 5656 | AW169: 56 | AX169: 24 | AY169: 0 | AZ169: 0 | BA169: 0 | BB169: 0 | BC169: 233261 | BD169: 0 | BE169: 58 | BF169: 58 | BG169: 5663 | BH169: 5663 | BI169: 4021 | BJ169: 4021 | BK169: 14800 | BL169: 14800 | BM169: 24.7 | BN169: 1.88 | BO169: 82.18 | BP169: 11 | BQ169: 259 | BR169: 56 | BS169: 0 | BT169: 0 | BU169: 0 | BV169: 0 | BW169: 0 | BX169: 0 | BY169: 1 | BZ169: 0 | CA169: 0 | CB169: 1 | CC169: 0 | CD169: 0 | CE169: 1 | CF169: 0 | CG169: 1 | CH169: 0 | CI169: 0 | CL169: 0 | CM169: 0 | CN169: cp | CO169: METABAT_AS22ysBPME_59 | CP169: .faa | CQ169: lowQ
A170: 4939 | B170: METABAT_AS22ysBPME_6 | C170: root (UID1) | D170: 5656 | E170: 56 | F170: 24 | G170: 0 | H170: 0 | I170: 0 | J170: 0 | K170: 286954 | L170: 0 | M170: 21 | N170: 21 | O170: 19065 | P170: 19065 | Q170: 13664 | R170: 13664 | S170: 91588 | T170: 91588 | U170: 33.1 | V170: 1.93 | W170: 94.73 | X170: 11 | Y170: 268 | Z170: 56 | AA170: 0 | AB170: 0 | AC170: 0 | AD170: 0 | AE170: 0 | AF170: 0 | AG170: 1 | AH170: 0 | AI170: 0 | AJ170: 1 | AK170: 0 | AL170: 0 | AM170: 1 | AN170: 0 | AO170: 1 | AP170: 0 | AQ170: 0 | AS170: 1 | AT170: METABAT_AS22ysBPME_6 | AU170: root (UID1) | AV170: 5656 | AW170: 56 | AX170: 24 | AY170: 0 | AZ170: 0 | BA170: 0 | BB170: 0 | BC170: 286954 | BD170: 0 | BE170: 21 | BF170: 21 | BG170: 19065 | BH170: 19065 | BI170: 13664 | BJ170: 13664 | BK170: 91588 | BL170: 91588 | BM170: 33.1 | BN170: 1.93 | BO170: 94.73 | BP170: 11 | BQ170: 268 | BR170: 56 | BS170: 0 | BT170: 0 | BU170: 0 | BV170: 0 | BW170: 0 | BX170: 0 | BY170: 1 | BZ170: 0 | CA170: 0 | CB170: 1 | CC170: 0 | CD170: 0 | CE170: 1 | CF170: 0 | CG170: 1 | CH170: 0 | CI170: 0 | CL170: 0 | CM170: 0 | CN170: cp | CO170: METABAT_AS22ysBPME_6 | CP170: .faa | CQ170: lowQ
A171: 4942 | B171: METABAT_AS22ysBPME_62 | C171: root (UID1) | D171: 5656 | E171: 56 | F171: 24 | G171: 0 | H171: 0 | I171: 0 | J171: 0 | K171: 253403 | L171: 0 | M171: 97 | N171: 97 | O171: 2754 | P171: 2754 | Q171: 2612 | R171: 2612 | S171: 8796 | T171: 8796 | U171: 26.7 | V171: 1.83 | W171: 84.27 | X171: 11 | Y171: 270 | Z171: 56 | AA171: 0 | AB171: 0 | AC171: 0 | AD171: 0 | AE171: 0 | AF171: 0 | AG171: 1 | AH171: 0 | AI171: 0 | AJ171: 1 | AK171: 0 | AL171: 0 | AM171: 1 | AN171: 0 | AO171: 1 | AP171: 0 | AQ171: 0 | AS171: 1 | AT171: METABAT_AS22ysBPME_62 | AU171: root (UID1) | AV171: 5656 | AW171: 56 | AX171: 24 | AY171: 0 | AZ171: 0 | BA171: 0 | BB171: 0 | BC171: 253403 | BD171: 0 | BE171: 97 | BF171: 97 | BG171: 2754 | BH171: 2754 | BI171: 2612 | BJ171: 2612 | BK171: 8796 | BL171: 8796 | BM171: 26.7 | BN171: 1.83 | BO171: 84.3 | BP171: 11 | BQ171: 271 | BR171: 56 | BS171: 0 | BT171: 0 | BU171: 0 | BV171: 0 | BW171: 0 | BX171: 0 | BY171: 1 | BZ171: 0 | CA171: 0 | CB171: 1 | CC171: 0 | CD171: 0 | CE171: 1 | CF171: 0 | CG171: 1 | CH171: 0 | CI171: 0 | CL171: 0 | CM171: 0 | CN171: cp | CO171: METABAT_AS22ysBPME_62 | CP171: .faa | CQ171: lowQ
A172: 4944 | B172: METABAT_AS22ysBPME_64 | C172: root (UID1) | D172: 5656 | E172: 56 | F172: 24 | G172: 0 | H172: 0 | I172: 0 | J172: 0 | K172: 240092 | L172: 0 | M172: 32 | N172: 32 | O172: 9607 | P172: 9607 | Q172: 7502 | R172: 7502 | S172: 37788 | T172: 37788 | U172: 28.2 | V172: 1.6 | W172: 90.43 | X172: 11 | Y172: 341 | Z172: 56 | AA172: 0 | AB172: 0 | AC172: 0 | AD172: 0 | AE172: 0 | AF172: 0 | AG172: 1 | AH172: 0 | AI172: 0 | AJ172: 1 | AK172: 0 | AL172: 0 | AM172: 1 | AN172: 0 | AO172: 1 | AP172: 0 | AQ172: 0 | AS172: 1 | AT172: METABAT_AS22ysBPME_64 | AU172: root (UID1) | AV172: 5656 | AW172: 56 | AX172: 24 | AY172: 0 | AZ172: 0 | BA172: 0 | BB172: 0 | BC172: 240092 | BD172: 0 | BE172: 32 | BF172: 32 | BG172: 9607 | BH172: 9607 | BI172: 7502 | BJ172: 7502 | BK172: 37788 | BL172: 37788 | BM172: 28.2 | BN172: 1.6 | BO172: 90.32 | BP172: 11 | BQ172: 340 | BR172: 56 | BS172: 0 | BT172: 0 | BU172: 0 | BV172: 0 | BW172: 0 | BX172: 0 | BY172: 1 | BZ172: 0 | CA172: 0 | CB172: 1 | CC172: 0 | CD172: 0 | CE172: 1 | CF172: 0 | CG172: 1 | CH172: 0 | CI172: 0 | CL172: 0 | CM172: 0 | CN172: cp | CO172: METABAT_AS22ysBPME_64 | CP172: .faa | CQ172: lowQ
A173: 4954 | B173: METABAT_AS22ysBPME_73 | C173: root (UID1) | D173: 5656 | E173: 56 | F173: 24 | G173: 0 | H173: 0 | I173: 0 | J173: 0 | K173: 241149 | L173: 0 | M173: 38 | N173: 38 | O173: 10884 | P173: 10884 | Q173: 6346 | R173: 6346 | S173: 35877 | T173: 35877 | U173: 33.3 | V173: 2.17 | W173: 90.13 | X173: 11 | Y173: 292 | Z173: 56 | AA173: 0 | AB173: 0 | AC173: 0 | AD173: 0 | AE173: 0 | AF173: 0 | AG173: 1 | AH173: 0 | AI173: 0 | AJ173: 1 | AK173: 0 | AL173: 0 | AM173: 1 | AN173: 0 | AO173: 1 | AP173: 0 | AQ173: 0 | AS173: 1 | AT173: METABAT_AS22ysBPME_73 | AU173: root (UID1) | AV173: 5656 | AW173: 56 | AX173: 24 | AY173: 0 | AZ173: 0 | BA173: 0 | BB173: 0 | BC173: 237188 | BD173: 0 | BE173: 36 | BF173: 36 | BG173: 10884 | BH173: 10884 | BI173: 6588 | BJ173: 6588 | BK173: 35877 | BL173: 35877 | BM173: 33.4 | BN173: 1.5 | BO173: 90.55 | BP173: 11 | BQ173: 288 | BR173: 56 | BS173: 0 | BT173: 0 | BU173: 0 | BV173: 0 | BW173: 0 | BX173: 0 | BY173: 1 | BZ173: 0 | CA173: 0 | CB173: 1 | CC173: 0 | CD173: 0 | CE173: 1 | CF173: 0 | CG173: 1 | CH173: 0 | CI173: 0 | CL173: 0 | CM173: -3961 | CN173: cp | CO173: METABAT_AS22ysBPME_73 | CP173: .faa | CQ173: lowQ
A174: 4978 | B174: METABAT_AS22ysBPME_95 | C174: root (UID1) | D174: 5656 | E174: 56 | F174: 24 | G174: 0 | H174: 0 | I174: 0 | J174: 0 | K174: 259626 | L174: 0 | M174: 65 | N174: 65 | O174: 5192 | P174: 5192 | Q174: 3994 | R174: 3994 | S174: 17197 | T174: 17197 | U174: 37 | V174: 2.26 | W174: 87.58 | X174: 11 | Y174: 295 | Z174: 56 | AA174: 0 | AB174: 0 | AC174: 0 | AD174: 0 | AE174: 0 | AF174: 0 | AG174: 1 | AH174: 0 | AI174: 0 | AJ174: 1 | AK174: 0 | AL174: 0 | AM174: 1 | AN174: 0 | AO174: 1 | AP174: 0 | AQ174: 0 | AS174: 1 | AT174: METABAT_AS22ysBPME_95 | AU174: root (UID1) | AV174: 5656 | AW174: 56 | AX174: 24 | AY174: 0 | AZ174: 0 | BA174: 0 | BB174: 0 | BC174: 259626 | BD174: 0 | BE174: 65 | BF174: 65 | BG174: 5192 | BH174: 5192 | BI174: 3994 | BJ174: 3994 | BK174: 17197 | BL174: 17197 | BM174: 37 | BN174: 2.26 | BO174: 87.46 | BP174: 11 | BQ174: 293 | BR174: 56 | BS174: 0 | BT174: 0 | BU174: 0 | BV174: 0 | BW174: 0 | BX174: 0 | BY174: 1 | BZ174: 0 | CA174: 0 | CB174: 1 | CC174: 0 | CD174: 0 | CE174: 1 | CF174: 0 | CG174: 1 | CH174: 0 | CI174: 0 | CL174: 0 | CM174: 0 | CN174: cp | CO174: METABAT_AS22ysBPME_95 | CP174: .faa | CQ174: lowQ
A175: 4981 | B175: METABAT_AS22ysBPME_98 | C175: root (UID1) | D175: 5656 | E175: 56 | F175: 24 | G175: 0 | H175: 0 | I175: 0 | J175: 0 | K175: 358524 | L175: 0 | M175: 115 | N175: 115 | O175: 3315 | P175: 3315 | Q175: 3117 | R175: 3117 | S175: 10180 | T175: 10180 | U175: 28.6 | V175: 2.03 | W175: 85.83 | X175: 11 | Y175: 405 | Z175: 56 | AA175: 0 | AB175: 0 | AC175: 0 | AD175: 0 | AE175: 0 | AF175: 0 | AG175: 1 | AH175: 0 | AI175: 0 | AJ175: 1 | AK175: 0 | AL175: 0 | AM175: 1 | AN175: 0 | AO175: 1 | AP175: 0 | AQ175: 0 | AS175: 1 | AT175: METABAT_AS22ysBPME_98 | AU175: root (UID1) | AV175: 5656 | AW175: 56 | AX175: 24 | AY175: 0 | AZ175: 0 | BA175: 0 | BB175: 0 | BC175: 358524 | BD175: 0 | BE175: 115 | BF175: 115 | BG175: 3315 | BH175: 3315 | BI175: 3117 | BJ175: 3117 | BK175: 10180 | BL175: 10180 | BM175: 28.6 | BN175: 2.03 | BO175: 85.83 | BP175: 11 | BQ175: 405 | BR175: 56 | BS175: 0 | BT175: 0 | BU175: 0 | BV175: 0 | BW175: 0 | BX175: 0 | BY175: 1 | BZ175: 0 | CA175: 0 | CB175: 1 | CC175: 0 | CD175: 0 | CE175: 1 | CF175: 0 | CG175: 1 | CH175: 0 | CI175: 0 | CL175: 0 | CM175: 0 | CN175: cp | CO175: METABAT_AS22ysBPME_98 | CP175: .faa | CQ175: lowQ
A176: 901 | B176: METABAT_AS23ysBPME_111 | C176: root (UID1) | D176: 5656 | E176: 56 | F176: 24 | G176: 0 | H176: 0 | I176: 0 | J176: 0 | K176: 384437 | L176: 0 | M176: 105 | N176: 105 | O176: 4412 | P176: 4412 | Q176: 3661 | R176: 3661 | S176: 10267 | T176: 10267 | U176: 38.6 | V176: 1.54 | W176: 92.18 | X176: 11 | Y176: 344 | Z176: 56 | AA176: 0 | AB176: 0 | AC176: 0 | AD176: 0 | AE176: 0 | AF176: 0 | AG176: 1 | AH176: 0 | AI176: 0 | AJ176: 1 | AK176: 0 | AL176: 0 | AM176: 1 | AN176: 0 | AO176: 1 | AP176: 0 | AQ176: 0 | AS176: 1 | AT176: METABAT_AS23ysBPME_111 | AU176: root (UID1) | AV176: 5656 | AW176: 56 | AX176: 24 | AY176: 0 | AZ176: 0 | BA176: 0 | BB176: 0 | BC176: 384437 | BD176: 0 | BE176: 105 | BF176: 105 | BG176: 4412 | BH176: 4412 | BI176: 3661 | BJ176: 3661 | BK176: 10267 | BL176: 10267 | BM176: 38.6 | BN176: 1.54 | BO176: 92.18 | BP176: 11 | BQ176: 344 | BR176: 56 | BS176: 0 | BT176: 0 | BU176: 0 | BV176: 0 | BW176: 0 | BX176: 0 | BY176: 1 | BZ176: 0 | CA176: 0 | CB176: 1 | CC176: 0 | CD176: 0 | CE176: 1 | CF176: 0 | CG176: 1 | CH176: 0 | CI176: 0 | CL176: 0 | CM176: 0 | CN176: cp | CO176: METABAT_AS23ysBPME_111 | CP176: .faa | CQ176: lowQ
A177: 902 | B177: METABAT_AS23ysBPME_112 | C177: root (UID1) | D177: 5656 | E177: 56 | F177: 24 | G177: 0 | H177: 0 | I177: 0 | J177: 0 | K177: 208961 | L177: 0 | M177: 34 | N177: 34 | O177: 8490 | P177: 8490 | Q177: 6145 | R177: 6145 | S177: 21771 | T177: 21771 | U177: 34.8 | V177: 1.76 | W177: 86.9 | X177: 11 | Y177: 237 | Z177: 56 | AA177: 0 | AB177: 0 | AC177: 0 | AD177: 0 | AE177: 0 | AF177: 0 | AG177: 1 | AH177: 0 | AI177: 0 | AJ177: 1 | AK177: 0 | AL177: 0 | AM177: 1 | AN177: 0 | AO177: 1 | AP177: 0 | AQ177: 0 | AS177: 1 | AT177: METABAT_AS23ysBPME_112 | AU177: root (UID1) | AV177: 5656 | AW177: 56 | AX177: 24 | AY177: 0 | AZ177: 0 | BA177: 0 | BB177: 0 | BC177: 208961 | BD177: 0 | BE177: 34 | BF177: 34 | BG177: 8490 | BH177: 8490 | BI177: 6145 | BJ177: 6145 | BK177: 21771 | BL177: 21771 | BM177: 34.8 | BN177: 1.76 | BO177: 86.85 | BP177: 11 | BQ177: 237 | BR177: 56 | BS177: 0 | BT177: 0 | BU177: 0 | BV177: 0 | BW177: 0 | BX177: 0 | BY177: 1 | BZ177: 0 | CA177: 0 | CB177: 1 | CC177: 0 | CD177: 0 | CE177: 1 | CF177: 0 | CG177: 1 | CH177: 0 | CI177: 0 | CL177: 0 | CM177: 0 | CN177: cp | CO177: METABAT_AS23ysBPME_112 | CP177: .faa | CQ177: lowQ
A178: 910 | B178: METABAT_AS23ysBPME_12 | C178: root (UID1) | D178: 5656 | E178: 56 | F178: 24 | G178: 0 | H178: 0 | I178: 0 | J178: 0 | K178: 289177 | L178: 0 | M178: 29 | N178: 29 | O178: 15131 | P178: 15131 | Q178: 9971 | R178: 9971 | S178: 46352 | T178: 46352 | U178: 26.3 | V178: 7.2 | W178: 83.57 | X178: 11 | Y178: 314 | Z178: 56 | AA178: 0 | AB178: 0 | AC178: 0 | AD178: 0 | AE178: 0 | AF178: 0 | AG178: 1 | AH178: 0 | AI178: 0 | AJ178: 1 | AK178: 0 | AL178: 0 | AM178: 1 | AN178: 0 | AO178: 1 | AP178: 0 | AQ178: 0 | AS178: 1 | AT178: METABAT_AS23ysBPME_12 | AU178: root (UID1) | AV178: 5656 | AW178: 56 | AX178: 24 | AY178: 0 | AZ178: 0 | BA178: 0 | BB178: 0 | BC178: 250351 | BD178: 0 | BE178: 23 | BF178: 23 | BG178: 15131 | BH178: 15131 | BI178: 10884 | BJ178: 10884 | BK178: 46352 | BL178: 46352 | BM178: 24.6 | BN178: 3.56 | BO178: 82.23 | BP178: 11 | BQ178: 268 | BR178: 56 | BS178: 0 | BT178: 0 | BU178: 0 | BV178: 0 | BW178: 0 | BX178: 0 | BY178: 1 | BZ178: 0 | CA178: 0 | CB178: 1 | CC178: 0 | CD178: 0 | CE178: 1 | CF178: 0 | CG178: 1 | CH178: 0 | CI178: 0 | CL178: 0 | CM178: -38826 | CN178: cp | CO178: METABAT_AS23ysBPME_12 | CP178: .faa | CQ178: lowQ
A179: 977 | B179: METABAT_AS23ysBPME_180 | C179: root (UID1) | D179: 5656 | E179: 56 | F179: 24 | G179: 0 | H179: 0 | I179: 0 | J179: 0 | K179: 240130 | L179: 0 | M179: 59 | N179: 59 | O179: 5216 | P179: 5216 | Q179: 4070 | R179: 4070 | S179: 13291 | T179: 13291 | U179: 38.5 | V179: 7.7 | W179: 89.29 | X179: 11 | Y179: 278 | Z179: 56 | AA179: 0 | AB179: 0 | AC179: 0 | AD179: 0 | AE179: 0 | AF179: 0 | AG179: 1 | AH179: 0 | AI179: 0 | AJ179: 1 | AK179: 0 | AL179: 0 | AM179: 1 | AN179: 0 | AO179: 1 | AP179: 0 | AQ179: 0 | AS179: 1 | AT179: METABAT_AS23ysBPME_180 | AU179: root (UID1) | AV179: 5656 | AW179: 56 | AX179: 24 | AY179: 0 | AZ179: 0 | BA179: 0 | BB179: 0 | BC179: 226860 | BD179: 0 | BE179: 51 | BF179: 51 | BG179: 5400 | BH179: 5400 | BI179: 4448 | BJ179: 4448 | BK179: 13291 | BL179: 13291 | BM179: 37.7 | BN179: 1.52 | BO179: 89.65 | BP179: 11 | BQ179: 260 | BR179: 56 | BS179: 0 | BT179: 0 | BU179: 0 | BV179: 0 | BW179: 0 | BX179: 0 | BY179: 1 | BZ179: 0 | CA179: 0 | CB179: 1 | CC179: 0 | CD179: 0 | CE179: 1 | CF179: 0 | CG179: 1 | CH179: 0 | CI179: 0 | CL179: 0 | CM179: -13270 | CN179: cp | CO179: METABAT_AS23ysBPME_180 | CP179: .faa | CQ179: lowQ
A180: 1026 | B180: METABAT_AS23ysBPME_224 | C180: k__Bacteria (UID203) | D180: 5449 | E180: 104 | F180: 58 | G180: 4.7 | H180: 0 | I180: 0 | J180: 0 | K180: 504276 | L180: 0 | M180: 136 | N180: 136 | O180: 4155 | P180: 4155 | Q180: 3707 | R180: 3707 | S180: 18349 | T180: 18349 | U180: 35.1 | V180: 9.85 | W180: 86.76 | X180: 11 | Y180: 584 | Z180: 92 | AA180: 12 | AB180: 0 | AC180: 0 | AD180: 0 | AE180: 0 | AF180: 0 | AG180: 1 | AH180: 0 | AI180: 0 | AJ180: 1 | AK180: 0 | AL180: 0 | AM180: 1 | AN180: 0 | AO180: 1 | AP180: 0 | AQ180: 0 | AR180: 4.70 | AS180: 1 | AT180: METABAT_AS23ysBPME_224 | AU180: root (UID1) | AV180: 5656 | AW180: 56 | AX180: 24 | AY180: 0 | AZ180: 0 | BA180: 0 | BB180: 0 | BC180: 257593 | BD180: 0 | BE180: 65 | BF180: 65 | BG180: 4790 | BH180: 4790 | BI180: 3962 | BJ180: 3962 | BK180: 14660 | BL180: 14660 | BM180: 29.6 | BN180: 3.58 | BO180: 85.94 | BP180: 11 | BQ180: 279 | BR180: 56 | BS180: 0 | BT180: 0 | BU180: 0 | BV180: 0 | BW180: 0 | BX180: 0 | BY180: 1 | BZ180: 0 | CA180: 0 | CB180: 1 | CC180: 0 | CD180: 0 | CE180: 1 | CF180: 0 | CG180: 1 | CH180: 0 | CI180: 0 | CL180: 0 | CM180: -246683 | CN180: cp | CO180: METABAT_AS23ysBPME_224 | CP180: .faa | CQ180: lowQ
A181: 1059 | B181: METABAT_AS23ysBPME_254 | C181: root (UID1) | D181: 5656 | E181: 56 | F181: 24 | G181: 0 | H181: 0 | I181: 0 | J181: 0 | K181: 202094 | L181: 0 | M181: 21 | N181: 21 | O181: 20936 | P181: 20936 | Q181: 9623 | R181: 9623 | S181: 31657 | T181: 31657 | U181: 36 | V181: 1.38 | W181: 92.05 | X181: 11 | Y181: 209 | Z181: 56 | AA181: 0 | AB181: 0 | AC181: 0 | AD181: 0 | AE181: 0 | AF181: 0 | AG181: 1 | AH181: 0 | AI181: 0 | AJ181: 1 | AK181: 0 | AL181: 0 | AM181: 1 | AN181: 0 | AO181: 1 | AP181: 0 | AQ181: 0 | AS181: 1 | AT181: METABAT_AS23ysBPME_254 | AU181: root (UID1) | AV181: 5656 | AW181: 56 | AX181: 24 | AY181: 0 | AZ181: 0 | BA181: 0 | BB181: 0 | BC181: 202094 | BD181: 0 | BE181: 21 | BF181: 21 | BG181: 20936 | BH181: 20936 | BI181: 9623 | BJ181: 9623 | BK181: 31657 | BL181: 31657 | BM181: 36 | BN181: 1.38 | BO181: 92.05 | BP181: 11 | BQ181: 209 | BR181: 56 | BS181: 0 | BT181: 0 | BU181: 0 | BV181: 0 | BW181: 0 | BX181: 0 | BY181: 1 | BZ181: 0 | CA181: 0 | CB181: 1 | CC181: 0 | CD181: 0 | CE181: 1 | CF181: 0 | CG181: 1 | CH181: 0 | CI181: 0 | CL181: 0 | CM181: 0 | CN181: cp | CO181: METABAT_AS23ysBPME_254 | CP181: .faa | CQ181: lowQ
A182: 1090 | B182: METABAT_AS23ysBPME_282 | C182: root (UID1) | D182: 5656 | E182: 56 | F182: 24 | G182: 0 | H182: 0 | I182: 0 | J182: 0 | K182: 227843 | L182: 0 | M182: 40 | N182: 40 | O182: 6669 | P182: 6669 | Q182: 5696 | R182: 5696 | S182: 28956 | T182: 28956 | U182: 24.2 | V182: 1.67 | W182: 87.19 | X182: 11 | Y182: 345 | Z182: 56 | AA182: 0 | AB182: 0 | AC182: 0 | AD182: 0 | AE182: 0 | AF182: 0 | AG182: 1 | AH182: 0 | AI182: 0 | AJ182: 1 | AK182: 0 | AL182: 0 | AM182: 1 | AN182: 0 | AO182: 1 | AP182: 0 | AQ182: 0 | AS182: 1 | AT182: METABAT_AS23ysBPME_282 | AU182: root (UID1) | AV182: 5656 | AW182: 56 | AX182: 24 | AY182: 0 | AZ182: 0 | BA182: 0 | BB182: 0 | BC182: 227843 | BD182: 0 | BE182: 40 | BF182: 40 | BG182: 6669 | BH182: 6669 | BI182: 5696 | BJ182: 5696 | BK182: 28956 | BL182: 28956 | BM182: 24.2 | BN182: 1.67 | BO182: 87.13 | BP182: 11 | BQ182: 343 | BR182: 56 | BS182: 0 | BT182: 0 | BU182: 0 | BV182: 0 | BW182: 0 | BX182: 0 | BY182: 1 | BZ182: 0 | CA182: 0 | CB182: 1 | CC182: 0 | CD182: 0 | CE182: 1 | CF182: 0 | CG182: 1 | CH182: 0 | CI182: 0 | CL182: 0 | CM182: 0 | CN182: cp | CO182: METABAT_AS23ysBPME_282 | CP182: .faa | CQ182: lowQ
A183: 1130 | B183: METABAT_AS23ysBPME_318 | C183: root (UID1) | D183: 5656 | E183: 56 | F183: 24 | G183: 0 | H183: 0 | I183: 0 | J183: 0 | K183: 270833 | L183: 0 | M183: 94 | N183: 94 | O183: 3401 | P183: 3401 | Q183: 2881 | R183: 2881 | S183: 8088 | T183: 8088 | U183: 29.5 | V183: 1.82 | W183: 85.18 | X183: 11 | Y183: 332 | Z183: 56 | AA183: 0 | AB183: 0 | AC183: 0 | AD183: 0 | AE183: 0 | AF183: 0 | AG183: 1 | AH183: 0 | AI183: 0 | AJ183: 1 | AK183: 0 | AL183: 0 | AM183: 1 | AN183: 0 | AO183: 1 | AP183: 0 | AQ183: 0 | AS183: 1 | AT183: METABAT_AS23ysBPME_318 | AU183: root (UID1) | AV183: 5656 | AW183: 56 | AX183: 24 | AY183: 0 | AZ183: 0 | BA183: 0 | BB183: 0 | BC183: 270833 | BD183: 0 | BE183: 94 | BF183: 94 | BG183: 3401 | BH183: 3401 | BI183: 2881 | BJ183: 2881 | BK183: 8088 | BL183: 8088 | BM183: 29.5 | BN183: 1.82 | BO183: 85.03 | BP183: 11 | BQ183: 330 | BR183: 56 | BS183: 0 | BT183: 0 | BU183: 0 | BV183: 0 | BW183: 0 | BX183: 0 | BY183: 1 | BZ183: 0 | CA183: 0 | CB183: 1 | CC183: 0 | CD183: 0 | CE183: 1 | CF183: 0 | CG183: 1 | CH183: 0 | CI183: 0 | CL183: 0 | CM183: 0 | CN183: cp | CO183: METABAT_AS23ysBPME_318 | CP183: .faa | CQ183: lowQ
A184: 1143 | B184: METABAT_AS23ysBPME_33 | C184: root (UID1) | D184: 5656 | E184: 56 | F184: 24 | G184: 0 | H184: 0 | I184: 0 | J184: 0 | K184: 201269 | L184: 0 | M184: 40 | N184: 40 | O184: 5778 | P184: 5778 | Q184: 5031 | R184: 5031 | S184: 22808 | T184: 22808 | U184: 32.8 | V184: 1.4 | W184: 89.05 | X184: 11 | Y184: 231 | Z184: 56 | AA184: 0 | AB184: 0 | AC184: 0 | AD184: 0 | AE184: 0 | AF184: 0 | AG184: 1 | AH184: 0 | AI184: 0 | AJ184: 1 | AK184: 0 | AL184: 0 | AM184: 1 | AN184: 0 | AO184: 1 | AP184: 0 | AQ184: 0 | AS184: 1 | AT184: METABAT_AS23ysBPME_33 | AU184: root (UID1) | AV184: 5656 | AW184: 56 | AX184: 24 | AY184: 0 | AZ184: 0 | BA184: 0 | BB184: 0 | BC184: 201269 | BD184: 0 | BE184: 40 | BF184: 40 | BG184: 5778 | BH184: 5778 | BI184: 5031 | BJ184: 5031 | BK184: 22808 | BL184: 22808 | BM184: 32.8 | BN184: 1.4 | BO184: 89.16 | BP184: 11 | BQ184: 232 | BR184: 56 | BS184: 0 | BT184: 0 | BU184: 0 | BV184: 0 | BW184: 0 | BX184: 0 | BY184: 1 | BZ184: 0 | CA184: 0 | CB184: 1 | CC184: 0 | CD184: 0 | CE184: 1 | CF184: 0 | CG184: 1 | CH184: 0 | CI184: 0 | CL184: 0 | CM184: 0 | CN184: cp | CO184: METABAT_AS23ysBPME_33 | CP184: .faa | CQ184: lowQ
A185: 1162 | B185: METABAT_AS23ysBPME_347 | C185: root (UID1) | D185: 5656 | E185: 56 | F185: 24 | G185: 0 | H185: 0 | I185: 0 | J185: 0 | K185: 359277 | L185: 0 | M185: 74 | N185: 74 | O185: 7511 | P185: 7511 | Q185: 4855 | R185: 4855 | S185: 21211 | T185: 21211 | U185: 27.7 | V185: 1.74 | W185: 84.02 | X185: 11 | Y185: 381 | Z185: 56 | AA185: 0 | AB185: 0 | AC185: 0 | AD185: 0 | AE185: 0 | AF185: 0 | AG185: 1 | AH185: 0 | AI185: 0 | AJ185: 1 | AK185: 0 | AL185: 0 | AM185: 1 | AN185: 0 | AO185: 1 | AP185: 0 | AQ185: 0 | AS185: 1 | AT185: METABAT_AS23ysBPME_347 | AU185: root (UID1) | AV185: 5656 | AW185: 56 | AX185: 24 | AY185: 0 | AZ185: 0 | BA185: 0 | BB185: 0 | BC185: 359277 | BD185: 0 | BE185: 74 | BF185: 74 | BG185: 7511 | BH185: 7511 | BI185: 4855 | BJ185: 4855 | BK185: 21211 | BL185: 21211 | BM185: 27.7 | BN185: 1.74 | BO185: 84.02 | BP185: 11 | BQ185: 381 | BR185: 56 | BS185: 0 | BT185: 0 | BU185: 0 | BV185: 0 | BW185: 0 | BX185: 0 | BY185: 1 | BZ185: 0 | CA185: 0 | CB185: 1 | CC185: 0 | CD185: 0 | CE185: 1 | CF185: 0 | CG185: 1 | CH185: 0 | CI185: 0 | CL185: 0 | CM185: 0 | CN185: cp | CO185: METABAT_AS23ysBPME_347 | CP185: .faa | CQ185: lowQ
A186: 1170 | B186: METABAT_AS23ysBPME_354 | C186: root (UID1) | D186: 5656 | E186: 56 | F186: 24 | G186: 0 | H186: 0 | I186: 0 | J186: 0 | K186: 217502 | L186: 0 | M186: 45 | N186: 45 | O186: 7386 | P186: 7386 | Q186: 4833 | R186: 4833 | S186: 19284 | T186: 19284 | U186: 33.8 | V186: 1.44 | W186: 91.61 | X186: 11 | Y186: 241 | Z186: 56 | AA186: 0 | AB186: 0 | AC186: 0 | AD186: 0 | AE186: 0 | AF186: 0 | AG186: 1 | AH186: 0 | AI186: 0 | AJ186: 1 | AK186: 0 | AL186: 0 | AM186: 1 | AN186: 0 | AO186: 1 | AP186: 0 | AQ186: 0 | AS186: 1 | AT186: METABAT_AS23ysBPME_354 | AU186: root (UID1) | AV186: 5656 | AW186: 56 | AX186: 24 | AY186: 0 | AZ186: 0 | BA186: 0 | BB186: 0 | BC186: 217502 | BD186: 0 | BE186: 45 | BF186: 45 | BG186: 7386 | BH186: 7386 | BI186: 4833 | BJ186: 4833 | BK186: 19284 | BL186: 19284 | BM186: 33.8 | BN186: 1.44 | BO186: 91.56 | BP186: 11 | BQ186: 240 | BR186: 56 | BS186: 0 | BT186: 0 | BU186: 0 | BV186: 0 | BW186: 0 | BX186: 0 | BY186: 1 | BZ186: 0 | CA186: 0 | CB186: 1 | CC186: 0 | CD186: 0 | CE186: 1 | CF186: 0 | CG186: 1 | CH186: 0 | CI186: 0 | CL186: 0 | CM186: 0 | CN186: cp | CO186: METABAT_AS23ysBPME_354 | CP186: .faa | CQ186: lowQ
A187: 1189 | B187: METABAT_AS23ysBPME_39 | C187: root (UID1) | D187: 5656 | E187: 56 | F187: 24 | G187: 0 | H187: 0 | I187: 0 | J187: 0 | K187: 404752 | L187: 0 | M187: 77 | N187: 77 | O187: 6419 | P187: 6419 | Q187: 5256 | R187: 5256 | S187: 16745 | T187: 16745 | U187: 33 | V187: 1.69 | W187: 90.06 | X187: 11 | Y187: 450 | Z187: 56 | AA187: 0 | AB187: 0 | AC187: 0 | AD187: 0 | AE187: 0 | AF187: 0 | AG187: 1 | AH187: 0 | AI187: 0 | AJ187: 1 | AK187: 0 | AL187: 0 | AM187: 1 | AN187: 0 | AO187: 1 | AP187: 0 | AQ187: 0 | AS187: 1 | AT187: METABAT_AS23ysBPME_39 | AU187: root (UID1) | AV187: 5656 | AW187: 56 | AX187: 24 | AY187: 0 | AZ187: 0 | BA187: 0 | BB187: 0 | BC187: 403089 | BD187: 0 | BE187: 76 | BF187: 76 | BG187: 6419 | BH187: 6419 | BI187: 5303 | BJ187: 5303 | BK187: 16745 | BL187: 16745 | BM187: 33.1 | BN187: 1.38 | BO187: 90.02 | BP187: 11 | BQ187: 447 | BR187: 56 | BS187: 0 | BT187: 0 | BU187: 0 | BV187: 0 | BW187: 0 | BX187: 0 | BY187: 1 | BZ187: 0 | CA187: 0 | CB187: 1 | CC187: 0 | CD187: 0 | CE187: 1 | CF187: 0 | CG187: 1 | CH187: 0 | CI187: 0 | CL187: 0 | CM187: -1663 | CN187: cp | CO187: METABAT_AS23ysBPME_39 | CP187: .faa | CQ187: lowQ
A188: 1196 | B188: METABAT_AS23ysBPME_45 | C188: root (UID1) | D188: 5656 | E188: 56 | F188: 24 | G188: 0 | H188: 0 | I188: 0 | J188: 0 | K188: 398512 | L188: 0 | M188: 84 | N188: 84 | O188: 8025 | P188: 8025 | Q188: 4744 | R188: 4744 | S188: 26249 | T188: 26249 | U188: 36.1 | V188: 5.83 | W188: 83.88 | X188: 11 | Y188: 422 | Z188: 56 | AA188: 0 | AB188: 0 | AC188: 0 | AD188: 0 | AE188: 0 | AF188: 0 | AG188: 1 | AH188: 0 | AI188: 0 | AJ188: 1 | AK188: 0 | AL188: 0 | AM188: 1 | AN188: 0 | AO188: 1 | AP188: 0 | AQ188: 0 | AS188: 1 | AT188: METABAT_AS23ysBPME_45 | AU188: root (UID1) | AV188: 5656 | AW188: 56 | AX188: 24 | AY188: 0 | AZ188: 0 | BA188: 0 | BB188: 0 | BC188: 346323 | BD188: 0 | BE188: 74 | BF188: 74 | BG188: 6901 | BH188: 6901 | BI188: 4680 | BJ188: 4680 | BK188: 26249 | BL188: 26249 | BM188: 35.7 | BN188: 2.68 | BO188: 83.33 | BP188: 11 | BQ188: 370 | BR188: 56 | BS188: 0 | BT188: 0 | BU188: 0 | BV188: 0 | BW188: 0 | BX188: 0 | BY188: 1 | BZ188: 0 | CA188: 0 | CB188: 1 | CC188: 0 | CD188: 0 | CE188: 1 | CF188: 0 | CG188: 1 | CH188: 0 | CI188: 0 | CL188: 0 | CM188: -52189 | CN188: cp | CO188: METABAT_AS23ysBPME_45 | CP188: .faa | CQ188: lowQ
A189: 1218 | B189: METABAT_AS23ysBPME_65 | C189: root (UID1) | D189: 5656 | E189: 56 | F189: 24 | G189: 0 | H189: 0 | I189: 0 | J189: 0 | K189: 369221 | L189: 0 | M189: 57 | N189: 57 | O189: 10736 | P189: 10736 | Q189: 6477 | R189: 6477 | S189: 24431 | T189: 24431 | U189: 36.1 | V189: 2.18 | W189: 86.06 | X189: 11 | Y189: 414 | Z189: 56 | AA189: 0 | AB189: 0 | AC189: 0 | AD189: 0 | AE189: 0 | AF189: 0 | AG189: 1 | AH189: 0 | AI189: 0 | AJ189: 1 | AK189: 0 | AL189: 0 | AM189: 1 | AN189: 0 | AO189: 1 | AP189: 0 | AQ189: 0 | AS189: 1 | AT189: METABAT_AS23ysBPME_65 | AU189: root (UID1) | AV189: 5656 | AW189: 56 | AX189: 24 | AY189: 0 | AZ189: 0 | BA189: 0 | BB189: 0 | BC189: 366178 | BD189: 0 | BE189: 55 | BF189: 55 | BG189: 10736 | BH189: 10736 | BI189: 6657 | BJ189: 6657 | BK189: 24431 | BL189: 24431 | BM189: 36.1 | BN189: 2.2 | BO189: 86.39 | BP189: 11 | BQ189: 415 | BR189: 56 | BS189: 0 | BT189: 0 | BU189: 0 | BV189: 0 | BW189: 0 | BX189: 0 | BY189: 1 | BZ189: 0 | CA189: 0 | CB189: 1 | CC189: 0 | CD189: 0 | CE189: 1 | CF189: 0 | CG189: 1 | CH189: 0 | CI189: 0 | CL189: 0 | CM189: -3043 | CN189: cp | CO189: METABAT_AS23ysBPME_65 | CP189: .faa | CQ189: lowQ
A190: 1223 | B190: METABAT_AS23ysBPME_7 | C190: root (UID1) | D190: 5656 | E190: 56 | F190: 24 | G190: 0 | H190: 0 | I190: 0 | J190: 0 | K190: 392861 | L190: 0 | M190: 53 | N190: 53 | O190: 9644 | P190: 9644 | Q190: 7412 | R190: 7412 | S190: 30006 | T190: 30006 | U190: 32 | V190: 2.56 | W190: 85.5 | X190: 11 | Y190: 426 | Z190: 56 | AA190: 0 | AB190: 0 | AC190: 0 | AD190: 0 | AE190: 0 | AF190: 0 | AG190: 1 | AH190: 0 | AI190: 0 | AJ190: 1 | AK190: 0 | AL190: 0 | AM190: 1 | AN190: 0 | AO190: 1 | AP190: 0 | AQ190: 0 | AS190: 1 | AT190: METABAT_AS23ysBPME_7 | AU190: root (UID1) | AV190: 5656 | AW190: 56 | AX190: 24 | AY190: 0 | AZ190: 0 | BA190: 0 | BB190: 0 | BC190: 391047 | BD190: 0 | BE190: 52 | BF190: 52 | BG190: 9644 | BH190: 9644 | BI190: 7520 | BJ190: 7520 | BK190: 30006 | BL190: 30006 | BM190: 31.9 | BN190: 1.93 | BO190: 85.44 | BP190: 11 | BQ190: 424 | BR190: 56 | BS190: 0 | BT190: 0 | BU190: 0 | BV190: 0 | BW190: 0 | BX190: 0 | BY190: 1 | BZ190: 0 | CA190: 0 | CB190: 1 | CC190: 0 | CD190: 0 | CE190: 1 | CF190: 0 | CG190: 1 | CH190: 0 | CI190: 0 | CL190: 0 | CM190: -1814 | CN190: cp | CO190: METABAT_AS23ysBPME_7 | CP190: .faa | CQ190: lowQ
A191: 1229 | B191: METABAT_AS23ysBPME_75 | C191: root (UID1) | D191: 5656 | E191: 56 | F191: 24 | G191: 0 | H191: 0 | I191: 0 | J191: 0 | K191: 243566 | L191: 0 | M191: 49 | N191: 49 | O191: 6526 | P191: 6526 | Q191: 4970 | R191: 4970 | S191: 20658 | T191: 20658 | U191: 34.7 | V191: 1.24 | W191: 88.62 | X191: 11 | Y191: 265 | Z191: 56 | AA191: 0 | AB191: 0 | AC191: 0 | AD191: 0 | AE191: 0 | AF191: 0 | AG191: 1 | AH191: 0 | AI191: 0 | AJ191: 1 | AK191: 0 | AL191: 0 | AM191: 1 | AN191: 0 | AO191: 1 | AP191: 0 | AQ191: 0 | AS191: 1 | AT191: METABAT_AS23ysBPME_75 | AU191: root (UID1) | AV191: 5656 | AW191: 56 | AX191: 24 | AY191: 0 | AZ191: 0 | BA191: 0 | BB191: 0 | BC191: 243566 | BD191: 0 | BE191: 49 | BF191: 49 | BG191: 6526 | BH191: 6526 | BI191: 4970 | BJ191: 4970 | BK191: 20658 | BL191: 20658 | BM191: 34.7 | BN191: 1.24 | BO191: 88.62 | BP191: 11 | BQ191: 265 | BR191: 56 | BS191: 0 | BT191: 0 | BU191: 0 | BV191: 0 | BW191: 0 | BX191: 0 | BY191: 1 | BZ191: 0 | CA191: 0 | CB191: 1 | CC191: 0 | CD191: 0 | CE191: 1 | CF191: 0 | CG191: 1 | CH191: 0 | CI191: 0 | CL191: 0 | CM191: 0 | CN191: cp | CO191: METABAT_AS23ysBPME_75 | CP191: .faa | CQ191: lowQ
A192: 1249 | B192: METABAT_AS23ysBPME_93 | C192: root (UID1) | D192: 5656 | E192: 56 | F192: 24 | G192: 0 | H192: 0 | I192: 0 | J192: 0 | K192: 455540 | L192: 0 | M192: 132 | N192: 132 | O192: 3672 | P192: 3672 | Q192: 3451 | R192: 3451 | S192: 14254 | T192: 14254 | U192: 26.2 | V192: 1.62 | W192: 82.59 | X192: 11 | Y192: 487 | Z192: 56 | AA192: 0 | AB192: 0 | AC192: 0 | AD192: 0 | AE192: 0 | AF192: 0 | AG192: 1 | AH192: 0 | AI192: 0 | AJ192: 1 | AK192: 0 | AL192: 0 | AM192: 1 | AN192: 0 | AO192: 1 | AP192: 0 | AQ192: 0 | AS192: 1 | AT192: METABAT_AS23ysBPME_93 | AU192: root (UID1) | AV192: 5656 | AW192: 56 | AX192: 24 | AY192: 0 | AZ192: 0 | BA192: 0 | BB192: 0 | BC192: 455540 | BD192: 0 | BE192: 132 | BF192: 132 | BG192: 3672 | BH192: 3672 | BI192: 3451 | BJ192: 3451 | BK192: 14254 | BL192: 14254 | BM192: 26.2 | BN192: 1.62 | BO192: 82.63 | BP192: 11 | BQ192: 487 | BR192: 56 | BS192: 0 | BT192: 0 | BU192: 0 | BV192: 0 | BW192: 0 | BX192: 0 | BY192: 1 | BZ192: 0 | CA192: 0 | CB192: 1 | CC192: 0 | CD192: 0 | CE192: 1 | CF192: 0 | CG192: 1 | CH192: 0 | CI192: 0 | CL192: 0 | CM192: 0 | CN192: cp | CO192: METABAT_AS23ysBPME_93 | CP192: .faa | CQ192: lowQ
A193: 3234 | B193: METABAT_AS24abBPME_107 | C193: root (UID1) | D193: 5656 | E193: 56 | F193: 24 | G193: 0 | H193: 0 | I193: 0 | J193: 0 | K193: 338445 | L193: 0 | M193: 134 | N193: 134 | O193: 2526 | P193: 2526 | Q193: 2525 | R193: 2525 | S193: 10077 | T193: 10077 | U193: 57.3 | V193: 2.15 | W193: 84.52 | X193: 11 | Y193: 460 | Z193: 56 | AA193: 0 | AB193: 0 | AC193: 0 | AD193: 0 | AE193: 0 | AF193: 0 | AG193: 1 | AH193: 0 | AI193: 0 | AJ193: 1 | AK193: 0 | AL193: 0 | AM193: 1 | AN193: 0 | AO193: 1 | AP193: 0 | AQ193: 0 | AS193: 1 | AT193: METABAT_AS24abBPME_107 | AU193: root (UID1) | AV193: 5656 | AW193: 56 | AX193: 24 | AY193: 0 | AZ193: 0 | BA193: 0 | BB193: 0 | BC193: 338445 | BD193: 0 | BE193: 134 | BF193: 134 | BG193: 2526 | BH193: 2526 | BI193: 2525 | BJ193: 2525 | BK193: 10077 | BL193: 10077 | BM193: 57.3 | BN193: 2.15 | BO193: 84.16 | BP193: 11 | BQ193: 456 | BR193: 56 | BS193: 0 | BT193: 0 | BU193: 0 | BV193: 0 | BW193: 0 | BX193: 0 | BY193: 1 | BZ193: 0 | CA193: 0 | CB193: 1 | CC193: 0 | CD193: 0 | CE193: 1 | CF193: 0 | CG193: 1 | CH193: 0 | CI193: 0 | CL193: 0 | CM193: 0 | CN193: cp | CO193: METABAT_AS24abBPME_107 | CP193: .faa | CQ193: lowQ
A194: 3243 | B194: METABAT_AS24abBPME_115 | C194: root (UID1) | D194: 5656 | E194: 56 | F194: 24 | G194: 0 | H194: 0 | I194: 0 | J194: =H194-(H194*(I194/100)) -> 0 | K194: 207062 | L194: 0 | M194: 16 | N194: 16 | O194: 21842 | P194: 21842 | Q194: 12941 | R194: 12941 | S194: 31160 | T194: 31160 | U194: 31.6 | V194: 1.2 | W194: 85.7 | X194: 11 | Y194: 232 | Z194: 56 | AA194: 0 | AB194: 0 | AC194: 0 | AD194: 0 | AE194: 0 | AF194: =IF(G194>90,1,0) -> 0 | AG194: =IF(H194<5,1,0) -> 1 | AH194: 0 | AI194: =IF(G194>70,1,0) -> 0 | AJ194: =IF(H194<10,1,0) -> 1 | AK194: 0 | AL194: =IF(G194>=50,1,0) -> 0 | AM194: =IF(H194<10,1,0) -> 1 | AN194: 0 | AO194: =IF(G194<50,1,0) -> 1 | AP194: =IF(H194>10,1,0) -> 0 | AQ194: 0 | AR194: =(G194-(H194*3)/G194) ->  | AS194: =IF(B194=AT194,1,"") -> 1 | AT194: METABAT_AS24abBPME_115 | AU194: root (UID1) | AV194: 5656 | AW194: 56 | AX194: 24 | AY194: 0 | AZ194: 0 | BA194: 0 | BB194: =AZ194-(AZ194*(BA194/100)) -> 0 | BC194: 207062 | BD194: 0 | BE194: 16 | BF194: 16 | BG194: 21842 | BH194: 21842 | BI194: 12941 | BJ194: 12941 | BK194: 31160 | BL194: 31160 | BM194: 31.6 | BN194: 1.2 | BO194: 85.87 | BP194: 11 | BQ194: 233 | BR194: 56 | BS194: 0 | BT194: 0 | BU194: 0 | BV194: 0 | BW194: 0 | BX194: =IF(AY194>90,1,0) -> 0 | BY194: =IF(AZ194<5,1,0) -> 1 | BZ194: 0 | CA194: =IF(AY194>70,1,0) -> 0 | CB194: =IF(AZ194<10,1,0) -> 1 | CC194: 0 | CD194: =IF(AY194>=50,1,0) -> 0 | CE194: =IF(AZ194<10,1,0) -> 1 | CF194: 0 | CG194: =IF(AY194<50,1,0) -> 1 | CH194: =IF(AZ194>10,1,0) -> 0 | CI194: 0 | CJ194: =(AY194-(AZ194*3)/AY194) ->  | CK194: =CJ194-AR194 ->  | CL194: =AZ194-H194 -> 0 | CM194: =BC194-K194 -> 0 | CN194: cp | CO194: METABAT_AS24abBPME_115 | CP194: .faa | CQ194: lowQ
A195: 3256 | B195: METABAT_AS24abBPME_127 | C195: root (UID1) | D195: 5656 | E195: 56 | F195: 24 | G195: 0 | H195: 0 | I195: 0 | J195: 0 | K195: 315096 | L195: 0 | M195: 132 | N195: 132 | O195: 2488 | P195: 2488 | Q195: 2387 | R195: 2387 | S195: 5657 | T195: 5657 | U195: 35.3 | V195: 1.73 | W195: 84.48 | X195: 11 | Y195: 436 | Z195: 56 | AA195: 0 | AB195: 0 | AC195: 0 | AD195: 0 | AE195: 0 | AF195: 0 | AG195: 1 | AH195: 0 | AI195: 0 | AJ195: 1 | AK195: 0 | AL195: 0 | AM195: 1 | AN195: 0 | AO195: 1 | AP195: 0 | AQ195: 0 | AS195: 1 | AT195: METABAT_AS24abBPME_127 | AU195: root (UID1) | AV195: 5656 | AW195: 56 | AX195: 24 | AY195: 0 | AZ195: 0 | BA195: 0 | BB195: 0 | BC195: 315096 | BD195: 0 | BE195: 132 | BF195: 132 | BG195: 2488 | BH195: 2488 | BI195: 2387 | BJ195: 2387 | BK195: 5657 | BL195: 5657 | BM195: 35.3 | BN195: 1.73 | BO195: 84.5 | BP195: 11 | BQ195: 436 | BR195: 56 | BS195: 0 | BT195: 0 | BU195: 0 | BV195: 0 | BW195: 0 | BX195: 0 | BY195: 1 | BZ195: 0 | CA195: 0 | CB195: 1 | CC195: 0 | CD195: 0 | CE195: 1 | CF195: 0 | CG195: 1 | CH195: 0 | CI195: 0 | CL195: 0 | CM195: 0 | CN195: cp | CO195: METABAT_AS24abBPME_127 | CP195: .faa | CQ195: lowQ
A196: 3276 | B196: METABAT_AS24abBPME_145 | C196: root (UID1) | D196: 5656 | E196: 56 | F196: 24 | G196: 0 | H196: 0 | I196: 0 | J196: 0 | K196: 302866 | L196: 0 | M196: 62 | N196: 62 | O196: 6403 | P196: 6403 | Q196: 4884 | R196: 4884 | S196: 29880 | T196: 29880 | U196: 34.5 | V196: 1.43 | W196: 87.71 | X196: 11 | Y196: 359 | Z196: 56 | AA196: 0 | AB196: 0 | AC196: 0 | AD196: 0 | AE196: 0 | AF196: 0 | AG196: 1 | AH196: 0 | AI196: 0 | AJ196: 1 | AK196: 0 | AL196: 0 | AM196: 1 | AN196: 0 | AO196: 1 | AP196: 0 | AQ196: 0 | AS196: 1 | AT196: METABAT_AS24abBPME_145 | AU196: root (UID1) | AV196: 5656 | AW196: 56 | AX196: 24 | AY196: 0 | AZ196: 0 | BA196: 0 | BB196: 0 | BC196: 302866 | BD196: 0 | BE196: 62 | BF196: 62 | BG196: 6403 | BH196: 6403 | BI196: 4884 | BJ196: 4884 | BK196: 29880 | BL196: 29880 | BM196: 34.5 | BN196: 1.43 | BO196: 87.79 | BP196: 11 | BQ196: 360 | BR196: 56 | BS196: 0 | BT196: 0 | BU196: 0 | BV196: 0 | BW196: 0 | BX196: 0 | BY196: 1 | BZ196: 0 | CA196: 0 | CB196: 1 | CC196: 0 | CD196: 0 | CE196: 1 | CF196: 0 | CG196: 1 | CH196: 0 | CI196: 0 | CL196: 0 | CM196: 0 | CN196: cp | CO196: METABAT_AS24abBPME_145 | CP196: .faa | CQ196: lowQ
A197: 3299 | B197: METABAT_AS24abBPME_31 | C197: root (UID1) | D197: 5656 | E197: 56 | F197: 24 | G197: 0 | H197: 0 | I197: 0 | J197: 0 | K197: 202859 | L197: 0 | M197: 89 | N197: 89 | O197: 2260 | P197: 2260 | Q197: 2279 | R197: 2279 | S197: 6918 | T197: 6918 | U197: 26.3 | V197: 2.11 | W197: 87.24 | X197: 11 | Y197: 229 | Z197: 56 | AA197: 0 | AB197: 0 | AC197: 0 | AD197: 0 | AE197: 0 | AF197: 0 | AG197: 1 | AH197: 0 | AI197: 0 | AJ197: 1 | AK197: 0 | AL197: 0 | AM197: 1 | AN197: 0 | AO197: 1 | AP197: 0 | AQ197: 0 | AS197: 1 | AT197: METABAT_AS24abBPME_31 | AU197: root (UID1) | AV197: 5656 | AW197: 56 | AX197: 24 | AY197: 0 | AZ197: 0 | BA197: 0 | BB197: 0 | BC197: 202859 | BD197: 0 | BE197: 89 | BF197: 89 | BG197: 2260 | BH197: 2260 | BI197: 2279 | BJ197: 2279 | BK197: 6918 | BL197: 6918 | BM197: 26.3 | BN197: 2.11 | BO197: 87.24 | BP197: 11 | BQ197: 229 | BR197: 56 | BS197: 0 | BT197: 0 | BU197: 0 | BV197: 0 | BW197: 0 | BX197: 0 | BY197: 1 | BZ197: 0 | CA197: 0 | CB197: 1 | CC197: 0 | CD197: 0 | CE197: 1 | CF197: 0 | CG197: 1 | CH197: 0 | CI197: 0 | CL197: 0 | CM197: 0 | CN197: cp | CO197: METABAT_AS24abBPME_31 | CP197: .faa | CQ197: lowQ
A198: 3311 | B198: METABAT_AS24abBPME_42 | C198: root (UID1) | D198: 5656 | E198: 56 | F198: 24 | G198: 0 | H198: 0 | I198: 0 | J198: 0 | K198: 216499 | L198: 0 | M198: 4 | N198: 4 | O198: 70583 | P198: 70583 | Q198: 54124 | R198: 54124 | S198: 72447 | T198: 72447 | U198: 44 | V198: 0.84 | W198: 93.23 | X198: 11 | Y198: 192 | Z198: 56 | AA198: 0 | AB198: 0 | AC198: 0 | AD198: 0 | AE198: 0 | AF198: 0 | AG198: 1 | AH198: 0 | AI198: 0 | AJ198: 1 | AK198: 0 | AL198: 0 | AM198: 1 | AN198: 0 | AO198: 1 | AP198: 0 | AQ198: 0 | AS198: 1 | AT198: METABAT_AS24abBPME_42 | AU198: root (UID1) | AV198: 5656 | AW198: 56 | AX198: 24 | AY198: 0 | AZ198: 0 | BA198: 0 | BB198: 0 | BC198: 216499 | BD198: 0 | BE198: 4 | BF198: 4 | BG198: 70583 | BH198: 70583 | BI198: 54124 | BJ198: 54124 | BK198: 72447 | BL198: 72447 | BM198: 44 | BN198: 0.84 | BO198: 93.34 | BP198: 11 | BQ198: 193 | BR198: 56 | BS198: 0 | BT198: 0 | BU198: 0 | BV198: 0 | BW198: 0 | BX198: 0 | BY198: 1 | BZ198: 0 | CA198: 0 | CB198: 1 | CC198: 0 | CD198: 0 | CE198: 1 | CF198: 0 | CG198: 1 | CH198: 0 | CI198: 0 | CL198: 0 | CM198: 0 | CN198: cp | CO198: METABAT_AS24abBPME_42 | CP198: .faa | CQ198: lowQ
A199: 3314 | B199: METABAT_AS24abBPME_45 | C199: root (UID1) | D199: 5656 | E199: 56 | F199: 24 | G199: 0 | H199: 0 | I199: 0 | J199: 0 | K199: 493770 | L199: 0 | M199: 155 | N199: 155 | O199: 3386 | P199: 3386 | Q199: 3185 | R199: 3185 | S199: 24595 | T199: 24595 | U199: 28.3 | V199: 2.89 | W199: 83.75 | X199: 11 | Y199: 570 | Z199: 56 | AA199: 0 | AB199: 0 | AC199: 0 | AD199: 0 | AE199: 0 | AF199: 0 | AG199: 1 | AH199: 0 | AI199: 0 | AJ199: 1 | AK199: 0 | AL199: 0 | AM199: 1 | AN199: 0 | AO199: 1 | AP199: 0 | AQ199: 0 | AS199: 1 | AT199: METABAT_AS24abBPME_45 | AU199: root (UID1) | AV199: 5656 | AW199: 56 | AX199: 24 | AY199: 0 | AZ199: 0 | BA199: 0 | BB199: 0 | BC199: 486704 | BD199: 0 | BE199: 152 | BF199: 152 | BG199: 3386 | BH199: 3386 | BI199: 3202 | BJ199: 3202 | BK199: 24595 | BL199: 24595 | BM199: 28.2 | BN199: 2.4 | BO199: 83.84 | BP199: 11 | BQ199: 565 | BR199: 56 | BS199: 0 | BT199: 0 | BU199: 0 | BV199: 0 | BW199: 0 | BX199: 0 | BY199: 1 | BZ199: 0 | CA199: 0 | CB199: 1 | CC199: 0 | CD199: 0 | CE199: 1 | CF199: 0 | CG199: 1 | CH199: 0 | CI199: 0 | CL199: 0 | CM199: -7066 | CN199: cp | CO199: METABAT_AS24abBPME_45 | CP199: .faa | CQ199: lowQ
A200: 3315 | B200: METABAT_AS24abBPME_46 | C200: root (UID1) | D200: 5656 | E200: 56 | F200: 24 | G200: 0 | H200: 0 | I200: 0 | J200: 0 | K200: 357983 | L200: 0 | M200: 145 | N200: 145 | O200: 2378 | P200: 2378 | Q200: 2468 | R200: 2468 | S200: 19524 | T200: 19524 | U200: 31.3 | V200: 2.54 | W200: 83.52 | X200: 11 | Y200: 448 | Z200: 56 | AA200: 0 | AB200: 0 | AC200: 0 | AD200: 0 | AE200: 0 | AF200: 0 | AG200: 1 | AH200: 0 | AI200: 0 | AJ200: 1 | AK200: 0 | AL200: 0 | AM200: 1 | AN200: 0 | AO200: 1 | AP200: 0 | AQ200: 0 | AS200: 1 | AT200: METABAT_AS24abBPME_46 | AU200: root (UID1) | AV200: 5656 | AW200: 56 | AX200: 24 | AY200: 0 | AZ200: 0 | BA200: 0 | BB200: 0 | BC200: 353204 | BD200: 0 | BE200: 143 | BF200: 143 | BG200: 2378 | BH200: 2378 | BI200: 2469 | BJ200: 2469 | BK200: 19524 | BL200: 19524 | BM200: 31.3 | BN200: 2.35 | BO200: 83.47 | BP200: 11 | BQ200: 441 | BR200: 56 | BS200: 0 | BT200: 0 | BU200: 0 | BV200: 0 | BW200: 0 | BX200: 0 | BY200: 1 | BZ200: 0 | CA200: 0 | CB200: 1 | CC200: 0 | CD200: 0 | CE200: 1 | CF200: 0 | CG200: 1 | CH200: 0 | CI200: 0 | CL200: 0 | CM200: -4779 | CN200: cp | CO200: METABAT_AS24abBPME_46 | CP200: .faa | CQ200: lowQ
... 361 more rows

Sheet checkM all MAGs
A1: Statistics of the MAGs. Results obtained from checkM software for all the 5194 MAGs extracted. Average and median values are reported in the graphs in the rigth part of the worksheet.
A2: Bin ID | B2: Marker lineage | C2: Completeness | D2: Contamination | E2: Strain heterogeneity | F2: Contamination excluding the contamination determined by strains | G2: Genome size [bp] | H2: Number of scaffolds | I2: N50 (scaffolds) | J2: Mean scaffold length [bp] | K2: Longest scaffold [bp] | L2: GC | M2: GC std (scaffolds > 1kbp) | N2: Coding density | O2: Number of predicted genes | P2: Completeness>90% | Q2: Contamination<5% | R2: Completeness>90%; Contamination<5% | S2: Completeness>70% | T2: Contamination<10% | U2: Completeness>70%; Contamination<10% | V2: Completeness>=50% | W2: Contamination<10% | X2: Completeness>=50%; Contamination<10% | Y2: Cmpleteness<50% | Z2: Contamination>10% | AA2: Completeness<50%; Contamination>10% | AB2: (Completeness-Contamination*3)/Completeness | AC2: MAGs quality level | AD2: MAGs selected after ANI comparison
A3: METABAT_AS01afH2WH_1 | B3: k__Bacteria (UID203) | C3: 74.83 | D3: 12.93 | E3: 4.76 | F3: 12.314532 | G3: 5010457 | H3: 1404 | I3: 4064 | J3: 3568 | K3: 20923 | L3: 63.3 | M3: 4.08 | N3: 86.89 | O3: 4892 | P3: 0 | Q3: 0 | R3: 0 | S3: 1 | T3: 0 | U3: 0 | V3: 1 | W3: 0 | X3: 0 | Y3: 0 | Z3: 1 | AA3: 0 | AB3: 74.31 | AC3: contaminated
A4: METABAT_AS01afH2WH_10 | B4: root (UID1) | C4: 4.17 | D4: 0 | E4: 0 | F4: 0 | G4: 726729 | H4: 56 | I4: 36974 | J4: 12977 | K4: 107059 | L4: 49.6 | M4: 4.55 | N4: 89.86 | O4: 668 | P4: 0 | Q4: 1 | R4: 0 | S4: 0 | T4: 1 | U4: 0 | V4: 0 | W4: 1 | X4: 0 | Y4: 1 | Z4: 0 | AA4: 0 | AB4: 4.17 | AC4: lowQ
A5: METABAT_AS01afH2WH_11 | B5: c__Clostridia (UID1118) | C5: 95.14 | D5: 2.42 | E5: 0 | F5: 2.42 | G5: 2378111 | H5: 84 | I5: 62322 | J5: 28310 | K5: 149067 | L5: 42.5 | M5: 3.46 | N5: 86.07 | O5: 2187 | P5: 1 | Q5: 1 | R5: 1 | S5: 1 | T5: 1 | U5: 1 | V5: 1 | W5: 1 | X5: 1 | Y5: 0 | Z5: 0 | AA5: 0 | AB5: 95.06 | AC5: highQ
A6: METABAT_AS01afH2WH_12 | B6: p__Firmicutes (UID240) | C6: 75.14 | D6: 1.44 | E6: 50 | F6: 0.72 | G6: 1521309 | H6: 319 | I6: 5875 | J6: 4768 | K6: 21526 | L6: 50.8 | M6: 2.23 | N6: 92.24 | O6: 1512 | P6: 0 | Q6: 1 | R6: 0 | S6: 1 | T6: 1 | U6: 1 | V6: 1 | W6: 1 | X6: 1 | Y6: 0 | Z6: 0 | AA6: 0 | AB6: 75.08 | AC6: mediumhighQ
A7: METABAT_AS01afH2WH_13 | B7: c__Clostridia (UID1085) | C7: 93.52 | D7: 2.36 | E7: 0 | F7: 2.36 | G7: 2642509 | H7: 206 | I7: 19756 | J7: 12827 | K7: 95980 | L7: 40.2 | M7: 2.71 | N7: 86.65 | O7: 2728 | P7: 1 | Q7: 1 | R7: 1 | S7: 1 | T7: 1 | U7: 1 | V7: 1 | W7: 1 | X7: 1 | Y7: 0 | Z7: 0 | AA7: 0 | AB7: 93.44 | AC7: highQ | AD7: METABAT_AS01afH2WH_13
A8: METABAT_AS01afH2WH_14 | B8: o__Clostridiales (UID1120) | C8: 77.37 | D8: 1.4 | E8: 0 | F8: 1.4 | G8: 1909631 | H8: 509 | I8: 4302 | J8: 3751 | K8: 17825 | L8: 47.2 | M8: 3.09 | N8: 89.4 | O8: 2188 | P8: 0 | Q8: 1 | R8: 0 | S8: 1 | T8: 1 | U8: 1 | V8: 1 | W8: 1 | X8: 1 | Y8: 0 | Z8: 0 | AA8: 0 | AB8: 77.32 | AC8: mediumhighQ
A9: METABAT_AS01afH2WH_15 | B9: k__Bacteria (UID1452) | C9: 89.09 | D9: 2.44 | E9: 60 | F9: 0.976 | G9: 4003989 | H9: 490 | I9: 12848 | J9: 8171 | K9: 44954 | L9: 65 | M9: 2.15 | N9: 88.4 | O9: 3859 | P9: 0 | Q9: 1 | R9: 0 | S9: 1 | T9: 1 | U9: 1 | V9: 1 | W9: 1 | X9: 1 | Y9: 0 | Z9: 0 | AA9: 0 | AB9: 89.01 | AC9: mediumhighQ | AD9: METABAT_AS01afH2WH_15
A10: METABAT_AS01afH2WH_16 | B10: p__Firmicutes (UID239) | C10: 90.26 | D10: 0.99 | E10: 0 | F10: 0.99 | G10: 1735519 | H10: 55 | I10: 47774 | J10: 31554 | K10: 191487 | L10: 53.4 | M10: 0.99 | N10: 88.27 | O10: 1619 | P10: 1 | Q10: 1 | R10: 1 | S10: 1 | T10: 1 | U10: 1 | V10: 1 | W10: 1 | X10: 1 | Y10: 0 | Z10: 0 | AA10: 0 | AB10: 90.23 | AC10: highQ | AD10: METABAT_AS01afH2WH_16
A11: METABAT_AS01afH2WH_17 | B11: g__Lactobacillus (UID436) | C11: 99.18 | D11: 0 | E11: 0 | F11: 0 | G11: 2785532 | H11: 103 | I11: 64240 | J11: 27044 | K11: 185763 | L11: 46.4 | M11: 2.84 | N11: 85.33 | O11: 2722 | P11: 1 | Q11: 1 | R11: 1 | S11: 1 | T11: 1 | U11: 1 | V11: 1 | W11: 1 | X11: 1 | Y11: 0 | Z11: 0 | AA11: 0 | AB11: 99.18 | AC11: highQ | AD11: METABAT_AS01afH2WH_17
A12: METABAT_AS01afH2WH_18 | B12: k__Bacteria (UID203) | C12: 100 | D12: 147.72 | E12: 36.82 | F12: 93.329496 | G12: 10478000 | H12: 1193 | I12: 14600 | J12: 8782 | K12: 80812 | L12: 30.3 | M12: 3.51 | N12: 86.06 | O12: 10266 | P12: 1 | Q12: 0 | R12: 0 | S12: 1 | T12: 0 | U12: 0 | V12: 1 | W12: 0 | X12: 0 | Y12: 0 | Z12: 1 | AA12: 0 | AB12: 95.57 | AC12: contaminated
A13: METABAT_AS01afH2WH_19 | B13: o__Clostridiales (UID1212) | C13: 84.16 | D13: 0.89 | E13: 100 | F13: 0 | G13: 1705181 | H13: 387 | I13: 5239 | J13: 4406 | K13: 18771 | L13: 50 | M13: 3.21 | N13: 89.12 | O13: 1905 | P13: 0 | Q13: 1 | R13: 0 | S13: 1 | T13: 1 | U13: 1 | V13: 1 | W13: 1 | X13: 1 | Y13: 0 | Z13: 0 | AA13: 0 | AB13: 84.13 | AC13: mediumhighQ | AD13: METABAT_AS01afH2WH_19
A14: METABAT_AS01afH2WH_2 | B14: p__Euryarchaeota (UID54) | C14: 55.57 | D14: 0.65 | E14: 0 | F14: 0.65 | G14: 1042225 | H14: 334 | I14: 3425 | J14: 3120 | K14: 12071 | L14: 59.8 | M14: 2.84 | N14: 84.42 | O14: 1325 | P14: 0 | Q14: 1 | R14: 0 | S14: 0 | T14: 1 | U14: 0 | V14: 1 | W14: 1 | X14: 1 | Y14: 0 | Z14: 0 | AA14: 0 | AB14: 55.53 | AC14: mediumQ
A15: METABAT_AS01afH2WH_20 | B15: p__Firmicutes (UID239) | C15: 88.24 | D15: 0 | E15: 0 | F15: 0 | G15: 1816798 | H15: 83 | I15: 41691 | J15: 21889 | K15: 143282 | L15: 45.1 | M15: 1.3 | N15: 89.04 | O15: 1696 | P15: 0 | Q15: 1 | R15: 0 | S15: 1 | T15: 1 | U15: 1 | V15: 1 | W15: 1 | X15: 1 | Y15: 0 | Z15: 0 | AA15: 0 | AB15: 88.24 | AC15: mediumhighQ
A16: METABAT_AS01afH2WH_21 | B16: k__Bacteria (UID2570) | C16: 89.29 | D16: 10.16 | E16: 86.96 | F16: 1.324864 | G16: 2248711 | H16: 600 | I16: 4322 | J16: 3747 | K16: 15342 | L16: 41.3 | M16: 3.48 | N16: 90.67 | O16: 2362 | P16: 0 | Q16: 0 | R16: 0 | S16: 1 | T16: 0 | U16: 0 | V16: 1 | W16: 0 | X16: 0 | Y16: 0 | Z16: 1 | AA16: 0 | AB16: 88.95 | AC16: contaminated
A17: METABAT_AS01afH2WH_22 | B17: p__Euryarchaeota (UID49) | C17: 99.71 | D17: 0.65 | E17: 0 | F17: 0.65 | G17: 2948319 | H17: 127 | I17: 35224 | J17: 23215 | K17: 103734 | L17: 41.4 | M17: 1.69 | N17: 76.19 | O17: 2615 | P17: 1 | Q17: 1 | R17: 1 | S17: 1 | T17: 1 | U17: 1 | V17: 1 | W17: 1 | X17: 1 | Y17: 0 | Z17: 0 | AA17: 0 | AB17: 99.69 | AC17: highQ
A18: METABAT_AS01afH2WH_23 | B18: k__Bacteria (UID209) | C18: 87.01 | D18: 22.88 | E18: 100 | F18: 0 | G18: 2062990 | H18: 500 | I18: 4989 | J18: 4125 | K18: 26998 | L18: 44.8 | M18: 2.16 | N18: 91.5 | O18: 2363 | P18: 0 | Q18: 0 | R18: 0 | S18: 1 | T18: 0 | U18: 0 | V18: 1 | W18: 0 | X18: 0 | Y18: 0 | Z18: 1 | AA18: 0 | AB18: 86.22 | AC18: contaminated
A19: METABAT_AS01afH2WH_24 | B19: k__Bacteria (UID203) | C19: 63.79 | D19: 0 | E19: 0 | F19: 0 | G19: 984702 | H19: 16 | I19: 98355 | J19: 61543 | K19: 232505 | L19: 44.8 | M19: 1.06 | N19: 92.64 | O19: 954 | P19: 0 | Q19: 1 | R19: 0 | S19: 0 | T19: 1 | U19: 0 | V19: 1 | W19: 1 | X19: 1 | Y19: 0 | Z19: 0 | AA19: 0 | AB19: 63.79 | AC19: mediumQ
A20: METABAT_AS01afH2WH_25 | B20: p__Bacteroidetes (UID2605) | C20: 95.95 | D20: 3.1 | E20: 14.29 | F20: 2.65701 | G20: 2050580 | H20: 167 | I20: 17586 | J20: 12278 | K20: 73724 | L20: 28.8 | M20: 1.53 | N20: 87.66 | O20: 1807 | P20: 1 | Q20: 1 | R20: 1 | S20: 1 | T20: 1 | U20: 1 | V20: 1 | W20: 1 | X20: 1 | Y20: 0 | Z20: 0 | AA20: 0 | AB20: 95.85 | AC20: highQ
A21: METABAT_AS01afH2WH_26 | B21: k__Bacteria (UID209) | C21: 75 | D21: 1.72 | E21: 100 | F21: 0 | G21: 1307626 | H21: 196 | I21: 12059 | J21: 6671 | K21: 45309 | L21: 30.7 | M21: 2.09 | N21: 90.57 | O21: 1310 | P21: 0 | Q21: 1 | R21: 0 | S21: 1 | T21: 1 | U21: 1 | V21: 1 | W21: 1 | X21: 1 | Y21: 0 | Z21: 0 | AA21: 0 | AB21: 74.93 | AC21: mediumhighQ
A22: METABAT_AS01afH2WH_27 | B22: o__Pseudomonadales (UID4488) | C22: 96.74 | D22: 0.42 | E22: 25 | F22: 0.315 | G22: 4762060 | H22: 86 | I22: 98594 | J22: 55372 | K22: 270129 | L22: 58.6 | M22: 1.91 | N22: 89.45 | O22: 4411 | P22: 1 | Q22: 1 | R22: 1 | S22: 1 | T22: 1 | U22: 1 | V22: 1 | W22: 1 | X22: 1 | Y22: 0 | Z22: 0 | AA22: 0 | AB22: 96.73 | AC22: highQ | AD22: METABAT_AS01afH2WH_27
A23: METABAT_AS01afH2WH_28 | B23: o__Rhodospirillales (UID3754) | C23: 84.58 | D23: 0 | E23: 0 | F23: 0 | G23: 1868266 | H23: 18 | I23: 159651 | J23: 103792 | K23: 526213 | L23: 54.4 | M23: 2.03 | N23: 90.95 | O23: 1739 | P23: 0 | Q23: 1 | R23: 0 | S23: 1 | T23: 1 | U23: 1 | V23: 1 | W23: 1 | X23: 1 | Y23: 0 | Z23: 0 | AA23: 0 | AB23: 84.58 | AC23: mediumhighQ | AD23: METABAT_AS01afH2WH_28
A24: METABAT_AS01afH2WH_29 | B24: o__Clostridiales (UID1120) | C24: 93.15 | D24: 3.03 | E24: 16.67 | F24: 2.524899 | G24: 2830867 | H24: 440 | I24: 8430 | J24: 6433 | K24: 48679 | L24: 44 | M24: 2.42 | N24: 88.63 | O24: 2859 | P24: 1 | Q24: 1 | R24: 1 | S24: 1 | T24: 1 | U24: 1 | V24: 1 | W24: 1 | X24: 1 | Y24: 0 | Z24: 0 | AA24: 0 | AB24: 93.05 | AC24: highQ
A25: METABAT_AS01afH2WH_3 | B25: k__Bacteria (UID2565) | C25: 96.59 | D25: 1.7 | E25: 0 | F25: 1.7 | G25: 5288095 | H25: 262 | I25: 31678 | J25: 20183 | K25: 116420 | L25: 63.5 | M25: 1.1 | N25: 84.45 | O25: 4234 | P25: 1 | Q25: 1 | R25: 1 | S25: 1 | T25: 1 | U25: 1 | V25: 1 | W25: 1 | X25: 1 | Y25: 0 | Z25: 0 | AA25: 0 | AB25: 96.54 | AC25: highQ | AD25: METABAT_AS01afH2WH_3
A26: METABAT_AS01afH2WH_30 | B26: p__Bacteroidetes (UID2605) | C26: 65.95 | D26: 0.04 | E26: 0 | F26: 0.04 | G26: 1381881 | H26: 450 | I26: 3396 | J26: 3070 | K26: 10946 | L26: 30.1 | M26: 1.95 | N26: 91.62 | O26: 1305 | P26: 0 | Q26: 1 | R26: 0 | S26: 0 | T26: 1 | U26: 0 | V26: 1 | W26: 1 | X26: 1 | Y26: 0 | Z26: 0 | AA26: 0 | AB26: 65.95 | AC26: mediumQ
A27: METABAT_AS01afH2WH_31 | B27: o__Clostridiales (UID1212) | C27: 74.07 | D27: 3.24 | E27: 16.67 | F27: 2.699892 | G27: 1933560 | H27: 454 | I27: 4997 | J27: 4258 | K27: 28289 | L27: 35.3 | M27: 2.34 | N27: 90.47 | O27: 2114 | P27: 0 | Q27: 1 | R27: 0 | S27: 1 | T27: 1 | U27: 1 | V27: 1 | W27: 1 | X27: 1 | Y27: 0 | Z27: 0 | AA27: 0 | AB27: 73.94 | AC27: mediumhighQ
A28: METABAT_AS01afH2WH_32 | B28: k__Bacteria (UID209) | C28: 88.83 | D28: 4.62 | E28: 10 | F28: 4.158 | G28: 1944731 | H28: 282 | I28: 11123 | J28: 6896 | K28: 118122 | L28: 47.9 | M28: 3.52 | N28: 92.59 | O28: 2088 | P28: 0 | Q28: 1 | R28: 0 | S28: 1 | T28: 1 | U28: 1 | V28: 1 | W28: 1 | X28: 1 | Y28: 0 | Z28: 0 | AA28: 0 | AB28: 88.67 | AC28: mediumhighQ | AD28: METABAT_AS01afH2WH_32
A29: METABAT_AS01afH2WH_33 | B29: p__Firmicutes (UID240) | C29: 96.15 | D29: 1.92 | E29: 0 | F29: 1.92 | G29: 2350422 | H29: 117 | I29: 50630 | J29: 20089 | K29: 171137 | L29: 37.4 | M29: 3.73 | N29: 88.62 | O29: 2299 | P29: 1 | Q29: 1 | R29: 1 | S29: 1 | T29: 1 | U29: 1 | V29: 1 | W29: 1 | X29: 1 | Y29: 0 | Z29: 0 | AA29: 0 | AB29: 96.09 | AC29: highQ | AD29: METABAT_AS01afH2WH_33
A30: METABAT_AS01afH2WH_34 | B30: g__Clostridium (UID1380) | C30: 93.4 | D30: 0 | E30: 0 | F30: 0 | G30: 2882771 | H30: 140 | I30: 39490 | J30: 20591 | K30: 152140 | L30: 35.9 | M30: 2.31 | N30: 88.46 | O30: 2819 | P30: 1 | Q30: 1 | R30: 1 | S30: 1 | T30: 1 | U30: 1 | V30: 1 | W30: 1 | X30: 1 | Y30: 0 | Z30: 0 | AA30: 0 | AB30: 93.40 | AC30: highQ | AD30: METABAT_AS01afH2WH_34
A31: METABAT_AS01afH2WH_35 | B31: k__Bacteria (UID203) | C31: 96.43 | D31: 0 | E31: 0 | F31: 0 | G31: 1134751 | H31: 126 | I31: 16962 | J31: 9005 | K31: 61972 | L31: 44.8 | M31: 1.59 | N31: 94.48 | O31: 1243 | P31: 1 | Q31: 1 | R31: 1 | S31: 1 | T31: 1 | U31: 1 | V31: 1 | W31: 1 | X31: 1 | Y31: 0 | Z31: 0 | AA31: 0 | AB31: 96.43 | AC31: highQ | AD31: METABAT_AS01afH2WH_35
A32: METABAT_AS01afH2WH_36 | B32: p__Euryarchaeota (UID3) | C32: 91.94 | D32: 0 | E32: 0 | F32: 0 | G32: 1707533 | H32: 60 | I32: 44129 | J32: 28458 | K32: 92907 | L32: 58.8 | M32: 1.45 | N32: 89.09 | O32: 1837 | P32: 1 | Q32: 1 | R32: 1 | S32: 1 | T32: 1 | U32: 1 | V32: 1 | W32: 1 | X32: 1 | Y32: 0 | Z32: 0 | AA32: 0 | AB32: 91.94 | AC32: highQ
A33: METABAT_AS01afH2WH_37 | B33: p__Euryarchaeota (UID3) | C33: 99.2 | D33: 1.6 | E33: 50 | F33: 0.8 | G33: 1566764 | H33: 76 | I33: 46297 | J33: 20615 | K33: 117571 | L33: 49.3 | M33: 1.78 | N33: 90.62 | O33: 1743 | P33: 1 | Q33: 1 | R33: 1 | S33: 1 | T33: 1 | U33: 1 | V33: 1 | W33: 1 | X33: 1 | Y33: 0 | Z33: 0 | AA33: 0 | AB33: 99.15 | AC33: highQ
A34: METABAT_AS01afH2WH_38 | B34: k__Archaea (UID2) | C34: 15.57 | D34: 0 | E34: 0 | F34: 0 | G34: 372899 | H34: 116 | I34: 3471 | J34: 3214 | K34: 13202 | L34: 59.4 | M34: 2.47 | N34: 83.51 | O34: 462 | P34: 0 | Q34: 1 | R34: 0 | S34: 0 | T34: 1 | U34: 0 | V34: 0 | W34: 1 | X34: 0 | Y34: 1 | Z34: 0 | AA34: 0 | AB34: 15.57 | AC34: lowQ
A35: METABAT_AS01afH2WH_39 | B35: p__Firmicutes (UID239) | C35: 81.41 | D35: 2.7 | E35: 0 | F35: 2.7 | G35: 1741003 | H35: 453 | I35: 4543 | J35: 3843 | K35: 14248 | L35: 63.5 | M35: 2.19 | N35: 90.63 | O35: 1946 | P35: 0 | Q35: 1 | R35: 0 | S35: 1 | T35: 1 | U35: 1 | V35: 1 | W35: 1 | X35: 1 | Y35: 0 | Z35: 0 | AA35: 0 | AB35: 81.31 | AC35: mediumhighQ
A36: METABAT_AS01afH2WH_4 | B36: root (UID1) | C36: 0 | D36: 0 | E36: 0 | F36: 0 | G36: 301278 | H36: 22 | I36: 30094 | J36: 13694 | K36: 103017 | L36: 33.7 | M36: 1.7 | N36: 84.47 | O36: 407 | P36: 0 | Q36: 1 | R36: 0 | S36: 0 | T36: 1 | U36: 0 | V36: 0 | W36: 1 | X36: 0 | Y36: 1 | Z36: 0 | AA36: 0 | AC36: lowQ
A37: METABAT_AS01afH2WH_40 | B37: c__Clostridia (UID1085) | C37: 97.45 | D37: 0.51 | E37: 0 | F37: 0.51 | G37: 2516163 | H37: 162 | I37: 26993 | J37: 15531 | K37: 83026 | L37: 48.4 | M37: 2.45 | N37: 88.09 | O37: 2452 | P37: 1 | Q37: 1 | R37: 1 | S37: 1 | T37: 1 | U37: 1 | V37: 1 | W37: 1 | X37: 1 | Y37: 0 | Z37: 0 | AA37: 0 | AB37: 97.43 | AC37: highQ
A38: METABAT_AS01afH2WH_41 | B38: k__Bacteria (UID1452) | C38: 52.97 | D38: 2.73 | E38: 0 | F38: 2.73 | G38: 2215189 | H38: 878 | I38: 2577 | J38: 2522 | K38: 9253 | L38: 64.4 | M38: 2.51 | N38: 89.73 | O38: 2579 | P38: 0 | Q38: 1 | R38: 0 | S38: 0 | T38: 1 | U38: 0 | V38: 1 | W38: 1 | X38: 1 | Y38: 0 | Z38: 0 | AA38: 0 | AB38: 52.82 | AC38: mediumQ
A39: METABAT_AS01afH2WH_42 | B39: g__Pseudomonas (UID4550) | C39: 98.83 | D39: 2.48 | E39: 27.78 | F39: 1.791056 | G39: 5879720 | H39: 126 | I39: 72436 | J39: 46664 | K39: 308327 | L39: 60.2 | M39: 3.12 | N39: 89.2 | O39: 5340 | P39: 1 | Q39: 1 | R39: 1 | S39: 1 | T39: 1 | U39: 1 | V39: 1 | W39: 1 | X39: 1 | Y39: 0 | Z39: 0 | AA39: 0 | AB39: 98.75 | AC39: highQ | AD39: METABAT_AS01afH2WH_42
A40: METABAT_AS01afH2WH_43 | B40: f__Enterobacteriaceae (UID5066) | C40: 97.94 | D40: 2.08 | E40: 0 | F40: 2.08 | G40: 5460202 | H40: 70 | I40: 123062 | J40: 78002 | K40: 344355 | L40: 55.5 | M40: 3.46 | N40: 88.38 | O40: 5090 | P40: 1 | Q40: 1 | R40: 1 | S40: 1 | T40: 1 | U40: 1 | V40: 1 | W40: 1 | X40: 1 | Y40: 0 | Z40: 0 | AA40: 0 | AB40: 97.88 | AC40: highQ | AD40: METABAT_AS01afH2WH_43
A41: METABAT_AS01afH2WH_44 | B41: o__Lactobacillales (UID374) | C41: 100 | D41: 0 | E41: 0 | F41: 0 | G41: 1863623 | H41: 50 | I41: 66821 | J41: 37272 | K41: 226856 | L41: 39.2 | M41: 2 | N41: 90.21 | O41: 1906 | P41: 1 | Q41: 1 | R41: 1 | S41: 1 | T41: 1 | U41: 1 | V41: 1 | W41: 1 | X41: 1 | Y41: 0 | Z41: 0 | AA41: 0 | AB41: 100.00 | AC41: highQ | AD41: METABAT_AS01afH2WH_44
A42: METABAT_AS01afH2WH_45 | B42: p__Firmicutes (UID1022) | C42: 94.73 | D42: 0.32 | E42: 100 | F42: 0 | G42: 2244272 | H42: 96 | I42: 42992 | J42: 23377 | K42: 102473 | L42: 45.6 | M42: 2.29 | N42: 87.11 | O42: 2262 | P42: 1 | Q42: 1 | R42: 1 | S42: 1 | T42: 1 | U42: 1 | V42: 1 | W42: 1 | X42: 1 | Y42: 0 | Z42: 0 | AA42: 0 | AB42: 94.72 | AC42: highQ
A43: METABAT_AS01afH2WH_46 | B43: k__Bacteria (UID203) | C43: 22.18 | D43: 0 | E43: 0 | F43: 0 | G43: 339578 | H43: 167 | I43: 2013 | J43: 2033 | K43: 4223 | L43: 54.6 | M43: 3.26 | N43: 90.11 | O43: 444 | P43: 0 | Q43: 1 | R43: 0 | S43: 0 | T43: 1 | U43: 0 | V43: 0 | W43: 1 | X43: 0 | Y43: 1 | Z43: 0 | AA43: 0 | AB43: 22.18 | AC43: lowQ
A44: METABAT_AS01afH2WH_47 | B44: c__Clostridia (UID1118) | C44: 44.47 | D44: 0 | E44: 0 | F44: 0 | G44: 867673 | H44: 344 | I44: 2497 | J44: 2522 | K44: 9162 | L44: 50.5 | M44: 2.75 | N44: 89.41 | O44: 1146 | P44: 0 | Q44: 1 | R44: 0 | S44: 0 | T44: 1 | U44: 0 | V44: 0 | W44: 1 | X44: 0 | Y44: 1 | Z44: 0 | AA44: 0 | AB44: 44.47 | AC44: lowQ
A45: METABAT_AS01afH2WH_48 | B45: o__Clostridiales (UID1212) | C45: 88.26 | D45: 3.15 | E45: 0 | F45: 3.15 | G45: 2196922 | H45: 491 | I45: 5589 | J45: 4474 | K45: 25818 | L45: 44.7 | M45: 3.5 | N45: 87.8 | O45: 2401 | P45: 0 | Q45: 1 | R45: 0 | S45: 1 | T45: 1 | U45: 1 | V45: 1 | W45: 1 | X45: 1 | Y45: 0 | Z45: 0 | AA45: 0 | AB45: 88.15 | AC45: mediumhighQ | AD45: METABAT_AS01afH2WH_48 | AJ45: Completeness | AK45: Contamination | AL45: Strain heterogeneity | AM45: Contamination excluding the contamination determined by strains | AN45: Genome size [bp] | AO45: Number of scaffolds | AP45: N50 (scaffolds) | AQ45: Mean scaffold length [bp] | AR45: Longest scaffold [bp] | AS45: GC | AT45: GC std (scaffolds > 1kbp) | AU45: Coding density | AV45: Number of predicted genes
A46: METABAT_AS01afH2WH_49 | B46: c__Clostridia (UID1118) | C46: 92.64 | D46: 4.84 | E46: 66.67 | F46: 1.613172 | G46: 2336743 | H46: 418 | I46: 7662 | J46: 5590 | K46: 24478 | L46: 57.4 | M46: 3.14 | N46: 89.15 | O46: 2605 | P46: 1 | Q46: 1 | R46: 1 | S46: 1 | T46: 1 | U46: 1 | V46: 1 | W46: 1 | X46: 1 | Y46: 0 | Z46: 0 | AA46: 0 | AB46: 92.48 | AC46: highQ | AD46: METABAT_AS01afH2WH_49 | AH46: highQ | AI46: average | AJ46: 95.1 | AK46: 1.7 | AL46: 26.5 | AM46: 1.2 | AN46: 2326443.343 | AO46: 216 | AP46: 27174 | AQ46: 15364 | AR46: 93438 | AS46: 46.2 | AT46: 2.5 | AU46: 89.5 | AV46: 2230
A47: METABAT_AS01afH2WH_5 | B47: o__Clostridiales (UID1212) | C47: 95.3 | D47: 2.59 | E47: 0 | F47: 2.59 | G47: 2925903 | H47: 69 | I47: 65687 | J47: 42404 | K47: 219362 | L47: 35.6 | M47: 2.05 | N47: 88.53 | O47: 2763 | P47: 1 | Q47: 1 | R47: 1 | S47: 1 | T47: 1 | U47: 1 | V47: 1 | W47: 1 | X47: 1 | Y47: 0 | Z47: 0 | AA47: 0 | AB47: 95.22 | AC47: highQ | AH47: mediumhighQ | AI47: average | AJ47: 83.7 | AK47: 3.3 | AL47: 35.7 | AM47: 2.0 | AN47: 2085438.628 | AO47: 384 | AP47: 13053 | AQ47: 7904 | AR47: 49662 | AS47: 47.7 | AT47: 2.7 | AU47: 90.2 | AV47: 2143
A48: METABAT_AS01afH2WH_50 | B48: p__Euryarchaeota (UID3) | C48: 99.2 | D48: 3.52 | E48: 18.18 | F48: 2.880064 | G48: 1502615 | H48: 292 | I48: 6589 | J48: 5145 | K48: 29165 | L48: 50.1 | M48: 2.42 | N48: 90.52 | O48: 1861 | P48: 1 | Q48: 1 | R48: 1 | S48: 1 | T48: 1 | U48: 1 | V48: 1 | W48: 1 | X48: 1 | Y48: 0 | Z48: 0 | AA48: 0 | AB48: 99.09 | AC48: highQ | AD48: METABAT_AS01afH2WH_50 | AH48: mediumQ | AI48: average | AJ48: 60.0 | AK48: 2.0 | AL48: 29.4 | AM48: 1.3 | AN48: 1446453.977 | AO48: 422 | AP48: 7616 | AQ48: 5283 | AR48: 27278 | AS48: 47.2 | AT48: 2.6 | AU48: 90.5 | AV48: 1625
A49: METABAT_AS01afH2WH_51 | B49: k__Bacteria (UID209) | C49: 11.86 | D49: 0 | E49: 0 | F49: 0 | G49: 416239 | H49: 16 | I49: 52703 | J49: 26014 | K49: 109028 | L49: 49.8 | M49: 3.53 | N49: 92.65 | O49: 433 | P49: 0 | Q49: 1 | R49: 0 | S49: 0 | T49: 1 | U49: 0 | V49: 0 | W49: 1 | X49: 0 | Y49: 1 | Z49: 0 | AA49: 0 | AB49: 11.86 | AC49: lowQ | AH49: lowQ | AI49: average | AJ49: 21.1 | AK49: 0.6 | AL49: 9.5 | AM49: 0.4 | AN49: 713197.6504 | AO49: 245 | AP49: 8562 | AQ49: 5731 | AR49: 22591 | AS49: 47.7 | AT49: 2.8 | AU49: 89.6 | AV49: 829
A50: METABAT_AS01afH2WH_52 | B50: k__Bacteria (UID209) | C50: 23.73 | D50: 0 | E50: 0 | F50: 0 | G50: 512975 | H50: 5 | I50: 116754 | J50: 102595 | K50: 172755 | L50: 48 | M50: 0.69 | N50: 93.93 | O50: 494 | P50: 0 | Q50: 1 | R50: 0 | S50: 0 | T50: 1 | U50: 0 | V50: 0 | W50: 1 | X50: 0 | Y50: 1 | Z50: 0 | AA50: 0 | AB50: 23.73 | AC50: lowQ | AH50: contaminated | AI50: average | AJ50: 82.0 | AK50: 59.6 | AL50: 38.1 | AM50: 43.8 | AN50: 4703081.059 | AO50: 1221 | AP50: 6934 | AQ50: 4600 | AR50: 48305 | AS50: 48.5 | AT50: 3.2 | AU50: 90.0 | AV50: 5196
A51: METABAT_AS01afH2WH_53 | B51: p__Firmicutes (UID240) | C51: 96.96 | D51: 2.4 | E51: 0 | F51: 2.4 | G51: 2298673 | H51: 282 | I51: 13115 | J51: 8151 | K51: 42406 | L51: 42.4 | M51: 3.71 | N51: 89.68 | O51: 2460 | P51: 1 | Q51: 1 | R51: 1 | S51: 1 | T51: 1 | U51: 1 | V51: 1 | W51: 1 | X51: 1 | Y51: 0 | Z51: 0 | AA51: 0 | AB51: 96.89 | AC51: highQ
A52: METABAT_AS01afH2WH_54 | B52: k__Bacteria (UID209) | C52: 100 | D52: 1.69 | E52: 100 | F52: 0 | G52: 2116146 | H52: 249 | I52: 13738 | J52: 8498 | K52: 63831 | L52: 41.8 | M52: 2.23 | N52: 86.6 | O52: 2146 | P52: 1 | Q52: 1 | R52: 1 | S52: 1 | T52: 1 | U52: 1 | V52: 1 | W52: 1 | X52: 1 | Y52: 0 | Z52: 0 | AA52: 0 | AB52: 99.95 | AC52: highQ | AH52: highQ | AI52: median | AJ52: 95.2 | AK52: 1.6 | AL52: 7.4 | AM52: 1.0 | AN52: 2177285.5 | AO52: 189 | AP52: 18945 | AQ52: 11254 | AR52: 76034 | AS52: 45.7 | AT52: 2.3 | AU52: 89.6 | AV52: 2135
A53: METABAT_AS01afH2WH_55 | B53: o__Clostridiales (UID1120) | C53: 93.82 | D53: 2.45 | E53: 0 | F53: 2.45 | G53: 2041882 | H53: 104 | I53: 32077 | J53: 19633 | K53: 72300 | L53: 41.5 | M53: 1.55 | N53: 87.76 | O53: 1932 | P53: 1 | Q53: 1 | R53: 1 | S53: 1 | T53: 1 | U53: 1 | V53: 1 | W53: 1 | X53: 1 | Y53: 0 | Z53: 0 | AA53: 0 | AB53: 93.74 | AC53: highQ | AH53: mediumhighQ | AI53: median | AJ53: 84.7 | AK53: 2.6 | AL53: 30.8 | AM53: 1.4 | AN53: 1907760 | AO53: 364 | AP53: 6737 | AQ53: 5143 | AR53: 33424 | AS53: 47.9 | AT53: 2.4 | AU53: 90.2 | AV53: 2029
A54: METABAT_AS01afH2WH_56 | B54: k__Bacteria (UID209) | C54: 65.64 | D54: 0 | E54: 0 | F54: 0 | G54: 1431514 | H54: 92 | I54: 29681 | J54: 15559 | K54: 89130 | L54: 47.9 | M54: 2.79 | N54: 93.84 | O54: 1456 | P54: 0 | Q54: 1 | R54: 0 | S54: 0 | T54: 1 | U54: 0 | V54: 1 | W54: 1 | X54: 1 | Y54: 0 | Z54: 0 | AA54: 0 | AB54: 65.64 | AC54: mediumQ | AD54: METABAT_AS01afH2WH_56 | AH54: mediumQ | AI54: median | AJ54: 59.8 | AK54: 1.4 | AL54: 16.7 | AM54: 0.9 | AN54: 1369044 | AO54: 424 | AP54: 3278 | AQ54: 3070 | AR54: 14743 | AS54: 47.1 | AT54: 2.4 | AU54: 90.7 | AV54: 1572
A55: METABAT_AS01afH2WH_57 | B55: o__Clostridiales (UID1212) | C55: 16.09 | D55: 0 | E55: 0 | F55: 0 | G55: 908167 | H55: 383 | I55: 2383 | J55: 2371 | K55: 12283 | L55: 39.1 | M55: 2.93 | N55: 88.04 | O55: 1087 | P55: 0 | Q55: 1 | R55: 0 | S55: 0 | T55: 1 | U55: 0 | V55: 0 | W55: 1 | X55: 0 | Y55: 1 | Z55: 0 | AA55: 0 | AB55: 16.09 | AC55: lowQ | AH55: lowQ | AI55: median | AJ55: 20.4 | AK55: 0.0 | AL55: 0.0 | AM55: 0.0 | AN55: 567776 | AO55: 204 | AP55: 2682 | AQ55: 2649 | AR55: 10788 | AS55: 46.6 | AT55: 2.3 | AU55: 90.1 | AV55: 680
A56: METABAT_AS01afH2WH_58 | B56: p__Firmicutes (UID241) | C56: 88.14 | D56: 3.27 | E56: 62.5 | F56: 1.22625 | G56: 1931523 | H56: 291 | I56: 9140 | J56: 6637 | K56: 36759 | L56: 47.1 | M56: 2.67 | N56: 89.19 | O56: 2063 | P56: 0 | Q56: 1 | R56: 0 | S56: 1 | T56: 1 | U56: 1 | V56: 1 | W56: 1 | X56: 1 | Y56: 0 | Z56: 0 | AA56: 0 | AB56: 88.03 | AC56: mediumhighQ | AD56: METABAT_AS01afH2WH_58 | AH56: contaminated | AI56: median | AJ56: 85.8 | AK56: 22.8 | AL56: 31.9 | AM56: 13.1 | AN56: 3219895.5 | AO56: 800 | AP56: 4438 | AQ56: 3765 | AR56: 34628 | AS56: 46.0 | AT56: 2.6 | AU56: 90.2 | AV56: 3515
A57: METABAT_AS01afH2WH_59 | B57: k__Bacteria (UID209) | C57: 26.35 | D57: 0 | E57: 0 | F57: 0 | G57: 578337 | H57: 249 | I57: 2303 | J57: 2322 | K57: 7239 | L57: 53.7 | M57: 3.41 | N57: 90.87 | O57: 800 | P57: 0 | Q57: 1 | R57: 0 | S57: 0 | T57: 1 | U57: 0 | V57: 0 | W57: 1 | X57: 0 | Y57: 1 | Z57: 0 | AA57: 0 | AB57: 26.35 | AC57: lowQ
A58: METABAT_AS01afH2WH_6 | B58: f__Bifidobacteriaceae (UID1458) | C58: 99.23 | D58: 2.27 | E58: 0 | F58: 2.27 | G58: 2333275 | H58: 28 | I58: 123547 | J58: 83331 | K58: 232890 | L58: 57.7 | M58: 1.07 | N58: 87.64 | O58: 1934 | P58: 1 | Q58: 1 | R58: 1 | S58: 1 | T58: 1 | U58: 1 | V58: 1 | W58: 1 | X58: 1 | Y58: 0 | Z58: 0 | AA58: 0 | AB58: 99.16 | AC58: highQ | AD58: METABAT_AS01afH2WH_6
A59: METABAT_AS01afH2WH_60 | B59: p__Firmicutes (UID240) | C59: 38.72 | D59: 0.17 | E59: 50 | F59: 0.085 | G59: 938476 | H59: 358 | I59: 2617 | J59: 2621 | K59: 11921 | L59: 37.4 | M59: 2.41 | N59: 89.87 | O59: 1149 | P59: 0 | Q59: 1 | R59: 0 | S59: 0 | T59: 1 | U59: 0 | V59: 0 | W59: 1 | X59: 0 | Y59: 1 | Z59: 0 | AA59: 0 | AB59: 38.71 | AC59: lowQ | AI59: Quality | AJ59: Number of MAGs
A60: METABAT_AS01afH2WH_61 | B60: c__Bacilli (UID285) | C60: 85.83 | D60: 3.87 | E60: 0 | F60: 3.87 | G60: 2262096 | H60: 207 | I60: 20929 | J60: 10928 | K60: 57551 | L60: 33.5 | M60: 2.66 | N60: 90.92 | O60: 2180 | P60: 0 | Q60: 1 | R60: 0 | S60: 1 | T60: 1 | U60: 1 | V60: 1 | W60: 1 | X60: 1 | Y60: 0 | Z60: 0 | AA60: 0 | AB60: 85.69 | AC60: mediumhighQ | AD60: METABAT_AS01afH2WH_61 | AI60: compl>90% | AJ60: 1892
A61: METABAT_AS01afH2WH_7 | B61: k__Bacteria (UID1452) | C61: 93.64 | D61: 8.73 | E61: 0 | F61: 8.73 | G61: 5458336 | H61: 120 | I61: 132994 | J61: 45486 | K61: 409506 | L61: 56.2 | M61: 6.07 | N61: 90.47 | O61: 4655 | P61: 1 | Q61: 0 | R61: 0 | S61: 1 | T61: 1 | U61: 1 | V61: 1 | W61: 1 | X61: 1 | Y61: 0 | Z61: 0 | AA61: 0 | AB61: 93.36 | AC61: mediumhighQ | AD61: METABAT_AS01afH2WH_7 | AI61: cont<5% | AJ61: 4502
A62: METABAT_AS01afH2WH_8 | B62: g__Clostridium (UID1380) | C62: 64.48 | D62: 14.84 | E62: 39.62 | F62: 8.960392 | G62: 5133432 | H62: 1117 | I62: 5700 | J62: 4595 | K62: 66628 | L62: 29.8 | M62: 2.46 | N62: 85.29 | O62: 5978 | P62: 0 | Q62: 0 | R62: 0 | S62: 0 | T62: 0 | U62: 0 | V62: 1 | W62: 0 | X62: 0 | Y62: 0 | Z62: 1 | AA62: 0 | AB62: 63.79 | AC62: contaminated | AH62: highQ | AI62: compl>90%; cont<5% | AJ62: 1628
A63: METABAT_AS01afH2WH_9 | B63: p__Firmicutes (UID239) | C63: 89.33 | D63: 0.52 | E63: 0 | F63: 0.52 | G63: 2052937 | H63: 322 | I63: 8895 | J63: 6375 | K63: 25588 | L63: 48.8 | M63: 1.88 | N63: 88.07 | O63: 2178 | P63: 0 | Q63: 1 | R63: 0 | S63: 1 | T63: 1 | U63: 1 | V63: 1 | W63: 1 | X63: 1 | Y63: 0 | Z63: 0 | AA63: 0 | AB63: 89.31 | AC63: mediumhighQ | AI63: compl>70% | AJ63: 3173
A64: METABAT_AS02xzSISU_1 | B64: k__Bacteria (UID3187) | C64: 38.9 | D64: 0.46 | E64: 0 | F64: 0.46 | G64: 829393 | H64: 286 | I64: 3106 | J64: 2899 | K64: 16431 | L64: 36.8 | M64: 2.57 | N64: 94.72 | O64: 982 | P64: 0 | Q64: 1 | R64: 0 | S64: 0 | T64: 1 | U64: 0 | V64: 0 | W64: 1 | X64: 0 | Y64: 1 | Z64: 0 | AA64: 0 | AB64: 38.86 | AC64: lowQ | AI64: cont<10% | AJ64: 4906
A65: METABAT_AS02xzSISU_10 | B65: p__Firmicutes (UID1022) | C65: 87.82 | D65: 1.98 | E65: 80 | F65: 0.396 | G65: 1675068 | H65: 231 | I65: 10721 | J65: 7251 | K65: 33778 | L65: 45.7 | M65: 2.92 | N65: 87.5 | O65: 1735 | P65: 0 | Q65: 1 | R65: 0 | S65: 1 | T65: 1 | U65: 1 | V65: 1 | W65: 1 | X65: 1 | Y65: 0 | Z65: 0 | AA65: 0 | AB65: 87.75 | AC65: mediumhighQ | AH65: mediumhighQ | AI65: compl>70%; cont<10% | AJ65: 2944
A66: METABAT_AS02xzSISU_11 | B66: o__Clostridiales (UID1212) | C66: 70.76 | D66: 0.22 | E66: 0 | F66: 0.22 | G66: 2105858 | H66: 693 | I66: 3261 | J66: 3038 | K66: 13663 | L66: 39.8 | M66: 2.26 | N66: 90.47 | O66: 2004 | P66: 0 | Q66: 1 | R66: 0 | S66: 1 | T66: 1 | U66: 1 | V66: 1 | W66: 1 | X66: 1 | Y66: 0 | Z66: 0 | AA66: 0 | AB66: 70.75 | AC66: mediumhighQ | AI66: compl>=50% | AJ66: 3744
A67: METABAT_AS02xzSISU_12 | B67: p__Euryarchaeota (UID54) | C67: 96.41 | D67: 0.65 | E67: 100 | F67: 0 | G67: 1835797 | H67: 158 | I67: 16757 | J67: 11618 | K67: 78762 | L67: 59.6 | M67: 2.71 | N67: 89.01 | O67: 1977 | P67: 1 | Q67: 1 | R67: 1 | S67: 1 | T67: 1 | U67: 1 | V67: 1 | W67: 1 | X67: 1 | Y67: 0 | Z67: 0 | AA67: 0 | AB67: 96.39 | AC67: highQ | AI67: cont<10% | AJ67: 4906
A68: METABAT_AS02xzSISU_13 | B68: p__Euryarchaeota (UID54) | C68: 97.49 | D68: 0.65 | E68: 0 | F68: 0.65 | G68: 2086898 | H68: 266 | I68: 10817 | J68: 7845 | K68: 35235 | L68: 59.5 | M68: 2.82 | N68: 82.99 | O68: 2222 | P68: 1 | Q68: 1 | R68: 1 | S68: 1 | T68: 1 | U68: 1 | V68: 1 | W68: 1 | X68: 1 | Y68: 0 | Z68: 0 | AA68: 0 | AB68: 97.47 | AC68: highQ | AH68: mediumQ | AI68: compl>=50%; cont<10% | AJ68: 3470
A69: METABAT_AS02xzSISU_14 | B69: o__Clostridiales (UID1212) | C69: 92.62 | D69: 2.01 | E69: 33.33 | F69: 1.340067 | G69: 2463603 | H69: 189 | I69: 19552 | J69: 13034 | K69: 74181 | L69: 53.7 | M69: 3.3 | N69: 89.35 | O69: 2525 | P69: 1 | Q69: 1 | R69: 1 | S69: 1 | T69: 1 | U69: 1 | V69: 1 | W69: 1 | X69: 1 | Y69: 0 | Z69: 0 | AA69: 0 | AB69: 92.55 | AC69: highQ | AD69: METABAT_AS02xzSISU_14 | AI69: compl<50% | AJ69: 1450
A70: METABAT_AS02xzSISU_15 | B70: p__Firmicutes (UID239) | C70: 89.27 | D70: 0.99 | E70: 0 | F70: 0.99 | G70: 1722440 | H70: 66 | I70: 53400 | J70: 26097 | K70: 119667 | L70: 53.4 | M70: 1.02 | N70: 88.7 | O70: 1619 | P70: 0 | Q70: 1 | R70: 0 | S70: 1 | T70: 1 | U70: 1 | V70: 1 | W70: 1 | X70: 1 | Y70: 0 | Z70: 0 | AA70: 0 | AB70: 89.24 | AC70: mediumhighQ | AI70: cont>10% | AJ70: 288
A71: METABAT_AS02xzSISU_16 | B71: p__Firmicutes (UID241) | C71: 21.51 | D71: 0 | E71: 0 | F71: 0 | G71: 360900 | H71: 169 | I71: 2113 | J71: 2135 | K71: 5790 | L71: 59.4 | M71: 3.32 | N71: 92.72 | O71: 502 | P71: 0 | Q71: 1 | R71: 0 | S71: 0 | T71: 1 | U71: 0 | V71: 0 | W71: 1 | X71: 0 | Y71: 1 | Z71: 0 | AA71: 0 | AB71: 21.51 | AC71: lowQ | AH71: lowQ | AI71: completeness<50%; cont>10% | AJ71: 14
A72: METABAT_AS02xzSISU_17 | B72: k__Bacteria (UID209) | C72: 15.25 | D72: 0 | E72: 0 | F72: 0 | G72: 439232 | H72: 4 | I72: 322332 | J72: 109808 | K72: 322332 | L72: 48.3 | M72: 2.28 | N72: 93.69 | O72: 433 | P72: 0 | Q72: 1 | R72: 0 | S72: 0 | T72: 1 | U72: 0 | V72: 0 | W72: 1 | X72: 0 | Y72: 1 | Z72: 0 | AA72: 0 | AB72: 15.25 | AC72: lowQ | AH72: contaminated | AJ72: 288
A73: METABAT_AS02xzSISU_18 | B73: k__Bacteria (UID203) | C73: 9.56 | D73: 0 | E73: 0 | F73: 0 | G73: 268534 | H73: 131 | I73: 1999 | J73: 2049 | K73: 4490 | L73: 53.7 | M73: 4.01 | N73: 91.37 | O73: 341 | P73: 0 | Q73: 1 | R73: 0 | S73: 0 | T73: 1 | U73: 0 | V73: 0 | W73: 1 | X73: 0 | Y73: 1 | Z73: 0 | AA73: 0 | AB73: 9.56 | AC73: lowQ
A74: METABAT_AS02xzSISU_19 | B74: o__Clostridiales (UID1212) | C74: 91.79 | D74: 0.67 | E74: 0 | F74: 0.67 | G74: 3065301 | H74: 505 | I74: 8443 | J74: 6069 | K74: 35419 | L74: 39.6 | M74: 3.1 | N74: 87.67 | O74: 2837 | P74: 1 | Q74: 1 | R74: 1 | S74: 1 | T74: 1 | U74: 1 | V74: 1 | W74: 1 | X74: 1 | Y74: 0 | Z74: 0 | AA74: 0 | AB74: 91.77 | AC74: highQ | AD74: METABAT_AS02xzSISU_19
A75: METABAT_AS02xzSISU_2 | B75: c__Clostridia (UID1118) | C75: 92.47 | D75: 0.81 | E75: 0 | F75: 0.81 | G75: 1937113 | H75: 146 | I75: 21373 | J75: 13267 | K75: 122392 | L75: 43.3 | M75: 3.8 | N75: 91.12 | O75: 1901 | P75: 1 | Q75: 1 | R75: 1 | S75: 1 | T75: 1 | U75: 1 | V75: 1 | W75: 1 | X75: 1 | Y75: 0 | Z75: 0 | AA75: 0 | AB75: 92.44 | AC75: highQ | AD75: METABAT_AS02xzSISU_2
A76: METABAT_AS02xzSISU_20 | B76: p__Firmicutes (UID239) | C76: 85.23 | D76: 0 | E76: 0 | F76: 0 | G76: 1639995 | H76: 145 | I76: 18596 | J76: 11310 | K76: 60961 | L76: 45.1 | M76: 1.12 | N76: 89.96 | O76: 1589 | P76: 0 | Q76: 1 | R76: 0 | S76: 1 | T76: 1 | U76: 1 | V76: 1 | W76: 1 | X76: 1 | Y76: 0 | Z76: 0 | AA76: 0 | AB76: 85.23 | AC76: mediumhighQ
A77: METABAT_AS02xzSISU_21 | B77: p__Firmicutes (UID239) | C77: 88.24 | D77: 2.62 | E77: 66.67 | F77: 0.873246 | G77: 3238897 | H77: 98 | I77: 53850 | J77: 33049 | K77: 192969 | L77: 62.4 | M77: 1.81 | N77: 83.75 | O77: 2845 | P77: 0 | Q77: 1 | R77: 0 | S77: 1 | T77: 1 | U77: 1 | V77: 1 | W77: 1 | X77: 1 | Y77: 0 | Z77: 0 | AA77: 0 | AB77: 88.15 | AC77: mediumhighQ | AD77: METABAT_AS02xzSISU_21
A78: METABAT_AS02xzSISU_22 | B78: c__Clostridia (UID1085) | C78: 98.47 | D78: 0.61 | E78: 50 | F78: 0.305 | G78: 2575609 | H78: 236 | I78: 14436 | J78: 10913 | K78: 52819 | L78: 48.3 | M78: 2.63 | N78: 87.91 | O78: 2554 | P78: 1 | Q78: 1 | R78: 1 | S78: 1 | T78: 1 | U78: 1 | V78: 1 | W78: 1 | X78: 1 | Y78: 0 | Z78: 0 | AA78: 0 | AB78: 98.45 | AC78: highQ | AD78: METABAT_AS02xzSISU_22
A79: METABAT_AS02xzSISU_23 | B79: p__Bacteroidetes (UID2605) | C79: 95.48 | D79: 2.63 | E79: 28.57 | F79: 1.878609 | G79: 2032333 | H79: 213 | I79: 14021 | J79: 9541 | K79: 44879 | L79: 28.8 | M79: 1.79 | N79: 87.9 | O79: 1800 | P79: 1 | Q79: 1 | R79: 1 | S79: 1 | T79: 1 | U79: 1 | V79: 1 | W79: 1 | X79: 1 | Y79: 0 | Z79: 0 | AA79: 0 | AB79: 95.40 | AC79: highQ
A80: METABAT_AS02xzSISU_24 | B80: p__Firmicutes (UID241) | C80: 93.64 | D80: 0.45 | E80: 0 | F80: 0.45 | G80: 1901232 | H80: 356 | I80: 6900 | J80: 5340 | K80: 45111 | L80: 55.8 | M80: 3.45 | N80: 88.13 | O80: 2105 | P80: 1 | Q80: 1 | R80: 1 | S80: 1 | T80: 1 | U80: 1 | V80: 1 | W80: 1 | X80: 1 | Y80: 0 | Z80: 0 | AA80: 0 | AB80: 93.63 | AC80: highQ
A81: METABAT_AS02xzSISU_25 | B81: p__Firmicutes (UID241) | C81: 91.36 | D81: 2.82 | E81: 20 | F81: 2.256 | G81: 2096766 | H81: 234 | I81: 12452 | J81: 8960 | K81: 54062 | L81: 59.4 | M81: 2.22 | N81: 92.4 | O81: 2156 | P81: 1 | Q81: 1 | R81: 1 | S81: 1 | T81: 1 | U81: 1 | V81: 1 | W81: 1 | X81: 1 | Y81: 0 | Z81: 0 | AA81: 0 | AB81: 91.27 | AC81: highQ
A82: METABAT_AS02xzSISU_26 | B82: p__Firmicutes (UID239) | C82: 85.86 | D82: 1.96 | E82: 0 | F82: 1.96 | G82: 2948669 | H82: 217 | I82: 21917 | J82: 13588 | K82: 72266 | L82: 62.3 | M82: 2.45 | N82: 85.53 | O82: 2710 | P82: 0 | Q82: 1 | R82: 0 | S82: 1 | T82: 1 | U82: 1 | V82: 1 | W82: 1 | X82: 1 | Y82: 0 | Z82: 0 | AA82: 0 | AB82: 85.79 | AC82: mediumhighQ
A83: METABAT_AS02xzSISU_27 | B83: o__Clostridiales (UID1120) | C83: 50.48 | D83: 0.54 | E83: 33.33 | F83: 0.360018 | G83: 734765 | H83: 291 | I83: 2546 | J83: 2524 | K83: 9193 | L83: 40.3 | M83: 2.22 | N83: 94.31 | O83: 834 | P83: 0 | Q83: 1 | R83: 0 | S83: 0 | T83: 1 | U83: 0 | V83: 1 | W83: 1 | X83: 1 | Y83: 0 | Z83: 0 | AA83: 0 | AB83: 50.45 | AC83: mediumQ
A84: METABAT_AS02xzSISU_28 | B84: p__Euryarchaeota (UID3) | C84: 73.59 | D84: 1.66 | E84: 0 | F84: 1.66 | G84: 1357963 | H84: 405 | I84: 3589 | J84: 3352 | K84: 15631 | L84: 59.2 | M84: 2.41 | N84: 89.49 | O84: 1729 | P84: 0 | Q84: 1 | R84: 0 | S84: 1 | T84: 1 | U84: 1 | V84: 1 | W84: 1 | X84: 1 | Y84: 0 | Z84: 0 | AA84: 0 | AB84: 73.52 | AC84: mediumhighQ
A85: METABAT_AS02xzSISU_29 | B85: p__Firmicutes (UID241) | C85: 54.36 | D85: 1.14 | E85: 0 | F85: 1.14 | G85: 1915562 | H85: 732 | I85: 2633 | J85: 2616 | K85: 12339 | L85: 57.7 | M85: 3.02 | N85: 90.87 | O85: 2220 | P85: 0 | Q85: 1 | R85: 0 | S85: 0 | T85: 1 | U85: 0 | V85: 1 | W85: 1 | X85: 1 | Y85: 0 | Z85: 0 | AA85: 0 | AB85: 54.30 | AC85: mediumQ
A86: METABAT_AS02xzSISU_3 | B86: k__Bacteria (UID1452) | C86: 66.64 | D86: 2.83 | E86: 50 | F86: 1.415 | G86: 2818476 | H86: 991 | I86: 2995 | J86: 2844 | K86: 10063 | L86: 64.4 | M86: 2.55 | N86: 90.08 | O86: 3140 | P86: 0 | Q86: 1 | R86: 0 | S86: 0 | T86: 1 | U86: 0 | V86: 1 | W86: 1 | X86: 1 | Y86: 0 | Z86: 0 | AA86: 0 | AB86: 66.51 | AC86: mediumQ | AD86: METABAT_AS02xzSISU_3
A87: METABAT_AS02xzSISU_30 | B87: o__Clostridiales (UID1120) | C87: 64.51 | D87: 0.02 | E87: 100 | F87: 0 | G87: 1455941 | H87: 439 | I87: 3670 | J87: 3316 | K87: 16347 | L87: 37.1 | M87: 2.47 | N87: 91.46 | O87: 1595 | P87: 0 | Q87: 1 | R87: 0 | S87: 0 | T87: 1 | U87: 0 | V87: 1 | W87: 1 | X87: 1 | Y87: 0 | Z87: 0 | AA87: 0 | AB87: 64.51 | AC87: mediumQ
A88: METABAT_AS02xzSISU_31 | B88: k__Bacteria (UID203) | C88: 36.21 | D88: 0 | E88: 0 | F88: 0 | G88: 731901 | H88: 24 | I88: 111919 | J88: 30495 | K88: 141506 | L88: 46.8 | M88: 2.75 | N88: 92.36 | O88: 706 | P88: 0 | Q88: 1 | R88: 0 | S88: 0 | T88: 1 | U88: 0 | V88: 0 | W88: 1 | X88: 0 | Y88: 1 | Z88: 0 | AA88: 0 | AB88: 36.21 | AC88: lowQ
A89: METABAT_AS02xzSISU_32 | B89: p__Firmicutes (UID239) | C89: 88.24 | D89: 0.49 | E89: 0 | F89: 0.49 | G89: 1629332 | H89: 230 | I89: 10534 | J89: 7084 | K89: 56890 | L89: 49.7 | M89: 1.51 | N89: 88.78 | O89: 1621 | P89: 0 | Q89: 1 | R89: 0 | S89: 1 | T89: 1 | U89: 1 | V89: 1 | W89: 1 | X89: 1 | Y89: 0 | Z89: 0 | AA89: 0 | AB89: 88.22 | AC89: mediumhighQ
A90: METABAT_AS02xzSISU_33 | B90: k__Bacteria (UID203) | C90: 98.05 | D90: 1.79 | E90: 100 | F90: 0 | G90: 1301610 | H90: 166 | I90: 10950 | J90: 7841 | K90: 91740 | L90: 44.8 | M90: 1.55 | N90: 93.74 | O90: 1449 | P90: 1 | Q90: 1 | R90: 1 | S90: 1 | T90: 1 | U90: 1 | V90: 1 | W90: 1 | X90: 1 | Y90: 0 | Z90: 0 | AA90: 0 | AB90: 98.00 | AC90: highQ
A91: METABAT_AS02xzSISU_34 | B91: p__Firmicutes (UID239) | C91: 51.79 | D91: 0 | E91: 0 | F91: 0 | G91: 1073694 | H91: 392 | I91: 2848 | J91: 2739 | K91: 8289 | L91: 57.4 | M91: 1.63 | N91: 90.36 | O91: 1335 | P91: 0 | Q91: 1 | R91: 0 | S91: 0 | T91: 1 | U91: 0 | V91: 1 | W91: 1 | X91: 1 | Y91: 0 | Z91: 0 | AA91: 0 | AB91: 51.79 | AC91: mediumQ
A92: METABAT_AS02xzSISU_35 | B92: o__Clostridiales (UID1120) | C92: 56.47 | D92: 0 | E92: 0 | F92: 0 | G92: 1300623 | H92: 410 | I92: 3488 | J92: 3172 | K92: 14275 | L92: 33 | M92: 2.24 | N92: 92.78 | O92: 1396 | P92: 0 | Q92: 1 | R92: 0 | S92: 0 | T92: 1 | U92: 0 | V92: 1 | W92: 1 | X92: 1 | Y92: 0 | Z92: 0 | AA92: 0 | AB92: 56.47 | AC92: mediumQ | AD92: METABAT_AS02xzSISU_35
A93: METABAT_AS02xzSISU_36 | B93: p__Firmicutes (UID1022) | C93: 90.64 | D93: 0.02 | E93: 100 | F93: 0 | G93: 1987542 | H93: 255 | I93: 11372 | J93: 7794 | K93: 60127 | L93: 45.6 | M93: 2.89 | N93: 87.48 | O93: 2115 | P93: 1 | Q93: 1 | R93: 1 | S93: 1 | T93: 1 | U93: 1 | V93: 1 | W93: 1 | X93: 1 | Y93: 0 | Z93: 0 | AA93: 0 | AB93: 90.64 | AC93: highQ
A94: METABAT_AS02xzSISU_37 | B94: p__Firmicutes (UID241) | C94: 84.75 | D94: 2.01 | E94: 20 | F94: 1.608 | G94: 2614536 | H94: 472 | I94: 7460 | J94: 5539 | K94: 47695 | L94: 60.4 | M94: 3.68 | N94: 87.41 | O94: 2728 | P94: 0 | Q94: 1 | R94: 0 | S94: 1 | T94: 1 | U94: 1 | V94: 1 | W94: 1 | X94: 1 | Y94: 0 | Z94: 0 | AA94: 0 | AB94: 84.68 | AC94: mediumhighQ | AD94: METABAT_AS02xzSISU_37
A95: METABAT_AS02xzSISU_38 | B95: k__Bacteria (UID209) | C95: 53.49 | D95: 0.49 | E95: 50 | F95: 0.245 | G95: 840886 | H95: 215 | I95: 4440 | J95: 3911 | K95: 28968 | L95: 45 | M95: 2.07 | N95: 93.93 | O95: 1007 | P95: 0 | Q95: 1 | R95: 0 | S95: 0 | T95: 1 | U95: 0 | V95: 1 | W95: 1 | X95: 1 | Y95: 0 | Z95: 0 | AA95: 0 | AB95: 53.46 | AC95: mediumQ
A96: METABAT_AS02xzSISU_39 | B96: root (UID1) | C96: 0 | D96: 0 | E96: 0 | F96: 0 | G96: 254500 | H96: 20 | I96: 18043 | J96: 12725 | K96: 25920 | L96: 57.8 | M96: 1.59 | N96: 80.6 | O96: 252 | P96: 0 | Q96: 1 | R96: 0 | S96: 0 | T96: 1 | U96: 0 | V96: 0 | W96: 1 | X96: 0 | Y96: 1 | Z96: 0 | AA96: 0 | AC96: lowQ
A97: METABAT_AS02xzSISU_4 | B97: k__Bacteria (UID2565) | C97: 58.82 | D97: 0.57 | E97: 0 | F97: 0.57 | G97: 3000760 | H97: 1018 | I97: 3155 | J97: 2947 | K97: 14165 | L97: 55.9 | M97: 1.81 | N97: 86.08 | O97: 3135 | P97: 0 | Q97: 1 | R97: 0 | S97: 0 | T97: 1 | U97: 0 | V97: 1 | W97: 1 | X97: 1 | Y97: 0 | Z97: 0 | AA97: 0 | AB97: 58.79 | AC97: mediumQ | AD97: METABAT_AS02xzSISU_4
A98: METABAT_AS02xzSISU_40 | B98: c__Clostridia (UID1118) | C98: 50.11 | D98: 0 | E98: 0 | F98: 0 | G98: 1224119 | H98: 440 | I98: 2903 | J98: 2782 | K98: 10544 | L98: 43.4 | M98: 2.18 | N98: 92.1 | O98: 1283 | P98: 0 | Q98: 1 | R98: 0 | S98: 0 | T98: 1 | U98: 0 | V98: 1 | W98: 1 | X98: 1 | Y98: 0 | Z98: 0 | AA98: 0 | AB98: 50.11 | AC98: mediumQ
A99: METABAT_AS02xzSISU_41 | B99: o__Clostridiales (UID1120) | C99: 94.15 | D99: 2.1 | E99: 0 | F99: 2.1 | G99: 2319820 | H99: 316 | I99: 10987 | J99: 7341 | K99: 61022 | L99: 31.3 | M99: 2.27 | N99: 89.91 | O99: 2446 | P99: 1 | Q99: 1 | R99: 1 | S99: 1 | T99: 1 | U99: 1 | V99: 1 | W99: 1 | X99: 1 | Y99: 0 | Z99: 0 | AA99: 0 | AB99: 94.08 | AC99: highQ
A100: METABAT_AS02xzSISU_42 | B100: k__Bacteria (UID2570) | C100: 100 | D100: 0.55 | E100: 0 | F100: 0.55 | G100: 3348226 | H100: 161 | I100: 32921 | J100: 20796 | K100: 110921 | L100: 44.3 | M100: 2.87 | N100: 92.24 | O100: 2878 | P100: 1 | Q100: 1 | R100: 1 | S100: 1 | T100: 1 | U100: 1 | V100: 1 | W100: 1 | X100: 1 | Y100: 0 | Z100: 0 | AA100: 0 | AB100: 99.98 | AC100: highQ | AD100: METABAT_AS02xzSISU_42
A101: METABAT_AS02xzSISU_43 | B101: k__Bacteria (UID209) | C101: 98.31 | D101: 0.85 | E101: 100 | F101: 0 | G101: 2068688 | H101: 291 | I101: 11069 | J101: 7108 | K101: 28923 | L101: 41.9 | M101: 2.2 | N101: 87.62 | O101: 2101 | P101: 1 | Q101: 1 | R101: 1 | S101: 1 | T101: 1 | U101: 1 | V101: 1 | W101: 1 | X101: 1 | Y101: 0 | Z101: 0 | AA101: 0 | AB101: 98.28 | AC101: highQ
A102: METABAT_AS02xzSISU_44 | B102: c__Clostridia (UID1085) | C102: 48.46 | D102: 0.44 | E102: 33.33 | F102: 0.293348 | G102: 1060233 | H102: 380 | I102: 2834 | J102: 2790 | K102: 9044 | L102: 39.6 | M102: 2.27 | N102: 90.26 | O102: 1278 | P102: 0 | Q102: 1 | R102: 0 | S102: 0 | T102: 1 | U102: 0 | V102: 0 | W102: 1 | X102: 0 | Y102: 1 | Z102: 0 | AA102: 0 | AB102: 48.43 | AC102: lowQ
A103: METABAT_AS02xzSISU_45 | B103: o__Clostridiales (UID1120) | C103: 21.96 | D103: 0.07 | E103: 0 | F103: 0.07 | G103: 391925 | H103: 165 | I103: 2349 | J103: 2375 | K103: 6684 | L103: 32.2 | M103: 1.88 | N103: 93.56 | O103: 482 | P103: 0 | Q103: 1 | R103: 0 | S103: 0 | T103: 1 | U103: 0 | V103: 0 | W103: 1 | X103: 0 | Y103: 1 | Z103: 0 | AA103: 0 | AB103: 21.95 | AC103: lowQ
A104: METABAT_AS02xzSISU_46 | B104: o__Clostridiales (UID1120) | C104: 95.8 | D104: 6.64 | E104: 7.69 | F104: 6.129384 | G104: 3065610 | H104: 328 | I104: 14810 | J104: 9346 | K104: 60220 | L104: 43.8 | M104: 3.53 | N104: 88.01 | O104: 2761 | P104: 1 | Q104: 0 | R104: 0 | S104: 1 | T104: 1 | U104: 1 | V104: 1 | W104: 1 | X104: 1 | Y104: 0 | Z104: 0 | AA104: 0 | AB104: 95.59 | AC104: mediumhighQ | AD104: METABAT_AS02xzSISU_46
A105: METABAT_AS02xzSISU_47 | B105: o__Clostridiales (UID1120) | C105: 96.5 | D105: 1.75 | E105: 0 | F105: 1.75 | G105: 2607444 | H105: 142 | I105: 35587 | J105: 18362 | K105: 133897 | L105: 50.4 | M105: 3.94 | N105: 88.16 | O105: 2384 | P105: 1 | Q105: 1 | R105: 1 | S105: 1 | T105: 1 | U105: 1 | V105: 1 | W105: 1 | X105: 1 | Y105: 0 | Z105: 0 | AA105: 0 | AB105: 96.45 | AC105: highQ | AD105: METABAT_AS02xzSISU_47
A106: METABAT_AS02xzSISU_48 | B106: p__Firmicutes (UID241) | C106: 82.7 | D106: 1.69 | E106: 33.33 | F106: 1.126723 | G106: 1544789 | H106: 436 | I106: 4134 | J106: 3543 | K106: 17636 | L106: 50.4 | M106: 2.04 | N106: 88.49 | O106: 1871 | P106: 0 | Q106: 1 | R106: 0 | S106: 1 | T106: 1 | U106: 1 | V106: 1 | W106: 1 | X106: 1 | Y106: 0 | Z106: 0 | AA106: 0 | AB106: 82.64 | AC106: mediumhighQ
A107: METABAT_AS02xzSISU_49 | B107: o__Clostridiales (UID1212) | C107: 93.62 | D107: 0.67 | E107: 0 | F107: 0.67 | G107: 1854700 | H107: 303 | I107: 8434 | J107: 6121 | K107: 28813 | L107: 47.3 | M107: 3.26 | N107: 90.77 | O107: 1765 | P107: 1 | Q107: 1 | R107: 1 | S107: 1 | T107: 1 | U107: 1 | V107: 1 | W107: 1 | X107: 1 | Y107: 0 | Z107: 0 | AA107: 0 | AB107: 93.60 | AC107: highQ
A108: METABAT_AS02xzSISU_5 | B108: p__Firmicutes (UID239) | C108: 79.83 | D108: 3.36 | E108: 42.86 | F108: 1.919904 | G108: 2193405 | H108: 453 | I108: 6206 | J108: 4841 | K108: 22996 | L108: 54.3 | M108: 2.3 | N108: 87.14 | O108: 2358 | P108: 0 | Q108: 1 | R108: 0 | S108: 1 | T108: 1 | U108: 1 | V108: 1 | W108: 1 | X108: 1 | Y108: 0 | Z108: 0 | AA108: 0 | AB108: 79.70 | AC108: mediumhighQ
A109: METABAT_AS02xzSISU_50 | B109: o__Clostridiales (UID1212) | C109: 92.62 | D109: 0 | E109: 0 | F109: 0 | G109: 1616865 | H109: 129 | I109: 20567 | J109: 12533 | K109: 74726 | L109: 51.9 | M109: 3.48 | N109: 88.2 | O109: 1537 | P109: 1 | Q109: 1 | R109: 1 | S109: 1 | T109: 1 | U109: 1 | V109: 1 | W109: 1 | X109: 1 | Y109: 0 | Z109: 0 | AA109: 0 | AB109: 92.62 | AC109: highQ
A110: METABAT_AS02xzSISU_51 | B110: p__Firmicutes (UID240) | C110: 94.23 | D110: 0.96 | E110: 0 | F110: 0.96 | G110: 2187373 | H110: 279 | I110: 9727 | J110: 7840 | K110: 46840 | L110: 42.8 | M110: 3.5 | N110: 90.06 | O110: 2277 | P110: 1 | Q110: 1 | R110: 1 | S110: 1 | T110: 1 | U110: 1 | V110: 1 | W110: 1 | X110: 1 | Y110: 0 | Z110: 0 | AA110: 0 | AB110: 94.20 | AC110: highQ
A111: METABAT_AS02xzSISU_52 | B111: o__Clostridiales (UID1212) | C111: 50.06 | D111: 1.34 | E111: 50 | F111: 0.67 | G111: 861014 | H111: 316 | I111: 2735 | J111: 2724 | K111: 17617 | L111: 52.2 | M111: 2.62 | N111: 93.56 | O111: 972 | P111: 0 | Q111: 1 | R111: 0 | S111: 0 | T111: 1 | U111: 0 | V111: 1 | W111: 1 | X111: 1 | Y111: 0 | Z111: 0 | AA111: 0 | AB111: 49.98 | AC111: mediumQ | AD111: METABAT_AS02xzSISU_52
A112: METABAT_AS02xzSISU_53 | B112: k__Bacteria (UID203) | C112: 26.15 | D112: 12.07 | E112: 90 | F112: 1.207 | G112: 1181817 | H112: 331 | I112: 4069 | J112: 3570 | K112: 34523 | L112: 44.5 | M112: 2.57 | N112: 89.79 | O112: 1346 | P112: 0 | Q112: 0 | R112: 0 | S112: 0 | T112: 0 | U112: 0 | V112: 0 | W112: 0 | X112: 0 | Y112: 1 | Z112: 1 | AA112: 1 | AB112: 24.77 | AC112: contaminated
A113: METABAT_AS02xzSISU_54 | B113: p__Firmicutes (UID240) | C113: 53.31 | D113: 0.48 | E113: 0 | F113: 0.48 | G113: 1048022 | H113: 372 | I113: 2989 | J113: 2817 | K113: 15889 | L113: 53.9 | M113: 2.41 | N113: 93.83 | O113: 1338 | P113: 0 | Q113: 1 | R113: 0 | S113: 0 | T113: 1 | U113: 0 | V113: 1 | W113: 1 | X113: 1 | Y113: 0 | Z113: 0 | AA113: 0 | AB113: 53.28 | AC113: mediumQ
A114: METABAT_AS02xzSISU_55 | B114: o__Lactobacillales (UID544) | C114: 27.1 | D114: 0.75 | E114: 0 | F114: 0.75 | G114: 623515 | H114: 260 | I114: 2310 | J114: 2398 | K114: 12539 | L114: 41.2 | M114: 2.44 | N114: 90.21 | O114: 758 | P114: 0 | Q114: 1 | R114: 0 | S114: 0 | T114: 1 | U114: 0 | V114: 0 | W114: 1 | X114: 0 | Y114: 1 | Z114: 0 | AA114: 0 | AB114: 27.02 | AC114: lowQ
A115: METABAT_AS02xzSISU_56 | B115: k__Bacteria (UID1452) | C115: 91.82 | D115: 5.03 | E115: 0 | F115: 5.03 | G115: 4864838 | H115: 199 | I115: 40670 | J115: 24446 | K115: 138244 | L115: 60.1 | M115: 3.16 | N115: 89.41 | O115: 4290 | P115: 1 | Q115: 0 | R115: 0 | S115: 1 | T115: 1 | U115: 1 | V115: 1 | W115: 1 | X115: 1 | Y115: 0 | Z115: 0 | AA115: 0 | AB115: 91.66 | AC115: mediumhighQ | AD115: METABAT_AS02xzSISU_56
A116: METABAT_AS02xzSISU_57 | B116: o__Clostridiales (UID1212) | C116: 67.84 | D116: 2.01 | E116: 0 | F116: 2.01 | G116: 1447021 | H116: 502 | I116: 3046 | J116: 2882 | K116: 12451 | L116: 35.2 | M116: 2.03 | N116: 91.7 | O116: 1583 | P116: 0 | Q116: 1 | R116: 0 | S116: 0 | T116: 1 | U116: 0 | V116: 1 | W116: 1 | X116: 1 | Y116: 0 | Z116: 0 | AA116: 0 | AB116: 67.75 | AC116: mediumQ
A117: METABAT_AS02xzSISU_58 | B117: k__Bacteria (UID203) | C117: 3.13 | D117: 0 | E117: 0 | F117: 0 | G117: 460348 | H117: 129 | I117: 3912 | J117: 3568 | K117: 15060 | L117: 57 | M117: 1.69 | N117: 84.23 | O117: 546 | P117: 0 | Q117: 1 | R117: 0 | S117: 0 | T117: 1 | U117: 0 | V117: 0 | W117: 1 | X117: 0 | Y117: 1 | Z117: 0 | AA117: 0 | AB117: 3.13 | AC117: lowQ
A118: METABAT_AS02xzSISU_59 | B118: k__Bacteria (UID209) | C118: 88.83 | D118: 8.09 | E118: 100 | F118: 0 | G118: 1929670 | H118: 449 | I118: 5428 | J118: 4297 | K118: 24577 | L118: 53.7 | M118: 3.03 | N118: 91.76 | O118: 2300 | P118: 0 | Q118: 0 | R118: 0 | S118: 1 | T118: 1 | U118: 1 | V118: 1 | W118: 1 | X118: 1 | Y118: 0 | Z118: 0 | AA118: 0 | AB118: 88.56 | AC118: mediumhighQ
A119: METABAT_AS02xzSISU_6 | B119: p__Firmicutes (UID239) | C119: 88.71 | D119: 5.43 | E119: 25 | F119: 4.0725 | G119: 2597150 | H119: 603 | I119: 5011 | J119: 4307 | K119: 18531 | L119: 63 | M119: 1.94 | N119: 89.35 | O119: 2823 | P119: 0 | Q119: 0 | R119: 0 | S119: 1 | T119: 1 | U119: 1 | V119: 1 | W119: 1 | X119: 1 | Y119: 0 | Z119: 0 | AA119: 0 | AB119: 88.53 | AC119: mediumhighQ
A120: METABAT_AS02xzSISU_60 | B120: k__Bacteria (UID1452) | C120: 91.36 | D120: 3.72 | E120: 60 | F120: 1.488 | G120: 3996863 | H120: 462 | I120: 12984 | J120: 8651 | K120: 58776 | L120: 65 | M120: 2.15 | N120: 88.42 | O120: 3789 | P120: 1 | Q120: 1 | R120: 1 | S120: 1 | T120: 1 | U120: 1 | V120: 1 | W120: 1 | X120: 1 | Y120: 0 | Z120: 0 | AA120: 0 | AB120: 91.24 | AC120: highQ
A121: METABAT_AS02xzSISU_61 | B121: p__Firmicutes (UID239) | C121: 94.77 | D121: 0.98 | E121: 0 | F121: 0.98 | G121: 2215419 | H121: 80 | I121: 52589 | J121: 27692 | K121: 164596 | L121: 48.8 | M121: 2.05 | N121: 88.11 | O121: 2097 | P121: 1 | Q121: 1 | R121: 1 | S121: 1 | T121: 1 | U121: 1 | V121: 1 | W121: 1 | X121: 1 | Y121: 0 | Z121: 0 | AA121: 0 | AB121: 94.74 | AC121: highQ | AD121: METABAT_AS02xzSISU_61
A122: METABAT_AS02xzSISU_62 | B122: c__Gammaproteobacteria (UID4444) | C122: 91.24 | D122: 1.16 | E122: 0 | F122: 1.16 | G122: 2700182 | H122: 249 | I122: 16304 | J122: 10844 | K122: 53307 | L122: 48.8 | M122: 1.82 | N122: 89.48 | O122: 2651 | P122: 1 | Q122: 1 | R122: 1 | S122: 1 | T122: 1 | U122: 1 | V122: 1 | W122: 1 | X122: 1 | Y122: 0 | Z122: 0 | AA122: 0 | AB122: 91.20 | AC122: highQ | AD122: METABAT_AS02xzSISU_62
A123: METABAT_AS02xzSISU_63 | B123: p__Bacteroidetes (UID2605) | C123: 83.02 | D123: 0.71 | E123: 0 | F123: 0.71 | G123: 1722954 | H123: 403 | I123: 5087 | J123: 4275 | K123: 19340 | L123: 29.6 | M123: 1.83 | N123: 90.33 | O123: 1580 | P123: 0 | Q123: 1 | R123: 0 | S123: 1 | T123: 1 | U123: 1 | V123: 1 | W123: 1 | X123: 1 | Y123: 0 | Z123: 0 | AA123: 0 | AB123: 82.99 | AC123: mediumhighQ
A124: METABAT_AS02xzSISU_64 | B124: root (UID1) | C124: 0 | D124: 0 | E124: 0 | F124: 0 | G124: 335478 | H124: 59 | I124: 9119 | J124: 5686 | K124: 28403 | L124: 55.9 | M124: 1.78 | N124: 88.71 | O124: 332 | P124: 0 | Q124: 1 | R124: 0 | S124: 0 | T124: 1 | U124: 0 | V124: 0 | W124: 1 | X124: 0 | Y124: 1 | Z124: 0 | AA124: 0 | AC124: lowQ
A125: METABAT_AS02xzSISU_65 | B125: o__Clostridiales (UID1120) | C125: 90.78 | D125: 0.24 | E125: 100 | F125: 0 | G125: 1866283 | H125: 172 | I125: 15989 | J125: 10850 | K125: 84591 | L125: 46.7 | M125: 2.17 | N125: 87.07 | O125: 1792 | P125: 1 | Q125: 1 | R125: 1 | S125: 1 | T125: 1 | U125: 1 | V125: 1 | W125: 1 | X125: 1 | Y125: 0 | Z125: 0 | AA125: 0 | AB125: 90.77 | AC125: highQ
A126: METABAT_AS02xzSISU_66 | B126: root (UID1) | C126: 0 | D126: 0 | E126: 0 | F126: 0 | G126: 245943 | H126: 61 | I126: 4582 | J126: 4031 | K126: 14726 | L126: 56.5 | M126: 1.53 | N126: 89.79 | O126: 247 | P126: 0 | Q126: 1 | R126: 0 | S126: 0 | T126: 1 | U126: 0 | V126: 0 | W126: 1 | X126: 0 | Y126: 1 | Z126: 0 | AA126: 0 | AC126: lowQ
A127: METABAT_AS02xzSISU_67 | B127: root (UID1) | C127: 0 | D127: 0 | E127: 0 | F127: 0 | G127: 1086946 | H127: 283 | I127: 4833 | J127: 3840 | K127: 19108 | L127: 52.7 | M127: 4.94 | N127: 87.29 | O127: 1177 | P127: 0 | Q127: 1 | R127: 0 | S127: 0 | T127: 1 | U127: 0 | V127: 0 | W127: 1 | X127: 0 | Y127: 1 | Z127: 0 | AA127: 0 | AC127: lowQ
A128: METABAT_AS02xzSISU_68 | B128: o__Campylobacterales (UID3068) | C128: 99.35 | D128: 0.42 | E128: 0 | F128: 0.42 | G128: 2068201 | H128: 70 | I128: 57951 | J128: 29545 | K128: 103046 | L128: 48.7 | M128: 1.69 | N128: 95.51 | O128: 2094 | P128: 1 | Q128: 1 | R128: 1 | S128: 1 | T128: 1 | U128: 1 | V128: 1 | W128: 1 | X128: 1 | Y128: 0 | Z128: 0 | AA128: 0 | AB128: 99.34 | AC128: highQ | AD128: METABAT_AS02xzSISU_68
A129: METABAT_AS02xzSISU_69 | B129: o__Clostridiales (UID1120) | C129: 98.25 | D129: 1.75 | E129: 0 | F129: 1.75 | G129: 2769497 | H129: 293 | I129: 13390 | J129: 9452 | K129: 51097 | L129: 40.8 | M129: 2.04 | N129: 84.55 | O129: 2468 | P129: 1 | Q129: 1 | R129: 1 | S129: 1 | T129: 1 | U129: 1 | V129: 1 | W129: 1 | X129: 1 | Y129: 0 | Z129: 0 | AA129: 0 | AB129: 98.20 | AC129: highQ
A130: METABAT_AS02xzSISU_7 | B130: p__Firmicutes (UID239) | C130: 91.18 | D130: 2.7 | E130: 40 | F130: 1.62 | G130: 2991252 | H130: 313 | I130: 15667 | J130: 9556 | K130: 110814 | L130: 57.7 | M130: 1.63 | N130: 89.67 | O130: 2777 | P130: 1 | Q130: 1 | R130: 1 | S130: 1 | T130: 1 | U130: 1 | V130: 1 | W130: 1 | X130: 1 | Y130: 0 | Z130: 0 | AA130: 0 | AB130: 91.09 | AC130: highQ | AD130: METABAT_AS02xzSISU_7
A131: METABAT_AS02xzSISU_70 | B131: p__Euryarchaeota (UID3) | C131: 95.61 | D131: 0 | E131: 0 | F131: 0 | G131: 1492727 | H131: 67 | I131: 50326 | J131: 22279 | K131: 223815 | L131: 49.2 | M131: 1.92 | N131: 90.5 | O131: 1648 | P131: 1 | Q131: 1 | R131: 1 | S131: 1 | T131: 1 | U131: 1 | V131: 1 | W131: 1 | X131: 1 | Y131: 0 | Z131: 0 | AA131: 0 | AB131: 95.61 | AC131: highQ
A132: METABAT_AS02xzSISU_71 | B132: p__Firmicutes (UID240) | C132: 53.91 | D132: 1.96 | E132: 66.67 | F132: 0.653268 | G132: 994531 | H132: 375 | I132: 2673 | J132: 2652 | K132: 21757 | L132: 40.6 | M132: 2.48 | N132: 90.68 | O132: 1215 | P132: 0 | Q132: 1 | R132: 0 | S132: 0 | T132: 1 | U132: 0 | V132: 1 | W132: 1 | X132: 1 | Y132: 0 | Z132: 0 | AA132: 0 | AB132: 53.80 | AC132: mediumQ
A133: METABAT_AS02xzSISU_72 | B133: c__Clostridia (UID1085) | C133: 98.3 | D133: 1.45 | E133: 60 | F133: 0.58 | G133: 2492346 | H133: 203 | I133: 22347 | J133: 12277 | K133: 80246 | L133: 53.3 | M133: 3.25 | N133: 86.67 | O133: 2579 | P133: 1 | Q133: 1 | R133: 1 | S133: 1 | T133: 1 | U133: 1 | V133: 1 | W133: 1 | X133: 1 | Y133: 0 | Z133: 0 | AA133: 0 | AB133: 98.26 | AC133: highQ | AD133: METABAT_AS02xzSISU_72
A134: METABAT_AS02xzSISU_73 | B134: g__Clostridium (UID1380) | C134: 35.75 | D134: 0.25 | E134: 14.29 | F134: 0.214275 | G134: 1316049 | H134: 527 | I134: 2518 | J134: 2497 | K134: 10928 | L134: 32.6 | M134: 2.6 | N134: 89.5 | O134: 1490 | P134: 0 | Q134: 1 | R134: 0 | S134: 0 | T134: 1 | U134: 0 | V134: 0 | W134: 1 | X134: 0 | Y134: 1 | Z134: 0 | AA134: 0 | AB134: 35.73 | AC134: lowQ
A135: METABAT_AS02xzSISU_74 | B135: p__Firmicutes (UID240) | C135: 21.28 | D135: 0.03 | E135: 0 | F135: 0.03 | G135: 454290 | H135: 196 | I135: 2198 | J135: 2317 | K135: 6852 | L135: 37.1 | M135: 1.84 | N135: 91.79 | O135: 539 | P135: 0 | Q135: 1 | R135: 0 | S135: 0 | T135: 1 | U135: 0 | V135: 0 | W135: 1 | X135: 0 | Y135: 1 | Z135: 0 | AA135: 0 | AB135: 21.28 | AC135: lowQ
A136: METABAT_AS02xzSISU_75 | B136: c__Clostridia (UID1085) | C136: 93.81 | D136: 1.38 | E136: 0 | F136: 1.38 | G136: 2349341 | H136: 223 | I136: 15539 | J136: 10535 | K136: 75036 | L136: 50.5 | M136: 2.63 | N136: 86.53 | O136: 2300 | P136: 1 | Q136: 1 | R136: 1 | S136: 1 | T136: 1 | U136: 1 | V136: 1 | W136: 1 | X136: 1 | Y136: 0 | Z136: 0 | AA136: 0 | AB136: 93.77 | AC136: highQ
A137: METABAT_AS02xzSISU_76 | B137: k__Bacteria (UID209) | C137: 86.49 | D137: 2.76 | E137: 66.67 | F137: 0.919908 | G137: 1449532 | H137: 407 | I137: 3976 | J137: 3561 | K137: 19117 | L137: 31.6 | M137: 1.73 | N137: 91.5 | O137: 1552 | P137: 0 | Q137: 1 | R137: 0 | S137: 1 | T137: 1 | U137: 1 | V137: 1 | W137: 1 | X137: 1 | Y137: 0 | Z137: 0 | AA137: 0 | AB137: 86.39 | AC137: mediumhighQ
A138: METABAT_AS02xzSISU_77 | B138: root (UID1) | C138: 0 | D138: 0 | E138: 0 | F138: 0 | G138: 210766 | H138: 110 | I138: 1863 | J138: 1916 | K138: 3898 | L138: 63.9 | M138: 1.42 | N138: 87.46 | O138: 237 | P138: 0 | Q138: 1 | R138: 0 | S138: 0 | T138: 1 | U138: 0 | V138: 0 | W138: 1 | X138: 0 | Y138: 1 | Z138: 0 | AA138: 0 | AC138: lowQ
A139: METABAT_AS02xzSISU_78 | B139: c__Clostridia (UID1118) | C139: 95.03 | D139: 2.82 | E139: 100 | F139: 0 | G139: 2150568 | H139: 274 | I139: 11255 | J139: 7848 | K139: 46118 | L139: 49.6 | M139: 3.13 | N139: 89.44 | O139: 2291 | P139: 1 | Q139: 1 | R139: 1 | S139: 1 | T139: 1 | U139: 1 | V139: 1 | W139: 1 | X139: 1 | Y139: 0 | Z139: 0 | AA139: 0 | AB139: 94.94 | AC139: highQ
A140: METABAT_AS02xzSISU_79 | B140: o__Clostridiales (UID1120) | C140: 98.6 | D140: 1.92 | E140: 0 | F140: 1.92 | G140: 2950228 | H140: 102 | I140: 48431 | J140: 28923 | K140: 156596 | L140: 40.9 | M140: 2.51 | N140: 87.31 | O140: 2633 | P140: 1 | Q140: 1 | R140: 1 | S140: 1 | T140: 1 | U140: 1 | V140: 1 | W140: 1 | X140: 1 | Y140: 0 | Z140: 0 | AA140: 0 | AB140: 98.54 | AC140: highQ | AD140: METABAT_AS02xzSISU_79
A141: METABAT_AS02xzSISU_8 | B141: k__Bacteria (UID203) | C141: 30.8 | D141: 0 | E141: 0 | F141: 0 | G141: 1154462 | H141: 548 | I141: 2097 | J141: 2106 | K141: 4697 | L141: 66 | M141: 1.93 | N141: 88.66 | O141: 1287 | P141: 0 | Q141: 1 | R141: 0 | S141: 0 | T141: 1 | U141: 0 | V141: 0 | W141: 1 | X141: 0 | Y141: 1 | Z141: 0 | AA141: 0 | AB141: 30.80 | AC141: lowQ
A142: METABAT_AS02xzSISU_80 | B142: o__Selenomonadales (UID1024) | C142: 97.01 | D142: 2.74 | E142: 50 | F142: 1.37 | G142: 2103078 | H142: 402 | I142: 6734 | J142: 5231 | K142: 34504 | L142: 38.7 | M142: 1.97 | N142: 91.01 | O142: 2181 | P142: 1 | Q142: 1 | R142: 1 | S142: 1 | T142: 1 | U142: 1 | V142: 1 | W142: 1 | X142: 1 | Y142: 0 | Z142: 0 | AA142: 0 | AB142: 96.93 | AC142: highQ | AD142: METABAT_AS02xzSISU_80
A143: METABAT_AS02xzSISU_81 | B143: p__Firmicutes (UID241) | C143: 89.83 | D143: 0.85 | E143: 100 | F143: 0 | G143: 2064479 | H143: 163 | I143: 19598 | J143: 12665 | K143: 65300 | L143: 59.5 | M143: 3.88 | N143: 88.92 | O143: 1977 | P143: 0 | Q143: 1 | R143: 0 | S143: 1 | T143: 1 | U143: 1 | V143: 1 | W143: 1 | X143: 1 | Y143: 0 | Z143: 0 | AA143: 0 | AB143: 89.80 | AC143: mediumhighQ
A144: METABAT_AS02xzSISU_82 | B144: o__Clostridiales (UID1120) | C144: 86.43 | D144: 0 | E144: 0 | F144: 0 | G144: 1548301 | H144: 339 | I144: 5804 | J144: 4567 | K144: 27263 | L144: 36.1 | M144: 2.17 | N144: 91.46 | O144: 1652 | P144: 0 | Q144: 1 | R144: 0 | S144: 1 | T144: 1 | U144: 1 | V144: 1 | W144: 1 | X144: 1 | Y144: 0 | Z144: 0 | AA144: 0 | AB144: 86.43 | AC144: mediumhighQ
A145: METABAT_AS02xzSISU_83 | B145: p__Firmicutes (UID239) | C145: 71.63 | D145: 1.31 | E145: 50 | F145: 0.655 | G145: 2288750 | H145: 663 | I145: 4074 | J145: 3452 | K145: 14524 | L145: 71.1 | M145: 2.53 | N145: 90.97 | O145: 2614 | P145: 0 | Q145: 1 | R145: 0 | S145: 1 | T145: 1 | U145: 1 | V145: 1 | W145: 1 | X145: 1 | Y145: 0 | Z145: 0 | AA145: 0 | AB145: 71.58 | AC145: mediumhighQ | AD145: METABAT_AS02xzSISU_83
A146: METABAT_AS02xzSISU_84 | B146: c__Gammaproteobacteria (UID4267) | C146: 97.18 | D146: 0.73 | E146: 0 | F146: 0.73 | G146: 2966612 | H146: 117 | I146: 43674 | J146: 25355 | K146: 123078 | L146: 66 | M146: 1.92 | N146: 90 | O146: 2868 | P146: 1 | Q146: 1 | R146: 1 | S146: 1 | T146: 1 | U146: 1 | V146: 1 | W146: 1 | X146: 1 | Y146: 0 | Z146: 0 | AA146: 0 | AB146: 97.16 | AC146: highQ
A147: METABAT_AS02xzSISU_85 | B147: p__Firmicutes (UID239) | C147: 95.1 | D147: 2.45 | E147: 0 | F147: 2.45 | G147: 2149725 | H147: 102 | I147: 41905 | J147: 21075 | K147: 150155 | L147: 63.5 | M147: 1.96 | N147: 90.3 | O147: 1965 | P147: 1 | Q147: 1 | R147: 1 | S147: 1 | T147: 1 | U147: 1 | V147: 1 | W147: 1 | X147: 1 | Y147: 0 | Z147: 0 | AA147: 0 | AB147: 95.02 | AC147: highQ
A148: METABAT_AS02xzSISU_86 | B148: p__Firmicutes (UID239) | C148: 23.34 | D148: 0 | E148: 0 | F148: 0 | G148: 374663 | H148: 91 | I148: 4683 | J148: 4117 | K148: 24042 | L148: 57.5 | M148: 1.17 | N148: 88.77 | O148: 425 | P148: 0 | Q148: 1 | R148: 0 | S148: 0 | T148: 1 | U148: 0 | V148: 0 | W148: 1 | X148: 0 | Y148: 1 | Z148: 0 | AA148: 0 | AB148: 23.34 | AC148: lowQ
A149: METABAT_AS02xzSISU_87 | B149: p__Firmicutes (UID1022) | C149: 99.37 | D149: 2.74 | E149: 12.5 | F149: 2.3975 | G149: 2656753 | H149: 112 | I149: 39990 | J149: 23721 | K149: 92654 | L149: 50 | M149: 3.45 | N149: 83.01 | O149: 2448 | P149: 1 | Q149: 1 | R149: 1 | S149: 1 | T149: 1 | U149: 1 | V149: 1 | W149: 1 | X149: 1 | Y149: 0 | Z149: 0 | AA149: 0 | AB149: 99.29 | AC149: highQ
A150: METABAT_AS02xzSISU_88 | B150: p__Firmicutes (UID1022) | C150: 46.59 | D150: 0.47 | E150: 0 | F150: 0.47 | G150: 953289 | H150: 294 | I150: 3471 | J150: 3242 | K150: 15706 | L150: 57.2 | M150: 1.98 | N150: 87.61 | O150: 1102 | P150: 0 | Q150: 1 | R150: 0 | S150: 0 | T150: 1 | U150: 0 | V150: 0 | W150: 1 | X150: 0 | Y150: 1 | Z150: 0 | AA150: 0 | AB150: 46.56 | AC150: lowQ
A151: METABAT_AS02xzSISU_89 | B151: p__Euryarchaeota (UID49) | C151: 99.84 | D151: 0.65 | E151: 0 | F151: 0.65 | G151: 3019260 | H151: 79 | I151: 67889 | J151: 38218 | K151: 209612 | L151: 41.3 | M151: 2.03 | N151: 75.85 | O151: 2662 | P151: 1 | Q151: 1 | R151: 1 | S151: 1 | T151: 1 | U151: 1 | V151: 1 | W151: 1 | X151: 1 | Y151: 0 | Z151: 0 | AA151: 0 | AB151: 99.82 | AC151: highQ | AD151: METABAT_AS02xzSISU_89
A152: METABAT_AS02xzSISU_9 | B152: k__Bacteria (UID209) | C152: 47.46 | D152: 0 | E152: 0 | F152: 0 | G152: 864913 | H152: 20 | I152: 57619 | J152: 43245 | K152: 148017 | L152: 48.2 | M152: 1.72 | N152: 92.84 | O152: 873 | P152: 0 | Q152: 1 | R152: 0 | S152: 0 | T152: 1 | U152: 0 | V152: 0 | W152: 1 | X152: 0 | Y152: 1 | Z152: 0 | AA152: 0 | AB152: 47.46 | AC152: lowQ
A153: METABAT_AS02xzSISU_90 | B153: k__Bacteria (UID203) | C153: 24.14 | D153: 0.34 | E153: 0 | F153: 0.34 | G153: 374895 | H153: 171 | I153: 2172 | J153: 2192 | K153: 6466 | L153: 49.6 | M153: 2.63 | N153: 95.72 | O153: 508 | P153: 0 | Q153: 1 | R153: 0 | S153: 0 | T153: 1 | U153: 0 | V153: 0 | W153: 1 | X153: 0 | Y153: 1 | Z153: 0 | AA153: 0 | AB153: 24.10 | AC153: lowQ
A154: METABAT_AS04akNAM_1 | B154: k__Bacteria (UID2565) | C154: 27.47 | D154: 1.15 | E154: 0 | F154: 1.15 | G154: 964084 | H154: 432 | I154: 2218 | J154: 2231 | K154: 6405 | L154: 55 | M154: 1.64 | N154: 86.62 | O154: 1074 | P154: 0 | Q154: 1 | R154: 0 | S154: 0 | T154: 1 | U154: 0 | V154: 0 | W154: 1 | X154: 0 | Y154: 1 | Z154: 0 | AA154: 0 | AB154: 27.34 | AC154: lowQ
A155: METABAT_AS04akNAM_10 | B155: f__Moraxellaceae (UID4680) | C155: 99.45 | D155: 0 | E155: 0 | F155: 0 | G155: 2721603 | H155: 34 | I155: 109811 | J155: 80047 | K155: 462181 | L155: 41.4 | M155: 1.11 | N155: 86.5 | O155: 2583 | P155: 1 | Q155: 1 | R155: 1 | S155: 1 | T155: 1 | U155: 1 | V155: 1 | W155: 1 | X155: 1 | Y155: 0 | Z155: 0 | AA155: 0 | AB155: 99.45 | AC155: highQ | AD155: METABAT_AS04akNAM_10
A156: METABAT_AS04akNAM_100 | B156: o__Clostridiales (UID1212) | C156: 97.48 | D156: 2.71 | E156: 40 | F156: 1.626 | G156: 3187723 | H156: 240 | I156: 22648 | J156: 13282 | K156: 84438 | L156: 39.9 | M156: 1.94 | N156: 88.85 | O156: 2910 | P156: 1 | Q156: 1 | R156: 1 | S156: 1 | T156: 1 | U156: 1 | V156: 1 | W156: 1 | X156: 1 | Y156: 0 | Z156: 0 | AA156: 0 | AB156: 97.40 | AC156: highQ | AD156: METABAT_AS04akNAM_100
A157: METABAT_AS04akNAM_101 | B157: p__Firmicutes (UID1022) | C157: 94.94 | D157: 1.32 | E157: 16.67 | F157: 1.099956 | G157: 2523467 | H157: 112 | I157: 37201 | J157: 22530 | K157: 109206 | L157: 50 | M157: 3.79 | N157: 82.92 | O157: 2343 | P157: 1 | Q157: 1 | R157: 1 | S157: 1 | T157: 1 | U157: 1 | V157: 1 | W157: 1 | X157: 1 | Y157: 0 | Z157: 0 | AA157: 0 | AB157: 94.90 | AC157: highQ
A158: METABAT_AS04akNAM_102 | B158: root (UID1) | C158: 0 | D158: 0 | E158: 0 | F158: 0 | G158: 259542 | H158: 46 | I158: 6695 | J158: 5642 | K158: 36507 | L158: 50.1 | M158: 1.8 | N158: 81.39 | O158: 319 | P158: 0 | Q158: 1 | R158: 0 | S158: 0 | T158: 1 | U158: 0 | V158: 0 | W158: 1 | X158: 0 | Y158: 1 | Z158: 0 | AA158: 0 | AC158: lowQ
A159: METABAT_AS04akNAM_103 | B159: o__Thermoanaerobacterales (UID1420) | C159: 99.36 | D159: 0.31 | E159: 0 | F159: 0.31 | G159: 2654849 | H159: 91 | I159: 45889 | J159: 29174 | K159: 258981 | L159: 33.8 | M159: 1.86 | N159: 89.65 | O159: 2655 | P159: 1 | Q159: 1 | R159: 1 | S159: 1 | T159: 1 | U159: 1 | V159: 1 | W159: 1 | X159: 1 | Y159: 0 | Z159: 0 | AA159: 0 | AB159: 99.35 | AC159: highQ | AD159: METABAT_AS04akNAM_103
A160: METABAT_AS04akNAM_104 | B160: c__Clostridia (UID1118) | C160: 59.15 | D160: 1.21 | E160: 50 | F160: 0.605 | G160: 1254349 | H160: 412 | I160: 3185 | J160: 3044 | K160: 10431 | L160: 45.2 | M160: 2.65 | N160: 87.21 | O160: 1512 | P160: 0 | Q160: 1 | R160: 0 | S160: 0 | T160: 1 | U160: 0 | V160: 1 | W160: 1 | X160: 1 | Y160: 0 | Z160: 0 | AA160: 0 | AB160: 59.09 | AC160: mediumQ | AD160: METABAT_AS04akNAM_104
A161: METABAT_AS04akNAM_105 | B161: g__Bacillus (UID856) | C161: 88.45 | D161: 4.05 | E161: 0 | F161: 4.05 | G161: 3503987 | H161: 71 | I161: 148644 | J161: 49351 | K161: 563661 | L161: 36.9 | M161: 4.7 | N161: 87.32 | O161: 3639 | P161: 0 | Q161: 1 | R161: 0 | S161: 1 | T161: 1 | U161: 1 | V161: 1 | W161: 1 | X161: 1 | Y161: 0 | Z161: 0 | AA161: 0 | AB161: 88.31 | AC161: mediumhighQ | AD161: METABAT_AS04akNAM_105
A162: METABAT_AS04akNAM_106 | B162: o__Clostridiales (UID1212) | C162: 97.32 | D162: 2.59 | E162: 0 | F162: 2.59 | G162: 2848789 | H162: 35 | I162: 200014 | J162: 81393 | K162: 296027 | L162: 35.6 | M162: 2.18 | N162: 88.82 | O162: 2667 | P162: 1 | Q162: 1 | R162: 1 | S162: 1 | T162: 1 | U162: 1 | V162: 1 | W162: 1 | X162: 1 | Y162: 0 | Z162: 0 | AA162: 0 | AB162: 97.24 | AC162: highQ | AD162: METABAT_AS04akNAM_106
A163: METABAT_AS04akNAM_107 | B163: root (UID1) | C163: 0 | D163: 0 | E163: 0 | F163: 0 | G163: 1433579 | H163: 312 | I163: 5958 | J163: 4594 | K163: 33286 | L163: 39.8 | M163: 3.6 | N163: 88.77 | O163: 1429 | P163: 0 | Q163: 1 | R163: 0 | S163: 0 | T163: 1 | U163: 0 | V163: 0 | W163: 1 | X163: 0 | Y163: 1 | Z163: 0 | AA163: 0 | AC163: lowQ
A164: METABAT_AS04akNAM_108 | B164: c__Clostridia (UID1085) | C164: 62.05 | D164: 1.26 | E164: 25 | F164: 0.945 | G164: 1456699 | H164: 463 | I164: 3343 | J164: 3146 | K164: 28831 | L164: 47.4 | M164: 2.42 | N164: 90.68 | O164: 1766 | P164: 0 | Q164: 1 | R164: 0 | S164: 0 | T164: 1 | U164: 0 | V164: 1 | W164: 1 | X164: 1 | Y164: 0 | Z164: 0 | AA164: 0 | AB164: 61.99 | AC164: mediumQ | AD164: METABAT_AS04akNAM_108
A165: METABAT_AS04akNAM_109 | B165: o__Clostridiales (UID1212) | C165: 97.32 | D165: 0.67 | E165: 0 | F165: 0.67 | G165: 1883471 | H165: 30 | I165: 298384 | J165: 62782 | K165: 441701 | L165: 44.8 | M165: 5.56 | N165: 90.54 | O165: 1741 | P165: 1 | Q165: 1 | R165: 1 | S165: 1 | T165: 1 | U165: 1 | V165: 1 | W165: 1 | X165: 1 | Y165: 0 | Z165: 0 | AA165: 0 | AB165: 97.30 | AC165: highQ | AD165: METABAT_AS04akNAM_109
A166: METABAT_AS04akNAM_11 | B166: c__Clostridia (UID1118) | C166: 93.52 | D166: 1.21 | E166: 0 | F166: 1.21 | G166: 2370164 | H166: 117 | I166: 35310 | J166: 20257 | K166: 82991 | L166: 41.4 | M166: 2.5 | N166: 87.56 | O166: 2178 | P166: 1 | Q166: 1 | R166: 1 | S166: 1 | T166: 1 | U166: 1 | V166: 1 | W166: 1 | X166: 1 | Y166: 0 | Z166: 0 | AA166: 0 | AB166: 93.48 | AC166: highQ
A167: METABAT_AS04akNAM_110 | B167: o__Bacillales (UID828) | C167: 97.08 | D167: 3.52 | E167: 0 | F167: 3.52 | G167: 3940682 | H167: 138 | I167: 63262 | J167: 28555 | K167: 255563 | L167: 37.8 | M167: 9.12 | N167: 85.15 | O167: 4035 | P167: 1 | Q167: 1 | R167: 1 | S167: 1 | T167: 1 | U167: 1 | V167: 1 | W167: 1 | X167: 1 | Y167: 0 | Z167: 0 | AA167: 0 | AB167: 96.97 | AC167: highQ | AD167: METABAT_AS04akNAM_110
A168: METABAT_AS04akNAM_111 | B168: c__Clostridia (UID1118) | C168: 78.98 | D168: 0 | E168: 0 | F168: 0 | G168: 1862005 | H168: 322 | I168: 7605 | J168: 5782 | K168: 39589 | L168: 35.3 | M168: 2.94 | N168: 89.09 | O168: 1949 | P168: 0 | Q168: 1 | R168: 0 | S168: 1 | T168: 1 | U168: 1 | V168: 1 | W168: 1 | X168: 1 | Y168: 0 | Z168: 0 | AA168: 0 | AB168: 78.98 | AC168: mediumhighQ | AD168: METABAT_AS04akNAM_111
A169: METABAT_AS04akNAM_112 | B169: p__Firmicutes (UID1022) | C169: 97.42 | D169: 0.63 | E169: 0 | F169: 0.63 | G169: 2697668 | H169: 105 | I169: 42911 | J169: 25692 | K169: 196579 | L169: 53.3 | M169: 3.92 | N169: 86.1 | O169: 2730 | P169: 1 | Q169: 1 | R169: 1 | S169: 1 | T169: 1 | U169: 1 | V169: 1 | W169: 1 | X169: 1 | Y169: 0 | Z169: 0 | AA169: 0 | AB169: 97.40 | AC169: highQ | AD169: METABAT_AS04akNAM_112
A170: METABAT_AS04akNAM_113 | B170: o__Clostridiales (UID1212) | C170: 97.32 | D170: 1.34 | E170: 0 | F170: 1.34 | G170: 2844806 | H170: 119 | I170: 42053 | J170: 23905 | K170: 117923 | L170: 36.1 | M170: 2.12 | N170: 85.67 | O170: 2505 | P170: 1 | Q170: 1 | R170: 1 | S170: 1 | T170: 1 | U170: 1 | V170: 1 | W170: 1 | X170: 1 | Y170: 0 | Z170: 0 | AA170: 0 | AB170: 97.28 | AC170: highQ | AD170: METABAT_AS04akNAM_113
A171: METABAT_AS04akNAM_114 | B171: c__Clostridia (UID1085) | C171: 31.77 | D171: 0 | E171: 0 | F171: 0 | G171: 717505 | H171: 239 | I171: 3148 | J171: 3002 | K171: 8909 | L171: 45.5 | M171: 3.16 | N171: 84.35 | O171: 852 | P171: 0 | Q171: 1 | R171: 0 | S171: 0 | T171: 1 | U171: 0 | V171: 0 | W171: 1 | X171: 0 | Y171: 1 | Z171: 0 | AA171: 0 | AB171: 31.77 | AC171: lowQ
A172: METABAT_AS04akNAM_115 | B172: p__Firmicutes (UID1022) | C172: 90.98 | D172: 0.79 | E172: 0 | F172: 0.79 | G172: 2125929 | H172: 261 | I172: 14052 | J172: 8145 | K172: 62428 | L172: 45.2 | M172: 3.1 | N172: 86.51 | O172: 2226 | P172: 1 | Q172: 1 | R172: 1 | S172: 1 | T172: 1 | U172: 1 | V172: 1 | W172: 1 | X172: 1 | Y172: 0 | Z172: 0 | AA172: 0 | AB172: 90.95 | AC172: highQ | AD172: METABAT_AS04akNAM_115
A173: METABAT_AS04akNAM_116 | B173: o__Clostridiales (UID1212) | C173: 86.11 | D173: 4.41 | E173: 30.77 | F173: 3.053043 | G173: 1991364 | H173: 494 | I173: 4909 | J173: 4031 | K173: 15471 | L173: 53.9 | M173: 4.41 | N173: 87.73 | O173: 2254 | P173: 0 | Q173: 1 | R173: 0 | S173: 1 | T173: 1 | U173: 1 | V173: 1 | W173: 1 | X173: 1 | Y173: 0 | Z173: 0 | AA173: 0 | AB173: 85.96 | AC173: mediumhighQ | AD173: METABAT_AS04akNAM_116
A174: METABAT_AS04akNAM_117 | B174: p__Firmicutes (UID239) | C174: 88.58 | D174: 2.01 | E174: 0 | F174: 2.01 | G174: 1889287 | H174: 66 | I174: 69888 | J174: 28625 | K174: 205690 | L174: 59.2 | M174: 5.37 | N174: 89.94 | O174: 1767 | P174: 0 | Q174: 1 | R174: 0 | S174: 1 | T174: 1 | U174: 1 | V174: 1 | W174: 1 | X174: 1 | Y174: 0 | Z174: 0 | AA174: 0 | AB174: 88.51 | AC174: mediumhighQ | AD174: METABAT_AS04akNAM_117
A175: METABAT_AS04akNAM_118 | B175: c__Betaproteobacteria (UID3959) | C175: 3.57 | D175: 0 | E175: 0 | F175: 0 | G175: 695014 | H175: 122 | I175: 22702 | J175: 5696 | K175: 71279 | L175: 58.5 | M175: 11.59 | N175: 89.2 | O175: 782 | P175: 0 | Q175: 1 | R175: 0 | S175: 0 | T175: 1 | U175: 0 | V175: 0 | W175: 1 | X175: 0 | Y175: 1 | Z175: 0 | AA175: 0 | AB175: 3.57 | AC175: lowQ
A176: METABAT_AS04akNAM_119 | B176: o__Clostridiales (UID1212) | C176: 94.63 | D176: 1.34 | E176: 0 | F176: 1.34 | G176: 2160074 | H176: 12 | I176: 241872 | J176: 180006 | K176: 497076 | L176: 53.9 | M176: 1.84 | N176: 90.41 | O176: 1907 | P176: 1 | Q176: 1 | R176: 1 | S176: 1 | T176: 1 | U176: 1 | V176: 1 | W176: 1 | X176: 1 | Y176: 0 | Z176: 0 | AA176: 0 | AB176: 94.59 | AC176: highQ | AD176: METABAT_AS04akNAM_119
A177: METABAT_AS04akNAM_12 | B177: root (UID1) | C177: 0 | D177: 0 | E177: 0 | F177: 0 | G177: 246448 | H177: 8 | I177: 60352 | J177: 30806 | K177: 84396 | L177: 60.2 | M177: 0.9 | N177: 85.88 | O177: 242 | P177: 0 | Q177: 1 | R177: 0 | S177: 0 | T177: 1 | U177: 0 | V177: 0 | W177: 1 | X177: 0 | Y177: 1 | Z177: 0 | AA177: 0 | AC177: lowQ
A178: METABAT_AS04akNAM_120 | B178: root (UID1) | C178: 8.33 | D178: 0 | E178: 0 | F178: 0 | G178: 272633 | H178: 21 | I178: 15937 | J178: 12982 | K178: 35340 | L178: 59.3 | M178: 2.52 | N178: 89.04 | O178: 277 | P178: 0 | Q178: 1 | R178: 0 | S178: 0 | T178: 1 | U178: 0 | V178: 0 | W178: 1 | X178: 0 | Y178: 1 | Z178: 0 | AA178: 0 | AB178: 8.33 | AC178: lowQ
A179: METABAT_AS04akNAM_121 | B179: o__Clostridiales (UID1120) | C179: 85.57 | D179: 0.93 | E179: 33.33 | F179: 0.620031 | G179: 2064543 | H179: 469 | I179: 5172 | J179: 4402 | K179: 22284 | L179: 47.1 | M179: 2.37 | N179: 89.56 | O179: 2245 | P179: 0 | Q179: 1 | R179: 0 | S179: 1 | T179: 1 | U179: 1 | V179: 1 | W179: 1 | X179: 1 | Y179: 0 | Z179: 0 | AA179: 0 | AB179: 85.54 | AC179: mediumhighQ | AD179: METABAT_AS04akNAM_121
A180: METABAT_AS04akNAM_122 | B180: k__Bacteria (UID203) | C180: 5.64 | D180: 0 | E180: 0 | F180: 0 | G180: 287489 | H180: 29 | I180: 10637 | J180: 9913 | K180: 54713 | L180: 56.8 | M180: 2.81 | N180: 87.78 | O180: 264 | P180: 0 | Q180: 1 | R180: 0 | S180: 0 | T180: 1 | U180: 0 | V180: 0 | W180: 1 | X180: 0 | Y180: 1 | Z180: 0 | AA180: 0 | AB180: 5.64 | AC180: lowQ
A181: METABAT_AS04akNAM_123 | B181: k__Bacteria (UID203) | C181: 2.59 | D181: 0 | E181: 0 | F181: 0 | G181: 356474 | H181: 79 | I181: 7887 | J181: 4512 | K181: 21339 | L181: 36.7 | M181: 1.99 | N181: 88.68 | O181: 363 | P181: 0 | Q181: 1 | R181: 0 | S181: 0 | T181: 1 | U181: 0 | V181: 0 | W181: 1 | X181: 0 | Y181: 1 | Z181: 0 | AA181: 0 | AB181: 2.59 | AC181: lowQ
A182: METABAT_AS04akNAM_124 | B182: p__Firmicutes (UID239) | C182: 90.1 | D182: 2.01 | E182: 50 | F182: 1.005 | G182: 2357551 | H182: 136 | I182: 41339 | J182: 17334 | K182: 109994 | L182: 57.4 | M182: 1.39 | N182: 88.87 | O182: 2291 | P182: 1 | Q182: 1 | R182: 1 | S182: 1 | T182: 1 | U182: 1 | V182: 1 | W182: 1 | X182: 1 | Y182: 0 | Z182: 0 | AA182: 0 | AB182: 90.03 | AC182: highQ | AD182: METABAT_AS04akNAM_124
A183: METABAT_AS04akNAM_125 | B183: f__Rhodobacteraceae (UID3340) | C183: 96.14 | D183: 1.66 | E183: 41.67 | F183: 0.968278 | G183: 3255899 | H183: 264 | I183: 19016 | J183: 12332 | K183: 73846 | L183: 69 | M183: 2.22 | N183: 89.89 | O183: 3248 | P183: 1 | Q183: 1 | R183: 1 | S183: 1 | T183: 1 | U183: 1 | V183: 1 | W183: 1 | X183: 1 | Y183: 0 | Z183: 0 | AA183: 0 | AB183: 96.09 | AC183: highQ | AD183: METABAT_AS04akNAM_125
